Workbook

Sheet Contents
B1: REGULATORY REPORTING STATEMENT
B2: =TradingName -> United Energy Distribution Pty Limited
B3: =CONCATENATE("Category Analysis RIN response ",CRY) -> Category Analysis RIN response 2013-14
B4: CONTENTS
E7: 1. Business details | L7: 2. Expenditure
E27: 4. Alternative control services | L27: 5. Network information | S27: 6. Service & quality

Sheet 1.0 Business & other details
B1: =Title -> REGULATORY REPORTING STATEMENT
B2: =TradingName -> United Energy Distribution Pty Limited
B3: =CONCATENATE("Category Analysis RIN response ",CRY) -> Category Analysis RIN response 2013-14
B4: 1.0 BUSINESS & OTHER DETAILS
B7: Instructions
B8: Complete the following business details regulatory template before entering data or values in any other regulatory template. This regulatory template is linked to other cells within the spreadsheet and automatically generates column headings.
B10: Table 1.1 - Submission particulars input sheet
B12: Entity details
B14: Trading name | C14: United Energy Distribution Pty Limited
B15: ACN / ABN | C15: 70064651029
B18: Business address | C18: Address 1 | E18: United Energy and Multinet Gas
D19: Address 2 | E19: 6 Nexus Court
C20: Suburb | E20: Mulgrave
D21: State | E21: Vic | F21: p/code | G21: 3170
B23: Postal address | C23: Address 1 | E23: PO Box 449
D24: Address 2
C25: Suburb | E25: Mount Waverley
D26: State | E26: Vic | F26: p/code | G26: 3149
B29: Contact name/s | C29: Mathew Abraham
B30: Contact phone/s | C30: 03 8846 9758
B31: Contact email address/s | C31: mathew.abraham@ue.com.au
B34: Regulatory year | C34: Calendar | M34: 2009 | N34: 2010 | O34: 2011 | P34: 2012 | Q34: 2013
C35: 2013-14 | M35: 2008/09 | N35: 2009/10 | O35: 2010/11 | P35: 2011/12 | Q35: 2012/13
B44: Sector | C44: Electricity
B45: Segment | C45: Distribution
B46: Source | C46: Reporting
B47: Regulatory year ending | C47: 2014
B48: Reporting period type | C48: Financial
B49: RIN Type | C49: CA
B50: Security classification | C50: Public
B51: Estimated, Actual, Consolidated, Consolidated Public | C51: Consolidated Public
B52: RIN response - version no. | C52: 1
B53: RIN response - amendment reason | C53: <If resubmitting, NSP to provide amendment reason>
B54: RIN template - version no. | C54: 2

Sheet 2.1 Expenditure summary
B1: =Title -> REGULATORY REPORTING STATEMENT
B2: =TradingName -> United Energy Distribution Pty Limited
B3: =CONCATENATE("Category Analysis RIN response ",CRY) -> Category Analysis RIN response 2013-14
B4: 2.1 EXPENDITURE SUMMARY & RECONCILIATION
B11: TABLE 2.1.1 - STANDARD CONTROL SERVICES CAPEX
C14: Actual ($000's)
C15: =CRY -> 2013-14
A16: ED_EXP211_00001 | B16: Replacement expenditure | C16: =SUM('2.12 Input tables'!M66:P75) -> 87867.8297
A17: ED_EXP211_00002 | B17: Connections | C17: 41782.38212
A18: ED_EXP211_00003 | B18: Augmentation Expenditure | C18: 35894.04637
A19: ED_EXP211_00004 | B19: Non-network | C19: 27753.49391
A20: ED_EXP211_00005 | B20: capitalised network overheads | C20: 0
A21: ED_EXP211_00006 | B21: capitalised corporate overheads | C21: 0
A22: ED_EXP211_00007 | B22: Metering | C22: 0
A23: ED_EXP211_00008 | B23: Public Lighting | C23: 0
A24: ED_EXP211_00002 | B24: Performance capex | C24: 11988
A25: ED_EXP211_00003 | B25: Other connections | C25: 4965
A26: ED_EXP211_00004
A27: ED_EXP211_00005
A28: ED_EXP211_00006
A29: ED_EXP211_00007
A30: ED_EXP211_00008
A31: ED_EXP211_00009 | B31: balancing item | C31: =210251-SUM(C16:C27) -> 0.2479
B32: TOTAL GROSS CAPEX (includes capcons) | C32: =+SUM(C16:C31) -> 210251
A33: ED_EXP211_00011 | B33: capcons | C33: 20950.22172
B35: TABLE 2.1.2 - STANDARD CONTROL SERVICES OPEX
C38: Actual ($000's)
C39: =CRY -> 2013-14
A40: ED_EXP212_00001 | B40: Vegetation management | C40: ='2.7 Vegetation management'!P19+'2.7 Vegetation management'!P28 -> 11683.09124
A41: ED_EXP212_00002 | B41: Maintenance | C41: =SUM('2.12 Input tables'!M27:P50) -> 18870.24409
A42: ED_EXP212_00003 | B42: Emergency response | C42: ='2.9 Emergency Response'!D11 -> 14294.591
A43: ED_EXP212_00004 | B43: Non-network | C43: =SUM('2.6 Non-network'!E14:E55)-'2.1 Expenditure summary'!C19 -> 20450.26205
A44: ED_EXP212_00005 | B44: network overheads | C44: =SUM('2.10 Overheads'!E13:E17) -> 19614.23956
A45: ED_EXP212_00006 | B45: corporate overheads | C45: =SUM('2.10 Overheads'!E110:E123) -> 36316.22104
A46: ED_EXP212_00007 | B46: Metering | C46: 0
A47: ED_EXP212_00008 | B47: Public Lighting | C47: 0
A48: ED_EXP211_00002 | B48: Other non-asset related maintenance | C48: =47845.79-SUM(C40:C42) -> 2997.86367
A49: ED_EXP211_00003 | B49: Less buildings & property counted in both non-network and overheads | C49: -2351.92
A50: ED_EXP211_00004
A51: ED_EXP211_00005
A52: ED_EXP211_00006
A53: ED_EXP211_00007
A54: ED_EXP211_00008
A55: ED_EXP212_00009 | B55: balancing item | C55: =47846+74022-SUM(C40:C49) -> -6.592655
B56: TOTAL OPEX | C56: =+SUM(C40:C55) -> 121868
B58: TABLE 2.1.3 - ALTERNATIVE CONTROL SERVICES CAPEX
C61: Actual ($000's)
C62: =CRY -> 2013-14
A63: ED_EXP213_00001 | B63: Connections | C63: 0
A64: ED_EXP213_00002 | B64: capitalised network overheads | C64: 0
A65: ED_EXP213_00003 | B65: capitalised corporate overheads | C65: 0
A66: ED_EXP213_00004 | B66: Metering | C66: =SUM('4.2 Metering'!H12:H14,'4.2 Metering'!H30:H32,'4.2 Metering'!H42,'4.2 Metering'!H44)+6205.24 -> 29669.99948
A67: ED_EXP213_00005 | B67: Public lighting | C67: =SUM('4.1 Public lighting'!D125,'4.1 Public lighting'!D129) -> 6906.11662
A68: ED_EXP213_00006 | B68: Fee and quoted | C68: =10147 -> 10147
A69: ED_EXP211_00002
A70: ED_EXP211_00003
A71: ED_EXP211_00004
A72: ED_EXP211_00005
A73: ED_EXP211_00006
A74: ED_EXP211_00007
A75: ED_EXP211_00008
A76: ED_EXP213_00007 | B76: balancing item | C76: =(29670+6906+10147)-SUM(C63:C68) -> -0.1161
B77: TOTAL CAPEX | C77: =+SUM(C63:C76) -> 46723
B79: TABLE 2.1.4 - ALTERNATIVE CONTROL SERVICES OPEX
C82: Actual ($000's)
C83: =CRY -> 2013-14
A84: ED_EXP214_00001 | B84: Connections | C84: 0
A85: ED_EXP214_00002 | B85: network overheads | C85: 0
A86: ED_EXP214_00003 | B86: corporate overheads | C86: 0
A87: ED_EXP214_00004 | B87: Metering | C87: =SUM('4.2 Metering'!H12:H45)-SUM('4.2 Metering'!H24:H29)-'2.1 Expenditure summary'!C66 -> 23473.00052
A88: ED_EXP214_00005 | B88: Public lighting | C88: ='4.1 Public lighting'!D133 -> 3526.49838
A89: ED_EXP214_00006 | B89: Fee and quoted | C89: =SUM('4.3 Fee-based services'!D11:D26,'4.4 Quoted services.'!D11:D20)-'2.1 Expenditure summary'!C68 -> 7186.883815
A90: ED_EXP211_00002 | B90: Other public lighting opex (LIMB 3) | C90: =-(1732.08+64439.55)/1000 -> -66.17163
A91: ED_EXP211_00003
A92: ED_EXP211_00004
A93: ED_EXP211_00005
A94: ED_EXP211_00006
A95: ED_EXP211_00007
A96: ED_EXP211_00008
A97: ED_EXP214_00007 | B97: balancing item | C97: =34120-SUM(C84:C90) -> -0.211084783
B98: TOTAL OPEX | C98: =+SUM(C84:C97) -> 34120
B100: TABLE 2.1.5 - DUAL FUNCTION ASSETS CAPEX
C103: Actual ($000's)
C104: =CRY -> 2013-14
A105: ED_EXP215_00001 | B105: Replacement expenditure
A106: ED_EXP215_00002 | B106: Connections
A107: ED_EXP215_00003 | B107: Augmentation Expenditure
A108: ED_EXP215_00004 | B108: Non-network
A109: ED_EXP215_00005 | B109: Capitalised network overheads
A110: ED_EXP215_00006 | B110: Capitalised corporate overheads
A111: ED_EXP211_00002
A112: ED_EXP211_00003
A113: ED_EXP211_00004
A114: ED_EXP211_00005
A115: ED_EXP211_00006
A116: ED_EXP211_00007
A117: ED_EXP211_00008
A118: ED_EXP215_00007 | B118: balancing item
B119: TOTAL GROSS CAPEX (includes capcons) | C119: =SUM(C105:C118) -> 0
A120: ED_EXP215_00009 | B120: capcons
B122: TABLE 2.1.6 - DUAL FUNCTION ASSETS OPEX
C125: Actual ($000's)
C126: =CRY -> 2013-14
A127: ED_EXP216_00001 | B127: Vegetation management
A128: ED_EXP216_00002 | B128: Maintenance
A129: ED_EXP216_00003 | B129: Emergency response
A130: ED_EXP216_00004 | B130: Non-network
A131: ED_EXP216_00005 | B131: Network overheads
A132: ED_EXP216_00006 | B132: Corporate overheads
A133: ED_EXP211_00002
A134: ED_EXP211_00003
A135: ED_EXP211_00004
A136: ED_EXP211_00005
A137: ED_EXP211_00006
A138: ED_EXP211_00007
A139: ED_EXP211_00008
A140: ED_EXP216_00007 | B140: balancing item
B141: TOTAL OPEX | C141: =SUM(C127:C140) -> 0

Sheet 2.2 Repex
B1: =Title -> REGULATORY REPORTING STATEMENT
B2: =TradingName -> United Energy Distribution Pty Limited
B3: =CONCATENATE("Category Analysis RIN response ",CRY) -> Category Analysis RIN response 2013-14
B4: 2.2 REPEX
B6: TABLE 2.2.1 - REPLACEMENT EXPENDITURE, VOLUMES AND ASSET FAILURES BY ASSET CATEGORY | H6: Table 2.2.2 - SELECTED ASSET CHARACTERISTICS
B7: <<<GROUP-ROW>>>
D9: EXPENDITURE ($000'S) | E9: ASSET REPLACEMENTS | F9: ASSET FAILURES | J9: ASSET VOLUMES CURRENTLY IN COMMISSION | K9: ASSET REPLACEMENTS
B10: ASSET GROUP | C10: ASSET CATEGORY | D10: =CRY -> 2013-14 | E10: =CRY -> 2013-14 | F10: =CRY -> 2013-14 | H10: ASSET GROUP | I10: METRIC | J10: =CRY -> 2013-14 | K10: =CRY -> 2013-14
A11: ED_REP221_00001 | B11: POLES BY: HIGHEST OPERATING VOLTAGE ; MATERIAL TYPE; STAKING (IF WOOD) | C11: Staking of a wooden pole | D11: 1201.132 | E11: 968 | F11: 0 | G11: ED_REP222_00001 | H11: TOTAL POLES BY: FEEDER TYPE | I11: Total CBD poles | J11: 0 | K11: 0
A12: ED_REP221_00002 | C12: ˂ = 1 kV; Wood | D12: 1732.324 | E12: 243 | F12: 1 | G12: ED_REP222_00002 | I12: Total urban poles | J12: 180986 | K12: 537.0900693
A13: ED_REP221_00003 | C13: > 1 kV & < = 11 kV; Wood | D13: 1067.917 | E13: 94 | F13: 0 | G13: ED_REP222_00003 | I13: Total rural long poles | J13: 0 | K13: 0
A14: ED_REP221_00004 | C14: ˃ 11 kV & < = 22 kV; Wood | D14: 3213.563 | E14: 245 | F14: 2 | G14: ED_REP222_00004 | I14: Total rural short poles | J14: 22636 | K14: 74.90993072
A15: ED_REP221_00005 | C15: > 22 kV & < = 66 kV; Wood | D15: 476.763 | E15: 30 | F15: 0 | G15: ED_REP222_00005 | H15: OVERHEAD CONDUCTORS BY: CONDUCTOR LENGTH BY FEEDER TYPE | I15: Conductors CBD (km) | J15: 0 | K15: 0
A16: ED_REP221_00006 | C16: > 66 kV & < = 132 kV; Wood | D16: 0 | E16: 0 | F16: 0 | G16: ED_REP222_00006 | I16: Conductors urban (km) | J16: 1718.618888 | K16: 10.28817882
A17: ED_REP221_00007 | C17: > 132 kV; Wood | D17: 0 | E17: 0 | F17: 0 | G17: ED_REP222_00007 | I17: Conductors rural long (km) | J17: 0 | K17: 0
A18: ED_REP221_00008 | C18: ˂ = 1 kV; Concrete | D18: 0 | E18: 0 | F18: 0 | G18: ED_REP222_00008 | I18: Conductors rural short (km) | J18: 8357.757906 | K18: 11.39940833
A19: ED_REP221_00009 | C19: > 1 kV & < = 11 kV; Concrete | D19: 0 | E19: 0 | F19: 0 | G19: ED_REP222_00009 | H19: OVERHEAD CONDUCTORS BY: CONDUCTOR LENGTH MATERIAL TYPE | I19: OH conductor LV ABC | J19: 479.6468883 | K19: 1.031692709
A20: ED_REP221_00010 | C20: ˃ 11 kV & < = 22 kV; Concrete | D20: 0 | E20: 0 | F20: 0 | G20: ED_REP222_00010 | I20: OH conductor steel | J20: 319.9356906 | K20: 0.6881631622
A21: ED_REP221_00011 | C21: > 22 kV & < = 66 kV; Concrete | D21: 0 | E21: 0 | F21: 0 | G21: ED_REP222_00011 | I21: OH conductor ACSR | J21: 3503.504722 | K21: 7.53583598
A22: ED_REP221_00012 | C22: > 66 kV & < = 132 kV; Concrete | D22: 0 | E22: 0 | F22: 0 | G22: ED_REP222_00012 | I22: OH conductor AAAC | J22: 0 | K22: 0
A23: ED_REP221_00013 | C23: > 132 kV; Concrete | D23: 0 | E23: 0 | F23: 0 | G23: ED_REP222_00013 | I23: OH conductor AAC | J23: 4146.801226 | K23: 8.919529545
A24: ED_REP221_00014 | C24: ˂ = 1 kV; Steel | D24: 0 | E24: 0 | F24: 0 | G24: ED_REP222_00014 | I24: OH conductor HDBC | J24: 1632.94292 | K24: 3.512365756
A25: ED_REP221_00015 | C25: > 1 kV & < = 11 kV; Steel | D25: 0 | E25: 0 | F25: 0 | G25: ED_REP222_00015 | H25: UNDERGROUND CABLES BY: CABLE LENGTH BY FEEDER TYPE | I25: Cable CBD (km) | J25: 0 | K25: 0
A26: ED_REP221_00016 | C26: ˃ 11 kV & < = 22 kV; Steel | D26: 0 | E26: 0 | F26: 0 | G26: ED_REP222_00016 | I26: Cable urban (km) | J26: 3180.748115 | K26: 9.037551263
A27: ED_REP221_00017 | C27: > 22 kV & < = 66 kV; Steel | D27: 0 | E27: 0 | F27: 0 | G27: ED_REP222_00017 | I27: Cable rural long (km) | J27: 0 | K27: 0
A28: ED_REP221_00018 | C28: > 66 kV & < = 132 kV; Steel | D28: 0 | E28: 0 | F28: 0 | G28: ED_REP222_00018 | I28: Cable rural short (km) | J28: 332.7321783 | K28: 0.013448737
A29: ED_REP221_00019 | C29: > 132 kV; Steel | D29: 0 | E29: 0 | F29: 0 | G29: ED_REP222_00019 | H29: TRANSFORMERS BY: TOTAL MVA | I29: Total MVA replaced | J29: 3355.258 | K29: 47.049
C30: ˂ ≈ 1 kV ; WOOD ; STAKED | D30: 661.773 | E30: 571 | F30: 0 | G30: ED_REP222_00020 | I30: Total MVA disposed of | J30: 0 | K30: 44.618
C31: ˃ 1 kV & ˂ ≈ 11 kV ; WOOD ; STAKED | D31: 126.86 | E31: 92 | F31: 0
C32: ≈ 22 kV ; WOOD ; STAKED | D32: 388.111 | E32: 286 | F32: 0
C33: ≈ 66 kV ; WOOD ; STAKED | D33: 24.388 | E33: 19 | F33: 0
D34: 0 | E34: 0 | F34: 0
D35: 0 | E35: 0 | F35: 0
D36: 0 | E36: 0 | F36: 0
D37: 0 | E37: 0 | F37: 0
D38: 0 | E38: 0 | F38: 0
D39: 0 | E39: 0 | F39: 0
D40: 0 | E40: 0 | F40: 0
D41: 0 | E41: 0 | F41: 0
D42: 0 | E42: 0 | F42: 0
D43: 0 | E43: 0 | F43: 0
D44: 0 | E44: 0 | F44: 0
D45: 0 | E45: 0 | F45: 0
A46: ED_REP221_00020 | C46: Other | D46: 0 | E46: 0 | F46: 0
A47: ED_REP221_00021 | B47: POLE TOP STRUCTURES BY: HIGHEST OPERATING VOLTAGE | C47: ˂ = 1 kV | D47: 21576.953 | E47: 10386 | F47: 45
A48: ED_REP221_00022 | C48: > 1 kV & < = 11 kV | D48: 4077.584 | E48: 1235 | F48: 10
A49: ED_REP221_00023 | C49: ˃ 11 kV & < = 22 kV | D49: 10239.208 | E49: 3457 | F49: 124
A50: ED_REP221_00024 | C50: > 22 kV & < = 66 kV | D50: 986.827 | E50: 239 | F50: 7
A51: ED_REP221_00025 | C51: > 66 kV & < = 132 kV | D51: 0 | E51: 0 | F51: 0
A52: ED_REP221_00026 | C52: > 132 kV | D52: 0 | E52: 0 | F52: 0
D53: 0 | E53: 0 | F53: 0
D54: 0 | E54: 0 | F54: 0
D55: 0 | E55: 0 | F55: 0
D56: 0 | E56: 0 | F56: 0
A57: ED_REP221_00027 | C57: Other | D57: 0 | E57: 0 | F57: 0
A58: ED_REP221_00028 | B58: OVERHEAD CONDUCTORS BY: HIGHEST OPERATING VOLTAGE; NUMBER OF PHASES (AT HV) | C58: ˂ = 1 kV | D58: 143.789 | E58: 4097 | F58: 2155
A59: ED_REP221_00029 | C59: > 1 kV & < = 11 kV | D59: 46.355 | E59: 110 | F59: 44
A60: ED_REP221_00030 | C60: ˃ 11 kV & < = 22 kV ; SWER | D60: 343.217 | E60: 3813 | F60: 0
A61: ED_REP221_00031 | C61: ˃ 11 kV & < = 22 kV ; Single-Phase | D61: 43.864 | E61: 3467 | F61: 0
A62: ED_REP221_00032 | C62: ˃ 11 kV & < = 22 kV ; Multiple-Phase | D62: 549.427 | E62: 9908 | F62: 875
A63: ED_REP221_00033 | C63: > 22 kV & < = 66 kV | D63: 7.047 | E63: 301 | F63: 0
A64: ED_REP221_00034 | C64: > 66 kV & < = 132 kV | D64: 0 | E64: 0 | F64: 0
A65: ED_REP221_00035 | C65: > 132 kV | D65: 0 | E65: 0 | F65: 0
C66: ˃ 11 kV & ˂ ≈ 22 kV ; COVERED / ABC | D66: 20.17 | E66: 149 | F66: 70
C67: ˃ 11 kV & ˂ ≈ 22 kV ; BARE; MUTLIPHASE | D67: 529.257 | E67: 9759 | F67: 805
D68: 0 | E68: 0 | F68: 0
D69: 0 | E69: 0 | F69: 0
D70: 0 | E70: 0 | F70: 0
D71: 0 | E71: 0 | F71: 0
D72: 0 | E72: 0 | F72: 0
D73: 0 | E73: 0 | F73: 0
D74: 0 | E74: 0 | F74: 0
D75: 0 | E75: 0 | F75: 0
D76: 0 | E76: 0 | F76: 0
D77: 0 | E77: 0 | F77: 0
D78: 0 | E78: 0 | F78: 0
A79: ED_REP221_00036 | C79: Other | D79: 0 | E79: 0 | F79: 0
A80: ED_REP221_00037 | B80: UNDERGROUND CABLES BY: HIGHEST OPERATING VOLTAGE | C80: ˂ = 1 kV | D80: 785.238 | E80: 3016 | F80: 1260
A81: ED_REP221_00038 | C81: > 1 kV & < = 11 kV | D81: 769.716 | E81: 1333 | F81: 70
A82: ED_REP221_00039 | C82: > 11 kV & < = 22 kV | D82: 1761.306 | E82: 4702 | F82: 630
A83: ED_REP221_00040 | C83: > 22 kV & < = 33 kV | D83: 0 | E83: 0 | F83: 0
A84: ED_REP221_00041 | C84: > 33 kV & < = 66 kV | D84: 0 | E84: 0 | F84: 0
A85: ED_REP221_00042 | C85: > 66 kV & < = 132 kV | D85: 0 | E85: 0 | F85: 0
A86: ED_REP221_00043 | C86: > 132 kV | D86: 0 | E86: 0 | F86: 0
C87: ˃ 1 kV & ˂ ≈ 11 kV ; NON-XLPE | D87: 383.922 | E87: 560 | F87: 0
C88: ˃ 1 kV & ˂ ≈ 11 kV ; XLPE | D88: 385.794 | E88: 773 | F88: 70
C89: ≈ 22 kV ; NON-XLPE | D89: 125.429 | E89: 197 | F89: 0
C90: ≈ 22 kV ; XLPE | D90: 1635.877 | E90: 4505 | F90: 630
C91: LV SERVICE PILLARS | D91: 245.621 | E91: 55 | F91: 38
C92: LV Pits | D92: 3624.931 | E92: 2004 | F92: 10
C93: Surge Arrestor - HV | D93: 868.797 | E93: 326 | F93: 25
D94: 0 | E94: 0 | F94: 0
D95: 0 | E95: 0 | F95: 0
D96: 0 | E96: 0 | F96: 0
D97: 0 | E97: 0 | F97: 0
D98: 0 | E98: 0 | F98: 0
A99: ED_REP221_00044 | C99: Other | D99: 4739.349 | E99: 2385 | F99: 73
A100: ED_REP221_00045 | B100: SERVICE LINES BY: CONNECTION VOLTAGE; CUSTOMER TYPE; CONNECTION COMPLEXITY | C100: ˂ = 11 kV ; Residential ; Simple Type | D100: 7934.76 | E100: 17449 | F100: 246
A101: ED_REP221_00046 | C101: ˂ = 11 kV ; Commercial & Industrial ; Simple Type | D101: 375.146 | E101: 825 | F101: 12
A102: ED_REP221_00047 | C102: ˂ = 11 kV ; Residential ; Complex Type | D102: 2863.596 | E102: 6297 | F102: 89
A103: ED_REP221_00048 | C103: ˂ = 11 kV ; Commercial & Industrial ; Complex Type | D103: 73.883 | E103: 163 | F103: 2
A104: ED_REP221_00049 | C104: ˂ = 11 kV ; Subdivision ; Complex Type | D104: 0 | E104: 0 | F104: 0
A105: ED_REP221_00050 | C105: > 11 kV & < = 22 kV ; Commercial & Industrial | D105: 0 | E105: 0 | F105: 0
A106: ED_REP221_00051 | C106: > 11 kV & < = 22 kV ; Subdivision | D106: 0 | E106: 0 | F106: 0
A107: ED_REP221_00052 | C107: > 22 kV & < = 33 kV ; Commercial & Industrial | D107: 0 | E107: 0 | F107: 0
A108: ED_REP221_00053 | C108: > 22 kV & < = 33 kV ; Subdivision | D108: 0 | E108: 0 | F108: 0
A109: ED_REP221_00054 | C109: > 33 kV & < = 66 kV ; Commercial & Industrial | D109: 0 | E109: 0 | F109: 0
A110: ED_REP221_00055 | C110: > 33 kV & < = 66 kV ; Subdivision | D110: 0 | E110: 0 | F110: 0
A111: ED_REP221_00056 | C111: > 66 kV & < = 132 kV ; Commercial & Industrial | D111: 0 | E111: 0 | F111: 0
A112: ED_REP221_00057 | C112: > 66 kV & < = 132 kV ; Subdivision | D112: 0 | E112: 0 | F112: 0
A113: ED_REP221_00058 | C113: > 132 kV ; Commercial & Industrial | D113: 0 | E113: 0 | F113: 0
A114: ED_REP221_00059 | C114: > 132 kV ; Subdivision | D114: 0 | E114: 0 | F114: 0
D115: 0 | E115: 0 | F115: 0
A116: ED_REP221_00060 | C116: Other | D116: 0 | E116: 0 | F116: 0
A117: ED_REP221_00061 | B117: TRANSFORMERS BY: MOUNTING TYPE; HIGHEST OPERATING VOLTAGE ; AMPERE RATING; NUMBER OF PHASES (AT LV) | C117: Pole Mounted ; < = 22kV ; < = 60 kVA ; Single Phase | D117: 198.081 | E117: 25 | F117: 16
A118: ED_REP221_00062 | C118: Pole Mounted ; < = 22kV ; > 60 kVA and < = 600 kVA ; Single Phase | D118: 13.205 | E118: 2 | F118: 0
A119: ED_REP221_00063 | C119: Pole Mounted ; < = 22kV ; > 600 kVA ; Single Phase | D119: 0 | E119: 0 | F119: 0
A120: ED_REP221_00064 | C120: Pole Mounted ; < = 22kV ; < = 60 kVA ; Multiple Phase | D120: 92.798 | E120: 8 | F120: 0
A121: ED_REP221_00065 | C121: Pole Mounted ; < = 22kV ; > 60 kVA and < = 600 kVA ; Multiple Phase | D121: 706.25 | E121: 56 | F121: 33
A122: ED_REP221_00066 | C122: Pole Mounted ; < = 22kV ; > 600 kVA ; Multiple Phase | D122: 13.205 | E122: 2 | F122: 0
A123: ED_REP221_00073 | C123: Kiosk Mounted ; < = 22kV ; < = 60 kVA ; Single Phase | D123: 0 | E123: 0 | F123: 0
A124: ED_REP221_00074 | C124: Kiosk Mounted ; < = 22kV ; > 60 kVA and < = 600 kVA ; Single Phase | D124: 0 | E124: 0 | F124: 0
A125: ED_REP221_00075 | C125: Kiosk Mounted ; < = 22kV ; > 600 kVA ; Single Phase | D125: 0 | E125: 0 | F125: 0
A126: ED_REP221_00076 | C126: Kiosk Mounted ; < = 22kV ; < = 60 kVA ; Multiple Phase | D126: 3.81 | E126: 0 | F126: 0
A127: ED_REP221_00077 | C127: Kiosk Mounted ; < = 22kV ; > 60 kVA and < = 600 kVA ; Multiple Phase | D127: 314.382 | E127: 7 | F127: 1
A128: ED_REP221_00078 | C128: Kiosk Mounted ; < = 22kV ; > 600 kVA ; Multiple Phase | D128: 123.115 | E128: 6 | F128: 2
A129: ED_REP221_00085 | C129: Ground Outdoor / Indoor Chamber Mounted; ˂ 22 kV ; < = 60 kVA ; Single Phase | D129: 0 | E129: 0 | F129: 0
A130: ED_REP221_00086 | C130: Ground Outdoor / Indoor Chamber Mounted; ˂ 22 kV ; > 60 kVA and < = 600 kVA ; Single Phase | D130: 0 | E130: 0 | F130: 0
A131: ED_REP221_00087 | C131: Ground Outdoor / Indoor Chamber Mounted; ˂ 22 kV ; > 600 kVA ; Single Phase | D131: 0 | E131: 0 | F131: 0
A132: ED_REP221_00088 | C132: Ground Outdoor / Indoor Chamber Mounted; ˂ 22 kV ; < = 60 kVA ; Multiple Phase | D132: 3.81 | E132: 0 | F132: 0
A133: ED_REP221_00089 | C133: Ground Outdoor / Indoor Chamber Mounted; ˂ 22 kV ; > 60 kVA and < = 600 kVA ; Multiple Phase | D133: 68.73 | E133: 3 | F133: 0
A134: ED_REP221_00090 | C134: Ground Outdoor / Indoor Chamber Mounted; ˂ 22 kV ; > 600 kVA ; Multiple Phase | D134: 95.451 | E134: 4 | F134: 1
A135: ED_REP221_00091 | C135: Ground Outdoor / Indoor Chamber Mounted; > = 22 kV & < = 33 kV ; < = 15 MVA | D135: 2701.156 | E135: 10 | F135: 0
A136: ED_REP221_00092 | C136: Ground Outdoor / Indoor Chamber Mounted; > = 22 kV & < = 33 kV ; > 15 MVA and < = 40 MVA | D136: 0 | E136: 0 | F136: 0
A137: ED_REP221_00093 | C137: Ground Outdoor / Indoor Chamber Mounted; > = 22 kV & < = 33 kV ; > 40 MVA | D137: 0 | E137: 0 | F137: 0
A138: ED_REP221_00094 | C138: Ground Outdoor / Indoor Chamber Mounted; > 33 kV & < = 66 kV ; < = 15 MVA | D138: 0 | E138: 0 | F138: 0
A139: ED_REP221_00095 | C139: Ground Outdoor / Indoor Chamber Mounted; > 33 kV & < = 66 kV ; > 15 MVA and < = 40 MVA | D139: 741.168 | E139: 0 | F139: 0
A140: ED_REP221_00096 | C140: Ground Outdoor / Indoor Chamber Mounted; > 33 kV & < = 66 kV ; > 40 MVA | D140: 0 | E140: 0 | F140: 0
A141: ED_REP221_00097 | C141: Ground Outdoor / Indoor Chamber Mounted; > 66 kV & < = 132 kV ; < = 100 MVA | D141: 0 | E141: 0 | F141: 0
A142: ED_REP221_00098 | C142: Ground Outdoor / Indoor Chamber Mounted; > 66 kV & < = 132 kV ; > 100 MVA | D142: 0 | E142: 0 | F142: 0
A143: ED_REP221_00099 | C143: Ground Outdoor / Indoor Chamber Mounted; > 132 kV ; < = 100 MVA | D143: 0 | E143: 0 | F143: 0
A144: ED_REP221_00100 | C144: Ground Outdoor / Indoor Chamber Mounted; > 132 kV ; > 100 MVA | D144: 0 | E144: 0 | F144: 0
C145: POLE MOUNTED ; < = 11kV ; > 60 kVA AND < = 600 kVA ; MULTIPLE PHASE | D145: 170.216 | E145: 20 | F145: 8
C146: POLE MOUNTED ; >11kV AND < = 22kV ; > 60 kVA AND < = 600 kVA ; MULTIPLE PHASE | D146: 536.034 | E146: 36 | F146: 25
C147: KIOSK MOUNTED ; < = 11kV ; > 60 kVA AND < = 600 kVA ; MULTIPLE PHASE | D147: 6.72 | E147: 0 | F147: 0
C148: KIOSK MOUNTED ; >11kV AND < = 22kV ; > 60 kVA AND < = 600 kVA ; MULTIPLE PHASE | D148: 307.662 | E148: 7 | F148: 1
C149: Ground Outdoor / Indoor Chamber Mounted; 22kV ; < = 15 MVA | D149: 2489.369 | E149: 1 | F149: 0
C150: Ground; 22kV ; <=60 kVA ; Multiple Phase | D150: 22.91 | E150: 1 | F150: 0
C151: Ground; <=22kV; > 60 kVA AND < = 600 kVA; Multi Phase | D151: 93.242 | E151: 4 | F151: 0
C152: Indoor; <=22kV; > 60 kVA AND < = 600 kVA; Multi Phase | D152: 22.91 | E152: 1 | F152: 0
C153: INDOOR CHAMBER MOUNTED ; >11kV AND < = 22kV ; > 600 kVA ; MULTIPLE PHASE | D153: 72.724 | E153: 3 | F153: 0
C154: POWER TRANSFORMER - BUSHING | D154: 267.943 | E154: 11 | F154: 0
D155: 0 | E155: 0 | F155: 0
D156: 0 | E156: 0 | F156: 0
D157: 0 | E157: 0 | F157: 0
D158: 0 | E158: 0 | F158: 0
D159: 0 | E159: 0 | F159: 0
D160: 0 | E160: 0 | F160: 0
D161: 0 | E161: 0 | F161: 0
D162: 0 | E162: 0 | F162: 0
A163: ED_REP221_00101 | C163: Other | D163: 267.943 | E163: 0 | F163: 0
A164: ED_REP221_00102 | B164: SWITCHGEAR BY: HIGHEST OPERATING VOLTAGE ; SWITCH FUNCTION | C164: ˂ = 11 kV ; FUSE | D164: 62.938 | E164: 26 | F164: 5
A165: ED_REP221_00103 | C165: ˂ = 11 kV ; Switch | D165: 3325.545 | E165: 2178 | F165: 250
A166: ED_REP221_00104 | C166: ˂ = 11 kV ; Circuit Breaker | D166: 2426.344 | E166: 16 | F166: 0
A167: ED_REP221_00105 | C167: > 11 kV & < = 22 kV ; Switch | D167: 4804.655 | E167: 620 | F167: 28
A168: ED_REP221_00106 | C168: > 11 kV & < = 22 kV ; Circuit Breaker | D168: 828.075 | E168: 24 | F168: 0
A169: ED_REP221_00107 | C169: > 22 kV & < = 33 kV ; Switch | D169: 0 | E169: 0 | F169: 0
A170: ED_REP221_00108 | C170: > 22 kV & < = 33 kV ; Circuit Breaker | D170: 0 | E170: 0 | F170: 0
A171: ED_REP221_00109 | C171: > 33 kV & < = 66 kV ; Switch | D171: 10.871 | E171: 0 | F171: 0
A172: ED_REP221_00110 | C172: > 33 kV & < = 66 kV ; Circuit Breaker | D172: 253.408 | E172: 11 | F172: 0
A173: ED_REP221_00111 | C173: > 66 kV & < = 132 kV ; Switch | D173: 0 | E173: 0 | F173: 0
A174: ED_REP221_00112 | C174: > 66 kV & < = 132 kV ; Circuit Breaker | D174: 0 | E174: 0 | F174: 0
A175: ED_REP221_00113 | C175: > 132 kV ; Switch | D175: 0 | E175: 0 | F175: 0
A176: ED_REP221_00114 | C176: > 132 kV ; Circuit Breaker | D176: 0 | E176: 0 | F176: 0
C177: ˂ ≈ 1 kV ; SWITCH GEAR | D177: 229.895 | E177: 26 | F177: 0
C178: ˂ ≈ 1 kV ; SWITCH; POLE MOUNTED | D178: 1541.062 | E178: 1999 | F178: 249
C179: O/H Isolators -HV - 11kV | D179: 64.716 | E179: 28 | F179: 1
C180: O/H Load Break Switches - HV - 11kV | D180: 532.593 | E180: 40 | F180: 0
C181: Ring Main Unit - 11kV | D181: 957.279 | E181: 85 | F181: 0
C182: >= 11 kV & < = 22 kV ; REMOTE CONTROL GAS SWITCH | D182: 47.491 | E182: 1 | F182: 2
C183: O/H Isolators -HV - 22kV | D183: 33.862 | E183: 9 | F183: 3
C184: O/H Load Break Switches - HV - 22kV | D184: 3362.278 | E184: 209 | F184: 2
C185: Ring Main Unit - 22kV | D185: 496.367 | E185: 44 | F185: 0
C186: O/H Fuse Units - HV - 22kV | D186: 864.658 | E186: 357 | F186: 21
C187: >= 11 kV & < = 22 kV ; LINE CAPACITORS; CONTROLLERS AND VACUUM SWITCHES | D187: 1544.816 | E187: 384 | F187: 0
C188: Outdoor Circuit Breakers 22kV | D188: 385.796 | E188: 2 | F188: 0
C189: Indoor Circuit Breakers 22kV | D189: 288.16 | E189: 19 | F189: 0
C190: ACR's - 22kV | D190: 154.119 | E190: 3 | F190: 0
A191: ED_REP221_00115 | C191: Other | D191: 1544.816 | E191: 384 | F191: 0
A192: ED_REP221_00116 | B192: PUBLIC LIGHTING BY: ASSET TYPE ; LIGHTING OBLIGATION | C192: Luminaires ; Major Road | D192: 613.88461 | E192: 1124 | F192: 1124
A193: ED_REP221_00117 | C193: Luminaires ; Minor Road | D193: 418.19034 | E193: 1317 | F193: 1317
A194: ED_REP221_00118 | C194: Brackets ; Major Road | D194: 0 | E194: 0 | F194: 0
A195: ED_REP221_00119 | C195: Brackets ; Minor Road | D195: 0 | E195: 0 | F195: 0
A196: ED_REP221_00120 | C196: Lamps ; Major Road | D196: 0 | E196: 0 | F196: 0
A197: ED_REP221_00121 | C197: Lamps ; Minor Road | D197: 0 | E197: 0 | F197: 0
A198: ED_REP221_00122 | C198: Poles / Columns ; Major Road | D198: 201.74748 | E198: 49 | F198: 0
A199: ED_REP221_00123 | C199: Poles / Columns ; Minor Road | D199: 69.54555 | E199: 46 | F199: 0
A200: ED_REP221_00124 | C200: Other | D200: 0 | E200: 0 | F200: 0
A201: ED_REP221_00125 | B201: SCADA, NETWORK CONTROL AND PROTECTION SYSTEMS BY: FUNCTION | C201: Field Devices | D201: 1564.282667 | E201: 119 | F201: 1
A202: ED_REP221_00126 | C202: Local Network Wiring Assets | D202: 672.1677316 | E202: 26 | F202: 0
... 32 more rows

Sheet 2.3 Augex
B1: =Title -> REGULATORY REPORTING STATEMENT | K1: New line on new route - single circuit | L1: New line on new route - dual circuit | O1: Worksheet navigation
B2: =TradingName -> United Energy Distribution Pty Limited
B3: =CONCATENATE("Category Analysis RIN response ",CRY) -> Category Analysis RIN response 2013-14
B4: 2.3 AUGEX PROJECT DATA
B7: TABLE 2.3.1 - AUGEX ASSET DATA - SUBTRANSMISSION SUBSTATIONS, SWITCHING STATIONS AND ZONE SUBSTATIONS
B8: NOTE: DNSP MUST PROVIDE EXPENDITURE INFORMATION ON A PROJECT CLOSE BASIS.
A9: AUG231 | B9: AUG231_1 | M9: AUG231_2 | N9: AUG231_3 | O9: AUG231_4 | P9: AUG231_5 | Q9: AUG231_6 | R9: ED_AUG231_00001 | S9: ED_AUG231_00002 | T9: ED_AUG231_00003 | U9: ED_AUG231_00004 | V9: ED_AUG231_00005 | W9: ED_AUG231_00006 | X9: ED_AUG231_00007 | Y9: ED_AUG231_00008 | Z9: ED_AUG231_00009 | AK9: ED_AUG231_00010 | AL9: ED_AUG231_00011 | AM9: ED_AUG231_00012 | AN9: ED_AUG231_00013 | AO9: ED_AUG231_00014 | AP9: ED_AUG231_00015 | AQ9: ED_AUG231_00016 | AR9: ED_AUG231_00017 | AS9: ED_AUG231_00018 | AT9: ED_AUG231_00019 | AU9: ED_AUG231_00020 | AV9: ED_AUG231_00021 | AW9: ED_AUG231_00022 | AX9: ED_AUG231_00023
B10: PROJECT DESCRIPTION AND CHANGES | V10: PLANT AND EQUIPMENT EXPENDITURE AND VOLUME | AP10: OTHER EXPENDITURE | AR10: TOTAL DIRECT EXPENDITURE ($000'S) | AS10: YEARS INCURRED | AT10: ALL RELATED PARTY CONTRACTS | AW10: LAND AND EASEMENTS
B11: SUBSTATION ID | M11: SUBSTATION TYPE | N11: PROJECT ID | O11: PROJECT TYPE | P11: PROJECT TRIGGER | Q11: VOLTAGE (KV) | R11: SUBSTATION RATING NORMAL CYCLIC (MVA) | T11: SUBSTATION RATING N-1 EMERGENCY (MVA) | V11: TRANSFORMERS | Y11: SWITCHGEAR | AK11: CAPACITORS | AM11: OTHER PLANT ITEM | AN11: INSTALLATION (LABOUR) | AP11: CIVIL WORKS | AQ11: OTHER DIRECT | AT11: RELATED PARTY MARGINS | AU11: TOTAL | AV11: ALL NON RELATED PARTYCONTRACTS | AW11: LAND PURCHASE | AX11: EASEMENTS
R12: PRE | S12: POST | T12: PRE | U12: POST | V12: UNITS ADDED | W12: MVA ADDED | X12: EXPENDITURE ($000'S) | Y12: UNITS ADDED | Z12: EXPENDITURE ($000'S) | AK12: MVAR ADDED | AL12: EXPENDITURE ($000'S) | AM12: EXPENDITURE ($000'S) | AN12: VOLUME | AO12: EXPENDITURE ($000'S) | AP12: EXPENDITURE ($000'S) | AT12: EXPENDITURE ($000'S) | AW12: EXPENDITURE ($000'S)
A13: AUG231_1 | B13: BH 3rd transformer | M13: Zone substation | N13: UED-COM-003460 | O13: Substation upgrade - capacity | P13: Demand growth | Q13: 66/22 | R13: 72.6 | S13: 108.9 | T13: 43.8 | U13: 87.7 | V13: 1 | W13: =S13-R13 -> 36.3 | X13: 655 | Y13: 10 | Z13: 367.18764 | AK13: 0 | AL13: 0 | AM13: 389.0139 | AN13: 14335.03759 | AO13: 1452.001558 | AP13: 616.322 | AQ13: 1513 | AR13: =SUM(X13,Z13,AL13,AM13,AO13,AP13,AQ13) -> 4992.525098 | AS13: 2012-2014 | AW13: 0 | AX13: 0
A14: AUG231_2 | B14: KBH New zone substation | M14: Zone substation | N14: UED-COM-002325 | O14: New substation establishment | P14: Demand growth | Q14: 66/22 | R14: 0 | S14: 46.7 | T14: 0 | U14: 0 | V14: 1 | W14: 46.7 | X14: 697.92607 | Y14: 17 | Z14: 1694.690398 | AK14: 0 | AL14: 0 | AM14: 437.19148 | AN14: 12640.24112 | AO14: 1555.700344 | AP14: 2806.43606 | AQ14: 3789 | AR14: =SUM(X14,Z14,AL14,AM14,AO14,AP14,AQ14) -> 10980.94435 | AS14: 2012-2014 | AW14: 0 | AX14: 0
A15: AUG231_3 | B15: LWN 2nd transformer | M15: Zone substation | N15: UED-COM-003465 | O15: Substation upgrade - capacity | P15: Demand growth | Q15: 66/22 | R15: 45.4 | S15: 90.8 | T15: 0 | U15: 47.6 | V15: 1 | W15: 45.4 | X15: 739.86216 | Y15: 10 | Z15: 404.08655 | AK15: 0 | AL15: 0 | AM15: 304.4184606 | AN15: 8613.245047 | AO15: 685.293781 | AP15: 613.17939 | AQ15: 1245 | AR15: 3991.840342 | AS15: 2013-2014 | AW15: 0 | AX15: 0
A16: AUG231_4 | AR16: 0
A17: AUG231_5 | AR17: 0
A18: AUG231_6 | AR18: 0
A19: AUG231_7 | AR19: 0
A20: AUG231_8 | AR20: 0
A21: AUG231_9 | AR21: 0
A22: AUG231_10 | AR22: 0
A23: AUG231_11 | AR23: 0
A24: AUG231_12 | AR24: 0
A25: AUG231_13 | AR25: 0
A26: AUG231_14 | AR26: 0
A27: AUG231_15 | AR27: 0
A28: AUG231_16 | AR28: 0
A29: AUG231_17 | AR29: 0
A30: AUG231_18 | AR30: 0
A31: AUG231_19 | AR31: 0
A32: AUG231_20 | AR32: 0
A33: AUG231_21 | AR33: 0
A34: AUG231_22 | AR34: 0
A35: AUG231_23 | AR35: 0
A36: AUG231_24 | AR36: 0
A37: AUG231_25 | AR37: 0
A38: AUG231_26 | AR38: 0
A39: AUG231_27 | AR39: 0
A40: AUG231_28 | AR40: 0
A41: AUG231_29 | AR41: 0
A42: AUG231_30 | AR42: 0
A43: AUG231_31 | AR43: 0
A44: AUG231_32 | AR44: 0
A45: AUG231_33 | AR45: 0
A46: AUG231_34 | AR46: 0
A47: AUG231_35 | AR47: 0
A48: AUG231_36 | AR48: 0
A49: AUG231_37 | AR49: 0
A50: AUG231_38 | AR50: 0
A51: AUG231_39 | AR51: 0
A52: AUG231_40 | AR52: 0
A53: AUG231_41 | AR53: 0
A54: AUG231_42 | AR54: 0
A55: AUG231_43 | AR55: 0
A56: AUG231_44 | AR56: 0
A57: AUG231_45 | AR57: 0
A58: AUG231_46 | AR58: 0
A59: AUG231_47 | AR59: 0
A60: AUG231_48 | AR60: 0
A61: AUG231_49 | AR61: 0
A62: AUG231_50 | AR62: 0
A63: AUG231_51 | AR63: 0
A64: AUG231_52 | AR64: 0
N65: Non material projects - [actual]
N66: Non material projects - [forecast]
A68: AUG232 | B68: AUG232_1 | C68: AUG232_2 | D68: AUG232_3 | E68: AUG232_4 | F68: AUG232_5 | G68: AUG232_6 | H68: AUG232_7 | I68: AUG232_8 | J68: AUG232_9 | K68: AUG232_10 | L68: AUG232_11 | M68: AUG232_2 | N68: AUG232_3 | O68: AUG232_4 | P68: AUG232_5 | Q68: AUG232_6 | R68: ED_AUG232_00001 | S68: ED_AUG232_00002 | T68: ED_AUG232_00003 | U68: ED_AUG232_00004 | V68: ED_AUG232_00005 | W68: ED_AUG232_00006 | X68: ED_AUG232_00007 | Y68: ED_AUG232_00008 | Z68: ED_AUG232_00009 | AK68: ED_AUG232_00010 | AL68: ED_AUG232_00011 | AM68: ED_AUG232_00012 | AN68: ED_AUG232_00013 | AO68: ED_AUG232_00014 | AP68: ED_AUG232_00015 | AQ68: ED_AUG232_00016 | AR68: ED_AUG232_00017 | AS68: ED_AUG232_00018 | AT68: ED_AUG232_00019 | AU68: ED_AUG232_00020 | AV68: ED_AUG232_00021
B69: TABLE 2.3.2 - AUGEX ASSET DATA - SUBTRANSMISSION LINES
B70: NOTE: DNSP MUST PROVIDE EXPENDITURE INFORMATION ON A PROJECT CLOSE BASIS.
B71: PROJECT DESCRIPTION AND CHANGES | R71: PLANT AND EQUIPMENT EXPENDITURE AND VOLUME | AN71: OTHER EXPENDITURE | AP71: TOTAL DIRECT EXPENDITURE ($000'S) | AQ71: YEARS INCURRED | AR71: ALL RELATED PARTY CONTRACTS | AU71: LAND AND EASEMENTS
B72: LINE ID | M72: PROJECT ID | N72: PROJECT TYPE | O72: PROJECT TRIGGER | P72: VOLTAGE (KV) | Q72: ROUTE LINE LENGTH ADDED | R72: POLES/TOWERS (INCLUDING STRUCTURES, AND CIVIL WORKS) | U72: OVERHEAD LINES | X72: UNDERGROUND CABLES | AK72: OTHER PLANT ITEM | AL72: INSTALLATION (LABOUR) | AN72: CIVIL WORKS | AO72: OTHER DIRECT | AR72: RELATED PARTY MARGINS | AS72: TOTAL | AT72: ALL NON RELATED PARTYCONTRACTS | AU72: LAND PURCHASE | AV72: EASEMENTS
Q73: KM ADDED | R73: POLES/TOWERS ADDED | S73: POLES/TOWERS UPGRADED | T73: EXPENDITURE ($000'S) | U73: CIRCUIT KM ADDED | V73: CIRCUIT KM UPGRADED | W73: EXPENDITURE ($000'S) | X73: CIRCUIT KM ADDED | Y73: CIRCUIT KM UPGRADED | Z73: EXPENDITURE ($000'S) | AK73: EXPENDITURE ($000'S) | AL73: VOLUME | AM73: EXPENDITURE ($000'S) | AN73: EXPENDITURE ($000'S) | AR73: EXPENDITURE ($000'S) | AU73: EXPENDITURE ($000'S)
A74: AUG232_1 | B74: BT-NB 66kV - thermal uprate | M74: UED-COM-006827 | N74: Line upgrade - capacity | O74: Demand growth | P74: 66 | Q74: 0 | R74: 0 | S74: 0 | T74: 19.1442 | U74: 0 | V74: 2.9 | W74: 3.945 | X74: 0 | Y74: 0 | Z74: 0 | AK74: 1.66325 | AL74: 955.95 | AM74: 83.44777 | AN74: 0 | AO74: 91 | AP74: =SUM(T74,W74,Z74,AK74,AM74,AN74,AO74) -> 199.20022 | AQ74: 2014 | AU74: 0 | AV74: 0 | AX74: New line on new route - single circuit
A75: AUG232_2 | B75: KBH New zone substation | M75: UED-COM-002325 | N75: New line on new route - single circuit | O75: Demand growth | P75: 66 | Q75: 5.9 | R75: 143 | S75: 0 | T75: 422.52564 | U75: 5.8 | V75: 0 | W75: 240.94721 | X75: 0.1 | Y75: 0 | Z75: 91.3642 | AK75: 486.92085 | AL75: 16731.84462 | AM75: 2059.275309 | AN75: 222.72019 | AO75: 1814 | AP75: 5337.753399 | AQ75: 2012-2014 | AU75: 0 | AV75: 0 | AX75: New line on new route - dual circuit
A76: AUG232_3 | AP76: 0 | AX76: New line on new route - other
A77: AUG232_4 | AP77: 0 | AX77: Line rebuild over existing route - single circuit
A78: AUG232_5 | AP78: 0 | AX78: Line rebuild over existing route - dual circuit
A79: AUG232_6 | AP79: 0 | AX79: Reconductor - Single circuit
A80: AUG232_7 | AP80: 0 | AX80: Reconductor - Dual circuit
A81: AUG232_8 | AP81: 0 | AX81: Reconductor - Other
A82: AUG232_9 | AP82: 0 | AX82: Line upgrade - raising/retensoring
A83: AUG232_10 | AP83: 0 | AX83: Line upgrade - voltage upgrade
A84: AUG232_11 | AP84: 0 | AX84: Line upgrade - capacity
A85: AUG232_12 | AP85: 0 | AX85: String spare circuit
A86: AUG232_13 | AP86: 0 | AX86: Other
A87: AUG232_14 | AP87: 0
A88: AUG232_15 | AP88: 0
A89: AUG232_16 | AP89: 0
A90: AUG232_17 | AP90: 0
A91: AUG232_18 | AP91: 0
A92: AUG232_19 | AP92: 0
A93: AUG232_20 | AP93: 0
A94: AUG232_21 | AP94: 0
A95: AUG232_22 | AP95: 0
A96: AUG232_23 | AP96: 0
A97: AUG232_24 | AP97: 0
A98: AUG232_25 | AP98: 0
A99: AUG232_26 | AP99: 0
A100: AUG232_27 | AP100: 0
A101: AUG232_28 | AP101: 0
A102: AUG232_29 | AP102: 0
A103: AUG232_30 | AP103: 0
A104: AUG232_31 | AP104: 0
A105: AUG232_32 | AP105: 0
A106: AUG232_33 | AP106: 0
A107: AUG232_34 | AP107: 0
A108: AUG232_35 | AP108: 0
A109: AUG232_36 | AP109: 0
A110: AUG232_37 | AP110: 0
A111: AUG232_38 | AP111: 0
A112: AUG232_39 | AP112: 0
A113: AUG232_40 | AP113: 0
A114: AUG232_41 | AP114: 0
A115: AUG232_42 | AP115: 0
A116: AUG232_43 | AP116: 0
A117: AUG232_44 | AP117: 0
A118: AUG232_45 | AP118: 0
A119: AUG232_46 | AP119: 0
A120: AUG232_47 | AP120: 0
A121: AUG232_48 | AP121: 0
A122: AUG232_49 | AP122: 0
A123: AUG232_50 | AP123: 0
A124: AUG232_51 | AP124: 0
A125: AUG232_52 | AP125: 0
A126: AUG232_53 | AP126: 0
A127: AUG232_54 | AP127: 0
M128: Non material projects - [actual]
M129: Non material projects - [forecast]
B132: TABLE 2.3.3 - AUGEX DATA - HV/LV FEEDERS AND DISTRIBUTION SUBSTATIONS
B133: NOTE: DNSP MUST PROVIDE EXPENDITURE INFORMATION ON AN AS INCURRED BASIS.
B134: Table 2.3.3.1 Descriptor Metrics
M137: UNITS ADDED | N137: UNITS ADDED | O137: UNITS ADDED | P137: UNITS ADDED | Q137: UNITS ADDED | AK137: UNITS UPGRADED | AL137: UNITS UPGRADED | AM137: UNITS UPGRADED | AN137: UNITS UPGRADED | AO137: UNITS UPGRADED
B138: PROJECT TYPE | M138: =Years -> 2013-14 | N138: 0 | O138: 0 | P138: 0 | Q138: 0 | Z138: PROJECT TYPE | AB138: DNSP NAME | AC138: SERVICE CATEGORY | AD138: SERVICE SUB-CATEGORY | AE138: ASSET CATEGORY | AF138: ASSET SUB-CATEGORY | AG138: DATA TYPE | AH138: MEASUREMENT | AI138: DENOMINATION | AK138: =Years -> 2013-14 | AL138: 0 | AM138: 0 | AN138: 0 | AO138: 0
A139: ED_AUG2331_00001 | B139: HV Feeder Augmentations - Overhead Lines (Circuit Line Length in KM) | M139: 0.3 | Y139: ED_AUG2333_00001 | Z139: HV Feeder Augmentations - Overhead Lines (Circuit Line Length in KM) | AB139: DNSP NAME | AC139: AUGMENTATION | AD139: HV FEEDER PROJECTS | AE139: HV FEEDERS | AF139: OVERHEAD | AG139: DESCRIPTOR METRIC | AH139: KM UPGRADED | AI139: 000'S | AK139: 4.118
A140: ED_AUG2331_00002 | B140: HV Feeder Augmentations - Underground Cables (Circuit Line Length in KM) | M140: 7.283 | Y140: ED_AUG2333_00002 | Z140: HV Feeder Augmentations - Underground Cables (Circuit Line Length in KM) | AB140: DNSP NAME | AC140: AUGMENTATION | AD140: HV FEEDER PROJECTS | AE140: HV FEEDERS | AF140: UNDERGROUND | AG140: DESCRIPTOR METRIC | AH140: KM UPGRADED | AI140: 000'S | AK140: 0.13
A141: ED_AUG2331_00003 | B141: LV Feeder Augmentations - Overhead Lines (Circuit Line Length in KM) | M141: 6.93675 | Y141: ED_AUG2333_00003 | Z141: LV Feeder Augmentations - Overhead Lines (Circuit Line Length in KM) | AB141: DNSP NAME | AC141: AUGMENTATION | AD141: LV FEEDER PROJECTS | AE141: HV FEEDERS | AF141: OVERHEAD | AG141: DESCRIPTOR METRIC | AH141: KM UPGRADED | AI141: 000'S | AK141: 0
A142: ED_AUG2331_00004 | B142: LV Feeder Augmentations - Underground Cables (Circuit Line Length in KM) | M142: 1.121 | Y142: ED_AUG2333_00004 | Z142: LV Feeder Augmentations - Underground Cables (Circuit Line Length in KM) | AB142: DNSP NAME | AC142: AUGMENTATION | AD142: LV FEEDER PROJECTS | AE142: HV FEEDERS | AF142: UNDERGROUND | AG142: DESCRIPTOR METRIC | AH142: KM UPGRADED | AI142: 000'S | AK142: 0
A143: ED_AUG2331_00005 | B143: Distribution Substation Augmentations - Pole Mounted | M143: 27 | Y143: ED_AUG2333_00005 | Z143: Distribution Substation Augmentations - Pole Mounted | AB143: DNSP NAME | AC143: AUGMENTATION | AD143: SUBSTATION AUGMENTATIONS | AE143: SUBSTATIONS | AF143: POLE MOUNTED | AG143: DESCRIPTOR METRIC | AH143: VOLUME UPGRADED | AI143: 000'S | AK143: 152
A144: ED_AUG2331_00006 | B144: Distribution Substation Augmentations - Ground Mounted | M144: 2 | Y144: ED_AUG2333_00006 | Z144: Distribution Substation Augmentations - Ground Mounted | AB144: DNSP NAME | AC144: AUGMENTATION | AD144: SUBSTATION AUGMENTATIONS | AE144: SUBSTATIONS | AF144: GROUND MOUNTED | AG144: DESCRIPTOR METRIC | AH144: VOLUME UPGRADED | AI144: 000'S | AK144: 5
A145: ED_AUG2331_00007 | B145: Distribution Substation Augmentations - Indoor | M145: 1 | Y145: ED_AUG2333_00007 | Z145: Distribution Substation Augmentations - Indoor | AB145: DNSP NAME | AC145: AUGMENTATION | AD145: SUBSTATION AUGMENTATIONS | AE145: SUBSTATIONS | AF145: INDOOR | AG145: DESCRIPTOR METRIC | AH145: VOLUME UPGRADED | AI145: 000'S | AK145: 3
B147: Table 2.3.3.2 Cost Metrics
M150: TOTAL DIRECT EXPENDITURE ($000's) | N150: TOTAL DIRECT EXPENDITURE ($000) | O150: TOTAL DIRECT EXPENDITURE ($000) | P150: TOTAL DIRECT EXPENDITURE ($000) | Q150: TOTAL DIRECT EXPENDITURE ($000)
B151: PROJECT TYPE | M151: =Years -> 2013-14 | N151: 0 | O151: 0 | P151: 0 | Q151: 0
A152: ED_AUG2332_00001 | B152: HV Feeder Augmentations - Overhead Lines | M152: 1405.566
A153: ED_AUG2332_00002 | B153: HV Feeder Augmentations - Underground Cables | M153: 2689.139
A154: ED_AUG2332_00003 | B154: HV Feeder Non-Material Projects | M154: 1025.403
A155: ED_AUG2332_00004 | B155: LV Feeder Augmentations - Overhead Lines | M155: 0
A156: ED_AUG2332_00005 | B156: LV Feeder Augmentations - Underground Cables | M156: 0
A157: ED_AUG2332_00006 | B157: LV Feeder Non-Material Projects | M157: 1003.807
A158: ED_AUG2332_00007 | B158: Distribution Substation Augmentations - Pole Mounted | M158: 9161.727
A159: ED_AUG2332_00008 | B159: Distribution Substation Augmentations - Ground Mounted | M159: 529.921
A160: ED_AUG2332_00009 | B160: Distribution Substation Augmentations - Indoor | M160: 534.468
B168: TABLE 2.3.4 - AUGEX DATA - TOTAL EXPENDITURE
B170: AUGMENTATION CAPEX | M170: Expenditure ($000's) | N170: Expenditure ($000's) | O170: Expenditure ($000's) | P170: Expenditure ($000's) | Q170: Expenditure ($000's)
B171: AS INCURRED ($000's) | M171: =Years -> 2013-14 | N171: 0 | O171: 0 | P171: 0 | Q171: 0
A172: ED_AUG234_00001 | B172: Subtransmission Substations, Switching Stations, Zone Substations | M172: 12851.25736 | N172: 71083.88939 | O172: 57955.46557 | P172: 52247.39458 | Q172: 41900.94965
A173: ED_AUG234_00002 | B173: Subtransmission Lines | M173: 6545.18017 | N173: 27358.06424 | O173: 12990.61252 | P173: 10581.1499 | Q173: 9425.253806
A174: ED_AUG234_00003 | B174: HV Feeders | M174: 4742.267995 | N174: 33123.55587 | O174: 32531.51908 | P174: 53870.6688 | Q174: 54323.56439
A175: ED_AUG234_00004 | B175: HV Feeders - Land Purchases and Easements | M175: 0 | N175: 0 | O175: 0 | P175: 0 | Q175: 0
A176: ED_AUG234_00005 | B176: Distribution Substations | M176: 10699.33395 | N176: 11149.89743 | O176: 13130.04214 | P176: 14613.64282 | Q176: 12708.52275
A177: ED_AUG234_00006 | B177: Distribution Substations - Land Purchases And Easements | M177: 0 | N177: 0 | O177: 0 | P177: 0 | Q177: 0
A178: ED_AUG234_00007 | B178: LV Feeders | M178: 995.97855 | N178: 1905.285112 | O178: 2440.497866 | P178: 2398.729119 | Q178: 3027.248054
A179: ED_AUG234_00008 | B179: LV Feeders - Land Purchases And Easements | M179: 0 | N179: 0 | O179: 0 | P179: 0 | Q179: 0
A180: ED_AUG234_00009 | B180: Other Assets | M180: 60.02835

Sheet 2.5 Connections
B1: =Title -> REGULATORY REPORTING STATEMENT
B2: =TradingName -> United Energy Distribution Pty Limited
B3: =CONCATENATE("Category Analysis RIN response ",CRY) -> Category Analysis RIN response 2013-14
B4: 2.5 CONNECTIONS
B9: TABLE 2.5.1 DESCRIPTOR METRICS | F9: TABLE 2.5.2 COST METRICS BY CONNECTION CLASSIFICATION
B10: <<<GROUP-ROW>>>
D12: VOLUMES AND EXPENDITURE | H12: EXPENDITURE ($000's) | J12: VOLUMES (000s)
B13: CONNECTION SUBCATEGORY | C13: DESCRIPTOR METRIC | D13: =CRY -> 2013-14 | F13: CONNECTION SUBCATEGORY | G13: CONNECTION CLASSICIATION | H13: =CRY -> 2013-14 | J13: =CRY -> 2013-14
A14: ED_CON251_00001 | B14: RESIDENTIAL | C14: Underground connections (000's) | D14: 6.610329843 | E14: ED_CON252_00001 | F14: RESIDENTIAL | G14: Simple connection LV | H14: 0 | J14: 8.381
A15: ED_CON251_00002 | C15: Overhead connections (000's) | D15: 1.770670157 | E15: ED_CON252_00002 | G15: Complex connection LV | H15: 0 | J15: 0
A16: ED_CON251_00003 | C16: Distribution substation installed (MVA added) | D16: 0 | E16: ED_CON252_00003 | G16: Complex connection HV | H16: 0 | J16: 0
A17: ED_CON251_00004 | C17: Distribution substations installed (000's) | D17: 0 | E17: ED_CON252_00004 | F17: COMMERCIAL/INDUSTRIAL | G17: Simple connection LV | H17: 3988.69492 | J17: 0.9100830671
A18: ED_CON251_00005 | C18: Distribution substation installed (total spend $000's) | D18: 0 | E18: ED_CON252_00005 | G18: Complex connection HV (customer connected at LV, minor HV works) | H18: 19358.63687 | J18: 1.77859984
A19: ED_CON251_00006 | C19: Augmentation HV (net circuit KM added) | D19: 0 | E19: ED_CON252_00006 | G19: Complex connection HV (customer connected at LV, upstream asset works) | H19: 1899.10348 | J19: 0.0109384984
A20: ED_CON251_00007 | C20: Augmentation HV (total spend $000's) | D20: 0 | E20: ED_CON252_00007 | G20: Complex connection HV (customer connected at HV) | H20: 1195.9058 | J20: 0.03937859425
A21: ED_CON251_00008 | C21: Augmentation LV (net circuit KM added) | D21: 0 | E21: ED_CON252_00008 | G21: Complex connection sub-transmission | H21: 0 | J21: 0
A22: ED_CON251_00009 | C22: Augmentation LV (total spend $000's) | D22: 0 | E22: ED_CON252_00009 | F22: SUBDIVISION | G22: Complex connection LV | H22: 12576.17191 | J22: 0.302
A23: ED_CON251_00010 | C23: Mean days to connect residential customer with LV single phase connection (0's) | D23: =0.750024553912355*10 -> 7.500245539 | E23: ED_CON252_00010 | G23: Complex connection HV (no upstream asset works) | H23: 2763.86914 | J23: 0.071
A24: ED_CON251_00011 | C24: Volume of GSL breaches for residential customers (0's) | D24: =11.3*10 -> 113 | E24: ED_CON252_00011 | G24: Complex connection HV (with upstream asset works) | H24: 0 | J24: 0
A25: ED_CON251_00012 | C25: Volume of customer complaints relating to connection services (0's) | D25: =18.7*10 -> 187 | E25: ED_CON252_00012 | F25: EMBEDDED GENERATION | G25: Simple connection LV | H25: 0 | J25: 2.257
A26: ED_CON251_00013 | C26: GSL payments ($000's) | D26: 19.75 | E26: ED_CON252_00013 | G26: Complex connection HV (small capacity) | H26: 0 | J26: 0
A27: ED_CON251_00014 | B27: COMMERCIAL/INDUSTRIAL | C27: Underground connections (000's) | D27: 2.160326147 | E27: ED_CON252_00014 | G27: Complex connection HV (large capacity) | H27: 0 | J27: 0
A28: ED_CON251_00015 | C28: Overhead connections (000's) | D28: 0.5786738528
A29: ED_CON251_00016 | C29: Distribution substation installed (MVA added) | D29: 102.738
A30: ED_CON251_00017 | C30: Distribution substations installed (000's) | D30: 0.159
A31: ED_CON251_00018 | C31: Distribution substation installed total spend ($000's) | D31: 21776.03824
A32: ED_CON251_00019 | C32: Augmentation HV (net circuit KM added) | D32: 35.573
A33: ED_CON251_00020 | C33: Augmentation HV (total spend $000's) | D33: 2669.82092
A34: ED_CON251_00021 | C34: Augmentation LV (net circuit KM added) | D34: 23.134
A35: ED_CON251_00022 | C35: Augmentation LV (total spend $000's) | D35: 1996.48191
A36: ED_CON251_00023 | B36: SUBDIVISION | C36: Underground connections (000's) | D36: 0.36
A37: ED_CON251_00024 | C37: Overhead connections (000's) | D37: 0.013
A38: ED_CON251_00025 | C38: Distribution substation installed (MVA added) | D38: 4.165
A39: ED_CON251_00026 | C39: Distribution substations installed (000's) | D39: 0.022
A40: ED_CON251_00027 | C40: Distribution substation installed (total spend $000's) | D40: 1548.38323
A41: ED_CON251_00028 | C41: Augmentation HV (net circuit KM added) | D41: 9.611
A42: ED_CON251_00029 | C42: Augmentation HV (total spend $000's) | D42: 1938.64742
A43: ED_CON251_00030 | C43: Augmentation LV (net circuit KM added) | D43: 38.596
A44: ED_CON251_00031 | C44: Augmentation LV (total spend $000's) | D44: 11853.0104
A45: ED_CON251_00032 | C45: Cost per lot ($) | D45: 3664.302298
A46: ED_CON251_00033 | B46: EMBEDDED GENERATION | C46: Underground connections (000's) | D46: 1.780159224
A47: ED_CON251_00034 | C47: Overhead connections (000's) | D47: 0.4768407761
A48: ED_CON251_00035 | C48: Distribution substation installed (MVA added) | D48: 0
A49: ED_CON251_00036 | C49: Distribution substations installed (000's) | D49: 0
A50: ED_CON251_00037 | C50: Distribution substation installed (total spend $000's) | D50: 0
A51: ED_CON251_00038 | C51: Augmentation HV (net circuit KM added) | D51: 0
A52: ED_CON251_00039 | C52: Augmentation HV (total spend $000's) | D52: 0
A53: ED_CON251_00040 | C53: Augmentation LV (net circuit KM added) | D53: 0
A54: ED_CON251_00041 | C54: Augmentation LV (total spend $000's) | D54: 0

Sheet 2.6 Non-network
B1: =Title -> REGULATORY REPORTING STATEMENT
B2: =TradingName -> United Energy Distribution Pty Limited
B3: =CONCATENATE("Category Analysis RIN response ",CRY) -> Category Analysis RIN response 2013-14
B4: 2.6 NON NETWORK EXPENDITURE
B9: TABLE 2.6.1 NON-NETWORK EXPENDITURE | G9: TABLE 2.6.2 ANNUAL DESCRIPTOR METRICS - IT & COMMUNICATIONS EXPENDITURE | K9: TABLE 2.6.3 ANNUAL DESCRIPTOR METRICS - MOTOR VEHICLES
B10: <<<GROUP-ROW>>>
E12: EXPENDITURE ($000's) | I12: VOLUMES | L12: ASSET REPORTING CATEGORY | N12: VOLUMES / %
A13: ED_NON261_00001 | B13: SERVICE SUBCATEGORY | C13: ASSET CATEGORY | D13: ASSET REPORTING CATEGORY | E13: =CRY -> 2013-14 | G13: NON-NETWORK CATEGORY | H13: DESCRIPTOR METRIC | I13: =CRY -> 2013-14 | K13: NON-NETWORK CATEGORY | L13: ASSET CATEGORY | M13: DESCRIPTOR METRIC | N13: =CRY -> 2013-14
A14: ED_NON261_00002 | B14: IT & COMMUNICATIONS | C14: Client device expenditure | D14: Opex | E14: 0 | F14: ED_NON262_00001 | G14: IT & COMMUNICATIONS | H14: Employee numbers | I14: 322 | J14: ED_NON263_00001 | K14: MOTOR VEHICLES | L14: CAR | M14: Average kilometres travelled (000's) | N14: 25
A15: ED_NON261_00003 | D15: Capex | E15: 207.207 | F15: ED_NON262_00002 | H15: User numbers | I15: 1248 | J15: ED_NON263_00002 | M15: Number purchased | N15: 3
A16: ED_NON261_00004 | C16: Recurrent expenditure | D16: Opex | E16: 16682 | F16: ED_NON262_00003 | H16: Number of devices | I16: 992 | J16: ED_NON263_00003 | M16: Number leased | N16: 0
A17: ED_NON261_00005 | D17: Capex | E17: 13696.975 | J17: ED_NON263_00004 | M17: Number in fleet | N17: 24.5
A18: ED_NON261_00006 | C18: Non-recurrent expenditure | D18: Opex | E18: 291 | J18: ED_NON263_00005 | M18: Proportion of total fleet expenditure allocated as regulatory expenditure (%) | N18: 1
A19: ED_NON261_00007 | D19: Capex | E19: 9817.494 | J19: ED_NON263_00006 | L19: LIGHT COMMERCIAL VEHICLE | M19: Average kilometres travelled (000's) | N19: 43
A20: ED_NON261_00008 | B20: MOTOR VEHICLES | C20: Car | D20: Opex | E20: 84.88381 | J20: ED_NON263_00007 | M20: Number purchased | N20: 11
A21: ED_NON261_00009 | D21: Capex | E21: 103.12649 | J21: ED_NON263_00008 | M21: Number leased | N21: 0
A22: ED_NON261_00010 | C22: Light commercial vehicle | D22: Opex | E22: 89.34694 | J22: ED_NON263_00009 | M22: Number in fleet | N22: 35.91666667
A23: ED_NON261_00011 | D23: Capex | E23: 1071.16142 | J23: ED_NON263_00010 | M23: Proportion of total fleet expenditure allocated as regulatory expenditure (%) | N23: 1
A24: ED_NON261_00012 | C24: Elevated work platform (LCV) | D24: Opex | E24: 1.534175 | J24: ED_NON263_00011 | L24: ELEVATED WORK PLATFORM (LCV) | M24: Average kilometres travelled (000's) | N24: 39
A25: ED_NON261_00013 | D25: Capex | E25: 182.215 | J25: ED_NON263_00012 | M25: Number purchased | N25: 1
A26: ED_NON261_00014 | C26: Elevated work platform (HCV) | D26: Opex | E26: 672.11244 | J26: ED_NON263_00013 | M26: Number leased | N26: 0
A27: ED_NON261_00015 | D27: Capex | E27: 0 | J27: ED_NON263_00014 | M27: Number in fleet | N27: 0.4166666667
A28: ED_NON261_00016 | C28: Heavy commercial vehicle | D28: Opex | E28: 212.58041 | J28: ED_NON263_00015 | M28: Proportion of total fleet expenditure allocated as regulatory expenditure (%) | N28: 1
A29: ED_NON261_00017 | D29: Capex | E29: 0 | J29: ED_NON263_00016 | L29: ELEVATED WORK PLATFORM (HCV) | M29: Average kilometres travelled (000's) | N29: 39
A30: ED_NON261_00018 | B30: BUILDINGS AND PROPERTY | C30: Total buildings and property expenditure | D30: Opex | E30: 2351.91996 | J30: ED_NON263_00017 | M30: Number purchased | N30: 0
A31: ED_NON261_00019 | D31: Capex | E31: 2451.315 | J31: ED_NON263_00018 | M31: Number leased | N31: 0
A32: ED_NON261_00020 | B32: OTHER | C32: Other expenditure | D32: Opex | E32: 64.88432 | J32: ED_NON263_00019 | M32: Number in fleet | N32: 52.5
A33: ED_NON261_00021 | D33: Capex | E33: 224 | J33: ED_NON263_00020 | M33: Proportion of total fleet expenditure allocated as regulatory expenditure (%) | N33: 1
A34: ED_NON261_00022 | B34: OTHER - DNSP nominated | C34: < Enter description for nominated category > | D34: Opex | E34: 0 | J34: ED_NON263_00021 | L34: HEAVY COMMERCIAL VEHICLE | M34: Average kilometres travelled (000's) | N34: 12
A35: ED_NON261_00023 | D35: Capex | E35: 0 | J35: ED_NON263_00022 | M35: Number purchased | N35: 0
A36: ED_NON261_00024 | D36: Opex | E36: 0 | J36: ED_NON263_00023 | M36: Number leased | N36: 0
A37: ED_NON261_00025 | D37: Capex | E37: 0 | J37: ED_NON263_00024 | M37: Number in fleet | N37: 20
A38: ED_NON261_00026 | D38: Opex | E38: 0 | J38: ED_NON263_00025 | M38: Proportion of total fleet expenditure allocated as regulatory expenditure (%) | N38: 1
A39: ED_NON261_00027 | D39: Capex | E39: 0
A40: ED_NON261_00028 | D40: Opex | E40: 0
A41: ED_NON261_00029 | D41: Capex | E41: 0
A42: ED_NON261_00030 | D42: Opex | E42: 0
A43: ED_NON261_00031 | D43: Capex | E43: 0
A44: ED_NON261_00032 | D44: Opex | E44: 0
A45: ED_NON261_00033 | D45: Capex | E45: 0
A46: ED_NON261_00034 | D46: Opex | E46: 0
A47: ED_NON261_00035 | D47: Capex | E47: 0
A48: ED_NON261_00036 | D48: Opex | E48: 0
A49: ED_NON261_00037 | D49: Capex | E49: 0
A50: ED_NON261_00038 | D50: Opex | E50: 0
A51: ED_NON261_00039 | D51: Capex | E51: 0
A52: ED_NON261_00040 | D52: Opex | E52: 0
A53: ED_NON261_00041 | D53: Capex | E53: 0
A54: ED_NON261_00042 | D54: Opex | E54: 0
A55: ED_NON261_00043 | D55: Capex | E55: 0

Sheet 2.7 Vegetation management
B1: =Title -> REGULATORY REPORTING STATEMENT
B2: =TradingName -> United Energy Distribution Pty Limited
B3: =CONCATENATE("Category Analysis RIN response ",CRY) -> Category Analysis RIN response 2013-14
B4: 2.7 VEGETATION MANAGEMENT
B6: TABLE 2.7.3 - DESCRIPTOR METRICS ACROSS ALL ZONES - UNPLANNED VEGETATION EVENTS | I6: TABLE 2.7.1 - DESCRIPTOR METRICS BY ZONE | N6: TABLE 2.7.2 - EXPENDITURE METRICS BY ZONE
C9: VOLUMES | D9: VOLUMES | E9: VOLUMES | F9: VOLUMES | G9: VOLUMES | L9: VOLUMES | P9: EXPENDITURE ($000's)
B10: DESCRIPTOR METRIC | C10: =Years -> 2013-14 | D10: 0 | E10: 0 | F10: 0 | G10: 0 | I10: ZONES | J10: ASSET | K10: ASSET SUBCATEGORY | L10: =CRY -> 2013-14 | N10: ZONES | O10: SERVICE SUBCATEGORY | P10: =CRY -> 2013-14
A11: ED_VEG273_00001 | B11: Number of fire starts caused by vegetation grow-ins (NSP responsibility) (0's) | C11: 1 | H11: ED_VEG271_00001 | I11: ZONE (North) | J11: Route line length within zone (KM) | K11: Urban and CBD | L11: =4523826/1000 -> 4523.826 | M11: ED_VEG272_00001 | N11: =I11 -> ZONE (North) | O11: Tree trimming (excluding hazard trees)
A12: ED_VEG273_00002 | B12: Number of fire starts caused by vegetation blow-ins and fall-ins (NSP responsibility) (0's) | C12: 4 | H12: ED_VEG271_00002 | K12: Rural | L12: =21383/1000 -> 21.383 | M12: ED_VEG272_00002 | O12: Hazard tree cutting
A13: ED_VEG273_00003 | B13: Number of fire starts caused by vegetation grow-ins (other party responsibility) (0's) | C13: 4 | H13: ED_VEG271_00003 | J13: Number of maintenance spans (0's) | K13: Urban and CBD | L13: 9251 | M13: ED_VEG272_00003 | O13: Ground clearance
A14: ED_VEG273_00004 | B14: Number of fire starts caused by vegetation blow-ins and fall-ins (other party responsibility) (0's) | C14: 1 | H14: ED_VEG271_00004 | K14: Rural | L14: 122 | M14: ED_VEG272_00004 | O14: Vegetation corridor clearance
H15: ED_VEG271_00005 | J15: Total length of maintenance spans (KM) | K15: Urban and CBD | L15: =3287023/1000 -> 3287.023 | M15: ED_VEG272_00005 | O15: Inspection
H16: ED_VEG271_00006 | K16: Rural | L16: =14577/1000 -> 14.577 | M16: ED_VEG272_00006 | O16: Audit
H17: ED_VEG271_00007 | J17: Length of vegetation corridors (KM) | K17: Urban and CBD | L17: 435 | M17: ED_VEG272_00007 | O17: Contractor liaison expenditure
H18: ED_VEG271_00008 | K18: Rural | L18: 6 | M18: ED_VEG272_00008 | O18: Tree replacement program costs
H19: ED_VEG271_00009 | J19: Average number of trees per maintenance span (0's) | K19: Urban and CBD | L19: 2.508244956 | M19: ED_VEG272_00009 | O19: Other vegetation management costs not specified in sheet | P19: 5547.28421
H20: ED_VEG271_00010 | K20: Rural | L20: 7.398131454 | M20: ED_VEG272_00010 | N20: =I23 -> ZONE (South) | O20: Tree trimming (excluding hazard trees)
H21: ED_VEG271_00011 | J21: Average frequency of cutting cycle (years) | K21: Urban and CBD | L21: 2.103 | M21: ED_VEG272_00011 | O21: Hazard tree cutting
H22: ED_VEG271_00012 | K22: Rural | L22: 1.96 | M22: ED_VEG272_00012 | O22: Ground clearance
H23: ED_VEG271_00013 | I23: ZONE (South) | J23: Route line length within zone (KM) | K23: Urban and CBD | L23: =3481956/1000 -> 3481.956 | M23: ED_VEG272_00013 | O23: Vegetation corridor clearance
H24: ED_VEG271_00014 | K24: Rural | L24: =1355146/1000 -> 1355.146 | M24: ED_VEG272_00014 | O24: Inspection
H25: ED_VEG271_00015 | J25: Number of maintenance spans (0's) | K25: Urban and CBD | L25: 4622 | M25: ED_VEG272_00015 | O25: Audit
H26: ED_VEG271_00016 | K26: Rural | L26: 1812 | M26: ED_VEG272_00016 | O26: Contractor liaison expenditure
H27: ED_VEG271_00017 | J27: Total length of maintenance spans (KM) | K27: Urban and CBD | L27: =2686365/1000 -> 2686.365 | M27: ED_VEG272_00017 | O27: Tree replacement program costs
H28: ED_VEG271_00018 | K28: Rural | L28: =887609/1000 -> 887.609 | M28: ED_VEG272_00018 | O28: Other vegetation management costs not specified in sheet | P28: 6135.80703
H29: ED_VEG271_00019 | J29: Length of vegetation corridors (KM) | K29: Urban and CBD | L29: 218 | M29: ED_VEG272_00019 | N29: =I35 -> ZONE (DNSP to nominate) | O29: Tree trimming (excluding hazard trees)
H30: ED_VEG271_00020 | K30: Rural | L30: 86 | M30: ED_VEG272_00020 | O30: Hazard tree cutting
H31: ED_VEG271_00021 | J31: Average number of trees per maintenance span (0's) | K31: Urban and CBD | L31: 2.508244956 | M31: ED_VEG272_00021 | O31: Ground clearance
H32: ED_VEG271_00022 | K32: Rural | L32: 7.398131454 | M32: ED_VEG272_00022 | O32: Vegetation corridor clearance
H33: ED_VEG271_00023 | J33: Average frequency of cutting cycle (years) | K33: Urban and CBD | L33: 2.103 | M33: ED_VEG272_00023 | O33: Inspection
H34: ED_VEG271_00024 | K34: Rural | L34: 1.96 | M34: ED_VEG272_00024 | O34: Audit
H35: ED_VEG271_00025 | I35: ZONE (DNSP to nominate) | J35: Route line length within zone (KM) | K35: Urban and CBD | M35: ED_VEG272_00025 | O35: Contractor liaison expenditure
H36: ED_VEG271_00026 | K36: Rural | M36: ED_VEG272_00026 | O36: Tree replacement program costs
H37: ED_VEG271_00027 | J37: Number of maintenance spans (0's) | K37: Urban and CBD | M37: ED_VEG272_00027 | O37: Other vegetation management costs not specified in sheet
H38: ED_VEG271_00028 | K38: Rural | M38: ED_VEG272_00028 | N38: =I47 -> ZONE (DNSP to nominate) | O38: Tree trimming (excluding hazard trees)
H39: ED_VEG271_00029 | J39: Total length of maintenance spans (KM) | K39: Urban and CBD | M39: ED_VEG272_00029 | O39: Hazard tree cutting
H40: ED_VEG271_00030 | K40: Rural | M40: ED_VEG272_00030 | O40: Ground clearance
H41: ED_VEG271_00031 | J41: Length of vegetation corridors (KM) | K41: Urban and CBD | M41: ED_VEG272_00031 | O41: Vegetation corridor clearance
H42: ED_VEG271_00032 | K42: Rural | M42: ED_VEG272_00032 | O42: Inspection
H43: ED_VEG271_00033 | J43: Average number of trees per maintenance span (0's) | K43: Urban and CBD | M43: ED_VEG272_00033 | O43: Audit
H44: ED_VEG271_00034 | K44: Rural | M44: ED_VEG272_00034 | O44: Contractor liaison expenditure
H45: ED_VEG271_00035 | J45: Average frequency of cutting cycle (years) | K45: Urban and CBD | M45: ED_VEG272_00035 | O45: Tree replacement program costs
H46: ED_VEG271_00036 | K46: Rural | M46: ED_VEG272_00036 | O46: Other vegetation management costs not specified in sheet
H47: ED_VEG271_00037 | I47: ZONE (DNSP to nominate) | J47: Route line length within zone (KM) | K47: Urban and CBD | M47: ED_VEG272_00037 | N47: =I59 -> ZONE (DNSP to nominate) | O47: Tree trimming (excluding hazard trees)
H48: ED_VEG271_00038 | K48: Rural | M48: ED_VEG272_00038 | O48: Hazard tree cutting
H49: ED_VEG271_00039 | J49: Number of maintenance spans (0's) | K49: Urban and CBD | M49: ED_VEG272_00039 | O49: Ground clearance
H50: ED_VEG271_00040 | K50: Rural | M50: ED_VEG272_00040 | O50: Vegetation corridor clearance
H51: ED_VEG271_00041 | J51: Total length of maintenance spans (KM) | K51: Urban and CBD | M51: ED_VEG272_00041 | O51: Inspection
H52: ED_VEG271_00042 | K52: Rural | M52: ED_VEG272_00042 | O52: Audit
H53: ED_VEG271_00043 | J53: Length of vegetation corridors (KM) | K53: Urban and CBD | M53: ED_VEG272_00043 | O53: Contractor liaison expenditure
H54: ED_VEG271_00044 | K54: Rural | M54: ED_VEG272_00044 | O54: Tree replacement program costs
H55: ED_VEG271_00045 | J55: Average number of trees per maintenance span (0's) | K55: Urban and CBD | M55: ED_VEG272_00045 | O55: Other vegetation management costs not specified in sheet
H56: ED_VEG271_00046 | K56: Rural | M56: ED_VEG272_00046 | N56: =I71 -> ZONE (DNSP to nominate) | O56: Tree trimming (excluding hazard trees)
H57: ED_VEG271_00047 | J57: Average frequency of cutting cycle (years) | K57: Urban and CBD | M57: ED_VEG272_00047 | O57: Hazard tree cutting
H58: ED_VEG271_00048 | K58: Rural | M58: ED_VEG272_00048 | O58: Ground clearance
H59: ED_VEG271_00049 | I59: ZONE (DNSP to nominate) | J59: Route line length within zone (KM) | K59: Urban and CBD | M59: ED_VEG272_00049 | O59: Vegetation corridor clearance
H60: ED_VEG271_00050 | K60: Rural | M60: ED_VEG272_00050 | O60: Inspection
H61: ED_VEG271_00051 | J61: Number of maintenance spans (0's) | K61: Urban and CBD | M61: ED_VEG272_00051 | O61: Audit
H62: ED_VEG271_00052 | K62: Rural | M62: ED_VEG272_00052 | O62: Contractor liaison expenditure
H63: ED_VEG271_00053 | J63: Total length of maintenance spans (KM) | K63: Urban and CBD | M63: ED_VEG272_00053 | O63: Tree replacement program costs
H64: ED_VEG271_00054 | K64: Rural | M64: ED_VEG272_00054 | O64: Other vegetation management costs not specified in sheet
H65: ED_VEG271_00055 | J65: Length of vegetation corridors (KM) | K65: Urban and CBD | M65: ED_VEG272_00055 | N65: =I83 -> ZONE (DNSP to nominate) | O65: Tree trimming (excluding hazard trees)
H66: ED_VEG271_00056 | K66: Rural | M66: ED_VEG272_00056 | O66: Hazard tree cutting
H67: ED_VEG271_00057 | J67: Average number of trees per maintenance span (0's) | K67: Urban and CBD | M67: ED_VEG272_00057 | O67: Ground clearance
H68: ED_VEG271_00058 | K68: Rural | M68: ED_VEG272_00058 | O68: Vegetation corridor clearance
H69: ED_VEG271_00059 | J69: Average frequency of cutting cycle (years) | K69: Urban and CBD | M69: ED_VEG272_00059 | O69: Inspection
H70: ED_VEG271_00060 | K70: Rural | M70: ED_VEG272_00060 | O70: Audit
H71: ED_VEG271_00061 | I71: ZONE (DNSP to nominate) | J71: Route line length within zone (KM) | K71: Urban and CBD | M71: ED_VEG272_00061 | O71: Contractor liaison expenditure
H72: ED_VEG271_00062 | K72: Rural | M72: ED_VEG272_00062 | O72: Tree replacement program costs
H73: ED_VEG271_00063 | J73: Number of maintenance spans (0's) | K73: Urban and CBD | M73: ED_VEG272_00063 | O73: Other vegetation management costs not specified in sheet
H74: ED_VEG271_00064 | K74: Rural | M74: ED_VEG272_00064 | N74: =I95 -> ZONE (DNSP to nominate) | O74: Tree trimming (excluding hazard trees)
H75: ED_VEG271_00065 | J75: Total length of maintenance spans (KM) | K75: Urban and CBD | M75: ED_VEG272_00065 | O75: Hazard tree cutting
H76: ED_VEG271_00066 | K76: Rural | M76: ED_VEG272_00066 | O76: Ground clearance
H77: ED_VEG271_00067 | J77: Length of vegetation corridors (KM) | K77: Urban and CBD | M77: ED_VEG272_00067 | O77: Vegetation corridor clearance
H78: ED_VEG271_00068 | K78: Rural | M78: ED_VEG272_00068 | O78: Inspection
H79: ED_VEG271_00069 | J79: Average number of trees per maintenance span (0's) | K79: Urban and CBD | M79: ED_VEG272_00069 | O79: Audit
H80: ED_VEG271_00070 | K80: Rural | M80: ED_VEG272_00070 | O80: Contractor liaison expenditure
H81: ED_VEG271_00071 | J81: Average frequency of cutting cycle (years) | K81: Urban and CBD | M81: ED_VEG272_00071 | O81: Tree replacement program costs
H82: ED_VEG271_00072 | K82: Rural | M82: ED_VEG272_00072 | O82: Other vegetation management costs not specified in sheet
H83: ED_VEG271_00073 | I83: ZONE (DNSP to nominate) | J83: Route line length within zone (KM) | K83: Urban and CBD | M83: ED_VEG272_00073 | N83: =I107 -> ZONE (DNSP to nominate) | O83: Tree trimming (excluding hazard trees)
H84: ED_VEG271_00074 | K84: Rural | M84: ED_VEG272_00074 | O84: Hazard tree cutting
H85: ED_VEG271_00075 | J85: Number of maintenance spans (0's) | K85: Urban and CBD | M85: ED_VEG272_00075 | O85: Ground clearance
H86: ED_VEG271_00076 | K86: Rural | M86: ED_VEG272_00076 | O86: Vegetation corridor clearance
H87: ED_VEG271_00077 | J87: Total length of maintenance spans (KM) | K87: Urban and CBD | M87: ED_VEG272_00077 | O87: Inspection
H88: ED_VEG271_00078 | K88: Rural | M88: ED_VEG272_00078 | O88: Audit
H89: ED_VEG271_00079 | J89: Length of vegetation corridors (KM) | K89: Urban and CBD | M89: ED_VEG272_00079 | O89: Contractor liaison expenditure
H90: ED_VEG271_00080 | K90: Rural | M90: ED_VEG272_00080 | O90: Tree replacement program costs
H91: ED_VEG271_00081 | J91: Average number of trees per maintenance span (0's) | K91: Urban and CBD | M91: ED_VEG272_00081 | O91: Other vegetation management costs not specified in sheet
H92: ED_VEG271_00082 | K92: Rural | M92: ED_VEG272_00082 | N92: =I119 -> ZONE (DNSP to nominate) | O92: Tree trimming (excluding hazard trees)
H93: ED_VEG271_00083 | J93: Average frequency of cutting cycle (years) | K93: Urban and CBD | M93: ED_VEG272_00083 | O93: Hazard tree cutting
H94: ED_VEG271_00084 | K94: Rural | M94: ED_VEG272_00084 | O94: Ground clearance
H95: ED_VEG271_00085 | I95: ZONE (DNSP to nominate) | J95: Route line length within zone (KM) | K95: Urban and CBD | M95: ED_VEG272_00085 | O95: Vegetation corridor clearance
H96: ED_VEG271_00086 | K96: Rural | M96: ED_VEG272_00086 | O96: Inspection
H97: ED_VEG271_00087 | J97: Number of maintenance spans (0's) | K97: Urban and CBD | M97: ED_VEG272_00087 | O97: Audit
H98: ED_VEG271_00088 | K98: Rural | M98: ED_VEG272_00088 | O98: Contractor liaison expenditure
H99: ED_VEG271_00089 | J99: Total length of maintenance spans (KM) | K99: Urban and CBD | M99: ED_VEG272_00089 | O99: Tree replacement program costs
H100: ED_VEG271_00090 | K100: Rural | M100: ED_VEG272_00090 | O100: Other vegetation management costs not specified in sheet
H101: ED_VEG271_00091 | J101: Length of vegetation corridors (KM) | K101: Urban and CBD | M101: ED_VEG272_00091 | N101: =I131 -> ZONE (DNSP to nominate) | O101: Tree trimming (excluding hazard trees)
H102: ED_VEG271_00092 | K102: Rural | M102: ED_VEG272_00092 | O102: Hazard tree cutting
H103: ED_VEG271_00093 | J103: Average number of trees per maintenance span (0's) | K103: Urban and CBD | M103: ED_VEG272_00093 | O103: Ground clearance
H104: ED_VEG271_00094 | K104: Rural | M104: ED_VEG272_00094 | O104: Vegetation corridor clearance
H105: ED_VEG271_00095 | J105: Average frequency of cutting cycle (years) | K105: Urban and CBD | M105: ED_VEG272_00095 | O105: Inspection
H106: ED_VEG271_00096 | K106: Rural | M106: ED_VEG272_00096 | O106: Audit
H107: ED_VEG271_00097 | I107: ZONE (DNSP to nominate) | J107: Route line length within zone (KM) | K107: Urban and CBD | M107: ED_VEG272_00097 | O107: Contractor liaison expenditure
H108: ED_VEG271_00098 | K108: Rural | M108: ED_VEG272_00098 | O108: Tree replacement program costs
H109: ED_VEG271_00099 | J109: Number of maintenance spans (0's) | K109: Urban and CBD | M109: ED_VEG272_00099 | O109: Other vegetation management costs not specified in sheet
H110: ED_VEG271_00100 | K110: Rural | M110: ED_VEG272_00100 | N110: =I143 -> ZONE (DNSP to nominate) | O110: Tree trimming (excluding hazard trees)
H111: ED_VEG271_00101 | J111: Total length of maintenance spans (KM) | K111: Urban and CBD | M111: ED_VEG272_00101 | O111: Hazard tree cutting
H112: ED_VEG271_00102 | K112: Rural | M112: ED_VEG272_00102 | O112: Ground clearance
H113: ED_VEG271_00103 | J113: Length of vegetation corridors (KM) | K113: Urban and CBD | M113: ED_VEG272_00103 | O113: Vegetation corridor clearance
H114: ED_VEG271_00104 | K114: Rural | M114: ED_VEG272_00104 | O114: Inspection
H115: ED_VEG271_00105 | J115: Average number of trees per maintenance span (0's) | K115: Urban and CBD | M115: ED_VEG272_00105 | O115: Audit
H116: ED_VEG271_00106 | K116: Rural | M116: ED_VEG272_00106 | O116: Contractor liaison expenditure
H117: ED_VEG271_00107 | J117: Average frequency of cutting cycle (years) | K117: Urban and CBD | M117: ED_VEG272_00107 | O117: Tree replacement program costs
H118: ED_VEG271_00108 | K118: Rural | M118: ED_VEG272_00108 | O118: Other vegetation management costs not specified in sheet
H119: ED_VEG271_00109 | I119: ZONE (DNSP to nominate) | J119: Route line length within zone (KM) | K119: Urban and CBD | M119: ED_VEG272_00109 | N119: =I155 -> ZONE (DNSP to nominate) | O119: Tree trimming (excluding hazard trees)
H120: ED_VEG271_00110 | K120: Rural | M120: ED_VEG272_00110 | O120: Hazard tree cutting
H121: ED_VEG271_00111 | J121: Number of maintenance spans (0's) | K121: Urban and CBD | M121: ED_VEG272_00111 | O121: Ground clearance
H122: ED_VEG271_00112 | K122: Rural | M122: ED_VEG272_00112 | O122: Vegetation corridor clearance
H123: ED_VEG271_00113 | J123: Total length of maintenance spans (KM) | K123: Urban and CBD | M123: ED_VEG272_00113 | O123: Inspection
H124: ED_VEG271_00114 | K124: Rural | M124: ED_VEG272_00114 | O124: Audit
H125: ED_VEG271_00115 | J125: Length of vegetation corridors (KM) | K125: Urban and CBD | M125: ED_VEG272_00115 | O125: Contractor liaison expenditure
H126: ED_VEG271_00116 | K126: Rural | M126: ED_VEG272_00116 | O126: Tree replacement program costs
H127: ED_VEG271_00117 | J127: Average number of trees per maintenance span (0's) | K127: Urban and CBD | M127: ED_VEG272_00117 | O127: Other vegetation management costs not specified in sheet
H128: ED_VEG271_00118 | K128: Rural | M128: ED_VEG272_00118 | N128: =I167 -> ZONE (DNSP to nominate) | O128: Tree trimming (excluding hazard trees)
H129: ED_VEG271_00119 | J129: Average frequency of cutting cycle (years) | K129: Urban and CBD | M129: ED_VEG272_00119 | O129: Hazard tree cutting
H130: ED_VEG271_00120 | K130: Rural | M130: ED_VEG272_00120 | O130: Ground clearance
H131: ED_VEG271_00121 | I131: ZONE (DNSP to nominate) | J131: Route line length within zone (KM) | K131: Urban and CBD | M131: ED_VEG272_00121 | O131: Vegetation corridor clearance
H132: ED_VEG271_00122 | K132: Rural | M132: ED_VEG272_00122 | O132: Inspection
H133: ED_VEG271_00123 | J133: Number of maintenance spans (0's) | K133: Urban and CBD | M133: ED_VEG272_00123 | O133: Audit
H134: ED_VEG271_00124 | K134: Rural | M134: ED_VEG272_00124 | O134: Contractor liaison expenditure
H135: ED_VEG271_00125 | J135: Total length of maintenance spans (KM) | K135: Urban and CBD | M135: ED_VEG272_00125 | O135: Tree replacement program costs
H136: ED_VEG271_00126 | K136: Rural | M136: ED_VEG272_00126 | O136: Other vegetation management costs not specified in sheet
H137: ED_VEG271_00127 | J137: Length of vegetation corridors (KM) | K137: Urban and CBD | M137: ED_VEG272_00127 | N137: =I179 -> ZONE (DNSP to nominate) | O137: Tree trimming (excluding hazard trees)
H138: ED_VEG271_00128 | K138: Rural | M138: ED_VEG272_00128 | O138: Hazard tree cutting
H139: ED_VEG271_00129 | J139: Average number of trees per maintenance span (0's) | K139: Urban and CBD | M139: ED_VEG272_00129 | O139: Ground clearance
H140: ED_VEG271_00130 | K140: Rural | M140: ED_VEG272_00130 | O140: Vegetation corridor clearance
H141: ED_VEG271_00131 | J141: Average frequency of cutting cycle (years) | K141: Urban and CBD | M141: ED_VEG272_00131 | O141: Inspection
H142: ED_VEG271_00132 | K142: Rural | M142: ED_VEG272_00132 | O142: Audit
H143: ED_VEG271_00133 | I143: ZONE (DNSP to nominate) | J143: Route line length within zone (KM) | K143: Urban and CBD | M143: ED_VEG272_00133 | O143: Contractor liaison expenditure
H144: ED_VEG271_00134 | K144: Rural | M144: ED_VEG272_00134 | O144: Tree replacement program costs
H145: ED_VEG271_00135 | J145: Number of maintenance spans (0's) | K145: Urban and CBD | M145: ED_VEG272_00135 | O145: Other vegetation management costs not specified in sheet
H146: ED_VEG271_00136 | K146: Rural | M146: ED_VEG272_00136 | N146: =I191 -> ZONE (DNSP to nominate) | O146: Tree trimming (excluding hazard trees)
H147: ED_VEG271_00137 | J147: Total length of maintenance spans (KM) | K147: Urban and CBD | M147: ED_VEG272_00137 | O147: Hazard tree cutting
H148: ED_VEG271_00138 | K148: Rural | M148: ED_VEG272_00138 | O148: Ground clearance
H149: ED_VEG271_00139 | J149: Length of vegetation corridors (KM) | K149: Urban and CBD | M149: ED_VEG272_00139 | O149: Vegetation corridor clearance
H150: ED_VEG271_00140 | K150: Rural | M150: ED_VEG272_00140 | O150: Inspection
H151: ED_VEG271_00141 | J151: Average number of trees per maintenance span (0's) | K151: Urban and CBD | M151: ED_VEG272_00141 | O151: Audit
H152: ED_VEG271_00142 | K152: Rural | M152: ED_VEG272_00142 | O152: Contractor liaison expenditure
H153: ED_VEG271_00143 | J153: Average frequency of cutting cycle (years) | K153: Urban and CBD | M153: ED_VEG272_00143 | O153: Tree replacement program costs
H154: ED_VEG271_00144 | K154: Rural | M154: ED_VEG272_00144 | O154: Other vegetation management costs not specified in sheet
H155: ED_VEG271_00145 | I155: ZONE (DNSP to nominate) | J155: Route line length within zone (KM) | K155: Urban and CBD | M155: ED_VEG272_00145 | N155: =I203 -> ZONE (DNSP to nominate) | O155: Tree trimming (excluding hazard trees)
H156: ED_VEG271_00146 | K156: Rural | M156: ED_VEG272_00146 | O156: Hazard tree cutting
H157: ED_VEG271_00147 | J157: Number of maintenance spans (0's) | K157: Urban and CBD | M157: ED_VEG272_00147 | O157: Ground clearance
H158: ED_VEG271_00148 | K158: Rural | M158: ED_VEG272_00148 | O158: Vegetation corridor clearance
H159: ED_VEG271_00149 | J159: Total length of maintenance spans (KM) | K159: Urban and CBD | M159: ED_VEG272_00149 | O159: Inspection
H160: ED_VEG271_00150 | K160: Rural | M160: ED_VEG272_00150 | O160: Audit
H161: ED_VEG271_00151 | J161: Length of vegetation corridors (KM) | K161: Urban and CBD | M161: ED_VEG272_00151 | O161: Contractor liaison expenditure
H162: ED_VEG271_00152 | K162: Rural | M162: ED_VEG272_00152 | O162: Tree replacement program costs
H163: ED_VEG271_00153 | J163: Average number of trees per maintenance span (0's) | K163: Urban and CBD | M163: ED_VEG272_00153 | O163: Other vegetation management costs not specified in sheet
H164: ED_VEG271_00154 | K164: Rural | M164: ED_VEG272_00154 | N164: =I215 -> ZONE (DNSP to nominate) | O164: Tree trimming (excluding hazard trees)
H165: ED_VEG271_00155 | J165: Average frequency of cutting cycle (years) | K165: Urban and CBD | M165: ED_VEG272_00155 | O165: Hazard tree cutting
H166: ED_VEG271_00156 | K166: Rural | M166: ED_VEG272_00156 | O166: Ground clearance
H167: ED_VEG271_00157 | I167: ZONE (DNSP to nominate) | J167: Route line length within zone (KM) | K167: Urban and CBD | M167: ED_VEG272_00157 | O167: Vegetation corridor clearance
H168: ED_VEG271_00158 | K168: Rural | M168: ED_VEG272_00158 | O168: Inspection
H169: ED_VEG271_00159 | J169: Number of maintenance spans (0's) | K169: Urban and CBD | M169: ED_VEG272_00159 | O169: Audit
H170: ED_VEG271_00160 | K170: Rural | M170: ED_VEG272_00160 | O170: Contractor liaison expenditure
H171: ED_VEG271_00161 | J171: Total length of maintenance spans (KM) | K171: Urban and CBD | M171: ED_VEG272_00161 | O171: Tree replacement program costs
H172: ED_VEG271_00162 | K172: Rural | M172: ED_VEG272_00162 | O172: Other vegetation management costs not specified in sheet
H173: ED_VEG271_00163 | J173: Length of vegetation corridors (KM) | K173: Urban and CBD
H174: ED_VEG271_00164 | K174: Rural
H175: ED_VEG271_00165 | J175: Average number of trees per maintenance span (0's) | K175: Urban and CBD
H176: ED_VEG271_00166 | K176: Rural
H177: ED_VEG271_00167 | J177: Average frequency of cutting cycle (years) | K177: Urban and CBD
H178: ED_VEG271_00168 | K178: Rural
H179: ED_VEG271_00169 | I179: ZONE (DNSP to nominate) | J179: Route line length within zone (KM) | K179: Urban and CBD
H180: ED_VEG271_00170 | K180: Rural
H181: ED_VEG271_00171 | J181: Number of maintenance spans (0's) | K181: Urban and CBD
H182: ED_VEG271_00172 | K182: Rural
H183: ED_VEG271_00173 | J183: Total length of maintenance spans (KM) | K183: Urban and CBD
H184: ED_VEG271_00174 | K184: Rural
H185: ED_VEG271_00175 | J185: Length of vegetation corridors (KM) | K185: Urban and CBD
H186: ED_VEG271_00176 | K186: Rural
H187: ED_VEG271_00177 | J187: Average number of trees per maintenance span (0's) | K187: Urban and CBD
H188: ED_VEG271_00178 | K188: Rural
H189: ED_VEG271_00179 | J189: Average frequency of cutting cycle (years) | K189: Urban and CBD
H190: ED_VEG271_00180 | K190: Rural
H191: ED_VEG271_00181 | I191: ZONE (DNSP to nominate) | J191: Route line length within zone (KM) | K191: Urban and CBD
H192: ED_VEG271_00182 | K192: Rural
H193: ED_VEG271_00183 | J193: Number of maintenance spans (0's) | K193: Urban and CBD
H194: ED_VEG271_00184 | K194: Rural
H195: ED_VEG271_00185 | J195: Total length of maintenance spans (KM) | K195: Urban and CBD
H196: ED_VEG271_00186 | K196: Rural
H197: ED_VEG271_00187 | J197: Length of vegetation corridors (KM) | K197: Urban and CBD
H198: ED_VEG271_00188 | K198: Rural
H199: ED_VEG271_00189 | J199: Average number of trees per maintenance span (0's) | K199: Urban and CBD
H200: ED_VEG271_00190 | K200: Rural
H201: ED_VEG271_00191 | J201: Average frequency of cutting cycle (years) | K201: Urban and CBD
H202: ED_VEG271_00192 | K202: Rural
H203: ED_VEG271_00193 | I203: ZONE (DNSP to nominate) | J203: Route line length within zone (KM) | K203: Urban and CBD
... 23 more rows

Sheet 2.8 Maintenance
B1: =Title -> REGULATORY REPORTING STATEMENT
B2: =TradingName -> United Energy Distribution Pty Limited
B3: =CONCATENATE("Category Analysis RIN response ",CRY) -> Category Analysis RIN response 2013-14
B4: 2.8 MAINTENANCE
B8: TABLE 2.8.1 - DESCRIPTOR METRICS FOR ROUTINE AND NON-ROUTINE MAINTENANCE | K8: TABLE 2.8.2 - COST METRICS FOR ROUTINE AND NON-ROUTINE MAINTENANCE
B9: <<<GROUP-ROW>>>
E11: ASSET QUANTITY - AT YEAR END (000s) | F11: ASSET QUANTITY - INSPECTED/ MAINTAINED | G11: AVERAGE AGE OF ASSET GROUP | H11: INSPECTION CYCLE (YEARS) | I11: MAINTENANCE CYCLE (YEARS) | M11: ROUTINE MAINTENANCE EXPENDITURE ($000'S) | N11: NON-ROUTINE MAINTENANCE EXPENDITURE ($000'S)
B12: MAINTENANCE ACTIVITY | C12: MAINTENANCE ASSET CATEGORY | D12: UNIT OF MEASURE - ASSET QUANTITY | E12: =CRY -> 2013-14 | F12: =CRY -> 2013-14 | G12: =CRY -> 2013-14 | K12: MAINTENANCE ACTIVITY | L12: MAINTENANCE ASSET CATEGORY | M12: =CRY -> 2013-14 | N12: =CRY -> 2013-14
A13: ED_MAI281_00001 | B13: Pole top, overhead line & service line maintenance | C13: Pole tops and overhead lines | D13: Number of poles | E13: 214.384 | F13: 32011.11 | G13: 34.81219816 | H13: 5 | I13: 3 | J13: ED_MAI282_00001 | K13: Pole top, overhead line & service line maintenance | L13: Pole tops and overhead lines | M13: 1765.242399 | N13: 1710.543618
A14: ED_MAI281_00002 | C14: Service lines | D14: Number of customers | E14: 658.453 | F14: 1191 | G14: 10.40183351 | H14: 5 | I14: 0 | J14: ED_MAI282_00002 | L14: Service lines | M14: 0 | N14: 538.86806
A15: ED_MAI281_00003 | B15: Pole inspection and treatment | C15: All poles | D15: Number of poles | E15: 214.384 | F15: 56663 | G15: 34.81219816 | H15: 5 | I15: 0 | J15: ED_MAI282_00003 | K15: Pole inspection and treatment | L15: All poles | M15: 3476.06313 | N15: 0
A16: ED_MAI281_00004 | B16: Overhead asset inspection | C16: All overhead assets | D16: Line patrolled (route KM) | E16: 10.08283145 | F16: 7.943 | G16: 40.96735529 | H16: 5 | I16: 0 | J16: ED_MAI282_00004 | K16: Overhead asset inspection | L16: All overhead assets | M16: 121.47603 | N16: 0
A17: ED_MAI281_00005 | B17: Network underground cable maintenance: by voltage | C17: LV - 11 to 22 KV | D17: Length (KM) | E17: 3.509779215 | F17: 3.46246 | G17: 20.97767504 | H17: 5 | I17: 0 | J17: ED_MAI282_00005 | K17: Network underground cable maintenance: by voltage | L17: LV - 11 to 22 KV | M17: 349.566084 | N17: 649.3522
A18: ED_MAI281_00006 | C18: 33 KV and above | D18: Length (KM) | E18: 0.003701078 | F18: 7.486071035e-05 | G18: 9.184931525 | H18: 2 | I18: 0 | J18: ED_MAI282_00006 | L18: 33 KV and above | M18: 0 | N18: 0.1329169879
A19: ED_MAI281_00007 | B19: Network underground cable maintenance: by location | C19: Cbd | D19: Length (KM) | E19: 0 | H19: 0 | I19: 0 | J19: ED_MAI282_00007 | K19: Network underground cable maintenance: by location | L19: CBD | M19: 0 | N19: 0
A20: ED_MAI281_00008 | C20: Non-CBD | D20: Length (KM) | E20: 3.513480293 | F20: 3.462534861 | G20: 20.96525264 | H20: 5 | I20: 0 | J20: ED_MAI282_00008 | L20: Non-CBD | M20: 349.566084 | N20: 649.485117
A21: ED_MAI281_00009 | B21: Distribution substation equipment & property maintenance | C21: Distribution substation transformers | D21: Number of installed transformers | E21: 13.352 | F21: 1406.075139 | G21: 20.26752546 | H21: 0.5 | I21: 0 | J21: ED_MAI282_00009 | K21: Distribution substation equipment & property maintenance | L21: Distribution substation transformers | M21: 422.6227997 | N21: 734.9814224
A22: ED_MAI281_00010 | C22: Distribution substation switchgear (within-substations and stand-alone switchgear) | D22: Number of switches | E22: 89.954 | F22: 212.98 | G22: 24.60298597 | H22: 10 | I22: 0 | J22: ED_MAI282_00010 | L22: Distribution substation switchgear (within-substations and stand-alone switchgear) | M22: 264.5727941 | N22: 170.4074476
A23: ED_MAI281_00011 | C23: Distribution substation - other equipment | D23: Earth mat | E23: 22.036 | F23: 187 | G23: 19.36953168 | H23: 5 | I23: 5 | J23: ED_MAI282_00011 | L23: Distribution substation - other equipment | M23: 191.87177 | N23: 0
A24: ED_MAI281_00012 | C24: Distribution substation - property | D24: Number of distribution substation properties maintained | E24: 13.785 | F24: 6734.42 | G24: 19.64596577 | H24: 0.5 | I24: 0.5 | J24: ED_MAI282_00012 | L24: Distribution substation - property | M24: 691.9980806 | N24: 0
A25: ED_MAI281_00013 | B25: Zone substation equipment maintenance | C25: Transformers - zone substation | D25: Number of zone substation transformers | E25: 0.112 | F25: 459.6 | G25: 34.57142857 | H25: 1 | I25: 2 | J25: ED_MAI282_00013 | K25: Zone substation equipment maintenance | L25: Transformers - zone substation | M25: 923.7413356 | N25: 0
A26: ED_MAI281_00014 | C26: Transformers - distribution | D26: Number of distribution transformers within zone substations | E26: 0.033 | F26: 0 | G26: 21.6969697 | H26: 4 | I26: 0 | J26: ED_MAI282_00014 | L26: Transformers - distribution | M26: 0 | N26: 0
A27: ED_MAI281_00015 | C27: Transformers - HV | D27: Number of HV transformers | E27: 0 | H27: 0 | I27: 0 | J27: ED_MAI282_00015 | L27: Transformers - HV | M27: 0 | N27: 0
A28: ED_MAI281_00016 | C28: Zone substation - other equipment | D28: Circuit breakers, CAP Banks and CT/VTs | E28: 1.61 | F28: 620.52 | G28: 44.52187741 | H28: 1.083333333 | I28: 10 | J28: ED_MAI282_00016 | L28: Zone substation - other equipment | M28: 1103.386719 | N28: 67.1356493
A29: ED_MAI281_00017 | B29: Zone substation property maintenance | C29: All zone substation properties | D29: Number of zone substation properties maintained | E29: 0.047 | F29: 1369.85 | G29: 31.36196319 | H29: 0.04 | I29: 0.04 | J29: ED_MAI282_00017 | K29: Zone substation property maintenance | L29: All zone substation properties | M29: 1189.190797 | N29: 106.1590317
A30: ED_MAI281_00018 | B30: Public lighting maintenance | C30: Minor roads | D30: Number of public lights maintained | E30: 107.951 | F30: 8931 | G30: 12.10443627 | H30: 4 | I30: 4 | J30: ED_MAI282_00018 | K30: Public lighting maintenance | L30: Minor roads | M30: 589.55742 | N30: 897.40974
A31: ED_MAI281_00019 | C31: Major roads | D31: Number of public lights maintained | E31: 42.516 | F31: 15802 | G31: 26.94896039 | H31: 0.33 | I31: 0 | J31: ED_MAI282_00019 | L31: Major roads | M31: 95.40125 | N31: 1944.12997
A32: ED_MAI281_00020 | B32: SCADA & network control maintenance | C32: SCADA & network control maintenance | D32: Number of systems | E32: 0.112 | F32: 46.85 | G32: 10.80357143 | H32: 3 | I32: 0 | J32: ED_MAI282_00020 | K32: SCADA & network control maintenance | L32: SCADA & network control maintenance | M32: 45.8001527 | N32: 41.8281246
A33: ED_MAI281_00021 | B33: Protection systems maintenance | C33: Protection systems maintenance | D33: Number of systems | E33: 2.496 | F33: 320.59 | G33: 17.78926282 | H33: 3 | I33: 0 | J33: ED_MAI282_00021 | K33: Protection systems maintenance | L33: Protection systems maintenance | M33: 598.5639939 | N33: 2.3237847
A34: ED_MAI281_00022 | B34: Subtransmission asset maintenance - for DNSPs with dual function assets | C34: Subtransmission asset maintenance - for DNSPs with dual function assets | D34: Number of battery banks and chargers | E34: 0.286 | F34: 87.47 | G34: 16.8041958 | H34: 0.08 | I34: 0.25 | J34: ED_MAI282_00022 | K34: Subtransmission asset maintenance - for DNSPs with dual function assets | L34: Subtransmission asset maintenance - for DNSPs with dual function assets | M34: 175.593584 | N34: 2.3237847
A35: ED_MAI281_00023 | B35: Various assets | C35: includes rates, electricity, communications equip, metering | D35: Units not quoted as various UOM | E35: 0 | F35: 0 | G35: 0 | H35: 0 | I35: 0 | J35: ED_MAI282_00023 | K35: Various assets | L35: includes rates, electricity, communications equip, metering | M35: 0 | N35: 0
A36: ED_MAI281_00024 | B36: Ground clearance - access tracks | C36: Ground clearance - access tracks | D36: Units not quoted | E36: 0 | F36: 0 | G36: 0 | H36: 0 | I36: 0 | J36: ED_MAI282_00024 | K36: Ground clearance - access tracks | L36: Ground clearance - access tracks | M36: 0 | N36: 0
A37: ED_MAI281_00025 | B37: Other | C37: < DNSP to nominate > | D37: < DNSP to nominate > | E37: 0 | F37: 0 | G37: 0 | H37: 0 | I37: 0 | J37: ED_MAI282_00025 | K37: Other | L37: < DNSP to nominate > | M37: 0 | N37: 0

Sheet 2.9 Emergency Response
B1: =Title -> REGULATORY REPORTING STATEMENT
B2: =TradingName -> United Energy Distribution Pty Limited
B3: =CONCATENATE("Category Analysis RIN response ",CRY) -> Category Analysis RIN response 2013-14
B4: 2.9 EMERGENCY RESPONSE
B6: TABLE 2.9.1 - EMERGENCY RESPONSE EXPENDITURE (OPEX)
B7: <<<GROUP-ROW>>>
D9: EXPENDITURE ($000's)
D10: =CRY -> 2013-14
A11: ED_EME291_99999 | B11: (A) TOTAL EMERGENCY RESPONSE EXPENDITURE ($000'S) | C11: Total Expenditure | D11: 14294.591
A12: ED_EME291_00002 | B12: (B) MAJOR EVENTS O&M EXPENDITURE ($000'S) | C12: Storm - June 24 2014 - $88,972.08 | D12: 88.972
A13: ED_EME291_00003 | C13: Storm - Feb 16 2014 - $20,632.56 | D13: 20.632
A14: ED_EME291_00004 | C14: Storm - Jan 16 2014 - $121,983 | D14: 121.983
A15: ED_EME291_00005
A16: ED_EME291_00006
A17: ED_EME291_00007
A18: ED_EME291_00008
A19: ED_EME291_00009
A20: ED_EME291_00010
A21: ED_EME291_00011
A22: ED_EME291_00012
A23: ED_EME291_00013
A24: ED_EME291_00014
A25: ED_EME291_00015
A26: ED_EME291_00016
A27: ED_EME291_00017
A28: ED_EME291_00018
A29: ED_EME291_00019
A30: ED_EME291_00020
A31: ED_EME291_00021
A32: ED_EME291_00022
A33: ED_EME291_00023
A34: ED_EME291_00024
A35: ED_EME291_00025
A36: ED_EME291_00026
A37: ED_EME291_00027
A38: ED_EME291_00028
A39: ED_EME291_00029
A40: ED_EME291_00030
A41: ED_EME291_00031
A42: ED_EME291_00032
A43: ED_EME291_00033
A44: ED_EME291_00034
A45: ED_EME291_00035
A46: ED_EME291_00036
A47: ED_EME291_00037
A48: ED_EME291_00038
A49: ED_EME291_00039
A50: ED_EME291_00040
A51: ED_EME291_00041
A52: ED_EME291_00042
A53: ED_EME291_00043
A54: ED_EME291_00044
A55: ED_EME291_00045 | B55: (C) MAJOR EVENT DAYS O&M EXPENDITURE ($000'S) | C55: 2013-07-01
A56: ED_EME291_00046 | C56: 2013-07-02
A57: ED_EME291_00047 | C57: 2013-07-03
A58: ED_EME291_00048 | C58: 2013-07-04
A59: ED_EME291_00049 | C59: 2013-07-05
A60: ED_EME291_00050 | C60: 2013-07-06
A61: ED_EME291_00051 | C61: 2013-07-07
A62: ED_EME291_00052 | C62: 2013-07-08
A63: ED_EME291_00053 | C63: 2013-07-09
A64: ED_EME291_00054 | C64: 2013-07-10
A65: ED_EME291_00055 | C65: 2013-07-11
A66: ED_EME291_00056 | C66: 2013-07-12
A67: ED_EME291_00057 | C67: 2013-07-13
A68: ED_EME291_00058 | C68: 2013-07-14
A69: ED_EME291_00059 | C69: 2013-07-15
A70: ED_EME291_00060 | C70: 2013-07-16
A71: ED_EME291_00061 | C71: 2013-07-17
A72: ED_EME291_00062 | C72: 2013-07-18
A73: ED_EME291_00063 | C73: 2013-07-19
A74: ED_EME291_00064 | C74: 2013-07-20
A75: ED_EME291_00065 | C75: 2013-07-21
A76: ED_EME291_00066 | C76: 2013-07-22
A77: ED_EME291_00067 | C77: 2013-07-23
A78: ED_EME291_00068 | C78: 2013-07-24
A79: ED_EME291_00069 | C79: 2013-07-25
A80: ED_EME291_00070 | C80: 2013-07-26
A81: ED_EME291_00071 | C81: 2013-07-27
A82: ED_EME291_00072 | C82: 2013-07-28
A83: ED_EME291_00073 | C83: 2013-07-29
A84: ED_EME291_00074 | C84: 2013-07-30
A85: ED_EME291_00075 | C85: 2013-07-31
A86: ED_EME291_00076 | C86: 2013-08-01
A87: ED_EME291_00077 | C87: 2013-08-02
A88: ED_EME291_00078 | C88: 2013-08-03
A89: ED_EME291_00079 | C89: 2013-08-04
A90: ED_EME291_00080 | C90: 2013-08-05
A91: ED_EME291_00081 | C91: 2013-08-06
A92: ED_EME291_00082 | C92: 2013-08-07
A93: ED_EME291_00083 | C93: 2013-08-08
A94: ED_EME291_00084 | C94: 2013-08-09
A95: ED_EME291_00085 | C95: 2013-08-10
A96: ED_EME291_00086 | C96: 2013-08-11
A97: ED_EME291_00087 | C97: 2013-08-12
A98: ED_EME291_00088 | C98: 2013-08-13
A99: ED_EME291_00089 | C99: 2013-08-14
A100: ED_EME291_00090 | C100: 2013-08-15
A101: ED_EME291_00091 | C101: 2013-08-16
A102: ED_EME291_00092 | C102: 2013-08-17
A103: ED_EME291_00093 | C103: 2013-08-18
A104: ED_EME291_00094 | C104: 2013-08-19
A105: ED_EME291_00095 | C105: 2013-08-20
A106: ED_EME291_00096 | C106: 2013-08-21
A107: ED_EME291_00097 | C107: 2013-08-22
A108: ED_EME291_00098 | C108: 2013-08-23
A109: ED_EME291_00099 | C109: 2013-08-24
A110: ED_EME291_00100 | C110: 2013-08-25
A111: ED_EME291_00101 | C111: 2013-08-26
A112: ED_EME291_00102 | C112: 2013-08-27
A113: ED_EME291_00103 | C113: 2013-08-28
A114: ED_EME291_00104 | C114: 2013-08-29
A115: ED_EME291_00105 | C115: 2013-08-30
A116: ED_EME291_00106 | C116: 2013-08-31
A117: ED_EME291_00107 | C117: 2013-09-01
A118: ED_EME291_00108 | C118: 2013-09-02
A119: ED_EME291_00109 | C119: 2013-09-03
A120: ED_EME291_00110 | C120: 2013-09-04
A121: ED_EME291_00111 | C121: 2013-09-05
A122: ED_EME291_00112 | C122: 2013-09-06
A123: ED_EME291_00113 | C123: 2013-09-07
A124: ED_EME291_00114 | C124: 2013-09-08
A125: ED_EME291_00115 | C125: 2013-09-09
A126: ED_EME291_00116 | C126: 2013-09-10
A127: ED_EME291_00117 | C127: 2013-09-11
A128: ED_EME291_00118 | C128: 2013-09-12
A129: ED_EME291_00119 | C129: 2013-09-13
A130: ED_EME291_00120 | C130: 2013-09-14
A131: ED_EME291_00121 | C131: 2013-09-15
A132: ED_EME291_00122 | C132: 2013-09-16
A133: ED_EME291_00123 | C133: 2013-09-17
A134: ED_EME291_00124 | C134: 2013-09-18
A135: ED_EME291_00125 | C135: 2013-09-19
A136: ED_EME291_00126 | C136: 2013-09-20
A137: ED_EME291_00127 | C137: 2013-09-21
A138: ED_EME291_00128 | C138: 2013-09-22
A139: ED_EME291_00129 | C139: 2013-09-23
A140: ED_EME291_00130 | C140: 2013-09-24
A141: ED_EME291_00131 | C141: 2013-09-25
A142: ED_EME291_00132 | C142: 2013-09-26
A143: ED_EME291_00133 | C143: 2013-09-27
A144: ED_EME291_00134 | C144: 2013-09-28
A145: ED_EME291_00135 | C145: 2013-09-29
A146: ED_EME291_00136 | C146: 2013-09-30
A147: ED_EME291_00137 | C147: 2013-10-01
A148: ED_EME291_00138 | C148: 2013-10-02
A149: ED_EME291_00139 | C149: 2013-10-03
A150: ED_EME291_00140 | C150: 2013-10-04
A151: ED_EME291_00141 | C151: 2013-10-05
A152: ED_EME291_00142 | C152: 2013-10-06
A153: ED_EME291_00143 | C153: 2013-10-07
A154: ED_EME291_00144 | C154: 2013-10-08
A155: ED_EME291_00145 | C155: 2013-10-09
A156: ED_EME291_00146 | C156: 2013-10-10
A157: ED_EME291_00147 | C157: 2013-10-11
A158: ED_EME291_00148 | C158: 2013-10-12
A159: ED_EME291_00149 | C159: 2013-10-13
A160: ED_EME291_00150 | C160: 2013-10-14
A161: ED_EME291_00151 | C161: 2013-10-15
A162: ED_EME291_00152 | C162: 2013-10-16
A163: ED_EME291_00153 | C163: 2013-10-17
A164: ED_EME291_00154 | C164: 2013-10-18
A165: ED_EME291_00155 | C165: 2013-10-19
A166: ED_EME291_00156 | C166: 2013-10-20
A167: ED_EME291_00157 | C167: 2013-10-21
A168: ED_EME291_00158 | C168: 2013-10-22
A169: ED_EME291_00159 | C169: 2013-10-23
A170: ED_EME291_00160 | C170: 2013-10-24
A171: ED_EME291_00161 | C171: 2013-10-25
A172: ED_EME291_00162 | C172: 2013-10-26
A173: ED_EME291_00163 | C173: 2013-10-27
A174: ED_EME291_00164 | C174: 2013-10-28
A175: ED_EME291_00165 | C175: 2013-10-29
A176: ED_EME291_00166 | C176: 2013-10-30
A177: ED_EME291_00167 | C177: 2013-10-31
A178: ED_EME291_00168 | C178: 2013-11-01
A179: ED_EME291_00169 | C179: 2013-11-02
A180: ED_EME291_00170 | C180: 2013-11-03
A181: ED_EME291_00171 | C181: 2013-11-04
A182: ED_EME291_00172 | C182: 2013-11-05
A183: ED_EME291_00173 | C183: 2013-11-06
A184: ED_EME291_00174 | C184: 2013-11-07
A185: ED_EME291_00175 | C185: 2013-11-08
A186: ED_EME291_00176 | C186: 2013-11-09
A187: ED_EME291_00177 | C187: 2013-11-10
A188: ED_EME291_00178 | C188: 2013-11-11
A189: ED_EME291_00179 | C189: 2013-11-12
A190: ED_EME291_00180 | C190: 2013-11-13
A191: ED_EME291_00181 | C191: 2013-11-14
A192: ED_EME291_00182 | C192: 2013-11-15
A193: ED_EME291_00183 | C193: 2013-11-16
A194: ED_EME291_00184 | C194: 2013-11-17
A195: ED_EME291_00185 | C195: 2013-11-18
A196: ED_EME291_00186 | C196: 2013-11-19
A197: ED_EME291_00187 | C197: 2013-11-20
A198: ED_EME291_00188 | C198: 2013-11-21
A199: ED_EME291_00189 | C199: 2013-11-22
A200: ED_EME291_00190 | C200: 2013-11-23
A201: ED_EME291_00191 | C201: 2013-11-24
A202: ED_EME291_00192 | C202: 2013-11-25
... 401 more rows

Sheet 2.10 Overheads
B1: =Title -> REGULATORY REPORTING STATEMENT
B2: =TradingName -> United Energy Distribution Pty Limited
B3: =CONCATENATE("Category Analysis RIN response ",CRY) -> Category Analysis RIN response 2013-14
B4: 2.10 OVERHEADS
B8: TABLE 2.10.1 - NETWORK OVERHEADS EXPENDITURE
E10: EXPENDITURE ($000's)
A11: OVE2101 | E11: =CRY -> 2013-14
A12: ED_OVE2101_00001 | B12: NETWORK OVERHEADS | C12: Total Overhead Expenditure - Standard Control Services | D12: Expenditure categories currently reported under annual RIN
A13: ED_OVE2101_00002 | D13: Network management | E13: 1900.026286
A14: ED_OVE2101_00003 | D14: Network planning | E14: 7790.107774
A15: ED_OVE2101_00004 | D15: Network control and operational switching | E15: 4162.58163
A16: ED_OVE2101_00005 | D16: Quality and standard functions | E16: 3420.047315
A17: ED_OVE2101_00006 | D17: Project governance and related functions | E17: 2341.47655
A18: ED_OVE2101_00007 | D18: Other -- [Enter expenditure category currently reported under annual RIN] - DNSP to nominate
A19: ED_OVE2101_00008
A20: ED_OVE2101_00009
A21: ED_OVE2101_00010
A22: ED_OVE2101_00011
A23: ED_OVE2101_00012
A24: ED_OVE2101_00013
A25: ED_OVE2101_00014
A26: ED_OVE2101_00015
A27: ED_OVE2101_00016
A28: ED_OVE2101_00017
A29: ED_OVE2101_00018
A30: ED_OVE2101_00019
A31: ED_OVE2101_00020
A32: ED_OVE2101_00021
A33: ED_OVE2101_00022
A34: ED_OVE2101_00023
A35: ED_OVE2101_00024
A36: ED_OVE2101_00025
A37: ED_OVE2101_00026
A38: ED_OVE2101_00027
A39: ED_OVE2101_00028
A40: ED_OVE2101_00029 | B40: NETWORK OVERHEADS | C40: Total Overhead Expenditure - Alternative Control Services | D40: Expenditure categories currently reported under annual RIN
A41: ED_OVE2101_00030 | D41: Network management | E41: 0
A42: ED_OVE2101_00031 | D42: Network planning | E42: 0
A43: ED_OVE2101_00032 | D43: Network control and operational switching | E43: 0
A44: ED_OVE2101_00033 | D44: Quality and standard functions | E44: 0
A45: ED_OVE2101_00034 | D45: Project governance and related functions | E45: 0
A46: ED_OVE2101_00035 | D46: Other -- [expenditure category currently reported under annual RIN] - DNSP to nominate | E46: 0
A47: ED_OVE2101_00036
A48: ED_OVE2101_00037
A49: ED_OVE2101_00038
A50: ED_OVE2101_00039
A51: ED_OVE2101_00040
A52: ED_OVE2101_00041
A53: ED_OVE2101_00042
A54: ED_OVE2101_00043
A55: ED_OVE2101_00044
A56: ED_OVE2101_00045
A57: ED_OVE2101_00046
A58: ED_OVE2101_00047
A59: ED_OVE2101_00048
A60: ED_OVE2101_00049
A61: ED_OVE2101_00050
A62: ED_OVE2101_00051
A63: ED_OVE2101_00052
A64: ED_OVE2101_00053
A65: ED_OVE2101_00054
A66: ED_OVE2101_00055
A67: ED_OVE2101_00056
A68: ED_OVE2101_00057 | B68: NETWORK OVERHEADS | C68: Total Overhead Expenditure - Negotiated Services | D68: Total | E68: 73.652625
A69: ED_OVE2101_00058 | B69: NETWORK OVERHEADS | C69: Total Overhead Expenditure - Unregulated Services | D69: Total | E69: 0
A70: ED_OVE2101_00059 | B70: NETWORK OVERHEADS | C70: Capitalised Overheads - Standard Control Services | D70: Expenditure categories currently reported under annual RIN
A71: ED_OVE2101_00060 | D71: Network management | E71: 0
A72: ED_OVE2101_00061 | D72: Network planning | E72: 0
A73: ED_OVE2101_00062 | D73: Network control and operational switching | E73: 0
A74: ED_OVE2101_00063 | D74: Quality and standard functions | E74: 0
A75: ED_OVE2101_00064 | D75: Project governance and related functions | E75: 0
A76: ED_OVE2101_00065 | D76: Other -- [expenditure category currently reported under annual RIN] - DNSP to nominate | E76: 0
A77: ED_OVE2101_00066
A78: ED_OVE2101_00067
A79: ED_OVE2101_00068
A80: ED_OVE2101_00069
A81: ED_OVE2101_00070
A82: ED_OVE2101_00071
A83: ED_OVE2101_00072
A84: ED_OVE2101_00073
A85: ED_OVE2101_00074
A86: ED_OVE2101_00075
A87: ED_OVE2101_00076
A88: ED_OVE2101_00077
A89: ED_OVE2101_00078
A90: ED_OVE2101_00079
A91: ED_OVE2101_00080
A92: ED_OVE2101_00081
A93: ED_OVE2101_00082
A94: ED_OVE2101_00083
A95: ED_OVE2101_00084
A96: ED_OVE2101_00085
A97: ED_OVE2101_00086
B105: TABLE 2.10.2 - CORPORATE OVERHEADS EXPENDITURE
E107: EXPENDITURE ($000's)
A108: OVE2102 | E108: =CRY -> 2013-14
A109: ED_OVE2102_00002 | B109: CORPORATE OVERHEADS | C109: Total Overhead Expenditure - Standard Control Services | D109: Expenditure categories currently reported under annual RIN
A110: ED_OVE2102_00003 | D110: OFFICE OF THE CEO | E110: 1163.35749
A111: ED_OVE2102_00004 | D111: LEGAL AND SECRETARIAT | E111: 5124.53844
A112: ED_OVE2102_00005 | D112: HUMAN RESOURCES | E112: 1649.37169
A113: ED_OVE2102_00006 | D113: FINANCE | E113: 8695.796431
A114: ED_OVE2102_00007 | D114: REGULATORY | E114: 3145.73622
A115: ED_OVE2102_00008 | D115: INSURANCE | E115: 0
A116: ED_OVE2102_00009 | D116: SELF-INSURANCE | E116: 0
A117: ED_OVE2102_00010 | D117: LICENCE FEES | E117: -864.99979
A118: ED_OVE2102_00011 | D118: DEBT RAISING COSTS / DEBT MANAGEMENT | E118: 0
A119: ED_OVE2102_00012 | D119: EQUITY RAISING COSTS | E119: 0
A120: ED_OVE2102_00013 | D120: Other | E120: 8895.401699
A121: ED_OVE2102_00014 | D121: Billing & Revenue Collection | E121: 561.7992743
A122: ED_OVE2102_00015 | D122: Advertising/Marketing | E122: 172.0485163
A123: ED_OVE2102_00016 | D123: Customer Service | E123: 7773.171074
A124: ED_OVE2102_00017
A125: ED_OVE2102_00018
A126: ED_OVE2102_00019
A127: ED_OVE2102_00020
A128: ED_OVE2102_00021
A129: ED_OVE2102_00022
A130: ED_OVE2102_00023 | B130: CORPORATE OVERHEADS | C130: Total Overhead Expenditure - Alternative Control Services | D130: Expenditure categories currently reported under annual RIN
A131: ED_OVE2102_00024 | D131: OFFICE OF THE CEO | E131: 0
A132: ED_OVE2102_00025 | D132: LEGAL AND SECRETARIAT | E132: 0
A133: ED_OVE2102_00026 | D133: HUMAN RESOURCES | E133: 0
A134: ED_OVE2102_00027 | D134: FINANCE | E134: 159.65217
A135: ED_OVE2102_00028 | D135: REGULATORY | E135: 0
A136: ED_OVE2102_00029 | D136: INSURANCE | E136: 0
A137: ED_OVE2102_00030 | D137: SELF-INSURANCE | E137: 0
A138: ED_OVE2102_00031 | D138: LICENCE FEES | E138: 0
A139: ED_OVE2102_00032 | D139: DEBT RAISING COSTS / DEBT MANAGEMENT | E139: 0
A140: ED_OVE2102_00033 | D140: EQUITY RAISING COSTS | E140: 0
A141: ED_OVE2102_00034 | D141: Other | E141: 0
A142: ED_OVE2102_00035 | D142: Billing & Revenue Collection | E142: 40.11734
A143: ED_OVE2102_00036 | D143: Advertising/Marketing | E143: 0
A144: ED_OVE2102_00037 | D144: Customer Service | E144: 3538.551334
A145: ED_OVE2102_00038
A146: ED_OVE2102_00039
A147: ED_OVE2102_00040
A148: ED_OVE2102_00041
A149: ED_OVE2102_00042
A150: ED_OVE2102_00043
A151: ED_OVE2102_00044 | B151: CORPORATE OVERHEADS | C151: Total Overhead Expenditure - Negotiated Services | D151: Total | E151: 127.730875
A152: ED_OVE2102_00045 | B152: CORPORATE OVERHEADS | C152: Total Overhead Expenditure - Unregulated Services | D152: Total | E152: 368.05115
A153: ED_OVE2102_00046 | B153: CORPORATE OVERHEADS | C153: Capitalised Overheads - Standard Control Services | D153: Expenditure categories currently reported under annual RIN
A154: ED_OVE2102_00047 | D154: [expenditure category currently reported under annual RIN] - DNSP to nominate | E154: 0
A155: ED_OVE2102_00048
A156: ED_OVE2102_00049
A157: ED_OVE2102_00050
A158: ED_OVE2102_00051
A159: ED_OVE2102_00052
A160: ED_OVE2102_00053
A161: ED_OVE2102_00054
A162: ED_OVE2102_00055
A163: ED_OVE2102_00056
A164: ED_OVE2102_00057
A165: ED_OVE2102_00058
A166: ED_OVE2102_00059
A167: ED_OVE2102_00060
A168: ED_OVE2102_00061
A169: ED_OVE2102_00062
A170: ED_OVE2102_00063
A171: ED_OVE2102_00064
A172: ED_OVE2102_00065
A173: ED_OVE2102_00066

Sheet 2.11 Labour
B1: =Title -> REGULATORY REPORTING STATEMENT
B2: =TradingName -> United Energy Distribution Pty Limited
B3: =CONCATENATE("Category Analysis RIN response ",CRY) -> Category Analysis RIN response 2013-14
B4: 2.11 LABOUR
B6: TABLE 2.11.1 - COST METRICS PER ANNUM | J6: TABLE 2.11.2 - EXTRA DESCRIPTOR METRICS FOR CURRENT YEAR
B7: <<<GROUP-ROW>>>
E10: ASL (0'S) | F10: TOTAL LABOUR EXPENDITURE ($000'S) | G10: AVERAGE PRODUCTIVE WORK HOURS PER ASL (0'S) | H10: STAND-DOWN OCCURENCES PER ASL (0'S) | M10: AVERAGE PRODUCTIVE WORK HOURS ORDINARY TIME (0's) | O10: AVERAGE PRODUCTIVE WORK HOURS OVERTIME (0's)
M11: PER ASL | N11: HOURLY RATE PER ASL | O11: PER ASL | P11: HOURLY RATE PER ASL
E12: =CRY -> 2013-14 | F12: =CRY -> 2013-14 | G12: =CRY -> 2013-14 | H12: =CRY -> 2013-14 | M12: =CRY -> 2013-14 | N12: =CRY -> 2013-14 | O12: =CRY -> 2013-14 | P12: =CRY -> 2013-14
A13: ED_LAB2111_00001 | B13: CORPORATE OVERHEADS INTERNAL LABOUR COSTS | C13: LABOUR CLASSIFICATION LEVEL | D13: Executive manager | I13: ED_LAB2112_00001 | J13: CORPORATE OVERHEADS INTERNAL LABOUR COSTS | K13: LABOUR CLASSIFICATION LEVEL | L13: Executive manager
A14: ED_LAB2111_00002 | D14: Employee (optional) | E14: 4.3 | F14: 1773.540035 | G14: 1976 | I14: ED_LAB2112_00002 | L14: Employee (optional) | M14: 1976 | N14: 208.73
A15: ED_LAB2111_00003 | D15: Labour hire (optional) | I15: ED_LAB2112_00003 | L15: Labour hire (optional)
A16: ED_LAB2111_00004 | D16: Senior manager | I16: ED_LAB2112_00004 | L16: Senior manager
A17: ED_LAB2111_00005 | D17: Employee (optional) | E17: 14.15 | F17: 3252.569 | G17: 1782 | I17: ED_LAB2112_00005 | L17: Employee (optional) | M17: 1782 | N17: 128.99
A18: ED_LAB2111_00006 | D18: Labour hire (optional) | I18: ED_LAB2112_00006 | L18: Labour hire (optional)
A19: ED_LAB2111_00007 | D19: Manager | I19: ED_LAB2112_00007 | L19: Manager
A20: ED_LAB2111_00008 | D20: Employee (optional) | E20: 16.39 | F20: 2428.370498 | G20: 1321 | I20: ED_LAB2112_00008 | L20: Employee (optional) | M20: 1321 | N20: 112.13
A21: ED_LAB2111_00009 | D21: Labour hire (optional) | I21: ED_LAB2112_00009 | L21: Labour hire (optional)
A22: ED_LAB2111_00010 | D22: Professional | I22: ED_LAB2112_00010 | L22: Professional
A23: ED_LAB2111_00011 | D23: Employee (optional) | E23: 120.33 | F23: 12068.57843 | G23: 1542 | I23: ED_LAB2112_00011 | L23: Employee (optional) | M23: 1542 | N23: 65.06
A24: ED_LAB2111_00012 | D24: Labour hire (optional) | I24: ED_LAB2112_00012 | L24: Labour hire (optional)
A25: ED_LAB2111_00013 | D25: Semi professional | I25: ED_LAB2112_00013 | L25: Semi professional
A26: ED_LAB2111_00014 | D26: Employee (optional) | I26: ED_LAB2112_00014 | L26: Employee (optional)
A27: ED_LAB2111_00015 | D27: Labour hire (optional) | I27: ED_LAB2112_00015 | L27: Labour hire (optional)
A28: ED_LAB2111_00016 | D28: Support staff | I28: ED_LAB2112_00016 | L28: Support staff
A29: ED_LAB2111_00017 | D29: Employee (optional) | E29: 9.44 | F29: 577.269188 | G29: 1572 | I29: ED_LAB2112_00017 | L29: Employee (optional) | M29: 1572 | N29: 38.9
A30: ED_LAB2111_00018 | D30: Labour hire (optional) | I30: ED_LAB2112_00018 | L30: Labour hire (optional)
A31: ED_LAB2111_00019 | D31: Intern, junior staff, apprentice | I31: ED_LAB2112_00019 | L31: Intern, junior staff, apprentice
A32: ED_LAB2111_00020 | D32: Employee (optional) | I32: ED_LAB2112_00020 | L32: Employee (optional)
A33: ED_LAB2111_00021 | D33: Labour hire (optional) | I33: ED_LAB2112_00021 | L33: Labour hire (optional)
A34: ED_LAB2111_00022 | B34: NETWORK OVERHEADS INTERNAL LABOUR COSTS | C34: LABOUR CLASSIFICATION LEVEL | D34: Executive manager | I34: ED_LAB2112_00022 | J34: NETWORK OVERHEADS INTERNAL LABOUR COSTS | K34: LABOUR CLASSIFICATION LEVEL | L34: Executive manager
A35: ED_LAB2111_00023 | D35: Employee (optional) | E35: 1.75 | F35: 476.505 | G35: 1584 | I35: ED_LAB2112_00023 | L35: Employee (optional) | M35: 1584 | N35: 171.95
A36: ED_LAB2111_00024 | D36: Labour hire (optional) | I36: ED_LAB2112_00024 | L36: Labour hire (optional)
A37: ED_LAB2111_00025 | D37: Senior manager | I37: ED_LAB2112_00025 | L37: Senior manager
A38: ED_LAB2111_00026 | D38: Employee (optional) | E38: 2.74 | F38: 735.849 | G38: 1976 | I38: ED_LAB2112_00026 | L38: Employee (optional) | M38: 1976 | N38: 135.91
A39: ED_LAB2111_00027 | D39: Labour hire (optional) | I39: ED_LAB2112_00027 | L39: Labour hire (optional)
A40: ED_LAB2111_00028 | D40: Manager | I40: ED_LAB2112_00028 | L40: Manager
A41: ED_LAB2111_00029 | D41: Employee (optional) | E41: 16.8 | F41: 3270.280299 | G41: 1571 | I41: ED_LAB2112_00029 | L41: Employee (optional) | M41: 1571 | N41: 123.94
A42: ED_LAB2111_00030 | D42: Labour hire (optional) | I42: ED_LAB2112_00030 | L42: Labour hire (optional)
A43: ED_LAB2111_00031 | D43: Professional | I43: ED_LAB2112_00031 | L43: Professional
A44: ED_LAB2111_00032 | D44: Employee (optional) | E44: 91.7 | F44: 9455.651489 | G44: 1485 | I44: ED_LAB2112_00032 | L44: Employee (optional) | M44: 1485 | N44: 69.42
A45: ED_LAB2111_00033 | D45: Labour hire (optional) | I45: ED_LAB2112_00033 | L45: Labour hire (optional)
A46: ED_LAB2111_00034 | D46: Semi professional | I46: ED_LAB2112_00034 | L46: Semi professional
A47: ED_LAB2111_00035 | D47: Employee (optional) | I47: ED_LAB2112_00035 | L47: Employee (optional)
A48: ED_LAB2111_00036 | D48: Labour hire (optional) | I48: ED_LAB2112_00036 | L48: Labour hire (optional)
A49: ED_LAB2111_00037 | D49: Support staff | I49: ED_LAB2112_00037 | L49: Support staff
A50: ED_LAB2111_00038 | D50: Employee (optional) | E50: 2.75 | F50: 191.389445 | G50: 1976 | I50: ED_LAB2112_00038 | L50: Employee (optional) | M50: 1976 | N50: 35.22
A51: ED_LAB2111_00039 | D51: Labour hire (optional) | I51: ED_LAB2112_00039 | L51: Labour hire (optional)
A52: ED_LAB2111_00040 | D52: Intern, junior staff, apprentice | I52: ED_LAB2112_00040 | L52: Intern, junior staff, apprentice
A53: ED_LAB2111_00041 | D53: Employee (optional) | I53: ED_LAB2112_00041 | L53: Employee (optional)
A54: ED_LAB2111_00042 | D54: Labour hire (optional) | I54: ED_LAB2112_00042 | L54: Labour hire (optional)
A55: ED_LAB2111_00043 | B55: TOTAL DIRECT NETWORK LABOUR INTERNAL LABOUR COSTS | C55: LABOUR CLASSIFICATION LEVEL | D55: Skilled electrical worker | I55: ED_LAB2112_00043 | J55: TOTAL DIRECT NETWORK LABOUR INTERNAL LABOUR COSTS | K55: LABOUR CLASSIFICATION LEVEL | L55: Skilled electrical worker
A56: ED_LAB2111_00044 | D56: Employee (optional) | I56: ED_LAB2112_00044 | L56: Employee (optional)
A57: ED_LAB2111_00045 | D57: Labour hire (optional) | I57: ED_LAB2112_00045 | L57: Labour hire (optional)
A58: ED_LAB2111_00046 | D58: Skilled non electical worker | I58: ED_LAB2112_00046 | L58: Skilled non electical worker
A59: ED_LAB2111_00047 | D59: Employee (optional) | I59: ED_LAB2112_00047 | L59: Employee (optional)
A60: ED_LAB2111_00048 | D60: Labour hire (optional) | I60: ED_LAB2112_00048 | L60: Labour hire (optional)
A61: ED_LAB2111_00049 | D61: Apprentice | I61: ED_LAB2112_00049 | L61: Apprentice
A62: ED_LAB2111_00050 | D62: Employee (optional) | I62: ED_LAB2112_00050 | L62: Employee (optional)
A63: ED_LAB2111_00051 | D63: Labour hire (optional) | I63: ED_LAB2112_00051 | L63: Labour hire (optional)
A64: ED_LAB2111_00052 | D64: Unskilled worker | I64: ED_LAB2112_00052 | L64: Unskilled worker
A65: ED_LAB2111_00053 | D65: Employee (optional) | I65: ED_LAB2112_00053 | L65: Employee (optional)
A66: ED_LAB2111_00054 | D66: Labour hire (optional) | I66: ED_LAB2112_00054 | L66: Labour hire (optional)

Sheet 2.12 Input tables
B1: =Title -> REGULATORY REPORTING STATEMENT
B2: =TradingName -> United Energy Distribution Pty Limited
B3: =CONCATENATE("Category Analysis RIN response ",CRY) -> Category Analysis RIN response 2013-14
B4: 2.12 INPUT TABLES
E5: 1
M7: DIRECT MATERIAL EXPENDITURE | N7: DIRECT LABOUR EXPENDITURE | O7: CONTRACT EXPENDITURE | P7: OTHER EXPENDITURE | Q7: RELATED PARTY CONTRACT EXPENDITURE | R7: RELATED PARTY CONTRACT MARGIN EXPENDITURE
E8: DNSP NAME | F8: SERVICE | G8: SERVICE SUBCATEGORY | H8: DATA CATEGORY | I8: DATA SUBCATEGORY | J8: MEASUREMENT | K8: DENOMINATION | M8: =CRY -> 2013-14 | N8: 2013-14 | O8: 2013-14 | P8: 2013-14 | Q8: 2013-14 | R8: 2013-14
A9: ED_INP212_00001 | B9: VEGETATION MANAGEMENT | C9: Zone - North | E9: DNSP NAME | F9: INPUT COSTS | G9: VEGETATION MANAGEMENT | H9: DIRECT MATERIAL COST | I9: =$C$9 -> Zone - North | J9: EXPENDITURE | K9: $000'S | O9: =5547284.21/1000 -> 5547.28421
A10: ED_INP212_00002 | C10: Zone - South | E10: DNSP NAME | F10: INPUT COSTS | G10: VEGETATION MANAGEMENT | H10: DIRECT MATERIAL COST | I10: =$C$10 -> Zone - South | J10: EXPENDITURE | K10: $000'S | M10: 1.058 | N10: 54.969 | O10: 5039.123 | P10: 1040.657
A11: ED_INP212_00003 | C11: Zone - DNSP to nominate | E11: DNSP NAME | F11: INPUT COSTS | G11: VEGETATION MANAGEMENT | H11: DIRECT MATERIAL COST | I11: =$C$11 -> Zone - DNSP to nominate | J11: EXPENDITURE | K11: $000'S
A12: ED_INP212_00004 | C12: Zone - DNSP to nominate | E12: DNSP NAME | F12: INPUT COSTS | G12: VEGETATION MANAGEMENT | H12: DIRECT MATERIAL COST | I12: =$C$12 -> Zone - DNSP to nominate | J12: EXPENDITURE | K12: $000'S
A13: ED_INP212_00005 | C13: Zone - DNSP to nominate | E13: DNSP NAME | F13: INPUT COSTS | G13: VEGETATION MANAGEMENT | H13: DIRECT MATERIAL COST | I13: =$C$13 -> Zone - DNSP to nominate | J13: EXPENDITURE | K13: $000'S
A14: ED_INP212_00006 | C14: Zone - DNSP to nominate | E14: DNSP NAME | F14: INPUT COSTS | G14: VEGETATION MANAGEMENT | H14: DIRECT MATERIAL COST | I14: =$C$14 -> Zone - DNSP to nominate | J14: EXPENDITURE | K14: $000'S
A15: ED_INP212_00007 | C15: Zone - DNSP to nominate | E15: DNSP NAME | F15: INPUT COSTS | G15: VEGETATION MANAGEMENT | H15: DIRECT MATERIAL COST | I15: =$C$15 -> Zone - DNSP to nominate | J15: EXPENDITURE | K15: $000'S
A16: ED_INP212_00008 | C16: Zone - DNSP to nominate | E16: DNSP NAME | F16: INPUT COSTS | G16: VEGETATION MANAGEMENT | H16: DIRECT MATERIAL COST | I16: =$C$16 -> Zone - DNSP to nominate | J16: EXPENDITURE | K16: $000'S
A17: ED_INP212_00009 | C17: Zone - DNSP to nominate | E17: DNSP NAME | F17: INPUT COSTS | G17: VEGETATION MANAGEMENT | H17: DIRECT MATERIAL COST | I17: =$C$17 -> Zone - DNSP to nominate | J17: EXPENDITURE | K17: $000'S
A18: ED_INP212_00010 | C18: Zone - DNSP to nominate | E18: DNSP NAME | F18: INPUT COSTS | G18: VEGETATION MANAGEMENT | H18: DIRECT MATERIAL COST | I18: =$C$18 -> Zone - DNSP to nominate | J18: EXPENDITURE | K18: $000'S
A19: ED_INP212_00011 | C19: Zone - DNSP to nominate | E19: DNSP NAME | F19: INPUT COSTS | G19: VEGETATION MANAGEMENT | H19: DIRECT MATERIAL COST | I19: =$C$19 -> Zone - DNSP to nominate | J19: EXPENDITURE | K19: $000'S
A20: ED_INP212_00012 | C20: Zone - DNSP to nominate | E20: DNSP NAME | F20: INPUT COSTS | G20: VEGETATION MANAGEMENT | H20: DIRECT MATERIAL COST | I20: =$C$20 -> Zone - DNSP to nominate | J20: EXPENDITURE | K20: $000'S
A21: ED_INP212_00013 | C21: Zone - DNSP to nominate | E21: DNSP NAME | F21: INPUT COSTS | G21: VEGETATION MANAGEMENT | H21: DIRECT MATERIAL COST | I21: =$C$21 -> Zone - DNSP to nominate | J21: EXPENDITURE | K21: $000'S
A22: ED_INP212_00014 | C22: Zone - DNSP to nominate | E22: DNSP NAME | F22: INPUT COSTS | G22: VEGETATION MANAGEMENT | H22: DIRECT MATERIAL COST | I22: =$C$22 -> Zone - DNSP to nominate | J22: EXPENDITURE | K22: $000'S
A23: ED_INP212_00015 | C23: Zone - DNSP to nominate | E23: DNSP NAME | F23: INPUT COSTS | G23: VEGETATION MANAGEMENT | H23: DIRECT MATERIAL COST | I23: =$C$23 -> Zone - DNSP to nominate | J23: EXPENDITURE | K23: $000'S
A24: ED_INP212_00016 | C24: Zone - DNSP to nominate | E24: DNSP NAME | F24: INPUT COSTS | G24: VEGETATION MANAGEMENT | H24: DIRECT MATERIAL COST | I24: =$C$24 -> Zone - DNSP to nominate | J24: EXPENDITURE | K24: $000'S
A25: ED_INP212_00017 | C25: Zone - DNSP to nominate | E25: DNSP NAME | F25: INPUT COSTS | G25: VEGETATION MANAGEMENT | H25: DIRECT MATERIAL COST | I25: =$C$25 -> Zone - DNSP to nominate | J25: EXPENDITURE | K25: $000'S
A26: ED_INP212_00018 | C26: Zone - DNSP to nominate | E26: DNSP NAME | F26: INPUT COSTS | G26: VEGETATION MANAGEMENT | H26: DIRECT MATERIAL COST | I26: =$C$26 -> Zone - DNSP to nominate | J26: EXPENDITURE | K26: $000'S
A27: ED_INP212_00019 | B27: ROUTINE MAINTENANCE | C27: Pole top, overhead line & service line maintenance | E27: DNSP NAME | F27: INPUT COSTS | G27: ROUTINE MAINTENANCE | H27: DIRECT MATERIAL COST | I27: =$C$27 -> Pole top, overhead line & service line maintenance | J27: EXPENDITURE | K27: $000'S | M27: 0 | N27: 0 | O27: 1765.242399 | P27: 0
A28: ED_INP212_00020 | C28: Pole inspection and treatment | E28: DNSP NAME | F28: INPUT COSTS | G28: ROUTINE MAINTENANCE | H28: DIRECT MATERIAL COST | I28: =$C$28 -> Pole inspection and treatment | J28: EXPENDITURE | K28: $000'S | M28: 0 | N28: 0 | O28: 3476.06313 | P28: 0
A29: ED_INP212_00021 | C29: Overhead asset inspection | E29: DNSP NAME | F29: INPUT COSTS | G29: ROUTINE MAINTENANCE | H29: DIRECT MATERIAL COST | I29: =$C$29 -> Overhead asset inspection | J29: EXPENDITURE | K29: $000'S | M29: 0 | N29: 0 | O29: 121.47603 | P29: 0
A30: ED_INP212_00022 | C30: Network underground cable maintenance | E30: DNSP NAME | F30: INPUT COSTS | G30: ROUTINE MAINTENANCE | H30: DIRECT MATERIAL COST | I30: =$C$30 -> Network underground cable maintenance | J30: EXPENDITURE | K30: $000'S | M30: 0 | N30: 0 | O30: 349.566084 | P30: 0
A31: ED_INP212_00023 | C31: Distribution substation equipment & property maintenance | E31: DNSP NAME | F31: INPUT COSTS | G31: ROUTINE MAINTENANCE | H31: DIRECT MATERIAL COST | I31: =$C$31 -> Distribution substation equipment & property maintenance | J31: EXPENDITURE | K31: $000'S | M31: 0 | N31: 0 | O31: 1571.065444 | P31: 0
A32: ED_INP212_00024 | C32: Zone substation equipment maintenance | E32: DNSP NAME | F32: INPUT COSTS | G32: ROUTINE MAINTENANCE | H32: DIRECT MATERIAL COST | I32: =$C$32 -> Zone substation equipment maintenance | J32: EXPENDITURE | K32: $000'S | M32: 0 | N32: 0 | O32: 2027.128055 | P32: 0
A33: ED_INP212_00025 | C33: Zone substation property maintenance | E33: DNSP NAME | F33: INPUT COSTS | G33: ROUTINE MAINTENANCE | H33: DIRECT MATERIAL COST | I33: =$C$33 -> Zone substation property maintenance | J33: EXPENDITURE | K33: $000'S | M33: 0 | N33: 0 | O33: 1189.190798 | P33: 0
A34: ED_INP212_00026 | C34: Public lighting maintenance | E34: DNSP NAME | F34: INPUT COSTS | G34: ROUTINE MAINTENANCE | H34: DIRECT MATERIAL COST | I34: =$C$34 -> Public lighting maintenance | J34: EXPENDITURE | K34: $000'S | M34: 0 | N34: 0 | O34: 684.95867 | P34: 0
A35: ED_INP212_00027 | C35: Scada & network control maintenance | E35: DNSP NAME | F35: INPUT COSTS | G35: ROUTINE MAINTENANCE | H35: DIRECT MATERIAL COST | I35: =$C$35 -> Scada & network control maintenance | J35: EXPENDITURE | K35: $000'S | M35: 0 | N35: 0 | O35: 45.8001527 | P35: 0
A36: ED_INP212_00028 | C36: Protection systems maintenance | E36: DNSP NAME | F36: INPUT COSTS | G36: ROUTINE MAINTENANCE | H36: DIRECT MATERIAL COST | I36: =$C$36 -> Protection systems maintenance | J36: EXPENDITURE | K36: $000'S | M36: 0 | N36: 0 | O36: 774.1575779 | P36: 0
A37: ED_INP212_00029 | C37: Subtransmission asset maintenance - for dnsps with dual function assets | E37: DNSP NAME | F37: INPUT COSTS | G37: ROUTINE MAINTENANCE | H37: DIRECT MATERIAL COST | I37: =$C$37 -> Subtransmission asset maintenance - for dnsps with dual function assets | J37: EXPENDITURE | K37: $000'S | M37: 0 | N37: 0 | O37: 0 | P37: 0
A38: ED_INP212_00031 | C38: Other | E38: DNSP NAME | F38: INPUT COSTS | G38: ROUTINE MAINTENANCE | H38: DIRECT MATERIAL COST | I38: =$C$38 -> Other | J38: EXPENDITURE | K38: $000'S | M38: 0 | N38: 0 | O38: 0 | P38: 0
A39: ED_INP212_00032 | B39: NON-ROUTINE MAINTENANCE | C39: Pole top, overhead line & service line maintenance | E39: DNSP NAME | F39: INPUT COSTS | G39: NON-ROUTINE MAINTENANCE | H39: DIRECT MATERIAL COST | I39: =$C$39 -> Pole top, overhead line & service line maintenance | J39: EXPENDITURE | K39: $000'S | M39: 0 | N39: 0 | O39: 2249.411678 | P39: 0
A40: ED_INP212_00033 | C40: Pole inspection and treatment | E40: DNSP NAME | F40: INPUT COSTS | G40: NON-ROUTINE MAINTENANCE | H40: DIRECT MATERIAL COST | I40: =$C$40 -> Pole inspection and treatment | J40: EXPENDITURE | K40: $000'S | M40: 0 | N40: 0 | O40: 0 | P40: 0
A41: ED_INP212_00034 | C41: Overhead asset inspection | E41: DNSP NAME | F41: INPUT COSTS | G41: NON-ROUTINE MAINTENANCE | H41: DIRECT MATERIAL COST | I41: =$C$41 -> Overhead asset inspection | J41: EXPENDITURE | K41: $000'S | M41: 0 | N41: 0 | O41: 0 | P41: 0
A42: ED_INP212_00035 | C42: Network underground cable maintenance | E42: DNSP NAME | F42: INPUT COSTS | G42: NON-ROUTINE MAINTENANCE | H42: DIRECT MATERIAL COST | I42: =$C$42 -> Network underground cable maintenance | J42: EXPENDITURE | K42: $000'S | M42: 0 | N42: 0 | O42: 649.485117 | P42: 0
A43: ED_INP212_00036 | C43: Distribution substation equipment & property maintenance | E43: DNSP NAME | F43: INPUT COSTS | G43: NON-ROUTINE MAINTENANCE | H43: DIRECT MATERIAL COST | I43: =$C$43 -> Distribution substation equipment & property maintenance | J43: EXPENDITURE | K43: $000'S | M43: 0 | N43: 0 | O43: 905.38887 | P43: 0
A44: ED_INP212_00037 | C44: Zone substation equipment maintenance | E44: DNSP NAME | F44: INPUT COSTS | G44: NON-ROUTINE MAINTENANCE | H44: DIRECT MATERIAL COST | I44: =$C$44 -> Zone substation equipment maintenance | J44: EXPENDITURE | K44: $000'S | M44: 0 | N44: 0 | O44: 67.1356493 | P44: 0
A45: ED_INP212_00038 | C45: Zone substation property maintenance | E45: DNSP NAME | F45: INPUT COSTS | G45: NON-ROUTINE MAINTENANCE | H45: DIRECT MATERIAL COST | I45: =$C$45 -> Zone substation property maintenance | J45: EXPENDITURE | K45: $000'S | M45: 0 | N45: 0 | O45: 106.1590317 | P45: 0
A46: ED_INP212_00039 | C46: Public lighting maintenance | E46: DNSP NAME | F46: INPUT COSTS | G46: NON-ROUTINE MAINTENANCE | H46: DIRECT MATERIAL COST | I46: =$C$46 -> Public lighting maintenance | J46: EXPENDITURE | K46: $000'S | M46: 0 | N46: 0 | O46: 2841.53971 | P46: 0
A47: ED_INP212_00040 | C47: SCADA & network control maintenance | E47: DNSP NAME | F47: INPUT COSTS | G47: NON-ROUTINE MAINTENANCE | H47: DIRECT MATERIAL COST | I47: =$C$47 -> SCADA & network control maintenance | J47: EXPENDITURE | K47: $000'S | M47: 0 | N47: 0 | O47: 41.8281246 | P47: 0
A48: ED_INP212_00041 | C48: Protection systems maintenance | E48: DNSP NAME | F48: INPUT COSTS | G48: NON-ROUTINE MAINTENANCE | H48: DIRECT MATERIAL COST | I48: =$C$48 -> Protection systems maintenance | J48: EXPENDITURE | K48: $000'S | M48: 0 | N48: 0 | O48: 4.6475694 | P48: 0
A49: ED_INP212_00042 | C49: Subtransmission asset maintenance - for DNSP with dual function assets | E49: DNSP NAME | F49: INPUT COSTS | G49: NON-ROUTINE MAINTENANCE | H49: DIRECT MATERIAL COST | I49: =$C$49 -> Subtransmission asset maintenance - for DNSP with dual function assets | J49: EXPENDITURE | K49: $000'S | M49: 0 | N49: 0 | O49: 0 | P49: 0
A50: ED_INP212_00044 | C50: Other | E50: DNSP NAME | F50: INPUT COSTS | G50: NON-ROUTINE MAINTENANCE | H50: DIRECT MATERIAL COST | I50: =$C$50 -> Other | J50: EXPENDITURE | K50: $000'S | M50: 0 | N50: 0 | O50: 0 | P50: 0
A51: ED_INP212_00045 | B51: OVERHEADS | C51: Network overheads | E51: DNSP NAME | F51: INPUT COSTS | G51: OVERHEADS | H51: DIRECT MATERIAL COST | I51: =$C$51 -> Network overheads | J51: EXPENDITURE | K51: $000'S | N51: 14129.67523 | P51: 5558.216947
A52: ED_INP212_00046 | C52: Corporate overheads | E52: DNSP NAME | F52: INPUT COSTS | G52: OVERHEADS | H52: DIRECT MATERIAL COST | I52: =$C$52 -> Corporate overheads | J52: EXPENDITURE | K52: $000'S | N52: 20100.32715 | P52: 20449.99676
A53: ED_INP212_00047 | B53: AUGMENTATION | C53: Subtransmission substations, switching stations, zone substations | E53: DNSP NAME | F53: INPUT COSTS | G53: AUGMENTATION | H53: DIRECT MATERIAL COST | I53: =$C$53 -> Subtransmission substations, switching stations, zone substations | J53: EXPENDITURE | K53: $000'S | M53: 1563.54323 | N53: 0 | O53: 9792.653857 | P53: 1495.060268
A54: ED_INP212_00048 | C54: Subtransmission lines | E54: DNSP NAME | F54: INPUT COSTS | G54: AUGMENTATION | H54: DIRECT MATERIAL COST | I54: =$C$54 -> Subtransmission lines | J54: EXPENDITURE | K54: $000'S | M54: 689.7053094 | N54: 0 | O54: 5256.272319 | P54: 599.2025411
A55: ED_INP212_00049 | C55: HV feeders | E55: DNSP NAME | F55: INPUT COSTS | G55: AUGMENTATION | H55: DIRECT MATERIAL COST | I55: =$C$55 -> HV feeders | J55: EXPENDITURE | K55: $000'S | M55: 479.5416903 | N55: 0 | O55: 3644.938993 | P55: 617.7873113
A56: ED_INP212_00050 | C56: Distribution substations | E56: DNSP NAME | F56: INPUT COSTS | G56: AUGMENTATION | H56: DIRECT MATERIAL COST | I56: =$C$56 -> Distribution substations | J56: EXPENDITURE | K56: $000'S | M56: 1622.9 | N56: 0 | O56: 8098.43068 | P56: 978.00327
A57: ED_INP212_00051 | C57: LV feeders | E57: DNSP NAME | F57: INPUT COSTS | G57: AUGMENTATION | H57: DIRECT MATERIAL COST | I57: =$C$57 -> LV feeders | J57: EXPENDITURE | K57: $000'S | M57: 0 | N57: 0 | O57: 900.97474 | P57: 95.00381
A58: ED_INP212_00052 | C58: Other assets | E58: DNSP NAME | F58: INPUT COSTS | G58: AUGMENTATION | H58: DIRECT MATERIAL COST | I58: =$C$58 -> Other assets | J58: EXPENDITURE | K58: $000'S | M58: 0 | N58: 0 | O58: 31.83873 | P58: 28.18962
A59: ED_INP212_00053 | B59: CONNECTIONS | C59: Simple and complex customer connections | E59: DNSP NAME | F59: INPUT COSTS | G59: CONNECTIONS | H59: DIRECT MATERIAL COST | I59: =$C$59 -> Simple and complex customer connections | J59: EXPENDITURE | K59: $000'S | M59: 3323.787 | N59: 0 | O59: 31405.45569 | P59: 7053.13943
A60: ED_INP212_00054 | B60: EMERGENCY RESPONSE | C60: Major storms | E60: DNSP NAME | F60: INPUT COSTS | G60: EMERGENCY RESPONSE | H60: DIRECT MATERIAL COST | I60: =$C$60 -> Major storms | J60: EXPENDITURE | K60: $000'S
A61: ED_INP212_00055 | C61: Major event days | E61: DNSP NAME | F61: INPUT COSTS | G61: EMERGENCY RESPONSE | H61: DIRECT MATERIAL COST | I61: =$C$61 -> Major event days | J61: EXPENDITURE | K61: $000'S | M61: 5.581794541 | N61: 106.7643938 | O61: 59.99097647 | P61: 59.24983523
A62: ED_INP212_00056 | B62: PUBLIC LIGHTING | C62: All public lighting services | E62: DNSP NAME | F62: INPUT COSTS | G62: PUBLIC LIGHTING | H62: DIRECT MATERIAL COST | I62: =$C$62 -> All public lighting services | J62: EXPENDITURE | K62: $000'S | O62: 10432.615
A63: ED_INP212_00057 | B63: METERING | C63: All metering services | E63: DNSP NAME | F63: INPUT COSTS | G63: METERING | H63: DIRECT MATERIAL COST | I63: =$C$63 -> All metering services | J63: EXPENDITURE | K63: $000'S | M63: 1623.127 | N63: 16721.912 | P63: 40445.118
A64: ED_INP212_00058 | B64: FEE-BASED SERVICES | C64: All fee-based services | E64: DNSP NAME | F64: INPUT COSTS | G64: FEE-BASED SERVICES | H64: DIRECT MATERIAL COST | I64: =$C$64 -> All fee-based services | J64: EXPENDITURE | K64: $000'S | N64: 607.0177937 | O64: 5221.511464
A65: ED_INP212_00059 | B65: QUOTED SERVICES | C65: All quoted services | E65: DNSP NAME | F65: INPUT COSTS | G65: QUOTED SERVICES | H65: DIRECT MATERIAL COST | I65: =$C$65 -> All quoted services | J65: EXPENDITURE | K65: $000'S | N65: 20.15832633 | O65: 2926.919993
A66: ED_INP212_00060 | B66: REPLACEMENT | C66: Poles | E66: DNSP NAME | F66: INPUT COSTS | G66: REPLACEMENT | H66: DIRECT MATERIAL COST | I66: =$C$66 -> Poles | J66: EXPENDITURE | K66: $000'S | M66: 18.29820391 | N66: 0 | O66: 7413.323835 | P66: 260.0764128
A67: ED_INP212_00061 | C67: Pole top structures | E67: DNSP NAME | F67: INPUT COSTS | G67: REPLACEMENT | H67: DIRECT MATERIAL COST | I67: =$C$67 -> Pole top structures | J67: EXPENDITURE | K67: $000'S | M67: 4.997576156 | N67: 0 | O67: 35619.67516 | P67: 1255.899136
A68: ED_INP212_00062 | C68: Overhead conductors | E68: DNSP NAME | F68: INPUT COSTS | G68: REPLACEMENT | H68: DIRECT MATERIAL COST | I68: =$C$68 -> Overhead conductors | J68: EXPENDITURE | K68: $000'S | M68: 31.06255763 | N68: 0 | O68: 1067.080265 | P68: 35.55595481
A69: ED_INP212_00063 | C69: Underground cables | E69: DNSP NAME | F69: INPUT COSTS | G69: REPLACEMENT | H69: DIRECT MATERIAL COST | I69: =$C$69 -> Underground cables | J69: EXPENDITURE | K69: $000'S | M69: 13.25662057 | N69: 0 | O69: 7512.527108 | P69: 529.8254732
A70: ED_INP212_00064 | C70: Service lines | E70: DNSP NAME | F70: INPUT COSTS | G70: REPLACEMENT | H70: DIRECT MATERIAL COST | I70: =$C$70 -> Service lines | J70: EXPENDITURE | K70: $000'S | M70: 0 | N70: 0 | O70: 10779.04062 | P70: 468.3442
A71: ED_INP212_00065 | C71: Transformers | E71: DNSP NAME | F71: INPUT COSTS | G71: REPLACEMENT | H71: DIRECT MATERIAL COST | I71: =$C$71 -> Transformers | J71: EXPENDITURE | K71: $000'S | M71: 511.9889268 | N71: 0 | O71: 4278.496706 | P71: 552.6185595
A72: ED_INP212_00066 | C72: Switchgear | E72: DNSP NAME | F72: INPUT COSTS | G72: REPLACEMENT | H72: DIRECT MATERIAL COST | I72: =$C$72 -> Switchgear | J72: EXPENDITURE | K72: $000'S | M72: 988.1492989 | N72: 0 | O72: 11287.73971 | P72: 980.7623405
A73: ED_INP212_00067 | C73: Public lighting | E73: DNSP NAME | F73: INPUT COSTS | G73: REPLACEMENT | H73: DIRECT MATERIAL COST | I73: =$C$74 -> SCADA network control and protection systems | J73: EXPENDITURE | K73: $000'S | M73: 0.4510776275 | N73: 0 | O73: 1223.715128 | P73: 79.20177408
A74: ED_INP212_00068 | C74: SCADA network control and protection systems | E74: DNSP NAME | F74: INPUT COSTS | G74: REPLACEMENT | H74: DIRECT MATERIAL COST | I74: =$C$74 -> SCADA network control and protection systems | J74: EXPENDITURE | K74: $000'S | M74: 36.27020849 | N74: 0 | O74: 2039.990692 | P74: 175.6042697
A75: ED_INP212_00069 | C75: Other | E75: DNSP NAME | F75: INPUT COSTS | G75: REPLACEMENT | H75: DIRECT MATERIAL COST | I75: =$C$75 -> Other | J75: EXPENDITURE | K75: $000'S | M75: 78.12200991 | N75: 0 | O75: 534.9616585 | P75: 90.79421926
A76: ED_INP212_00070 | B76: NON-NETWORK EXPENDITURE | C76: IT and communications | E76: DNSP NAME | F76: INPUT COSTS | G76: NON-NETWORK | H76: DIRECT MATERIAL COST | I76: =$C$76 -> IT and communications | J76: EXPENDITURE | K76: $000'S | M76: 11516.29792 | N76: 24381 | O76: 4798
A77: ED_INP212_00071 | C77: Motor vehicles | E77: DNSP NAME | F77: INPUT COSTS | G77: NON-NETWORK | H77: DIRECT MATERIAL COST | I77: =$C$77 -> Motor vehicles | J77: EXPENDITURE | K77: $000'S | P77: 2416.960685
A78: ED_INP212_00072 | C78: Buildings and property | E78: DNSP NAME | F78: INPUT COSTS | G78: NON-NETWORK | H78: DIRECT MATERIAL COST | I78: =$C$78 -> Buildings and property | J78: EXPENDITURE | K78: $000'S | P78: =SUM('2.6 Non-network'!E30:E31) -> 4803.23496
A79: ED_INP212_00073 | C79: Other | E79: DNSP NAME | F79: INPUT COSTS | G79: NON-NETWORK | H79: DIRECT MATERIAL COST | I79: =$C$79 -> Other | J79: EXPENDITURE | K79: $000'S | P79: =SUM('2.6 Non-network'!E32:E33) -> 288.88432

Sheet 4.1 Public lighting
B1: =Title -> REGULATORY REPORTING STATEMENT
B2: =TradingName -> United Energy Distribution Pty Limited
B3: =CONCATENATE("Category Analysis RIN response ",CRY) -> Category Analysis RIN response 2013-14
B4: 4.1 PUBLIC LIGHTING
B6: TABLE 4.1.1 - DESCRIPTOR METRICS OVER 2013-14 YEAR
B7: <<<GROUP-ROW>>>
C9: LIGHT TYPE | D9: VOLUME (000'S)
A10: PUB411 | C10: =Years -> 2013-14 | D10: =CRY -> 2013-14
A11: ED_PUB411_00001 | B11: POPULATION OF LIGHTS | C11: 2X20W FLUORO P/L STAN | D11: 60
A12: ED_PUB411_00002 | C12: 3X20W FLUORO P/L STAN | D12: 3
A13: ED_PUB411_00003 | C13: 50W MERC P/L STAN | D13: 37
A14: ED_PUB411_00004 | C14: 80W MERC P/L STAN | D14: 58146
A15: ED_PUB411_00005 | C15: 125W MERC P/L STAN | D15: 1114
A16: ED_PUB411_00006 | C16: 250W MERC P/L STAN | D16: 122
A17: ED_PUB411_00007 | C17: 400W MERC P/L STAN | D17: 6
A18: ED_PUB411_00008 | C18: 700W MERC P/L STAN | D18: 4
A19: ED_PUB411_00009 | C19: 70W SOD P/L STAN | D19: 333
A20: ED_PUB411_00010 | C20: 100W SOD P/L STAN | D20: 911
A21: ED_PUB411_00011 | C21: 150W SOD P/L STAN | D21: 23706
A22: ED_PUB411_00012 | C22: 250W SOD P/L STAN | D22: 9900
A23: ED_PUB411_00013 | C23: 400W SOD P/L STAN | D23: 333
A24: ED_PUB411_00014 | C24: 70W METAL HALIDE | D24: 9
A25: ED_PUB411_00015 | C25: 100W METAL HALIDE | D25: 95
A26: ED_PUB411_00016 | C26: 150W METAL HALIDE | D26: 15
A27: ED_PUB411_00017 | C27: 250W METAL HALIDE | D27: 118
A28: ED_PUB411_00018 | C28: 400W METAL HALIDE | D28: 110
A29: ED_PUB411_00019 | C29: Twin 14w Fluorescent | D29: 21810
A30: ED_PUB411_00020 | C30: Twin 24w Fluorescent | D30: 226
A31: ED_PUB411_00021 | C31: 32W Compact Fluorescent | D31: 1502
A32: ED_PUB411_00022 | C32: 42w Compact Fluorescent | D32: 303
A33: ED_PUB411_00023
A34: ED_PUB411_00024
A35: ED_PUB411_00025
A36: ED_PUB411_00026
A37: ED_PUB411_00027
A38: ED_PUB411_00028
A39: ED_PUB411_00029
A40: ED_PUB411_00030
A41: ED_PUB411_00031
A42: ED_PUB411_00032
A43: ED_PUB411_00033
A44: ED_PUB411_00034
A45: ED_PUB411_00035
A46: ED_PUB411_00036
A47: ED_PUB411_00037
A48: ED_PUB411_00038
A49: ED_PUB411_00039
A50: ED_PUB411_00040
A51: ED_PUB411_00041
A52: ED_PUB411_00042
A53: ED_PUB411_00043
A54: ED_PUB411_00044
A55: ED_PUB411_00045
A56: ED_PUB411_00046
A57: ED_PUB411_00047
A58: ED_PUB411_00048
A59: ED_PUB411_00049
A60: ED_PUB411_00050
A61: ED_PUB411_00051
A62: ED_PUB411_00052
A63: ED_PUB411_00053
A64: ED_PUB411_00054
A65: ED_PUB411_00055
A66: ED_PUB411_00056
A67: ED_PUB411_00057
A68: ED_PUB411_00058
A69: ED_PUB411_00059
A70: ED_PUB411_00060
A71: ED_PUB411_00061
A72: ED_PUB411_00062
A73: ED_PUB411_00063
A74: ED_PUB411_00064
A75: ED_PUB411_00065
A76: ED_PUB411_00066
A77: ED_PUB411_00067
A78: ED_PUB411_00068
A79: ED_PUB411_00069
A80: ED_PUB411_00070
A81: ED_PUB411_00071
A82: ED_PUB411_00072
A83: ED_PUB411_00073
A84: ED_PUB411_00074
A85: ED_PUB411_00075
A86: ED_PUB411_00076
A87: ED_PUB411_00077
A88: ED_PUB411_00078
A89: ED_PUB411_00079
A90: ED_PUB411_00080
A91: ED_PUB411_00081
A92: ED_PUB411_00082
A93: ED_PUB411_00083
A94: ED_PUB411_00084
A95: ED_PUB411_00085
A96: ED_PUB411_00086
A97: ED_PUB411_00087
A98: ED_PUB411_00088
A99: ED_PUB411_00089
A100: ED_PUB411_00090
A101: ED_PUB411_00091
A102: ED_PUB411_00092
A103: ED_PUB411_00093
A104: ED_PUB411_00094
A105: ED_PUB411_00095
A106: ED_PUB411_00096
A107: ED_PUB411_00097
A108: ED_PUB411_00098
A109: ED_PUB411_00099
A110: ED_PUB411_00100
A111: ED_PUB411_00101
A112: ED_PUB411_00102
B117: TABLE 4.1.2 - DESCRIPTOR METRICS ANNUALLY
B118: <<<GROUP-ROW>>>
D120: VOLUMES & EXPENDITURE
A121: PUB412 | B121: SERVICE/SERVICE QUALITY - Volumes and Expenditure | C121: DESCRIPTOR METRIC | D121: =CRY -> 2013-14
A122: ED_PUB412_00001 | B122: LIGHT INSTALLATION | C122: Major road light installation (volume) | D122: 5984
A123: ED_PUB412_00002 | C123: Minor road light installation (volume) | D123: 4127
A124: ED_PUB412_00003 | C124: Number of poles installed | D124: 0
A125: ED_PUB412_00004 | C125: Total cost ($000's) | D125: 5602.74864
A126: ED_PUB412_00005 | B126: LIGHT REPLACEMENT | C126: Major road light installation (volume) | D126: 1124
A127: ED_PUB412_00006 | C127: Minor road light installation (volume) | D127: 1317
A128: ED_PUB412_00007 | C128: Number of poles installed | D128: 96
A129: ED_PUB412_00008 | C129: Total cost ($000's) | D129: 1303.36798
A130: ED_PUB412_00009 | B130: LIGHT MAINTENANCE | C130: Major road light installation (volume) | D130: 4372
A131: ED_PUB412_00010 | C131: Minor road light installation (volume) | D131: 13116
A132: ED_PUB412_00011 | C132: Number of poles installed | D132: 7245
A133: ED_PUB412_00012 | C133: Total cost ($000's) | D133: 3526.49838
A134: ED_PUB412_00013 | B134: QUALITY OF SUPPLY | C134: Mean days to rectify/replace public lighting assets (days) | D134: 9.933333333
A135: ED_PUB412_00014 | C135: GSO breaches (volume 0's) | D135: 42
A136: ED_PUB412_00015 | C136: GSL payments ($000's) | D136: =420/1000 -> 0.42
A137: ED_PUB412_00016 | C137: Customer complaints (volume 0's) | D137: 88
B143: TABLE 4.1.3 - COST METRICS
B144: <<<GROUP-ROW>>>
D146: AVERAGE UNIT COST ($)
A147: PUB413 | B147: ROAD TYPE | C147: LIGHT TYPE | D147: =CRY -> 2013-14
A148: PUB413_00001 | B148: LIGHT INSTALLATION - Major Road | C148: New Light Major Road (CNJ) | D148: 2124.546124
A149: PUB413_00002 | C149: Pb.Light CapProj - Major Scheme | D149: 610.6754603
A150: PUB413_00003
A151: PUB413_00004
A152: PUB413_00005
A153: PUB413_00006
A154: PUB413_00007
A155: PUB413_00008
A156: PUB413_00009
A157: PUB413_00010
A158: PUB413_00011
A159: PUB413_00012
A160: PUB413_00013
A161: PUB413_00014
A162: PUB413_00015
A163: PUB413_00010 | B163: LIGHT INSTALLATION - Minor Road | C163: New Light Minor Road (CNM) | D163: 1031.717126
A164: PUB413_00011 | C164: New Light Watchman (CNW) | D164: 2213.41
A165: PUB413_00012 | C165: New Sustainable Light (CNG) | D165: 558.2487805
A166: PUB413_00013 | C166: Pb.Light CapProj - Minor Scheme (CLN) | D166: 409.7839845
A167: PUB413_00014
A168: PUB413_00014
A169: PUB413_00015
A170: PUB413_00016
A171: PUB413_00017
A172: PUB413_00018
A173: PUB413_00019
A174: PUB413_00020
A175: PUB413_00021
A176: PUB413_00022
A177: PUB413_00023
A178: PUB413_00024 | B178: LIGHT REPLACEMENT - Major Road | C178: SINGLE MAJOR RD REPL (RLJ) | D178: 546.1606851
A179: PUB413_00025 | C179: POLE REPLACE P/L (RPA) | D179: 4034.9496
A180: PUB413_00026
A181: PUB413_00027
A182: PUB413_00028
A183: PUB413_00029
A184: PUB413_00030
A185: PUB413_00025
A186: PUB413_00026
A187: PUB413_00027
A188: PUB413_00028
A189: PUB413_00029
A190: PUB413_00030
A191: PUB413_00025
A192: PUB413_00031
A193: PUB413_00032 | B193: LIGHT REPLACEMENT - Minor Road | C193: SINGLE MINOR RD REPL (RLM) | D193: 319.7749035
A194: PUB413_00033 | C194: SINGLE SUSTAINABLE LANTERN REPL (RLG) | D194: 185.5381818
A195: PUB413_00034 | C195: POLE REPLACE P/L (RPB) | D195: 1511.859783
A196: PUB413_00035
A197: PUB413_00036
A198: PUB413_00036
A199: PUB413_00033
A200: PUB413_00034
A201: PUB413_00035
A202: PUB413_00036
A203: PUB413_00033
A204: PUB413_00034
A205: PUB413_00035
A206: PUB413_00036
A207: PUB413_00037
A208: PUB413_00038 | B208: LIGHT MAINTENANCE - Major Road | C208: MAJOR ROAD PATROLS (MLP) | D208: 10600.13889
A209: PUB413_00039 | C209: PL Luminaires (MLF) | D209: 238.0521499
A210: PUB413_00040 | C210: PL Poles (MLR) | D210: 198.6199693
A211: PUB413_00041
A212: PUB413_00042
A213: PUB413_00043
... 24 more rows

Sheet 4.2 Metering
B1: =Title -> REGULATORY REPORTING STATEMENT
B2: =TradingName -> United Energy Distribution Pty Limited
B3: =CONCATENATE("Category Analysis RIN response ",CRY) -> Category Analysis RIN response 2013-14
B4: 4.2 METERING
B7: TABLE 4.2.1 - METERING DESCRIPTOR METRIC | F7: TABLE 4.2.2 - COST METRICS
B8: <<<GROUP-ROW>>>
D10: VOLUMES (000s) | H10: EXPENDITURE ($000's) | J10: VOLUMES (000s)
B11: ASSET CATEGORY | C11: ASSET SUBCATEGORY | D11: =CRY -> 2013-14 | F11: SERVICE SUBCATEGORY | G11: METER TYPE | H11: =CRY -> 2013-14 | J11: =CRY -> 2013-14
A12: ED_MET421_00001 | B12: Meter Type 4 | C12: Single phase meter population | D12: 511.532 | E12: ED_MET422_00001 | F12: Meter purchase | G12: Meter Type 4 | H12: 1623.127 | I12: ED_MET422_00001 | J12: 6.56
A13: ED_MET421_00002 | C13: Multi phase meter population | D13: 69.544 | E13: ED_MET422_00002 | G13: Meter Type 5 | H13: 0 | I13: ED_MET422_00002 | J13: 0
A14: ED_MET421_00003 | C14: Current transformer connected meter population | D14: 1.263 | E14: ED_MET422_00003 | G14: Meter Type 6 | H14: 0 | I14: ED_MET422_00003 | J14: 0
A15: ED_MET421_00004 | C15: Direct connect meter population | D15: 579.813 | E15: ED_MET422_00004 | F15: Meter testing | G15: Meter Type 4 | H15: 55.91429056 | I15: ED_MET422_00004 | J15: 0.6246743307
A16: ED_MET421_00005 | B16: Meter Type 5 | C16: Single phase meter population | D16: 2.537 | E16: ED_MET422_00005 | G16: Meter Type 5 | H16: 29.31763041 | I16: ED_MET422_00005 | J16: 0.1062541732
A17: ED_MET421_00006 | C17: Multi phase meter population | D17: 3.44 | E17: ED_MET422_00006 | G17: Meter Type 6 | H17: 6.580229036 | I17: ED_MET422_00006 | J17: 0.01907149606
A18: ED_MET421_00007 | C18: Current transformer connected meter population | D18: 1.351 | E18: ED_MET422_00007 | F18: Meter investigation | G18: Meter Type 4 | H18: 119.299564 | I18: ED_MET422_00007 | J18: 1.134
A19: ED_MET421_00008 | C19: Direct connect meter population | D19: 4.626 | E19: ED_MET422_00008 | G19: Meter Type 5 | H19: 29.086452 | I19: ED_MET422_00008 | J19: 0.1488
A20: ED_MET421_00009 | B20: Meter Type 6 | C20: Single phase meter population | D20: 52.683 | E20: ED_MET422_00009 | G20: Meter Type 6 | H20: 8.764164 | I20: ED_MET422_00009 | J20: 0.0316
A21: ED_MET421_00010 | C21: Multi phase meter population | D21: 26.885 | E21: ED_MET422_00010 | F21: Scheduled meter reading | G21: Meter Type 4 | H21: 0 | I21: ED_MET422_00010 | J21: 215601.409
A22: ED_MET421_00011 | C22: Current transformer connected meter population | D22: 0.561 | E22: ED_MET422_00011 | G22: Meter Type 5 | H22: 161.413538 | I22: ED_MET422_00011 | J22: 32.747
A23: ED_MET421_00012 | C23: Direct connect meter population | D23: 79.007 | E23: ED_MET422_00012 | G23: Meter Type 6 | H23: 841.896146 | I23: ED_MET422_00012 | J23: 314.392
E24: ED_MET422_00013 | F24: Special meter reading | G24: Meter Type 4 | H24: 0 | I24: ED_MET422_00013 | J24: 0
E25: ED_MET422_00014 | G25: Meter Type 5 | H25: 10.82618 | I25: ED_MET422_00014 | J25: 1.842
E26: ED_MET422_00015 | G26: Meter Type 6 | H26: 140.30238 | I26: ED_MET422_00015 | J26: 22.047
E27: ED_MET422_00016 | F27: New meter installation | G27: Meter Type 4 | H27: 5529.259248 | I27: ED_MET422_00016 | J27: 10.869
E28: ED_MET422_00017 | G28: Meter Type 5 | H28: 3.2799879 | I28: ED_MET422_00017 | J28: 0.00501
E29: ED_MET422_00018 | G29: Meter Type 6 | H29: 0 | I29: ED_MET422_00018 | J29: 0
E30: ED_MET422_00019 | F30: Meter replacement | G30: Meter Type 4 | H30: 16721.91248 | I30: ED_MET422_00019 | J30: 117.343
E31: ED_MET422_00020 | G31: Meter Type 5 | H31: 0 | I31: ED_MET422_00020 | J31: 0.004
E32: ED_MET422_00021 | G32: Meter Type 6 | H32: 0 | I32: ED_MET422_00021 | J32: 0
E33: ED_MET422_00022 | F33: Meter maintenance | G33: Meter Type 4 | H33: 0 | I33: ED_MET422_00022 | J33: 0
E34: ED_MET422_00023 | G34: Meter Type 5 | H34: 0 | I34: ED_MET422_00023 | J34: 0
E35: ED_MET422_00024 | G35: Meter Type 6 | H35: 0.10769 | I35: ED_MET422_00024 | J35: 0.024
E36: ED_MET422_00025 | F36: Remote meter reading | G36: Meter Type 4 | H36: 0 | I36: ED_MET422_00025 | J36: 215601.409
E37: ED_MET422_00026 | F37: Remote meter re-configuration | G37: Meter Type 4 | H37: 0 | I37: ED_MET422_00026 | J37: 16.593
E38: ED_MET422_00027 | F38: Other metering | G38: Meter Type 4 | H38: 13535.78648 | J38: 0
E39: ED_MET422_00028 | G39: Meter Type 5 | H39: 0 | J39: 0
E40: ED_MET422_00029 | G40: Meter Type 6 | H40: 0 | J40: 0
E41: ED_MET422_00030 | G41: Meter Type 7 | H41: 0 | J41: 0
E42: ED_MET422_00031 | F42: IT infrastructure capex | G42: Meter Type 4 | H42: 4041.72 | J42: 0
E43: ED_MET422_00032 | F43: IT infrastructure opex | G43: Meter Type 4 | H43: 13913.07434 | J43: 0
E44: ED_MET422_00033 | F44: Communications infrastructure capex | G44: Meter Type 4 | H44: 1078 | J44: 0
E45: ED_MET422_00034 | F45: Communications infrastructure opex | G45: Meter Type 4 | H45: 977 | J45: 0

Sheet 4.3 Fee-based services
B1: =Title -> REGULATORY REPORTING STATEMENT
B2: =TradingName -> United Energy Distribution Pty Limited
B3: =CONCATENATE("Category Analysis RIN response ",CRY) -> Category Analysis RIN response 2013-14
B4: 4.3 ANCILLARY SERVICES - FEE BASED SERVICES
B6: TABLE 4.3.1 - COST METRICS FOR FEE-BASED SERVICES
D9: EXPENDITURE ($000'S) | F9: VOLUMES (000's)
B10: SERVICE | C10: SERVICE SUBCATEGORY | D10: =CRY -> 2013-14 | F10: =CRY -> 2013-14
A11: ED_FEE431_00001 | B11: Common Fee-Based Services | C11: Energisation | D11: 934.5253827 | E11: ED_FEE431_00001 | F11: 40.558
A12: ED_FEE431_00002 | B12: Common Fee-Based Services | C12: De-energisation | D12: 906.1277967 | E12: ED_FEE431_00002 | F12: 64.329
A13: ED_FEE431_00003 | B13: Common Fee-Based Services | C13: Re-energisation | D13: 150.5877026 | E13: ED_FEE431_00003 | F13: 20.172
A14: ED_FEE431_00004 | B14: Miscellaneous Fee-Based Services | C14: Meter investigation | D14: 69.35036128 | E14: ED_FEE431_00004 | F14: 0.303
A15: ED_FEE431_00005 | B15: Miscellaneous Fee-Based Services | C15: Special meter reading | D15: 218.5249814 | E15: ED_FEE431_00005 | F15: 11.414
A16: ED_FEE431_00006 | B16: Miscellaneous Fee-Based Services | C16: Re-test of type 5 and 6 metering installations for first tier customers with annual consumption greater than 160 MWh | D16: 0 | E16: ED_FEE431_00006 | F16: 0
A17: ED_FEE431_00007 | B17: Miscellaneous Fee-Based Services | C17: Operation, repair, replacement and maintenance of DNSP public lighting assets | D17: 0 | E17: ED_FEE431_00007 | F17: 0
A18: ED_FEE431_00008 | B18: Miscellaneous Fee-Based Services | C18: Fault response - not DNSP fault | D18: 0 | E18: ED_FEE431_00008 | F18: 0
A19: ED_FEE431_00009 | B19: Miscellaneous Fee-Based Services | C19: Temporary disconnect/reconnect services | D19: 0 | E19: ED_FEE431_00009 | F19: 0
A20: ED_FEE431_00010 | B20: Miscellaneous Fee-Based Services | C20: Wasted attendance - not DNSP fault | D20: 184.2407166 | E20: ED_FEE431_00010 | F20: 0.719
A21: ED_FEE431_00011 | B21: Miscellaneous Fee-Based Services | C21: Service truck visits | D21: 2170.770119 | E21: ED_FEE431_00011 | F21: 5.408
A22: ED_FEE431_00012 | B22: Miscellaneous Fee-Based Services | C22: Reserve feeder | D22: 28.8 | E22: ED_FEE431_00012 | F22: 0.156
A23: ED_FEE431_00013 | B23: Miscellaneous Fee-Based Services | C23: PV installation | D23: 0 | E23: ED_FEE431_00013 | F23: 0
A24: ED_FEE431_00014 | B24: Miscellaneous Fee-Based Services | C24: Routine connections - customers below 100 amps | D24: 4765.984272 | E24: ED_FEE431_00014 | F24: 8.482
A25: ED_FEE431_00015 | B25: Miscellaneous Fee-Based Services | C25: Temporary supply services | D25: 852.5424447 | E25: ED_FEE431_00015 | F25: 1.54
A26: ED_FEE431_00016 | B26: Miscellaneous Fee-Based Services | C26: Remote meter re-configuration | D26: 266.9337097 | E26: ED_FEE431_00016 | F26: 5.066
A27: ED_FEE431_00017 | B27: Miscellaneous Fee-Based Services | E27: ED_FEE431_00017
A28: ED_FEE431_00018 | B28: Miscellaneous Fee-Based Services | E28: ED_FEE431_00018
A29: ED_FEE431_00019 | B29: Miscellaneous Fee-Based Services | E29: ED_FEE431_00019
A30: ED_FEE431_00020 | B30: Miscellaneous Fee-Based Services | E30: ED_FEE431_00020
A31: ED_FEE431_00021 | B31: Miscellaneous Fee-Based Services | E31: ED_FEE431_00021
A32: ED_FEE431_00022 | B32: Miscellaneous Fee-Based Services | E32: ED_FEE431_00022
A33: ED_FEE431_00023 | B33: Miscellaneous Fee-Based Services | E33: ED_FEE431_00023
A34: ED_FEE431_00024 | B34: Miscellaneous Fee-Based Services | E34: ED_FEE431_00024
A35: ED_FEE431_00025 | B35: Miscellaneous Fee-Based Services | E35: ED_FEE431_00025
A36: ED_FEE431_00026 | B36: Miscellaneous Fee-Based Services | E36: ED_FEE431_00026
A37: ED_FEE431_00027 | B37: Miscellaneous Fee-Based Services | E37: ED_FEE431_00027
A38: ED_FEE431_00028 | B38: Miscellaneous Fee-Based Services | E38: ED_FEE431_00028
A39: ED_FEE431_00029 | B39: Miscellaneous Fee-Based Services | E39: ED_FEE431_00029
A40: ED_FEE431_00030 | B40: Miscellaneous Fee-Based Services | E40: ED_FEE431_00030
A41: ED_FEE431_00031 | B41: Miscellaneous Fee-Based Services | E41: ED_FEE431_00031
A42: ED_FEE431_00032 | B42: Miscellaneous Fee-Based Services | E42: ED_FEE431_00032
A43: ED_FEE431_00033 | B43: Miscellaneous Fee-Based Services | E43: ED_FEE431_00033
A44: ED_FEE431_00034 | B44: Miscellaneous Fee-Based Services | E44: ED_FEE431_00034
A45: ED_FEE431_00035 | B45: Miscellaneous Fee-Based Services | E45: ED_FEE431_00035
A46: ED_FEE431_00036 | B46: Miscellaneous Fee-Based Services | E46: ED_FEE431_00036
A47: ED_FEE431_00037 | B47: Miscellaneous Fee-Based Services | E47: ED_FEE431_00037
A48: ED_FEE431_00038 | B48: Miscellaneous Fee-Based Services | E48: ED_FEE431_00038
A49: ED_FEE431_00039 | B49: Miscellaneous Fee-Based Services | E49: ED_FEE431_00039
A50: ED_FEE431_00040 | B50: Miscellaneous Fee-Based Services | E50: ED_FEE431_00040
A51: ED_FEE431_00041 | B51: Miscellaneous Fee-Based Services | E51: ED_FEE431_00041
A52: ED_FEE431_00042 | B52: Miscellaneous Fee-Based Services | E52: ED_FEE431_00042
A53: ED_FEE431_00043 | B53: Miscellaneous Fee-Based Services | E53: ED_FEE431_00043
A54: ED_FEE431_00044 | B54: Miscellaneous Fee-Based Services | E54: ED_FEE431_00044
A55: ED_FEE431_00045 | B55: Miscellaneous Fee-Based Services | E55: ED_FEE431_00045
A56: ED_FEE431_00046 | B56: Miscellaneous Fee-Based Services | E56: ED_FEE431_00046
A57: ED_FEE431_00047 | B57: Miscellaneous Fee-Based Services | E57: ED_FEE431_00047
A58: ED_FEE431_00048 | B58: Miscellaneous Fee-Based Services | E58: ED_FEE431_00048
A59: ED_FEE431_00049 | B59: Miscellaneous Fee-Based Services | E59: ED_FEE431_00049
A60: ED_FEE431_00050 | B60: Miscellaneous Fee-Based Services | E60: ED_FEE431_00050
A61: ED_FEE431_00051 | B61: Miscellaneous Fee-Based Services | E61: ED_FEE431_00051
A62: ED_FEE431_00052 | B62: Miscellaneous Fee-Based Services | E62: ED_FEE431_00052
A63: ED_FEE431_00053 | B63: Miscellaneous Fee-Based Services | E63: ED_FEE431_00053
A64: ED_FEE431_00054 | B64: Miscellaneous Fee-Based Services | E64: ED_FEE431_00054
A65: ED_FEE431_00055 | B65: Miscellaneous Fee-Based Services | E65: ED_FEE431_00055
A66: ED_FEE431_00056 | B66: Miscellaneous Fee-Based Services | E66: ED_FEE431_00056
A67: ED_FEE431_00057 | B67: Miscellaneous Fee-Based Services | E67: ED_FEE431_00057
A68: ED_FEE431_00058 | B68: Miscellaneous Fee-Based Services | E68: ED_FEE431_00058
A69: ED_FEE431_00059 | B69: Miscellaneous Fee-Based Services | E69: ED_FEE431_00059
A70: ED_FEE431_00060 | B70: Miscellaneous Fee-Based Services | E70: ED_FEE431_00060
A71: ED_FEE431_00061 | B71: Miscellaneous Fee-Based Services | E71: ED_FEE431_00061
A72: ED_FEE431_00062 | B72: Miscellaneous Fee-Based Services | E72: ED_FEE431_00062
A73: ED_FEE431_00063 | B73: Miscellaneous Fee-Based Services | E73: ED_FEE431_00063
A74: ED_FEE431_00064 | B74: Miscellaneous Fee-Based Services | E74: ED_FEE431_00064
A75: ED_FEE431_00065 | B75: Miscellaneous Fee-Based Services | E75: ED_FEE431_00065
A76: ED_FEE431_00066 | B76: Miscellaneous Fee-Based Services | E76: ED_FEE431_00066
A77: ED_FEE431_00067 | B77: Miscellaneous Fee-Based Services | E77: ED_FEE431_00067
A78: ED_FEE431_00068 | B78: Miscellaneous Fee-Based Services | E78: ED_FEE431_00068
A79: ED_FEE431_00069 | B79: Miscellaneous Fee-Based Services | E79: ED_FEE431_00069
A80: ED_FEE431_00070 | B80: Miscellaneous Fee-Based Services | E80: ED_FEE431_00070
A81: ED_FEE431_00071 | B81: Miscellaneous Fee-Based Services | E81: ED_FEE431_00071
A82: ED_FEE431_00072 | B82: Miscellaneous Fee-Based Services | E82: ED_FEE431_00072
A83: ED_FEE431_00073 | B83: Miscellaneous Fee-Based Services | E83: ED_FEE431_00073
A84: ED_FEE431_00074 | B84: Miscellaneous Fee-Based Services | E84: ED_FEE431_00074
A85: ED_FEE431_00075 | B85: Miscellaneous Fee-Based Services | E85: ED_FEE431_00075
A86: ED_FEE431_00076 | B86: Miscellaneous Fee-Based Services | E86: ED_FEE431_00076
A87: ED_FEE431_00077 | B87: Miscellaneous Fee-Based Services | E87: ED_FEE431_00077
A88: ED_FEE431_00078 | B88: Miscellaneous Fee-Based Services | E88: ED_FEE431_00078
A89: ED_FEE431_00079 | B89: Miscellaneous Fee-Based Services | E89: ED_FEE431_00079
A90: ED_FEE431_00080 | B90: Miscellaneous Fee-Based Services | E90: ED_FEE431_00080
A91: ED_FEE431_00081 | B91: Miscellaneous Fee-Based Services | E91: ED_FEE431_00081
A92: ED_FEE431_00082 | B92: Miscellaneous Fee-Based Services | E92: ED_FEE431_00082
A93: ED_FEE431_00083 | B93: Miscellaneous Fee-Based Services | E93: ED_FEE431_00083
A94: ED_FEE431_00084 | B94: Miscellaneous Fee-Based Services | E94: ED_FEE431_00084
A95: ED_FEE431_00085 | B95: Miscellaneous Fee-Based Services | E95: ED_FEE431_00085
A96: ED_FEE431_00086 | B96: Miscellaneous Fee-Based Services | E96: ED_FEE431_00086
A97: ED_FEE431_00087 | B97: Miscellaneous Fee-Based Services | E97: ED_FEE431_00087
A98: ED_FEE431_00088 | B98: Miscellaneous Fee-Based Services | E98: ED_FEE431_00088
A99: ED_FEE431_00089 | B99: Miscellaneous Fee-Based Services | E99: ED_FEE431_00089
A100: ED_FEE431_00090 | B100: Miscellaneous Fee-Based Services | E100: ED_FEE431_00090
A101: ED_FEE431_00091 | B101: Miscellaneous Fee-Based Services | E101: ED_FEE431_00091
A102: ED_FEE431_00092 | B102: Miscellaneous Fee-Based Services | E102: ED_FEE431_00092
A103: ED_FEE431_00093 | B103: Miscellaneous Fee-Based Services | E103: ED_FEE431_00093
A104: ED_FEE431_00094 | B104: Miscellaneous Fee-Based Services | E104: ED_FEE431_00094
A105: ED_FEE431_00095 | B105: Miscellaneous Fee-Based Services | E105: ED_FEE431_00095
A106: ED_FEE431_00096 | B106: Miscellaneous Fee-Based Services | E106: ED_FEE431_00096
A107: ED_FEE431_00097 | B107: Miscellaneous Fee-Based Services | E107: ED_FEE431_00097
A108: ED_FEE431_00098 | B108: Miscellaneous Fee-Based Services | E108: ED_FEE431_00098
A109: ED_FEE431_00099 | B109: Miscellaneous Fee-Based Services | E109: ED_FEE431_00099
A110: ED_FEE431_00100 | B110: Miscellaneous Fee-Based Services | E110: ED_FEE431_00100
A111: ED_FEE431_00101 | B111: Miscellaneous Fee-Based Services | E111: ED_FEE431_00101
A112: ED_FEE431_00102 | B112: Miscellaneous Fee-Based Services | E112: ED_FEE431_00102
A113: ED_FEE431_00103 | B113: Miscellaneous Fee-Based Services | E113: ED_FEE431_00103
A114: ED_FEE431_00104 | B114: Miscellaneous Fee-Based Services | E114: ED_FEE431_00104
A115: ED_FEE431_00105 | B115: Miscellaneous Fee-Based Services | E115: ED_FEE431_00105
A116: ED_FEE431_00106 | B116: Miscellaneous Fee-Based Services | E116: ED_FEE431_00106
A117: ED_FEE431_00107 | B117: Miscellaneous Fee-Based Services | E117: ED_FEE431_00107
A118: ED_FEE431_00108 | B118: Miscellaneous Fee-Based Services | E118: ED_FEE431_00108
A119: ED_FEE431_00109 | B119: Miscellaneous Fee-Based Services | E119: ED_FEE431_00109
A120: ED_FEE431_00110 | B120: Miscellaneous Fee-Based Services | E120: ED_FEE431_00110
A121: ED_FEE431_00111 | B121: Miscellaneous Fee-Based Services | E121: ED_FEE431_00111
A122: ED_FEE431_00112 | B122: Miscellaneous Fee-Based Services | E122: ED_FEE431_00112
A123: ED_FEE431_00113 | B123: Miscellaneous Fee-Based Services | E123: ED_FEE431_00113
A124: ED_FEE431_00114 | B124: Miscellaneous Fee-Based Services | E124: ED_FEE431_00114
A125: ED_FEE431_00115 | B125: Miscellaneous Fee-Based Services | E125: ED_FEE431_00115
A126: ED_FEE431_00116 | B126: Miscellaneous Fee-Based Services | E126: ED_FEE431_00116
A127: ED_FEE431_00117 | B127: Miscellaneous Fee-Based Services | E127: ED_FEE431_00117
A128: ED_FEE431_00118 | B128: Miscellaneous Fee-Based Services | E128: ED_FEE431_00118
A129: ED_FEE431_00119 | B129: Miscellaneous Fee-Based Services | E129: ED_FEE431_00119
A130: ED_FEE431_00120 | B130: Miscellaneous Fee-Based Services | E130: ED_FEE431_00120
A131: ED_FEE431_00121 | B131: Miscellaneous Fee-Based Services | E131: ED_FEE431_00121
A132: ED_FEE431_00122 | B132: Miscellaneous Fee-Based Services | E132: ED_FEE431_00122
A133: ED_FEE431_00123 | B133: Miscellaneous Fee-Based Services | E133: ED_FEE431_00123
A134: ED_FEE431_00124 | B134: Miscellaneous Fee-Based Services | E134: ED_FEE431_00124
A135: ED_FEE431_00125 | B135: Miscellaneous Fee-Based Services | E135: ED_FEE431_00125
A136: ED_FEE431_00126 | B136: Miscellaneous Fee-Based Services | E136: ED_FEE431_00126
A137: ED_FEE431_00127 | B137: Miscellaneous Fee-Based Services | E137: ED_FEE431_00127
A138: ED_FEE431_00128 | B138: Miscellaneous Fee-Based Services | E138: ED_FEE431_00128
A139: ED_FEE431_00129 | B139: Miscellaneous Fee-Based Services | E139: ED_FEE431_00129
A140: ED_FEE431_00130 | B140: Miscellaneous Fee-Based Services | E140: ED_FEE431_00130
A141: ED_FEE431_00131 | B141: Miscellaneous Fee-Based Services | E141: ED_FEE431_00131
A142: ED_FEE431_00132 | B142: Miscellaneous Fee-Based Services | E142: ED_FEE431_00132
A143: ED_FEE431_00133 | B143: Miscellaneous Fee-Based Services | E143: ED_FEE431_00133
A144: ED_FEE431_00134 | B144: Miscellaneous Fee-Based Services | E144: ED_FEE431_00134
A145: ED_FEE431_00135 | B145: Miscellaneous Fee-Based Services | E145: ED_FEE431_00135
A146: ED_FEE431_00136 | B146: Miscellaneous Fee-Based Services | E146: ED_FEE431_00136
A147: ED_FEE431_00137 | B147: Miscellaneous Fee-Based Services | E147: ED_FEE431_00137
A148: ED_FEE431_00138 | B148: Miscellaneous Fee-Based Services | E148: ED_FEE431_00138
A149: ED_FEE431_00139 | B149: Miscellaneous Fee-Based Services | E149: ED_FEE431_00139
A150: ED_FEE431_00140 | B150: Miscellaneous Fee-Based Services | E150: ED_FEE431_00140
A151: ED_FEE431_00141 | B151: Miscellaneous Fee-Based Services | E151: ED_FEE431_00141
A152: ED_FEE431_00142 | B152: Miscellaneous Fee-Based Services | E152: ED_FEE431_00142
A153: ED_FEE431_00143 | B153: Miscellaneous Fee-Based Services | E153: ED_FEE431_00143
A154: ED_FEE431_00144 | B154: Miscellaneous Fee-Based Services | E154: ED_FEE431_00144
A155: ED_FEE431_00145 | B155: Miscellaneous Fee-Based Services | E155: ED_FEE431_00145
A156: ED_FEE431_00146 | B156: Miscellaneous Fee-Based Services | E156: ED_FEE431_00146
A157: ED_FEE431_00147 | B157: Miscellaneous Fee-Based Services | E157: ED_FEE431_00147
A158: ED_FEE431_00148 | B158: Miscellaneous Fee-Based Services | E158: ED_FEE431_00148
A159: ED_FEE431_00149 | B159: Miscellaneous Fee-Based Services | E159: ED_FEE431_00149
A160: ED_FEE431_00150 | B160: Miscellaneous Fee-Based Services | E160: ED_FEE431_00150
A161: ED_FEE431_00151 | B161: Miscellaneous Fee-Based Services | E161: ED_FEE431_00151
A162: ED_FEE431_00152 | B162: Miscellaneous Fee-Based Services | E162: ED_FEE431_00152
A163: ED_FEE431_00153 | B163: Miscellaneous Fee-Based Services | E163: ED_FEE431_00153
A164: ED_FEE431_00154 | B164: Miscellaneous Fee-Based Services | E164: ED_FEE431_00154
A165: ED_FEE431_00155 | B165: Miscellaneous Fee-Based Services | E165: ED_FEE431_00155
A166: ED_FEE431_00156 | B166: Miscellaneous Fee-Based Services | E166: ED_FEE431_00156
A167: ED_FEE431_00157 | B167: Miscellaneous Fee-Based Services | E167: ED_FEE431_00157
A168: ED_FEE431_00158 | B168: Miscellaneous Fee-Based Services | E168: ED_FEE431_00158
A169: ED_FEE431_00159 | B169: Miscellaneous Fee-Based Services | E169: ED_FEE431_00159
A170: ED_FEE431_00160 | B170: Miscellaneous Fee-Based Services | E170: ED_FEE431_00160
A171: ED_FEE431_00161 | B171: Miscellaneous Fee-Based Services | E171: ED_FEE431_00161
A172: ED_FEE431_00162 | B172: Miscellaneous Fee-Based Services | E172: ED_FEE431_00162
A173: ED_FEE431_00163 | B173: Miscellaneous Fee-Based Services | E173: ED_FEE431_00163
A174: ED_FEE431_00164 | B174: Miscellaneous Fee-Based Services | E174: ED_FEE431_00164
A175: ED_FEE431_00165 | B175: Miscellaneous Fee-Based Services | E175: ED_FEE431_00165
A176: ED_FEE431_00166 | B176: Miscellaneous Fee-Based Services | E176: ED_FEE431_00166
A177: ED_FEE431_00167 | B177: Miscellaneous Fee-Based Services | E177: ED_FEE431_00167
A178: ED_FEE431_00168 | B178: Miscellaneous Fee-Based Services | E178: ED_FEE431_00168
A179: ED_FEE431_00169 | B179: Miscellaneous Fee-Based Services | E179: ED_FEE431_00169
A180: ED_FEE431_00170 | B180: Miscellaneous Fee-Based Services | E180: ED_FEE431_00170
A181: ED_FEE431_00171 | B181: Miscellaneous Fee-Based Services | E181: ED_FEE431_00171
A182: ED_FEE431_00172 | B182: Miscellaneous Fee-Based Services | E182: ED_FEE431_00172
A183: ED_FEE431_00173 | B183: Miscellaneous Fee-Based Services | E183: ED_FEE431_00173
A184: ED_FEE431_00174 | B184: Miscellaneous Fee-Based Services | E184: ED_FEE431_00174
A185: ED_FEE431_00175 | B185: Miscellaneous Fee-Based Services | E185: ED_FEE431_00175
A186: ED_FEE431_00176 | B186: Miscellaneous Fee-Based Services | E186: ED_FEE431_00176
A187: ED_FEE431_00177 | B187: Miscellaneous Fee-Based Services | E187: ED_FEE431_00177
A188: ED_FEE431_00178 | B188: Miscellaneous Fee-Based Services | E188: ED_FEE431_00178
A189: ED_FEE431_00179 | B189: Miscellaneous Fee-Based Services | E189: ED_FEE431_00179
A190: ED_FEE431_00180 | B190: Miscellaneous Fee-Based Services | E190: ED_FEE431_00180
A191: ED_FEE431_00181 | B191: Miscellaneous Fee-Based Services | E191: ED_FEE431_00181
A192: ED_FEE431_00182 | B192: Miscellaneous Fee-Based Services | E192: ED_FEE431_00182
A193: ED_FEE431_00183 | B193: Miscellaneous Fee-Based Services | E193: ED_FEE431_00183
A194: ED_FEE431_00184 | B194: Miscellaneous Fee-Based Services | E194: ED_FEE431_00184
A195: ED_FEE431_00185 | B195: Miscellaneous Fee-Based Services | E195: ED_FEE431_00185
A196: ED_FEE431_00186 | B196: Miscellaneous Fee-Based Services | E196: ED_FEE431_00186
A197: ED_FEE431_00187 | B197: Miscellaneous Fee-Based Services | E197: ED_FEE431_00187
A198: ED_FEE431_00188 | B198: Miscellaneous Fee-Based Services | E198: ED_FEE431_00188
A199: ED_FEE431_00189 | B199: Miscellaneous Fee-Based Services | E199: ED_FEE431_00189
A200: ED_FEE431_00190 | B200: Miscellaneous Fee-Based Services | E200: ED_FEE431_00190
A201: ED_FEE431_00191 | B201: Miscellaneous Fee-Based Services | E201: ED_FEE431_00191
A202: ED_FEE431_00192 | B202: Miscellaneous Fee-Based Services | E202: ED_FEE431_00192
A203: ED_FEE431_00193 | B203: Miscellaneous Fee-Based Services | E203: ED_FEE431_00193
... 278 more rows

Sheet 4.4 Quoted services.
B1: =Title -> REGULATORY REPORTING STATEMENT
B2: =TradingName -> United Energy Distribution Pty Limited
B3: =CONCATENATE("Category Analysis RIN response ",CRY) -> Category Analysis RIN response 2013-14
B4: 4.4 ANCILLARY SERVICES - QUOTED SERVICES
B6: TABLE 4.4.1 - COST METRICS FOR QUOTED SERVICES
D9: EXPENDITURE ($000'S) | F9: VOLUMES (000'S)
B10: SERVICE | C10: SERVICE SUBCATEGORY | D10: =CRY -> 2013-14 | F10: =CRY -> 2013-14
A11: ED_QUO441_00001 | B11: Quoted Services | C11: Supply abolishment | D11: 825.5615338 | E11: ED_QUO441_00001 | F11: 3.575
A12: ED_QUO441_00002 | B12: Quoted Services | C12: Emergency recoverable works (that is, emergency works where customer is at fault and immediate action needs to be taken by the DNSP) | D12: 898.86358 | E12: ED_QUO441_00002 | F12: 0.114
A13: ED_QUO441_00003 | B13: Quoted Services | C13: Auditing of design and construction | D13: 0 | E13: ED_QUO441_00003 | F13: 0
A14: ED_QUO441_00004 | B14: Quoted Services | C14: Specification and design enquiry fees | D14: 0 | E14: ED_QUO441_00004 | F14: 0
A15: ED_QUO441_00005 | B15: Quoted Services | C15: Elective underground service where an existing overhead service exists | D15: 4025.900746 | E15: ED_QUO441_00005 | F15: 2.677
A16: ED_QUO441_00006 | B16: Quoted Services | C16: Damage to overhead service cables pulled down by high load vehicles | D16: 0 | E16: ED_QUO441_00006 | F16: 0
A17: ED_QUO441_00007 | B17: Quoted Services | C17: High load escorts—lifting overhead lines | D17: 0 | E17: ED_QUO441_00007 | F17: 0
A18: ED_QUO441_00008 | B18: Quoted Services | C18: Covering of low voltage mains for safety reasons | D18: 294.74859 | E18: ED_QUO441_00008 | F18: 0.345
A19: ED_QUO441_00009 | B19: Quoted Services | C19: Routine connections, for customers > 100amps | D19: 262.4834711 | E19: ED_QUO441_00009 | F19: 0.239
A20: ED_QUO441_00010 | B20: Quoted Services | C20: After hours truck by appointment | D20: 477.9384068 | E20: ED_QUO441_00010 | F20: 0.201
A21: ED_QUO441_00011 | B21: Quoted Services | E21: ED_QUO441_00011
A22: ED_QUO441_00012 | B22: Quoted Services | E22: ED_QUO441_00012
A23: ED_QUO441_00013 | B23: Quoted Services | E23: ED_QUO441_00013
A24: ED_QUO441_00014 | B24: Quoted Services | E24: ED_QUO441_00014
A25: ED_QUO441_00015 | B25: Quoted Services | E25: ED_QUO441_00015
A26: ED_QUO441_00016 | B26: Quoted Services | E26: ED_QUO441_00016
A27: ED_QUO441_00017 | B27: Quoted Services | E27: ED_QUO441_00017
A28: ED_QUO441_00018 | B28: Quoted Services | E28: ED_QUO441_00018
A29: ED_QUO441_00019 | B29: Quoted Services | E29: ED_QUO441_00019
A30: ED_QUO441_00020 | B30: Quoted Services | E30: ED_QUO441_00020
A31: ED_QUO441_00021 | B31: Quoted Services | E31: ED_QUO441_00021
A32: ED_QUO441_00022 | B32: Quoted Services | E32: ED_QUO441_00022
A33: ED_QUO441_00023 | B33: Quoted Services | E33: ED_QUO441_00023
A34: ED_QUO441_00024 | B34: Quoted Services | E34: ED_QUO441_00024
A35: ED_QUO441_00025 | B35: Quoted Services | E35: ED_QUO441_00025
A36: ED_QUO441_00026 | B36: Quoted Services | E36: ED_QUO441_00026
A37: ED_QUO441_00027 | B37: Quoted Services | E37: ED_QUO441_00027
A38: ED_QUO441_00028 | B38: Quoted Services | E38: ED_QUO441_00028
A39: ED_QUO441_00029 | B39: Quoted Services | E39: ED_QUO441_00029
A40: ED_QUO441_00030 | B40: Quoted Services | E40: ED_QUO441_00030
A41: ED_QUO441_00031 | B41: Quoted Services | E41: ED_QUO441_00031
A42: ED_QUO441_00032 | B42: Quoted Services | E42: ED_QUO441_00032
A43: ED_QUO441_00033 | B43: Quoted Services | E43: ED_QUO441_00033
A44: ED_QUO441_00034 | B44: Quoted Services | E44: ED_QUO441_00034
A45: ED_QUO441_00035 | B45: Quoted Services | E45: ED_QUO441_00035
A46: ED_QUO441_00036 | B46: Quoted Services | E46: ED_QUO441_00036
A47: ED_QUO441_00037 | B47: Quoted Services | E47: ED_QUO441_00037
A48: ED_QUO441_00038 | B48: Quoted Services | E48: ED_QUO441_00038
A49: ED_QUO441_00039 | B49: Quoted Services | E49: ED_QUO441_00039
A50: ED_QUO441_00040 | B50: Quoted Services | E50: ED_QUO441_00040
A51: ED_QUO441_00041 | B51: Quoted Services | E51: ED_QUO441_00041
A52: ED_QUO441_00042 | B52: Quoted Services | E52: ED_QUO441_00042
A53: ED_QUO441_00043 | B53: Quoted Services | E53: ED_QUO441_00043
A54: ED_QUO441_00044 | B54: Quoted Services | E54: ED_QUO441_00044
A55: ED_QUO441_00045 | B55: Quoted Services | E55: ED_QUO441_00045
A56: ED_QUO441_00046 | B56: Quoted Services | E56: ED_QUO441_00046
A57: ED_QUO441_00047 | B57: Quoted Services | E57: ED_QUO441_00047
A58: ED_QUO441_00048 | B58: Quoted Services | E58: ED_QUO441_00048
A59: ED_QUO441_00049 | B59: Quoted Services | E59: ED_QUO441_00049
A60: ED_QUO441_00050 | B60: Quoted Services | E60: ED_QUO441_00050
A61: ED_QUO441_00051 | B61: Quoted Services | E61: ED_QUO441_00051
A62: ED_QUO441_00052 | B62: Quoted Services | E62: ED_QUO441_00052
A63: ED_QUO441_00053 | B63: Quoted Services | E63: ED_QUO441_00053
A64: ED_QUO441_00054 | B64: Quoted Services | E64: ED_QUO441_00054
A65: ED_QUO441_00055 | B65: Quoted Services | E65: ED_QUO441_00055
A66: ED_QUO441_00056 | B66: Quoted Services | E66: ED_QUO441_00056
A67: ED_QUO441_00057 | B67: Quoted Services | E67: ED_QUO441_00057
A68: ED_QUO441_00058 | B68: Quoted Services | E68: ED_QUO441_00058
A69: ED_QUO441_00059 | B69: Quoted Services | E69: ED_QUO441_00059
A70: ED_QUO441_00060 | B70: Quoted Services | E70: ED_QUO441_00060
A71: ED_QUO441_00061 | B71: Quoted Services | E71: ED_QUO441_00061
A72: ED_QUO441_00062 | B72: Quoted Services | E72: ED_QUO441_00062
A73: ED_QUO441_00063 | B73: Quoted Services | E73: ED_QUO441_00063
A74: ED_QUO441_00064 | B74: Quoted Services | E74: ED_QUO441_00064
A75: ED_QUO441_00065 | B75: Quoted Services | E75: ED_QUO441_00065
A76: ED_QUO441_00066 | B76: Quoted Services | E76: ED_QUO441_00066
A77: ED_QUO441_00067 | B77: Quoted Services | E77: ED_QUO441_00067
A78: ED_QUO441_00068 | B78: Quoted Services | E78: ED_QUO441_00068
A79: ED_QUO441_00069 | B79: Quoted Services | E79: ED_QUO441_00069
A80: ED_QUO441_00070 | B80: Quoted Services | E80: ED_QUO441_00070
A81: ED_QUO441_00071 | B81: Quoted Services | E81: ED_QUO441_00071
A82: ED_QUO441_00072 | B82: Quoted Services | E82: ED_QUO441_00072
A83: ED_QUO441_00073 | B83: Quoted Services | E83: ED_QUO441_00073
A84: ED_QUO441_00074 | B84: Quoted Services | E84: ED_QUO441_00074
A85: ED_QUO441_00075 | B85: Quoted Services | E85: ED_QUO441_00075
A86: ED_QUO441_00076 | B86: Quoted Services | E86: ED_QUO441_00076
A87: ED_QUO441_00077 | B87: Quoted Services | E87: ED_QUO441_00077
A88: ED_QUO441_00078 | B88: Quoted Services | E88: ED_QUO441_00078
A89: ED_QUO441_00079 | B89: Quoted Services | E89: ED_QUO441_00079
A90: ED_QUO441_00080 | B90: Quoted Services | E90: ED_QUO441_00080
A91: ED_QUO441_00081 | B91: Quoted Services | E91: ED_QUO441_00081
A92: ED_QUO441_00082 | B92: Quoted Services | E92: ED_QUO441_00082
A93: ED_QUO441_00083 | B93: Quoted Services | E93: ED_QUO441_00083
A94: ED_QUO441_00084 | B94: Quoted Services | E94: ED_QUO441_00084
A95: ED_QUO441_00085 | B95: Quoted Services | E95: ED_QUO441_00085
A96: ED_QUO441_00086 | B96: Quoted Services | E96: ED_QUO441_00086
A97: ED_QUO441_00087 | B97: Quoted Services | E97: ED_QUO441_00087
A98: ED_QUO441_00088 | B98: Quoted Services | E98: ED_QUO441_00088
A99: ED_QUO441_00089 | B99: Quoted Services | E99: ED_QUO441_00089
A100: ED_QUO441_00090 | B100: Quoted Services | E100: ED_QUO441_00090
A101: ED_QUO441_00091 | B101: Quoted Services | E101: ED_QUO441_00091
A102: ED_QUO441_00092 | B102: Quoted Services | E102: ED_QUO441_00092
A103: ED_QUO441_00093 | B103: Quoted Services | E103: ED_QUO441_00093
A104: ED_QUO441_00094 | B104: Quoted Services | E104: ED_QUO441_00094
A105: ED_QUO441_00095 | B105: Quoted Services | E105: ED_QUO441_00095
A106: ED_QUO441_00096 | B106: Quoted Services | E106: ED_QUO441_00096
A107: ED_QUO441_00097 | B107: Quoted Services | E107: ED_QUO441_00097
A108: ED_QUO441_00098 | B108: Quoted Services | E108: ED_QUO441_00098
A109: ED_QUO441_00099 | B109: Quoted Services | E109: ED_QUO441_00099
A110: ED_QUO441_00100 | B110: Quoted Services | E110: ED_QUO441_00100
A111: ED_QUO441_00101 | B111: Quoted Services | E111: ED_QUO441_00101
A112: ED_QUO441_00102 | B112: Quoted Services | E112: ED_QUO441_00102
A113: ED_QUO441_00103 | B113: Quoted Services | E113: ED_QUO441_00103
A114: ED_QUO441_00104 | B114: Quoted Services | E114: ED_QUO441_00104
A115: ED_QUO441_00105 | B115: Quoted Services | E115: ED_QUO441_00105
A116: ED_QUO441_00106 | B116: Quoted Services | E116: ED_QUO441_00106
A117: ED_QUO441_00107 | B117: Quoted Services | E117: ED_QUO441_00107
A118: ED_QUO441_00108 | B118: Quoted Services | E118: ED_QUO441_00108
A119: ED_QUO441_00109 | B119: Quoted Services | E119: ED_QUO441_00109
A120: ED_QUO441_00110 | B120: Quoted Services | E120: ED_QUO441_00110
A121: ED_QUO441_00111 | B121: Quoted Services | E121: ED_QUO441_00111
A122: ED_QUO441_00112 | B122: Quoted Services | E122: ED_QUO441_00112
A123: ED_QUO441_00113 | B123: Quoted Services | E123: ED_QUO441_00113
A124: ED_QUO441_00114 | B124: Quoted Services | E124: ED_QUO441_00114
A125: ED_QUO441_00115 | B125: Quoted Services | E125: ED_QUO441_00115
A126: ED_QUO441_00116 | B126: Quoted Services | E126: ED_QUO441_00116
A127: ED_QUO441_00117 | B127: Quoted Services | E127: ED_QUO441_00117
A128: ED_QUO441_00118 | B128: Quoted Services | E128: ED_QUO441_00118
A129: ED_QUO441_00119 | B129: Quoted Services | E129: ED_QUO441_00119
A130: ED_QUO441_00120 | B130: Quoted Services | E130: ED_QUO441_00120
A131: ED_QUO441_00121 | B131: Quoted Services | E131: ED_QUO441_00121
A132: ED_QUO441_00122 | B132: Quoted Services | E132: ED_QUO441_00122
A133: ED_QUO441_00123 | B133: Quoted Services | E133: ED_QUO441_00123
A134: ED_QUO441_00124 | B134: Quoted Services | E134: ED_QUO441_00124
A135: ED_QUO441_00125 | B135: Quoted Services | E135: ED_QUO441_00125
A136: ED_QUO441_00126 | B136: Quoted Services | E136: ED_QUO441_00126
A137: ED_QUO441_00127 | B137: Quoted Services | E137: ED_QUO441_00127
A138: ED_QUO441_00128 | B138: Quoted Services | E138: ED_QUO441_00128
A139: ED_QUO441_00129 | B139: Quoted Services | E139: ED_QUO441_00129
A140: ED_QUO441_00130 | B140: Quoted Services | E140: ED_QUO441_00130
A141: ED_QUO441_00131 | B141: Quoted Services | E141: ED_QUO441_00131
A142: ED_QUO441_00132 | B142: Quoted Services | E142: ED_QUO441_00132
A143: ED_QUO441_00133 | B143: Quoted Services | E143: ED_QUO441_00133
A144: ED_QUO441_00134 | B144: Quoted Services | E144: ED_QUO441_00134
A145: ED_QUO441_00135 | B145: Quoted Services | E145: ED_QUO441_00135
A146: ED_QUO441_00136 | B146: Quoted Services | E146: ED_QUO441_00136
A147: ED_QUO441_00137 | B147: Quoted Services | E147: ED_QUO441_00137
A148: ED_QUO441_00138 | B148: Quoted Services | E148: ED_QUO441_00138
A149: ED_QUO441_00139 | B149: Quoted Services | E149: ED_QUO441_00139
A150: ED_QUO441_00140 | B150: Quoted Services | E150: ED_QUO441_00140
A151: ED_QUO441_00141 | B151: Quoted Services | E151: ED_QUO441_00141
A152: ED_QUO441_00142 | B152: Quoted Services | E152: ED_QUO441_00142
A153: ED_QUO441_00143 | B153: Quoted Services | E153: ED_QUO441_00143
A154: ED_QUO441_00144 | B154: Quoted Services | E154: ED_QUO441_00144
A155: ED_QUO441_00145 | B155: Quoted Services | E155: ED_QUO441_00145
A156: ED_QUO441_00146 | B156: Quoted Services | E156: ED_QUO441_00146
A157: ED_QUO441_00147 | B157: Quoted Services | E157: ED_QUO441_00147
A158: ED_QUO441_00148 | B158: Quoted Services | E158: ED_QUO441_00148
A159: ED_QUO441_00149 | B159: Quoted Services | E159: ED_QUO441_00149
A160: ED_QUO441_00150 | B160: Quoted Services | E160: ED_QUO441_00150
A161: ED_QUO441_00151 | B161: Quoted Services | E161: ED_QUO441_00151
A162: ED_QUO441_00152 | B162: Quoted Services | E162: ED_QUO441_00152
A163: ED_QUO441_00153 | B163: Quoted Services | E163: ED_QUO441_00153
A164: ED_QUO441_00154 | B164: Quoted Services | E164: ED_QUO441_00154
A165: ED_QUO441_00155 | B165: Quoted Services | E165: ED_QUO441_00155
A166: ED_QUO441_00156 | B166: Quoted Services | E166: ED_QUO441_00156
A167: ED_QUO441_00157 | B167: Quoted Services | E167: ED_QUO441_00157
A168: ED_QUO441_00158 | B168: Quoted Services | E168: ED_QUO441_00158
A169: ED_QUO441_00159 | B169: Quoted Services | E169: ED_QUO441_00159
A170: ED_QUO441_00160 | B170: Quoted Services | E170: ED_QUO441_00160
A171: ED_QUO441_00161 | B171: Quoted Services | E171: ED_QUO441_00161
A172: ED_QUO441_00162 | B172: Quoted Services | E172: ED_QUO441_00162
A173: ED_QUO441_00163 | B173: Quoted Services | E173: ED_QUO441_00163
A174: ED_QUO441_00164 | B174: Quoted Services | E174: ED_QUO441_00164
A175: ED_QUO441_00165 | B175: Quoted Services | E175: ED_QUO441_00165
A176: ED_QUO441_00166 | B176: Quoted Services | E176: ED_QUO441_00166
A177: ED_QUO441_00167 | B177: Quoted Services | E177: ED_QUO441_00167
A178: ED_QUO441_00168 | B178: Quoted Services | E178: ED_QUO441_00168
A179: ED_QUO441_00169 | B179: Quoted Services | E179: ED_QUO441_00169
A180: ED_QUO441_00170 | B180: Quoted Services | E180: ED_QUO441_00170
A181: ED_QUO441_00171 | B181: Quoted Services | E181: ED_QUO441_00171
A182: ED_QUO441_00172 | B182: Quoted Services | E182: ED_QUO441_00172
A183: ED_QUO441_00173 | B183: Quoted Services | E183: ED_QUO441_00173
A184: ED_QUO441_00174 | B184: Quoted Services | E184: ED_QUO441_00174
A185: ED_QUO441_00175 | B185: Quoted Services | E185: ED_QUO441_00175
A186: ED_QUO441_00176 | B186: Quoted Services | E186: ED_QUO441_00176
A187: ED_QUO441_00177 | B187: Quoted Services | E187: ED_QUO441_00177
A188: ED_QUO441_00178 | B188: Quoted Services | E188: ED_QUO441_00178
A189: ED_QUO441_00179 | B189: Quoted Services | E189: ED_QUO441_00179
A190: ED_QUO441_00180 | B190: Quoted Services | E190: ED_QUO441_00180
A191: ED_QUO441_00181 | B191: Quoted Services | E191: ED_QUO441_00181
A192: ED_QUO441_00182 | B192: Quoted Services | E192: ED_QUO441_00182
A193: ED_QUO441_00183 | B193: Quoted Services | E193: ED_QUO441_00183
A194: ED_QUO441_00184 | B194: Quoted Services | E194: ED_QUO441_00184
A195: ED_QUO441_00185 | B195: Quoted Services | E195: ED_QUO441_00185
A196: ED_QUO441_00186 | B196: Quoted Services | E196: ED_QUO441_00186
A197: ED_QUO441_00187 | B197: Quoted Services | E197: ED_QUO441_00187
A198: ED_QUO441_00188 | B198: Quoted Services | E198: ED_QUO441_00188
A199: ED_QUO441_00189 | B199: Quoted Services | E199: ED_QUO441_00189
A200: ED_QUO441_00190 | B200: Quoted Services | E200: ED_QUO441_00190
A201: ED_QUO441_00191 | B201: Quoted Services | E201: ED_QUO441_00191
A202: ED_QUO441_00192 | B202: Quoted Services | E202: ED_QUO441_00192
A203: ED_QUO441_00193 | B203: Quoted Services | E203: ED_QUO441_00193
... 280 more rows

Sheet 5.2 Asset Age Profile
B1: =Title -> REGULATORY REPORTING STATEMENT
B2: =TradingName -> United Energy Distribution Pty Limited
B3: =CONCATENATE("Category Analysis RIN response ",CRY) -> Category Analysis RIN response 2013-14
B4: 5.2 ASSET AGE PROFILE
B6: TABLE 5.2.1 - ASSET AGE PROFILE
E7: 1 | P7: 2 | AA7: 3
N9: ECONOMIC LIFE (YEARS) | AJ9: INSTALLED ASSETS -˃ QUANTITY CURRENTLY IN COMMISSION BY YEAR
B10: ASSET GROUP | C10: ASSET CATEGORY | E10: DNSP NAME | F10: SERVICE | G10: ASSET GROUP | H10: ASSET CATEGORY | I10: DATA TYPE | J10: DATA TYPE SUBCATEGORY | K10: MEASUREMENT | L10: DENOMINATION | N10: MEAN | P10: DNSP NAME | Q10: SERVICE | R10: ASSET GROUP | S10: ASSET CATEGORY | T10: DATA TYPE | U10: DATA TYPE SUBCATEGORY | V10: MEASUREMENT | W10: DENOMINATION | Y10: STANDARD DEVIATION | AA10: DNSP NAME | AB10: SERVICE | AC10: ASSET GROUP | AD10: ASSET CATEGORY | AE10: DATA TYPE | AF10: DATA TYPE SUBCATEGORY | AG10: MEASUREMENT | AH10: DENOMINATION | AJ10: 2013-14 | AK10: 2012-13 | AL10: 2011-12 | AM10: 2010-11 | AN10: 2009-10 | AO10: 2008-09 | AP10: 2007-08 | AQ10: 2006-07 | AR10: 2005-06 | AS10: 2004-05 | AT10: 2003-04 | AU10: 2002-03 | AV10: 2001-02 | AW10: 2000-01 | AX10: 1999-00 | AY10: 1998-99 | AZ10: 1997-98 | BA10: 1996-97 | BB10: 1995-96 | BC10: 1994-95 | BD10: 1993-94 | BE10: 1992-93 | BF10: 1991-92 | BG10: 1990-91 | BH10: 1989-90 | BI10: 1988-89 | BJ10: 1987-88 | BK10: 1986-87 | BL10: 1985-86 | BM10: 1984-85 | BN10: 1983-84 | BO10: 1982-83 | BP10: 1981-82 | BQ10: 1980-81 | BR10: 1979-80 | BS10: 1978-79 | BT10: 1977-78 | BU10: 1976-77 | BV10: 1975-76 | BW10: 1974-75 | BX10: 1973-74 | BY10: 1972-73 | BZ10: 1971-72 | CA10: 1970-71 | CB10: 1969-70 | CC10: 1968-69 | CD10: 1967-68 | CE10: 1966-67 | CF10: 1965-66 | CG10: 1964-65 | CH10: 1963-64 | CI10: 1962-63 | CJ10: 1961-62 | CK10: 1960-61 | CL10: 1959-60 | CM10: 1958-59 | CN10: 1957-58 | CO10: 1956-57 | CP10: 1955-56 | CQ10: 1954-55 | CR10: 1953-54 | CS10: 1952-53 | CT10: 1951-52 | CU10: 1950-51 | CV10: 1949-50 | CW10: 1948-49 | CX10: 1947-48 | CY10: 1946-47 | CZ10: 1945-46 | DA10: 1944-45 | DB10: 1943-44 | DC10: 1942-43 | DD10: 1941-42 | DE10: 1940-41 | DF10: 1939-40 | DG10: 1938-39 | DH10: 1937-38 | DI10: 1936-37 | DJ10: 1935-36 | DK10: 1934-35 | DL10: 1933-34 | DM10: 1932-33 | DN10: 1931-32 | DO10: 1930-31 | DP10: 1929-30 | DQ10: 1928-29 | DR10: 1927-28 | DS10: 1926-27 | DT10: 1925-26 | DU10: 1924-25 | DV10: 1923-24 | DW10: 1922-23 | DX10: 1921-22 | DY10: 1920-21 | DZ10: 1919-20 | EA10: 1918-19 | EB10: 1917-18 | EC10: 1916-17 | ED10: 1915-16 | EE10: 1914-15 | EF10: 1913-14 | EG10: 1912-13 | EH10: 1911-12 | EI10: 1910-11
A11: ED_ASS521_00001 | B11: POLES BY: HIGHEST OPERATING VOLTAGE ; MATERIAL TYPE; STAKING (IF WOOD) | C11: Staking of a wooden pole | E11: DNSP NAME | F11: REPEX | G11: POLES | H11: =C11 -> Staking of a wooden pole | I11: DESCRIPTOR METRIC | J11: MEAN ECONOMIC LIFE | K11: YEARS | L11: NUMBER | N11: 20 | Y11: 4.472135955 | AJ11: 901 | AK11: 904 | AL11: 388 | AM11: 504 | AN11: 386 | AO11: 373 | AP11: 576 | AQ11: 660 | AR11: 520 | AS11: 580 | AT11: 761 | AU11: 474 | AV11: 502 | AW11: 422 | AX11: 432 | AY11: 463 | AZ11: 590 | BA11: 572 | BB11: 350 | BC11: 290 | BD11: 317 | BE11: 799 | BF11: 861 | BG11: 644 | BH11: 1234 | BI11: 671 | BJ11: 46 | BK11: 67 | BL11: 423 | BM11: 45 | BN11: 0 | BO11: 0 | BP11: 0 | BQ11: 0 | BR11: 0 | BS11: 0 | BT11: 1 | BU11: 0 | BV11: 0 | BW11: 0 | BX11: 0 | BY11: 0 | BZ11: 0 | CA11: 0 | CB11: 3 | CC11: 0 | CD11: 0 | CE11: 0 | CF11: 0 | CG11: 0 | CH11: 0 | CI11: 0 | CJ11: 0 | CK11: 0 | CL11: 0 | CM11: 0 | CN11: 0 | CO11: 0 | CP11: 0 | CQ11: 0 | CR11: 0 | CS11: 0 | CT11: 0 | CU11: 0 | CV11: 0 | CW11: 0 | CX11: 0 | CY11: 0 | CZ11: 0 | DA11: 0 | DB11: 0 | DC11: 0 | DD11: 0 | DE11: 0 | DF11: 0 | DG11: 0 | DH11: 0 | DI11: 0 | DJ11: 0 | DK11: 0 | DL11: 0 | DM11: 0 | DN11: 0 | DO11: 0 | DP11: 0 | DQ11: 0 | DR11: 0 | DS11: 0 | DT11: 0 | DU11: 0 | DV11: 0 | DW11: 0 | DX11: 0 | DY11: 0 | DZ11: 0 | EA11: 0 | EB11: 0 | EC11: 0 | ED11: 0 | EE11: 0 | EF11: 0 | EG11: 0 | EH11: 0 | EI11: 0
A12: ED_ASS521_00002 | C12: ˂ = 1 kV; Wood | E12: TNSP NAME | F12: REPEX | G12: POLES | H12: =C12 -> ˂ = 1 kV; Wood | I12: DESCRIPTOR METRIC | J12: MEAN ECONOMIC LIFE | K12: YEARS | L12: NUMBER | N12: 60 | Y12: 7.745966692 | AJ12: 317 | AK12: 401 | AL12: 458 | AM12: 271 | AN12: 447 | AO12: 437 | AP12: 310 | AQ12: 319 | AR12: 269 | AS12: 303 | AT12: 576 | AU12: 868 | AV12: 364 | AW12: 472 | AX12: 322 | AY12: 492 | AZ12: 258 | BA12: 511 | BB12: 117 | BC12: 18 | BD12: 17 | BE12: 55 | BF12: 61 | BG12: 75 | BH12: 123 | BI12: 406 | BJ12: 603 | BK12: 527 | BL12: 1155 | BM12: 851 | BN12: 1080 | BO12: 1130 | BP12: 1466 | BQ12: 1537 | BR12: 1830 | BS12: 1232 | BT12: 1236 | BU12: 868 | BV12: 1322 | BW12: 1678 | BX12: 1602 | BY12: 2029 | BZ12: 2499 | CA12: 2078 | CB12: 2238 | CC12: 2405 | CD12: 2479 | CE12: 2550 | CF12: 1573 | CG12: 2097 | CH12: 1752 | CI12: 1334 | CJ12: 1359 | CK12: 1214 | CL12: 1273 | CM12: 1077 | CN12: 833 | CO12: 585 | CP12: 313 | CQ12: 246 | CR12: 292 | CS12: 161 | CT12: 138 | CU12: 108 | CV12: 602 | CW12: 157 | CX12: 144 | CY12: 171 | CZ12: 137 | DA12: 50 | DB12: 33 | DC12: 62 | DD12: 140 | DE12: 361 | DF12: 418 | DG12: 425 | DH12: 510 | DI12: 433 | DJ12: 329 | DK12: 492 | DL12: 448 | DM12: 292 | DN12: 94 | DO12: 29 | DP12: 42 | DQ12: 38 | DR12: 46 | DS12: 43 | DT12: 2 | DU12: 1 | DV12: 3 | DW12: 2 | DX12: 11 | DY12: 1 | DZ12: 1 | EA12: 1 | EB12: 1 | EC12: 0 | ED12: 0 | EE12: 0 | EF12: 2 | EG12: 0 | EH12: 0 | EI12: 2
A13: ED_ASS521_00003 | C13: > 1 kV & < = 11 kV; Wood | E13: TNSP NAME | F13: REPEX | G13: POLES | H13: > 1 kV & < = 11 kV; Wood | I13: DESCRIPTOR METRIC | J13: MEAN ECONOMIC LIFE | K13: YEARS | L13: NUMBER | N13: 60 | Y13: 7.745966692 | AJ13: 160 | AK13: 226 | AL13: 307 | AM13: 188 | AN13: 254 | AO13: 265 | AP13: 173 | AQ13: 187 | AR13: 185 | AS13: 125 | AT13: 129 | AU13: 142 | AV13: 138 | AW13: 178 | AX13: 119 | AY13: 175 | AZ13: 106 | BA13: 122 | BB13: 91 | BC13: 84 | BD13: 177 | BE13: 192 | BF13: 80 | BG13: 224 | BH13: 366 | BI13: 200 | BJ13: 270 | BK13: 239 | BL13: 431 | BM13: 317 | BN13: 273 | BO13: 229 | BP13: 362 | BQ13: 312 | BR13: 301 | BS13: 272 | BT13: 224 | BU13: 181 | BV13: 185 | BW13: 203 | BX13: 240 | BY13: 306 | BZ13: 329 | CA13: 203 | CB13: 325 | CC13: 399 | CD13: 508 | CE13: 398 | CF13: 373 | CG13: 466 | CH13: 338 | CI13: 231 | CJ13: 264 | CK13: 256 | CL13: 165 | CM13: 149 | CN13: 139 | CO13: 40 | CP13: 34 | CQ13: 35 | CR13: 50 | CS13: 44 | CT13: 13 | CU13: 20 | CV13: 115 | CW13: 12 | CX13: 14 | CY13: 12 | CZ13: 15 | DA13: 8 | DB13: 7 | DC13: 13 | DD13: 61 | DE13: 75 | DF13: 93 | DG13: 86 | DH13: 159 | DI13: 69 | DJ13: 58 | DK13: 80 | DL13: 114 | DM13: 71 | DN13: 25 | DO13: 5 | DP13: 20 | DQ13: 17 | DR13: 11 | DS13: 4 | DT13: 1 | DU13: 0 | DV13: 1 | DW13: 0 | DX13: 7 | DY13: 0 | DZ13: 2 | EA13: 0 | EB13: 0 | EC13: 0 | ED13: 0 | EE13: 0 | EF13: 0 | EG13: 0 | EH13: 0 | EI13: 0
A14: ED_ASS521_00004 | C14: ˃ 11 kV & < = 22 kV; Wood | E14: DNSP NAME | F14: REPEX | G14: POLES | H14: ˃ 11 kV & < = 22 kV; Wood | I14: DESCRIPTOR METRIC | J14: MEAN ECONOMIC LIFE | K14: YEARS | L14: NUMBER | N14: 60 | Y14: 7.745966692 | AJ14: 363 | AK14: 454 | AL14: 427 | AM14: 461 | AN14: 622 | AO14: 739 | AP14: 527 | AQ14: 500 | AR14: 488 | AS14: 502 | AT14: 376 | AU14: 485 | AV14: 377 | AW14: 529 | AX14: 465 | AY14: 448 | AZ14: 238 | BA14: 313 | BB14: 154 | BC14: 107 | BD14: 141 | BE14: 278 | BF14: 243 | BG14: 330 | BH14: 442 | BI14: 505 | BJ14: 729 | BK14: 532 | BL14: 1078 | BM14: 1078 | BN14: 875 | BO14: 1051 | BP14: 849 | BQ14: 989 | BR14: 959 | BS14: 588 | BT14: 736 | BU14: 972 | BV14: 1201 | BW14: 933 | BX14: 1127 | BY14: 1000 | BZ14: 1007 | CA14: 1175 | CB14: 1082 | CC14: 1436 | CD14: 1034 | CE14: 1150 | CF14: 1098 | CG14: 1415 | CH14: 1046 | CI14: 683 | CJ14: 485 | CK14: 521 | CL14: 477 | CM14: 431 | CN14: 402 | CO14: 270 | CP14: 126 | CQ14: 76 | CR14: 95 | CS14: 82 | CT14: 157 | CU14: 47 | CV14: 311 | CW14: 91 | CX14: 81 | CY14: 49 | CZ14: 31 | DA14: 22 | DB14: 24 | DC14: 17 | DD14: 60 | DE14: 44 | DF14: 253 | DG14: 66 | DH14: 183 | DI14: 235 | DJ14: 53 | DK14: 123 | DL14: 33 | DM14: 34 | DN14: 22 | DO14: 3 | DP14: 6 | DQ14: 21 | DR14: 7 | DS14: 28 | DT14: 5 | DU14: 0 | DV14: 0 | DW14: 0 | DX14: 0 | DY14: 0 | DZ14: 0 | EA14: 0 | EB14: 0 | EC14: 0 | ED14: 0 | EE14: 0 | EF14: 0 | EG14: 0 | EH14: 0 | EI14: 0
A15: ED_ASS521_00005 | C15: > 22 kV & < = 66 kV; Wood | E15: DNSP NAME | F15: REPEX | G15: POLES | H15: > 22 kV & < = 66 kV; Wood | I15: DESCRIPTOR METRIC | J15: MEAN ECONOMIC LIFE | K15: YEARS | L15: NUMBER | N15: 60 | Y15: 7.745966692 | AJ15: 63 | AK15: 73 | AL15: 169 | AM15: 78 | AN15: 125 | AO15: 165 | AP15: 73 | AQ15: 148 | AR15: 102 | AS15: 160 | AT15: 103 | AU15: 136 | AV15: 177 | AW15: 193 | AX15: 206 | AY15: 62 | AZ15: 81 | BA15: 47 | BB15: 64 | BC15: 73 | BD15: 26 | BE15: 84 | BF15: 29 | BG15: 64 | BH15: 119 | BI15: 67 | BJ15: 84 | BK15: 45 | BL15: 147 | BM15: 93 | BN15: 217 | BO15: 369 | BP15: 254 | BQ15: 208 | BR15: 94 | BS15: 61 | BT15: 83 | BU15: 130 | BV15: 321 | BW15: 122 | BX15: 68 | BY15: 58 | BZ15: 102 | CA15: 96 | CB15: 216 | CC15: 409 | CD15: 353 | CE15: 318 | CF15: 233 | CG15: 503 | CH15: 277 | CI15: 233 | CJ15: 49 | CK15: 103 | CL15: 29 | CM15: 19 | CN15: 20 | CO15: 33 | CP15: 59 | CQ15: 36 | CR15: 32 | CS15: 16 | CT15: 36 | CU15: 8 | CV15: 9 | CW15: 25 | CX15: 4 | CY15: 3 | CZ15: 3 | DA15: 0 | DB15: 2 | DC15: 3 | DD15: 6 | DE15: 6 | DF15: 4 | DG15: 3 | DH15: 3 | DI15: 10 | DJ15: 2 | DK15: 3 | DL15: 1 | DM15: 0 | DN15: 0 | DO15: 0 | DP15: 0 | DQ15: 0 | DR15: 1 | DS15: 0 | DT15: 0 | DU15: 0 | DV15: 0 | DW15: 0 | DX15: 0 | DY15: 0 | DZ15: 0 | EA15: 0 | EB15: 0 | EC15: 0 | ED15: 0 | EE15: 0 | EF15: 0 | EG15: 0 | EH15: 0 | EI15: 0
A16: ED_ASS521_00006 | C16: > 66 kV & < = 132 kV; Wood | E16: DNSP NAME | F16: REPEX | G16: POLES | H16: > 66 kV & < = 132 kV; Wood | I16: DESCRIPTOR METRIC | J16: MEAN ECONOMIC LIFE | K16: YEARS | L16: NUMBER | N16: 0 | Y16: 0 | AJ16: 0 | AK16: 0 | AL16: 0 | AM16: 0 | AN16: 0 | AO16: 0 | AP16: 0 | AQ16: 0 | AR16: 0 | AS16: 0 | AT16: 0 | AU16: 0 | AV16: 0 | AW16: 0 | AX16: 0 | AY16: 0 | AZ16: 0 | BA16: 0 | BB16: 0 | BC16: 0 | BD16: 0 | BE16: 0 | BF16: 0 | BG16: 0 | BH16: 0 | BI16: 0 | BJ16: 0 | BK16: 0 | BL16: 0 | BM16: 0 | BN16: 0 | BO16: 0 | BP16: 0 | BQ16: 0 | BR16: 0 | BS16: 0 | BT16: 0 | BU16: 0 | BV16: 0 | BW16: 0 | BX16: 0 | BY16: 0 | BZ16: 0 | CA16: 0 | CB16: 0 | CC16: 0 | CD16: 0 | CE16: 0 | CF16: 0 | CG16: 0 | CH16: 0 | CI16: 0 | CJ16: 0 | CK16: 0 | CL16: 0 | CM16: 0 | CN16: 0 | CO16: 0 | CP16: 0 | CQ16: 0 | CR16: 0 | CS16: 0 | CT16: 0 | CU16: 0 | CV16: 0 | CW16: 0 | CX16: 0 | CY16: 0 | CZ16: 0 | DA16: 0 | DB16: 0 | DC16: 0 | DD16: 0 | DE16: 0 | DF16: 0 | DG16: 0 | DH16: 0 | DI16: 0 | DJ16: 0 | DK16: 0 | DL16: 0 | DM16: 0 | DN16: 0 | DO16: 0 | DP16: 0 | DQ16: 0 | DR16: 0 | DS16: 0 | DT16: 0 | DU16: 0 | DV16: 0 | DW16: 0 | DX16: 0 | DY16: 0 | DZ16: 0 | EA16: 0 | EB16: 0 | EC16: 0 | ED16: 0 | EE16: 0 | EF16: 0 | EG16: 0 | EH16: 0 | EI16: 0
A17: ED_ASS521_00007 | C17: > 132 kV; Wood | E17: DNSP NAME | F17: REPEX | G17: POLES | H17: > 132 kV; Wood | I17: DESCRIPTOR METRIC | J17: MEAN ECONOMIC LIFE | K17: YEARS | L17: NUMBER | N17: 0 | Y17: 0 | AJ17: 0 | AK17: 0 | AL17: 0 | AM17: 0 | AN17: 0 | AO17: 0 | AP17: 0 | AQ17: 0 | AR17: 0 | AS17: 0 | AT17: 0 | AU17: 0 | AV17: 0 | AW17: 0 | AX17: 0 | AY17: 0 | AZ17: 0 | BA17: 0 | BB17: 0 | BC17: 0 | BD17: 0 | BE17: 0 | BF17: 0 | BG17: 0 | BH17: 0 | BI17: 0 | BJ17: 0 | BK17: 0 | BL17: 0 | BM17: 0 | BN17: 0 | BO17: 0 | BP17: 0 | BQ17: 0 | BR17: 0 | BS17: 0 | BT17: 0 | BU17: 0 | BV17: 0 | BW17: 0 | BX17: 0 | BY17: 0 | BZ17: 0 | CA17: 0 | CB17: 0 | CC17: 0 | CD17: 0 | CE17: 0 | CF17: 0 | CG17: 0 | CH17: 0 | CI17: 0 | CJ17: 0 | CK17: 0 | CL17: 0 | CM17: 0 | CN17: 0 | CO17: 0 | CP17: 0 | CQ17: 0 | CR17: 0 | CS17: 0 | CT17: 0 | CU17: 0 | CV17: 0 | CW17: 0 | CX17: 0 | CY17: 0 | CZ17: 0 | DA17: 0 | DB17: 0 | DC17: 0 | DD17: 0 | DE17: 0 | DF17: 0 | DG17: 0 | DH17: 0 | DI17: 0 | DJ17: 0 | DK17: 0 | DL17: 0 | DM17: 0 | DN17: 0 | DO17: 0 | DP17: 0 | DQ17: 0 | DR17: 0 | DS17: 0 | DT17: 0 | DU17: 0 | DV17: 0 | DW17: 0 | DX17: 0 | DY17: 0 | DZ17: 0 | EA17: 0 | EB17: 0 | EC17: 0 | ED17: 0 | EE17: 0 | EF17: 0 | EG17: 0 | EH17: 0 | EI17: 0
A18: ED_ASS521_00008 | C18: ˂ = 1 kV; Concrete | E18: DNSP NAME | F18: REPEX | G18: POLES | H18: ˂ = 1 kV; Concrete | I18: DESCRIPTOR METRIC | J18: MEAN ECONOMIC LIFE | K18: YEARS | L18: NUMBER | N18: 70 | Y18: 8.366600265 | AJ18: 5 | AK18: 4 | AL18: 7 | AM18: 3 | AN18: 6 | AO18: 5 | AP18: 3 | AQ18: 3 | AR18: 4 | AS18: 3 | AT18: 2 | AU18: 5 | AV18: 7 | AW18: 6 | AX18: 9 | AY18: 73 | AZ18: 38 | BA18: 160 | BB18: 134 | BC18: 356 | BD18: 752 | BE18: 1226 | BF18: 1096 | BG18: 777 | BH18: 1009 | BI18: 1164 | BJ18: 1550 | BK18: 1101 | BL18: 962 | BM18: 1113 | BN18: 589 | BO18: 202 | BP18: 108 | BQ18: 180 | BR18: 378 | BS18: 14 | BT18: 460 | BU18: 511 | BV18: 184 | BW18: 109 | BX18: 16 | BY18: 498 | BZ18: 270 | CA18: 10 | CB18: 3 | CC18: 3 | CD18: 2 | CE18: 2 | CF18: 1 | CG18: 0 | CH18: 5 | CI18: 2 | CJ18: 4 | CK18: 2 | CL18: 0 | CM18: 2 | CN18: 1 | CO18: 0 | CP18: 2 | CQ18: 1 | CR18: 0 | CS18: 0 | CT18: 0 | CU18: 0 | CV18: 17 | CW18: 0 | CX18: 0 | CY18: 0 | CZ18: 0 | DA18: 0 | DB18: 0 | DC18: 0 | DD18: 0 | DE18: 0 | DF18: 0 | DG18: 0 | DH18: 1 | DI18: 0 | DJ18: 0 | DK18: 0 | DL18: 1 | DM18: 0 | DN18: 0 | DO18: 0 | DP18: 0 | DQ18: 0 | DR18: 0 | DS18: 0 | DT18: 0 | DU18: 0 | DV18: 0 | DW18: 0 | DX18: 0 | DY18: 0 | DZ18: 0 | EA18: 0 | EB18: 0 | EC18: 0 | ED18: 0 | EE18: 0 | EF18: 0 | EG18: 0 | EH18: 0 | EI18: 0
A19: ED_ASS521_00009 | C19: > 1 kV & < = 11 kV; Concrete | E19: DNSP NAME | F19: REPEX | G19: POLES | H19: > 1 kV & < = 11 kV; Concrete | I19: DESCRIPTOR METRIC | J19: MEAN ECONOMIC LIFE | K19: YEARS | L19: NUMBER | N19: 70 | Y19: 8.366600265 | AJ19: 1 | AK19: 0 | AL19: 0 | AM19: 0 | AN19: 0 | AO19: 0 | AP19: 0 | AQ19: 0 | AR19: 0 | AS19: 0 | AT19: 0 | AU19: 0 | AV19: 1 | AW19: 0 | AX19: 1 | AY19: 4 | AZ19: 26 | BA19: 10 | BB19: 11 | BC19: 23 | BD19: 34 | BE19: 31 | BF19: 21 | BG19: 16 | BH19: 42 | BI19: 26 | BJ19: 82 | BK19: 39 | BL19: 33 | BM19: 42 | BN19: 35 | BO19: 22 | BP19: 18 | BQ19: 31 | BR19: 40 | BS19: 2 | BT19: 34 | BU19: 10 | BV19: 1 | BW19: 0 | BX19: 0 | BY19: 1 | BZ19: 0 | CA19: 0 | CB19: 0 | CC19: 0 | CD19: 0 | CE19: 0 | CF19: 0 | CG19: 0 | CH19: 0 | CI19: 0 | CJ19: 0 | CK19: 0 | CL19: 0 | CM19: 0 | CN19: 0 | CO19: 0 | CP19: 0 | CQ19: 0 | CR19: 0 | CS19: 0 | CT19: 0 | CU19: 0 | CV19: 6 | CW19: 0 | CX19: 0 | CY19: 0 | CZ19: 0 | DA19: 0 | DB19: 0 | DC19: 0 | DD19: 0 | DE19: 0 | DF19: 0 | DG19: 0 | DH19: 0 | DI19: 0 | DJ19: 0 | DK19: 0 | DL19: 0 | DM19: 0 | DN19: 0 | DO19: 0 | DP19: 0 | DQ19: 0 | DR19: 0 | DS19: 0 | DT19: 0 | DU19: 0 | DV19: 0 | DW19: 0 | DX19: 0 | DY19: 0 | DZ19: 0 | EA19: 0 | EB19: 0 | EC19: 0 | ED19: 0 | EE19: 0 | EF19: 0 | EG19: 0 | EH19: 0 | EI19: 0
A20: ED_ASS521_00010 | C20: ˃ 11 kV & < = 22 kV; Concrete | E20: DNSP NAME | F20: REPEX | G20: POLES | H20: ˃ 11 kV & < = 22 kV; Concrete | I20: DESCRIPTOR METRIC | J20: MEAN ECONOMIC LIFE | K20: YEARS | L20: NUMBER | N20: 70 | Y20: 8.366600265 | AJ20: 0 | AK20: 0 | AL20: 0 | AM20: 2 | AN20: 4 | AO20: 1 | AP20: 3 | AQ20: 0 | AR20: 1 | AS20: 4 | AT20: 1 | AU20: 5 | AV20: 2 | AW20: 3 | AX20: 0 | AY20: 29 | AZ20: 35 | BA20: 71 | BB20: 76 | BC20: 243 | BD20: 309 | BE20: 408 | BF20: 588 | BG20: 363 | BH20: 728 | BI20: 911 | BJ20: 900 | BK20: 798 | BL20: 582 | BM20: 832 | BN20: 441 | BO20: 116 | BP20: 119 | BQ20: 239 | BR20: 202 | BS20: 7 | BT20: 322 | BU20: 292 | BV20: 83 | BW20: 34 | BX20: 3 | BY20: 7 | BZ20: 20 | CA20: 2 | CB20: 2 | CC20: 1 | CD20: 1 | CE20: 1 | CF20: 2 | CG20: 0 | CH20: 1 | CI20: 1 | CJ20: 0 | CK20: 1 | CL20: 0 | CM20: 0 | CN20: 1 | CO20: 0 | CP20: 0 | CQ20: 0 | CR20: 0 | CS20: 0 | CT20: 0 | CU20: 0 | CV20: 35 | CW20: 0 | CX20: 0 | CY20: 0 | CZ20: 0 | DA20: 0 | DB20: 0 | DC20: 0 | DD20: 0 | DE20: 1 | DF20: 0 | DG20: 0 | DH20: 0 | DI20: 0 | DJ20: 0 | DK20: 0 | DL20: 0 | DM20: 0 | DN20: 0 | DO20: 0 | DP20: 0 | DQ20: 0 | DR20: 0 | DS20: 0 | DT20: 0 | DU20: 0 | DV20: 0 | DW20: 0 | DX20: 0 | DY20: 0 | DZ20: 0 | EA20: 0 | EB20: 0 | EC20: 0 | ED20: 0 | EE20: 0 | EF20: 0 | EG20: 0 | EH20: 0 | EI20: 0
A21: ED_ASS521_00011 | C21: > 22 kV & < = 66 kV; Concrete | N21: 70 | Y21: 8.366600265 | AJ21: 0 | AK21: 0 | AL21: 3 | AM21: 0 | AN21: 15 | AO21: 5 | AP21: 0 | AQ21: 0 | AR21: 0 | AS21: 1 | AT21: 0 | AU21: 0 | AV21: 1 | AW21: 1 | AX21: 1 | AY21: 0 | AZ21: 3 | BA21: 10 | BB21: 11 | BC21: 68 | BD21: 72 | BE21: 83 | BF21: 55 | BG21: 46 | BH21: 55 | BI21: 66 | BJ21: 53 | BK21: 30 | BL21: 20 | BM21: 59 | BN21: 211 | BO21: 52 | BP21: 30 | BQ21: 81 | BR21: 17 | BS21: 0 | BT21: 26 | BU21: 12 | BV21: 1 | BW21: 0 | BX21: 0 | BY21: 0 | BZ21: 1 | CA21: 0 | CB21: 3 | CC21: 1 | CD21: 0 | CE21: 0 | CF21: 0 | CG21: 0 | CH21: 0 | CI21: 0 | CJ21: 0 | CK21: 0 | CL21: 0 | CM21: 0 | CN21: 0 | CO21: 0 | CP21: 0 | CQ21: 0 | CR21: 0 | CS21: 0 | CT21: 0 | CU21: 0 | CV21: 0 | CW21: 0 | CX21: 0 | CY21: 0 | CZ21: 0 | DA21: 0 | DB21: 0 | DC21: 0 | DD21: 0 | DE21: 0 | DF21: 0 | DG21: 0 | DH21: 0 | DI21: 0 | DJ21: 0 | DK21: 0 | DL21: 0 | DM21: 0 | DN21: 0 | DO21: 0 | DP21: 0 | DQ21: 0 | DR21: 0 | DS21: 0 | DT21: 0 | DU21: 0 | DV21: 0 | DW21: 0 | DX21: 0 | DY21: 0 | DZ21: 0 | EA21: 0 | EB21: 0 | EC21: 0 | ED21: 0 | EE21: 0 | EF21: 0 | EG21: 0 | EH21: 0 | EI21: 0
A22: ED_ASS521_00012 | C22: > 66 kV & < = 132 kV; Concrete | N22: 0 | Y22: 0 | AJ22: 0 | AK22: 0 | AL22: 0 | AM22: 0 | AN22: 0 | AO22: 0 | AP22: 0 | AQ22: 0 | AR22: 0 | AS22: 0 | AT22: 0 | AU22: 0 | AV22: 0 | AW22: 0 | AX22: 0 | AY22: 0 | AZ22: 0 | BA22: 0 | BB22: 0 | BC22: 0 | BD22: 0 | BE22: 0 | BF22: 0 | BG22: 0 | BH22: 0 | BI22: 0 | BJ22: 0 | BK22: 0 | BL22: 0 | BM22: 0 | BN22: 0 | BO22: 0 | BP22: 0 | BQ22: 0 | BR22: 0 | BS22: 0 | BT22: 0 | BU22: 0 | BV22: 0 | BW22: 0 | BX22: 0 | BY22: 0 | BZ22: 0 | CA22: 0 | CB22: 0 | CC22: 0 | CD22: 0 | CE22: 0 | CF22: 0 | CG22: 0 | CH22: 0 | CI22: 0 | CJ22: 0 | CK22: 0 | CL22: 0 | CM22: 0 | CN22: 0 | CO22: 0 | CP22: 0 | CQ22: 0 | CR22: 0 | CS22: 0 | CT22: 0 | CU22: 0 | CV22: 0 | CW22: 0 | CX22: 0 | CY22: 0 | CZ22: 0 | DA22: 0 | DB22: 0 | DC22: 0 | DD22: 0 | DE22: 0 | DF22: 0 | DG22: 0 | DH22: 0 | DI22: 0 | DJ22: 0 | DK22: 0 | DL22: 0 | DM22: 0 | DN22: 0 | DO22: 0 | DP22: 0 | DQ22: 0 | DR22: 0 | DS22: 0 | DT22: 0 | DU22: 0 | DV22: 0 | DW22: 0 | DX22: 0 | DY22: 0 | DZ22: 0 | EA22: 0 | EB22: 0 | EC22: 0 | ED22: 0 | EE22: 0 | EF22: 0 | EG22: 0 | EH22: 0 | EI22: 0
A23: ED_ASS521_00013 | C23: > 132 kV; Concrete | N23: 0 | Y23: 0 | AJ23: 0 | AK23: 0 | AL23: 0 | AM23: 0 | AN23: 0 | AO23: 0 | AP23: 0 | AQ23: 0 | AR23: 0 | AS23: 0 | AT23: 0 | AU23: 0 | AV23: 0 | AW23: 0 | AX23: 0 | AY23: 0 | AZ23: 0 | BA23: 0 | BB23: 0 | BC23: 0 | BD23: 0 | BE23: 0 | BF23: 0 | BG23: 0 | BH23: 0 | BI23: 0 | BJ23: 0 | BK23: 0 | BL23: 0 | BM23: 0 | BN23: 0 | BO23: 0 | BP23: 0 | BQ23: 0 | BR23: 0 | BS23: 0 | BT23: 0 | BU23: 0 | BV23: 0 | BW23: 0 | BX23: 0 | BY23: 0 | BZ23: 0 | CA23: 0 | CB23: 0 | CC23: 0 | CD23: 0 | CE23: 0 | CF23: 0 | CG23: 0 | CH23: 0 | CI23: 0 | CJ23: 0 | CK23: 0 | CL23: 0 | CM23: 0 | CN23: 0 | CO23: 0 | CP23: 0 | CQ23: 0 | CR23: 0 | CS23: 0 | CT23: 0 | CU23: 0 | CV23: 0 | CW23: 0 | CX23: 0 | CY23: 0 | CZ23: 0 | DA23: 0 | DB23: 0 | DC23: 0 | DD23: 0 | DE23: 0 | DF23: 0 | DG23: 0 | DH23: 0 | DI23: 0 | DJ23: 0 | DK23: 0 | DL23: 0 | DM23: 0 | DN23: 0 | DO23: 0 | DP23: 0 | DQ23: 0 | DR23: 0 | DS23: 0 | DT23: 0 | DU23: 0 | DV23: 0 | DW23: 0 | DX23: 0 | DY23: 0 | DZ23: 0 | EA23: 0 | EB23: 0 | EC23: 0 | ED23: 0 | EE23: 0 | EF23: 0 | EG23: 0 | EH23: 0 | EI23: 0
A24: ED_ASS521_00014 | C24: ˂ = 1 kV; Steel | N24: 40 | Y24: 6.32455532 | AJ24: 11 | AK24: 20 | AL24: 104 | AM24: 13 | AN24: 11 | AO24: 10 | AP24: 3 | AQ24: 69 | AR24: 3 | AS24: 6 | AT24: 7 | AU24: 2 | AV24: 19 | AW24: 5 | AX24: 6 | AY24: 11 | AZ24: 8 | BA24: 6 | BB24: 19 | BC24: 8 | BD24: 4 | BE24: 5 | BF24: 5 | BG24: 2 | BH24: 12 | BI24: 5 | BJ24: 14 | BK24: 5 | BL24: 20 | BM24: 8 | BN24: 15 | BO24: 8 | BP24: 8 | BQ24: 12 | BR24: 21 | BS24: 7 | BT24: 12 | BU24: 10 | BV24: 3 | BW24: 13 | BX24: 5 | BY24: 6 | BZ24: 15 | CA24: 4 | CB24: 9 | CC24: 0 | CD24: 5 | CE24: 2 | CF24: 5 | CG24: 3 | CH24: 1 | CI24: 1 | CJ24: 0 | CK24: 0 | CL24: 0 | CM24: 0 | CN24: 0 | CO24: 1 | CP24: 0 | CQ24: 0 | CR24: 0 | CS24: 0 | CT24: 0 | CU24: 0 | CV24: 19 | CW24: 0 | CX24: 0 | CY24: 0 | CZ24: 0 | DA24: 0 | DB24: 0 | DC24: 0 | DD24: 1 | DE24: 0 | DF24: 1 | DG24: 0 | DH24: 0 | DI24: 0 | DJ24: 0 | DK24: 0 | DL24: 0 | DM24: 0 | DN24: 0 | DO24: 0 | DP24: 0 | DQ24: 0 | DR24: 0 | DS24: 0 | DT24: 0 | DU24: 0 | DV24: 0 | DW24: 0 | DX24: 0 | DY24: 0 | DZ24: 0 | EA24: 0 | EB24: 0 | EC24: 0 | ED24: 0 | EE24: 0 | EF24: 0 | EG24: 0 | EH24: 0 | EI24: 1
A25: ED_ASS521_00015 | C25: > 1 kV & < = 11 kV; Steel | N25: 40 | Y25: 6.32455532 | AJ25: 0 | AK25: 0 | AL25: 0 | AM25: 1 | AN25: 1 | AO25: 0 | AP25: 1 | AQ25: 0 | AR25: 0 | AS25: 0 | AT25: 0 | AU25: 0 | AV25: 0 | AW25: 0 | AX25: 0 | AY25: 1 | AZ25: 0 | BA25: 0 | BB25: 0 | BC25: 0 | BD25: 0 | BE25: 0 | BF25: 0 | BG25: 0 | BH25: 0 | BI25: 0 | BJ25: 0 | BK25: 0 | BL25: 0 | BM25: 0 | BN25: 0 | BO25: 0 | BP25: 0 | BQ25: 0 | BR25: 0 | BS25: 0 | BT25: 0 | BU25: 0 | BV25: 0 | BW25: 0 | BX25: 0 | BY25: 0 | BZ25: 0 | CA25: 0 | CB25: 1 | CC25: 1 | CD25: 0 | CE25: 0 | CF25: 0 | CG25: 0 | CH25: 0 | CI25: 0 | CJ25: 0 | CK25: 0 | CL25: 0 | CM25: 0 | CN25: 0 | CO25: 0 | CP25: 0 | CQ25: 0 | CR25: 0 | CS25: 0 | CT25: 0 | CU25: 0 | CV25: 0 | CW25: 0 | CX25: 0 | CY25: 0 | CZ25: 0 | DA25: 0 | DB25: 0 | DC25: 0 | DD25: 0 | DE25: 0 | DF25: 0 | DG25: 0 | DH25: 0 | DI25: 0 | DJ25: 0 | DK25: 0 | DL25: 0 | DM25: 0 | DN25: 0 | DO25: 0 | DP25: 0 | DQ25: 0 | DR25: 0 | DS25: 0 | DT25: 0 | DU25: 0 | DV25: 0 | DW25: 0 | DX25: 0 | DY25: 0 | DZ25: 0 | EA25: 0 | EB25: 0 | EC25: 0 | ED25: 0 | EE25: 0 | EF25: 0 | EG25: 0 | EH25: 0 | EI25: 0
A26: ED_ASS521_00016 | C26: ˃ 11 kV & < = 22 kV; Steel | N26: 40 | Y26: 6.32455532 | AJ26: 0 | AK26: 0 | AL26: 2 | AM26: 1 | AN26: 0 | AO26: 0 | AP26: 1 | AQ26: 3 | AR26: 0 | AS26: 0 | AT26: 1 | AU26: 0 | AV26: 1 | AW26: 0 | AX26: 0 | AY26: 0 | AZ26: 1 | BA26: 0 | BB26: 0 | BC26: 0 | BD26: 0 | BE26: 0 | BF26: 0 | BG26: 0 | BH26: 0 | BI26: 0 | BJ26: 0 | BK26: 0 | BL26: 0 | BM26: 0 | BN26: 0 | BO26: 1 | BP26: 0 | BQ26: 0 | BR26: 0 | BS26: 0 | BT26: 1 | BU26: 0 | BV26: 0 | BW26: 0 | BX26: 0 | BY26: 0 | BZ26: 1 | CA26: 0 | CB26: 0 | CC26: 0 | CD26: 0 | CE26: 0 | CF26: 0 | CG26: 0 | CH26: 0 | CI26: 0 | CJ26: 1 | CK26: 0 | CL26: 0 | CM26: 0 | CN26: 0 | CO26: 0 | CP26: 0 | CQ26: 0 | CR26: 0 | CS26: 0 | CT26: 0 | CU26: 0 | CV26: 0 | CW26: 0 | CX26: 0 | CY26: 0 | CZ26: 0 | DA26: 0 | DB26: 0 | DC26: 0 | DD26: 0 | DE26: 0 | DF26: 0 | DG26: 0 | DH26: 0 | DI26: 0 | DJ26: 0 | DK26: 0 | DL26: 0 | DM26: 0 | DN26: 0 | DO26: 0 | DP26: 0 | DQ26: 0 | DR26: 0 | DS26: 0 | DT26: 0 | DU26: 0 | DV26: 0 | DW26: 0 | DX26: 0 | DY26: 0 | DZ26: 0 | EA26: 0 | EB26: 0 | EC26: 0 | ED26: 0 | EE26: 0 | EF26: 0 | EG26: 0 | EH26: 0 | EI26: 0
A27: ED_ASS521_00017 | C27: > 22 kV & < = 66 kV; Steel | N27: 40 | Y27: 6.32455532 | AJ27: 0 | AK27: 0 | AL27: 0 | AM27: 0 | AN27: 0 | AO27: 1 | AP27: 1 | AQ27: 0 | AR27: 0 | AS27: 0 | AT27: 0 | AU27: 0 | AV27: 1 | AW27: 0 | AX27: 3 | AY27: 0 | AZ27: 6 | BA27: 0 | BB27: 0 | BC27: 0 | BD27: 0 | BE27: 0 | BF27: 0 | BG27: 0 | BH27: 0 | BI27: 0 | BJ27: 0 | BK27: 3 | BL27: 0 | BM27: 1 | BN27: 2 | BO27: 1 | BP27: 0 | BQ27: 0 | BR27: 0 | BS27: 2 | BT27: 0 | BU27: 0 | BV27: 0 | BW27: 2 | BX27: 0 | BY27: 2 | BZ27: 0 | CA27: 0 | CB27: 0 | CC27: 0 | CD27: 0 | CE27: 0 | CF27: 0 | CG27: 1 | CH27: 0 | CI27: 0 | CJ27: 0 | CK27: 0 | CL27: 0 | CM27: 0 | CN27: 0 | CO27: 0 | CP27: 0 | CQ27: 0 | CR27: 0 | CS27: 0 | CT27: 0 | CU27: 0 | CV27: 0 | CW27: 0 | CX27: 0 | CY27: 0 | CZ27: 0 | DA27: 0 | DB27: 0 | DC27: 0 | DD27: 0 | DE27: 0 | DF27: 0 | DG27: 0 | DH27: 0 | DI27: 0 | DJ27: 0 | DK27: 0 | DL27: 0 | DM27: 0 | DN27: 0 | DO27: 0 | DP27: 0 | DQ27: 0 | DR27: 0 | DS27: 0 | DT27: 0 | DU27: 0 | DV27: 0 | DW27: 0 | DX27: 0 | DY27: 0 | DZ27: 0 | EA27: 0 | EB27: 0 | EC27: 0 | ED27: 0 | EE27: 0 | EF27: 0 | EG27: 0 | EH27: 0 | EI27: 0
A28: ED_ASS521_00018 | C28: > 66 kV & < = 132 kV; Steel | N28: 0 | Y28: 0 | AJ28: 0 | AK28: 0 | AL28: 0 | AM28: 0 | AN28: 0 | AO28: 0 | AP28: 0 | AQ28: 0 | AR28: 0 | AS28: 0 | AT28: 0 | AU28: 0 | AV28: 0 | AW28: 0 | AX28: 0 | AY28: 0 | AZ28: 0 | BA28: 0 | BB28: 0 | BC28: 0 | BD28: 0 | BE28: 0 | BF28: 0 | BG28: 0 | BH28: 0 | BI28: 0 | BJ28: 0 | BK28: 0 | BL28: 0 | BM28: 0 | BN28: 0 | BO28: 0 | BP28: 0 | BQ28: 0 | BR28: 0 | BS28: 0 | BT28: 0 | BU28: 0 | BV28: 0 | BW28: 0 | BX28: 0 | BY28: 0 | BZ28: 0 | CA28: 0 | CB28: 0 | CC28: 0 | CD28: 0 | CE28: 0 | CF28: 0 | CG28: 0 | CH28: 0 | CI28: 0 | CJ28: 0 | CK28: 0 | CL28: 0 | CM28: 0 | CN28: 0 | CO28: 0 | CP28: 0 | CQ28: 0 | CR28: 0 | CS28: 0 | CT28: 0 | CU28: 0 | CV28: 0 | CW28: 0 | CX28: 0 | CY28: 0 | CZ28: 0 | DA28: 0 | DB28: 0 | DC28: 0 | DD28: 0 | DE28: 0 | DF28: 0 | DG28: 0 | DH28: 0 | DI28: 0 | DJ28: 0 | DK28: 0 | DL28: 0 | DM28: 0 | DN28: 0 | DO28: 0 | DP28: 0 | DQ28: 0 | DR28: 0 | DS28: 0 | DT28: 0 | DU28: 0 | DV28: 0 | DW28: 0 | DX28: 0 | DY28: 0 | DZ28: 0 | EA28: 0 | EB28: 0 | EC28: 0 | ED28: 0 | EE28: 0 | EF28: 0 | EG28: 0 | EH28: 0 | EI28: 0
A29: ED_ASS521_00019 | C29: > 132 kV; Steel | N29: 0 | Y29: 0 | AJ29: 0 | AK29: 0 | AL29: 0 | AM29: 0 | AN29: 0 | AO29: 0 | AP29: 0 | AQ29: 0 | AR29: 0 | AS29: 0 | AT29: 0 | AU29: 0 | AV29: 0 | AW29: 0 | AX29: 0 | AY29: 0 | AZ29: 0 | BA29: 0 | BB29: 0 | BC29: 0 | BD29: 0 | BE29: 0 | BF29: 0 | BG29: 0 | BH29: 0 | BI29: 0 | BJ29: 0 | BK29: 0 | BL29: 0 | BM29: 0 | BN29: 0 | BO29: 0 | BP29: 0 | BQ29: 0 | BR29: 0 | BS29: 0 | BT29: 0 | BU29: 0 | BV29: 0 | BW29: 0 | BX29: 0 | BY29: 0 | BZ29: 0 | CA29: 0 | CB29: 0 | CC29: 0 | CD29: 0 | CE29: 0 | CF29: 0 | CG29: 0 | CH29: 0 | CI29: 0 | CJ29: 0 | CK29: 0 | CL29: 0 | CM29: 0 | CN29: 0 | CO29: 0 | CP29: 0 | CQ29: 0 | CR29: 0 | CS29: 0 | CT29: 0 | CU29: 0 | CV29: 0 | CW29: 0 | CX29: 0 | CY29: 0 | CZ29: 0 | DA29: 0 | DB29: 0 | DC29: 0 | DD29: 0 | DE29: 0 | DF29: 0 | DG29: 0 | DH29: 0 | DI29: 0 | DJ29: 0 | DK29: 0 | DL29: 0 | DM29: 0 | DN29: 0 | DO29: 0 | DP29: 0 | DQ29: 0 | DR29: 0 | DS29: 0 | DT29: 0 | DU29: 0 | DV29: 0 | DW29: 0 | DX29: 0 | DY29: 0 | DZ29: 0 | EA29: 0 | EB29: 0 | EC29: 0 | ED29: 0 | EE29: 0 | EF29: 0 | EG29: 0 | EH29: 0 | EI29: 0
C30: STAKED ˂ = 1 kV; Wood | N30: 20 | Y30: 4.472135955 | AJ30: 540 | AK30: 563 | AL30: 248 | AM30: 299 | AN30: 208 | AO30: 251 | AP30: 371 | AQ30: 409 | AR30: 283 | AS30: 298 | AT30: 394 | AU30: 273 | AV30: 276 | AW30: 226 | AX30: 208 | AY30: 228 | AZ30: 283 | BA30: 327 | BB30: 203 | BC30: 157 | BD30: 195 | BE30: 547 | BF30: 547 | BG30: 420 | BH30: 821 | BI30: 389 | BJ30: 22 | BK30: 42 | BL30: 281 | BM30: 20 | BN30: 0 | BO30: 0 | BP30: 0 | BQ30: 0 | BR30: 0 | BS30: 0 | BT30: 1 | BU30: 0 | BV30: 0 | BW30: 0 | BX30: 0 | BY30: 0 | BZ30: 0 | CA30: 0 | CB30: 2 | CC30: 0 | CD30: 0 | CE30: 0 | CF30: 0 | CG30: 0 | CH30: 0 | CI30: 0 | CJ30: 0 | CK30: 0 | CL30: 0 | CM30: 0 | CN30: 0 | CO30: 0 | CP30: 0 | CQ30: 0 | CR30: 0 | CS30: 0 | CT30: 0 | CU30: 0 | CV30: 0 | CW30: 0 | CX30: 0 | CY30: 0 | CZ30: 0 | DA30: 0 | DB30: 0 | DC30: 0 | DD30: 0 | DE30: 0 | DF30: 0 | DG30: 0 | DH30: 0 | DI30: 0 | DJ30: 0 | DK30: 0 | DL30: 0 | DM30: 0 | DN30: 0 | DO30: 0 | DP30: 0 | DQ30: 0 | DR30: 0 | DS30: 0 | DT30: 0 | DU30: 0 | DV30: 0 | DW30: 0 | DX30: 0 | DY30: 0 | DZ30: 0 | EA30: 0 | EB30: 0 | EC30: 0 | ED30: 0 | EE30: 0 | EF30: 0 | EG30: 0 | EH30: 0 | EI30: 0
C31: STAKED > 1 kV & < = 11 kV; Wood | N31: 20 | Y31: 4.472135955 | AJ31: 125 | AK31: 76 | AL31: 28 | AM31: 24 | AN31: 51 | AO31: 37 | AP31: 61 | AQ31: 56 | AR31: 81 | AS31: 73 | AT31: 83 | AU31: 46 | AV31: 57 | AW31: 70 | AX31: 69 | AY31: 82 | AZ31: 122 | BA31: 77 | BB31: 65 | BC31: 29 | BD31: 17 | BE31: 78 | BF31: 102 | BG31: 70 | BH31: 129 | BI31: 92 | BJ31: 6 | BK31: 10 | BL31: 114 | BM31: 9 | BN31: 0 | BO31: 0 | BP31: 0 | BQ31: 0 | BR31: 0 | BS31: 0 | BT31: 0 | BU31: 0 | BV31: 0 | BW31: 0 | BX31: 0 | BY31: 0 | BZ31: 0 | CA31: 0 | CB31: 0 | CC31: 0 | CD31: 0 | CE31: 0 | CF31: 0 | CG31: 0 | CH31: 0 | CI31: 0 | CJ31: 0 | CK31: 0 | CL31: 0 | CM31: 0 | CN31: 0 | CO31: 0 | CP31: 0 | CQ31: 0 | CR31: 0 | CS31: 0 | CT31: 0 | CU31: 0 | CV31: 0 | CW31: 0 | CX31: 0 | CY31: 0 | CZ31: 0 | DA31: 0 | DB31: 0 | DC31: 0 | DD31: 0 | DE31: 0 | DF31: 0 | DG31: 0 | DH31: 0 | DI31: 0 | DJ31: 0 | DK31: 0 | DL31: 0 | DM31: 0 | DN31: 0 | DO31: 0 | DP31: 0 | DQ31: 0 | DR31: 0 | DS31: 0 | DT31: 0 | DU31: 0 | DV31: 0 | DW31: 0 | DX31: 0 | DY31: 0 | DZ31: 0 | EA31: 0 | EB31: 0 | EC31: 0 | ED31: 0 | EE31: 0 | EF31: 0 | EG31: 0 | EH31: 0 | EI31: 0
C32: STAKED ˃ 11 kV & < = 22 kV; Wood | N32: 20 | Y32: 4.472135955 | AJ32: 214 | AK32: 228 | AL32: 100 | AM32: 157 | AN32: 106 | AO32: 73 | AP32: 129 | AQ32: 169 | AR32: 135 | AS32: 191 | AT32: 251 | AU32: 139 | AV32: 151 | AW32: 115 | AX32: 139 | AY32: 137 | AZ32: 168 | BA32: 161 | BB32: 74 | BC32: 88 | BD32: 96 | BE32: 166 | BF32: 181 | BG32: 144 | BH32: 273 | BI32: 186 | BJ32: 17 | BK32: 14 | BL32: 26 | BM32: 15 | BN32: 0 | BO32: 0 | BP32: 0 | BQ32: 0 | BR32: 0 | BS32: 0 | BT32: 0 | BU32: 0 | BV32: 0 | BW32: 0 | BX32: 0 | BY32: 0 | BZ32: 0 | CA32: 0 | CB32: 1 | CC32: 0 | CD32: 0 | CE32: 0 | CF32: 0 | CG32: 0 | CH32: 0 | CI32: 0 | CJ32: 0 | CK32: 0 | CL32: 0 | CM32: 0 | CN32: 0 | CO32: 0 | CP32: 0 | CQ32: 0 | CR32: 0 | CS32: 0 | CT32: 0 | CU32: 0 | CV32: 0 | CW32: 0 | CX32: 0 | CY32: 0 | CZ32: 0 | DA32: 0 | DB32: 0 | DC32: 0 | DD32: 0 | DE32: 0 | DF32: 0 | DG32: 0 | DH32: 0 | DI32: 0 | DJ32: 0 | DK32: 0 | DL32: 0 | DM32: 0 | DN32: 0 | DO32: 0 | DP32: 0 | DQ32: 0 | DR32: 0 | DS32: 0 | DT32: 0 | DU32: 0 | DV32: 0 | DW32: 0 | DX32: 0 | DY32: 0 | DZ32: 0 | EA32: 0 | EB32: 0 | EC32: 0 | ED32: 0 | EE32: 0 | EF32: 0 | EG32: 0 | EH32: 0 | EI32: 0
C33: STAKED > 22 kV & < = 66 kV; Wood | N33: 20 | Y33: 4.472135955 | AJ33: 22 | AK33: 37 | AL33: 12 | AM33: 24 | AN33: 21 | AO33: 12 | AP33: 15 | AQ33: 26 | AR33: 21 | AS33: 18 | AT33: 33 | AU33: 16 | AV33: 18 | AW33: 11 | AX33: 16 | AY33: 16 | AZ33: 17 | BA33: 7 | BB33: 8 | BC33: 16 | BD33: 9 | BE33: 8 | BF33: 31 | BG33: 10 | BH33: 11 | BI33: 4 | BJ33: 1 | BK33: 1 | BL33: 2 | BM33: 1 | BN33: 0 | BO33: 0 | BP33: 0 | BQ33: 0 | BR33: 0 | BS33: 0 | BT33: 0 | BU33: 0 | BV33: 0 | BW33: 0 | BX33: 0 | BY33: 0 | BZ33: 0 | CA33: 0 | CB33: 0 | CC33: 0 | CD33: 0 | CE33: 0 | CF33: 0 | CG33: 0 | CH33: 0 | CI33: 0 | CJ33: 0 | CK33: 0 | CL33: 0 | CM33: 0 | CN33: 0 | CO33: 0 | CP33: 0 | CQ33: 0 | CR33: 0 | CS33: 0 | CT33: 0 | CU33: 0 | CV33: 0 | CW33: 0 | CX33: 0 | CY33: 0 | CZ33: 0 | DA33: 0 | DB33: 0 | DC33: 0 | DD33: 0 | DE33: 0 | DF33: 0 | DG33: 0 | DH33: 0 | DI33: 0 | DJ33: 0 | DK33: 0 | DL33: 0 | DM33: 0 | DN33: 0 | DO33: 0 | DP33: 0 | DQ33: 0 | DR33: 0 | DS33: 0 | DT33: 0 | DU33: 0 | DV33: 0 | DW33: 0 | DX33: 0 | DY33: 0 | DZ33: 0 | EA33: 0 | EB33: 0 | EC33: 0 | ED33: 0 | EE33: 0 | EF33: 0 | EG33: 0 | EH33: 0 | EI33: 0
A46: ED_ASS521_99000 | C46: Other | E46: DNSP NAME | F46: REPEX | G46: POLES | H46: Other | I46: DESCRIPTOR METRIC | J46: MEAN ECONOMIC LIFE | K46: YEARS | L46: NUMBER | N46: 0 | O46: 0 | P46: 0 | Q46: 0 | R46: 0 | S46: 0 | T46: 0 | U46: 0 | V46: 0 | W46: 0 | X46: 0 | Y46: 0 | Z46: 0 | AA46: 0 | AB46: 0 | AC46: 0 | AD46: 0 | AE46: 0 | AF46: 0 | AG46: 0 | AH46: 0 | AI46: 0 | AJ46: 0 | AK46: 0 | AL46: 0 | AM46: 0 | AN46: 0 | AO46: 0 | AP46: 0 | AQ46: 0 | AR46: 0 | AS46: 0 | AT46: 0 | AU46: 0 | AV46: 0 | AW46: 0 | AX46: 0 | AY46: 0 | AZ46: 0 | BA46: 0 | BB46: 0 | BC46: 0 | BD46: 0 | BE46: 0 | BF46: 0 | BG46: 0 | BH46: 0 | BI46: 0 | BJ46: 0 | BK46: 0 | BL46: 0 | BM46: 0 | BN46: 0 | BO46: 0 | BP46: 0 | BQ46: 0 | BR46: 0 | BS46: 0 | BT46: 0 | BU46: 0 | BV46: 0 | BW46: 0 | BX46: 0 | BY46: 0 | BZ46: 0 | CA46: 0 | CB46: 0 | CC46: 0 | CD46: 0 | CE46: 0 | CF46: 0 | CG46: 0 | CH46: 0 | CI46: 0 | CJ46: 0 | CK46: 0 | CL46: 0 | CM46: 0 | CN46: 0 | CO46: 0 | CP46: 0 | CQ46: 0 | CR46: 0 | CS46: 0 | CT46: 0 | CU46: 0 | CV46: 0 | CW46: 0 | CX46: 0 | CY46: 0 | CZ46: 0 | DA46: 0 | DB46: 0 | DC46: 0 | DD46: 0 | DE46: 0 | DF46: 0 | DG46: 0 | DH46: 0 | DI46: 0 | DJ46: 0 | DK46: 0 | DL46: 0 | DM46: 0 | DN46: 0 | DO46: 0 | DP46: 0 | DQ46: 0 | DR46: 0 | DS46: 0 | DT46: 0 | DU46: 0 | DV46: 0 | DW46: 0 | DX46: 0 | DY46: 0 | DZ46: 0 | EA46: 0 | EB46: 0 | EC46: 0 | ED46: 0 | EE46: 0 | EF46: 0 | EG46: 0 | EH46: 0 | EI46: 0
A47: ED_ASS521_00021 | B47: OVERHEAD CONDUCTORS BY: HIGHEST OPERATING VOLTAGE; NUMBER OF PHASES (AT HV) | C47: ˂ = 1 kV | E47: DNSP NAME | F47: REPEX | G47: OVERHEAD CONDUCTORS | H47: ˂ = 1 kV | I47: DESCRIPTOR METRIC | J47: MEAN ECONOMIC LIFE | K47: YEARS | L47: NUMBER | N47: 0 | Y47: 0 | AJ47: 21065.21129 | AK47: 25936.37154 | AL47: 29716.94451 | AM47: 16831.12089 | AN47: 23150.58325 | AO47: 33490.10639 | AP47: 24532.51159 | AQ47: 31936.93624 | AR47: 38439.90946 | AS47: 21888.57332 | AT47: 12743.55536 | AU47: 17178.82601 | AV47: 21731.28864 | AW47: 19198.20695 | AX47: 34202.95457 | AY47: 21783.88264 | AZ47: 24201.27517 | BA47: 54967.77646 | BB47: 9331.207799 | BC47: 12816.14672 | BD47: 19723.02567 | BE47: 34782.25581 | BF47: 39324.98373 | BG47: 29868.40797 | BH47: 62291.81708 | BI47: 78797.7498 | BJ47: 97933.72255 | BK47: 86105.47162 | BL47: 109965.8035 | BM47: 127423.411 | BN47: 106739.55 | BO47: 91862.48402 | BP47: 93719.30801 | BQ47: 105268.1867 | BR47: 132449.9643 | BS47: 69171.65721 | BT47: 96020.43039 | BU47: 100098.3936 | BV47: 118305.0126 | BW47: 33315.53525 | BX47: 133142.5003 | BY47: 164326.4458 | BZ47: 154902.0936 | CA47: 143318.9101 | CB47: 162524.0548 | CC47: 196542.5579 | CD47: 183707.6027 | CE47: 188395.3556 | CF47: 160799.1386 | CG47: 225523.6779 | CH47: 174183.3283 | CI47: 128340.2338 | CJ47: 128206.9015 | CK47: 136831.5179 | CL47: 135651.1671 | CM47: 128166.2263 | CN47: 119824.0694 | CO47: 67404.52918 | CP47: 37042.61117 | CQ47: 28802.92627 | CR47: 38238.85388 | CS47: 27064.09063 | CT47: 30760.35121 | CU47: 17853.42109 | CV47: 94689.44492 | CW47: 23999.57982 | CX47: 22887.50896 | CY47: 18386.92377 | CZ47: 17080.02433 | DA47: 6604.579131 | DB47: 3415.331843 | DC47: 6184.708989 | DD47: 21588.64667 | DE47: 31773.13793 | DF47: 48615.53223 | DG47: 44964.56926 | DH47: 70869.5388 | DI47: 60418.74277 | DJ47: 35473.33509 | DK47: 61310.37432 | DL47: 58550.63694 | DM47: 40234.45383 | DN47: 16734.46258 | DO47: 3782.208459 | DP47: 7184.17028 | DQ47: 9099.549823 | DR47: 6719.969946 | DS47: 8881.183194 | DT47: 1032.106445 | DU47: 231.9955841 | DV47: 514.0788476 | DW47: 190.8619549 | DX47: 2709.462661 | DY47: 132.5981239 | DZ47: 799.7133382 | EA47: 175.3588617 | EB47: 210.1215084 | EC47: 205.2505582 | ED47: 0 | EE47: 0 | EF47: 267.9309299 | EG47: 0 | EH47: 0 | EI47: 391.7842895
A48: ED_ASS521_00022 | C48: > 1 kV & < = 11 kV | E48: DNSP NAME | F48: REPEX | G48: OVERHEAD CONDUCTORS | H48: > 1 kV & < = 11 kV | I48: DESCRIPTOR METRIC | J48: MEAN ECONOMIC LIFE | K48: YEARS | L48: NUMBER | N48: 0 | Y48: 0 | AJ48: 4044.1294 | AK48: 7771.679099 | AL48: 22803.50641 | AM48: 11216.54915 | AN48: 13496.44141 | AO48: 9456.130142 | AP48: 9316.315528 | AQ48: 4368.033754 | AR48: 2320.69767 | AS48: 3774.485348 | AT48: 4397.033113 | AU48: 3297.072857 | AV48: 3749.082253 | AW48: 6483.965324 | AX48: 4874.270166 | AY48: 13568.49227 | AZ48: 9639.258769 | BA48: 4368.02249 | BB48: 1976.219988 | BC48: 1332.949394 | BD48: 4470.679985 | BE48: 4700.150954 | BF48: 3289.70817 | BG48: 5049.714326 | BH48: 8278.84041 | BI48: 6148.256128 | BJ48: 6322.449306 | BK48: 7440.465378 | BL48: 13901.97094 | BM48: 19324.36509 | BN48: 8335.677313 | BO48: 10076.99693 | BP48: 19654.42564 | BQ48: 17332.34678 | BR48: 15119.96171 | BS48: 12095.85286 | BT48: 12012.67344 | BU48: 6022.112331 | BV48: 10503.68807 | BW48: 10239.89594 | BX48: 19032.71562 | BY48: 23885.37727 | BZ48: 7369.598258 | CA48: 4349.347966 | CB48: 6662.203611 | CC48: 4339.644815 | CD48: 6145.280783 | CE48: 7249.865248 | CF48: 3261.269191 | CG48: 8726.802047 | CH48: 5282.551386 | CI48: 8681.88168 | CJ48: 14348.37894 | CK48: 22034.59543 | CL48: 15062.82119 | CM48: 14859.67733 | CN48: 21624.87002 | CO48: 742.7268001 | CP48: 1229.177162 | CQ48: 1253.262284 | CR48: 3488.126062 | CS48: 3640.327524 | CT48: 562.6148293 | CU48: 3083.417869 | CV48: 4338.734034 | CW48: 1287.895319 | CX48: 1396.542579 | CY48: 883.5718674 | CZ48: 1424.318112 | DA48: 511.2287308 | DB48: 176.4297118 | DC48: 1115.052905 | DD48: 4675.254031 | DE48: 5337.045943 | DF48: 7234.714015 | DG48: 7319.380803 | DH48: 13598.19607 | DI48: 10417.11834 | DJ48: 5391.591966 | DK48: 13301.97703 | DL48: 12999.34354 | DM48: 6982.03617 | DN48: 3883.482306 | DO48: 387.9788445 | DP48: 1821.617311 | DQ48: 2996.304412 | DR48: 995.6881322 | DS48: 1298.474809 | DT48: 344.3137014 | DU48: 0 | DV48: 351.4560152 | DW48: 0 | DX48: 1049.913971 | DY48: 0 | DZ48: 431.3900114 | EA48: 0 | EB48: 0 | EC48: 0 | ED48: 0 | EE48: 0 | EF48: 0 | EG48: 0 | EH48: 0 | EI48: 0
A49: ED_ASS521_00023 | C49: ˃ 11 kV & < = 22 kV ; SWER | N49: 60 | Y49: 7.745966692 | AJ49: 0 | AK49: 0 | AL49: 0 | AM49: 0 | AN49: 0 | AO49: 0 | AP49: 0 | AQ49: 0 | AR49: 0 | AS49: 0 | AT49: 0 | AU49: 0 | AV49: 0 | AW49: 0 | AX49: 0 | AY49: 0 | AZ49: 0 | BA49: 0 | BB49: 0 | BC49: 0 | BD49: 0 | BE49: 0 | BF49: 0 | BG49: 0 | BH49: 0 | BI49: 0 | BJ49: 0 | BK49: 0 | BL49: 0 | BM49: 0 | BN49: 0 | BO49: 0 | BP49: 0 | BQ49: 0 | BR49: 0 | BS49: 0 | BT49: 0 | BU49: 637.501297 | BV49: 1864.500694 | BW49: 1515.924699 | BX49: 3557.712245 | BY49: 499.7387035 | BZ49: 0 | CA49: 289.0491189 | CB49: 0 | CC49: 0 | CD49: 767.5432215 | CE49: 3598.209878 | CF49: 685.9664757 | CG49: 6253.915636 | CH49: 3169.963249 | CI49: 2261.672816 | CJ49: 2966.007315 | CK49: 3931.148006 | CL49: 0 | CM49: 385.6166818 | CN49: 8382.099911 | CO49: 80.46386135 | CP49: 0 | CQ49: 0 | CR49: 0 | CS49: 0 | CT49: 0 | CU49: 0 | CV49: 0 | CW49: 0 | CX49: 0 | CY49: 0 | CZ49: 0 | DA49: 0 | DB49: 0 | DC49: 0 | DD49: 0 | DE49: 0 | DF49: 0 | DG49: 0 | DH49: 0 | DI49: 0 | DJ49: 0 | DK49: 0 | DL49: 0 | DM49: 0 | DN49: 0 | DO49: 0 | DP49: 0 | DQ49: 0 | DR49: 0 | DS49: 0 | DT49: 0 | DU49: 0 | DV49: 0 | DW49: 0 | DX49: 0 | DY49: 0 | DZ49: 0 | EA49: 0 | EB49: 0 | EC49: 0 | ED49: 0 | EE49: 0 | EF49: 0 | EG49: 0 | EH49: 0 | EI49: 0
A50: ED_ASS521_00024 | C50: ˃ 11 kV & < = 22 kV ; Single-Phase | N50: 60 | Y50: 7.745966692 | AJ50: 0 | AK50: 0 | AL50: 50.66686772 | AM50: 1446.548095 | AN50: 0 | AO50: 168.7462725 | AP50: 41.16683098 | AQ50: 64.94898127 | AR50: 0 | AS50: 754.0481178 | AT50: 0 | AU50: 66.6874066 | AV50: 0 | AW50: 568.7276933 | AX50: 577.6738262 | AY50: 0 | AZ50: 1472.30603 | BA50: 540.3627512 | BB50: 0 | BC50: 0 | BD50: 809.2941393 | BE50: 0 | BF50: 0 | BG50: 0 | BH50: 612.897601 | BI50: 4007.708099 | BJ50: 1852.345875 | BK50: 1803.454655 | BL50: 2523.395561 | BM50: 10097.99286 | BN50: 5517.086271 | BO50: 1385.679285 | BP50: 1956.929819 | BQ50: 1308.764234 | BR50: 2083.745303 | BS50: 96.71282763 | BT50: 294.6844413 | BU50: 26837.26128 | BV50: 21062.38485 | BW50: 8533.205076 | BX50: 17591.85608 | BY50: 4458.230148 | BZ50: 2149.196376 | CA50: 6376.433872 | CB50: 21592.2788 | CC50: 17896.20922 | CD50: 14353.73621 | CE50: 10333.8624 | CF50: 5493.882959 | CG50: 12941.87061 | CH50: 8113.660638 | CI50: 6259.548323 | CJ50: 11301.72168 | CK50: 2652.859027 | CL50: 5172.075937 | CM50: 5277.21191 | CN50: 7746.4392 | CO50: 0 | CP50: 1157.372818 | CQ50: 2820.333078 | CR50: 0 | CS50: 0 | CT50: 0 | CU50: 0 | CV50: 1411.254721 | CW50: 0 | CX50: 0 | CY50: 0 | CZ50: 0 | DA50: 0 | DB50: 0 | DC50: 0 | DD50: 608.3237015 | DE50: 0 | DF50: 0 | DG50: 0 | DH50: 32.25237787 | DI50: 90.31380816 | DJ50: 0 | DK50: 0 | DL50: 0 | DM50: 0 | DN50: 0 | DO50: 0 | DP50: 0 | DQ50: 0 | DR50: 0 | DS50: 0 | DT50: 0 | DU50: 0 | DV50: 0 | DW50: 0 | DX50: 0 | DY50: 0 | DZ50: 0 | EA50: 0 | EB50: 0 | EC50: 0 | ED50: 0 | EE50: 0 | EF50: 0 | EG50: 0 | EH50: 0 | EI50: 0
A51: ED_ASS521_00025 | C51: ˃ 11 kV & < = 22 kV ; Multiple-Phase | N51: 0 | Y51: 0 | AJ51: 10056.77616 | AK51: 25038.76405 | AL51: 21080.63332 | AM51: 46088.77586 | AN51: 29658.85571 | AO51: 50555.45718 | AP51: 34322.36578 | AQ51: 7970.358069 | AR51: 5169.210943 | AS51: 10943.81393 | AT51: 5957.645931 | AU51: 10182.89309 | AV51: 12692.17137 | AW51: 17175.43309 | AX51: 39354.36494 | AY51: 21146.5249 | AZ51: 59036.3201 | BA51: 17024.06442 | BB51: 4722.38032 | BC51: 6677.773457 | BD51: 6597.894617 | BE51: 8555.207982 | BF51: 14366.36426 | BG51: 8030.912606 | BH51: 28986.80474 | BI51: 43428.99971 | BJ51: 54040.52935 | BK51: 46536.96795 | BL51: 51808.21849 | BM51: 65660.98083 | BN51: 54620.45716 | BO51: 46879.51806 | BP51: 36651.34371 | BQ51: 56154.41868 | BR51: 47518.17035 | BS51: 19449.77175 | BT51: 38647.33668 | BU51: 85666.8081 | BV51: 106638.8708 | BW51: 67237.00993 | BX51: 83759.68097 | BY51: 88117.95948 | BZ51: 47716.86382 | CA51: 56685.42771 | CB51: 57651.9351 | CC51: 84928.74334 | CD51: 62023.3075 | CE51: 77313.52472 | CF51: 86904.67533 | CG51: 131694.1566 | CH51: 75120.00768 | CI51: 70043.76434 | CJ51: 48814.2826 | CK51: 76281.93009 | CL51: 47207.2684 | CM51: 51703.95464 | CN51: 54099.65818 | CO51: 2492.448731 | CP51: 18435.35875 | CQ51: 6232.85816 | CR51: 5345.079743 | CS51: 3270.892729 | CT51: 9171.340053 | CU51: 3185.4739 | CV51: 19027.35101 | CW51: 4101.298023 | CX51: 7974.20969 | CY51: 3784.194789 | CZ51: 3064.52428 | DA51: 360.8300479 | DB51: 221.3657223 | DC51: 730.3395653 | DD51: 639.51322 | DE51: 0 | DF51: 4213.684689 | DG51: 1692.301029 | DH51: 4937.719929 | DI51: 4361.184409 | DJ51: 2225.818764 | DK51: 14643.98517 | DL51: 8955.903986 | DM51: 2189.688518 | DN51: 1975.351556 | DO51: 436.5794224 | DP51: 1671.600117 | DQ51: 1890.245187 | DR51: 0 | DS51: 2057.785404 | DT51: 0 | DU51: 0 | DV51: 0 | DW51: 0 | DX51: 0 | DY51: 0 | DZ51: 0 | EA51: 0 | EB51: 0 | EC51: 0 | ED51: 0 | EE51: 0 | EF51: 0 | EG51: 0 | EH51: 0 | EI51: 0
A52: ED_ASS521_00026 | C52: > 22 kV & < = 66 kV | N52: 60 | Y52: 7.745966692 | AJ52: 110634.2508 | AK52: 0 | AL52: 13935.02614 | AM52: 0 | AN52: 10176.76619 | AO52: 30243.61595 | AP52: 0 | AQ52: 105737.9526 | AR52: 1291.961041 | AS52: 8397.80643 | AT52: 2876.569316 | AU52: 0 | AV52: 5205.287611 | AW52: 113.2635419 | AX52: 6564.687554 | AY52: 1311.353153 | AZ52: 12465.02093 | BA52: 1043.778415 | BB52: 4094.34889 | BC52: 21521.94285 | BD52: 18413.50195 | BE52: 8783.761311 | BF52: 9977.722879 | BG52: 711.9959231 | BH52: 3416.743772 | BI52: 387.8848624 | BJ52: 10615.06696 | BK52: 2613.005698 | BL52: 10980.21451 | BM52: 34184.25699 | BN52: 10023.53809 | BO52: 50841.84057 | BP52: 14679.94531 | BQ52: 30363.42675 | BR52: 15512.35155 | BS52: 12132.42849 | BT52: 3661.925353 | BU52: 8826.129893 | BV52: 29562.69548 | BW52: 10524.52949 | BX52: 2175.668377 | BY52: 3910.654041 | BZ52: 0 | CA52: 0 | CB52: 0 | CC52: 0 | CD52: 0 | CE52: 0 | CF52: 0 | CG52: 0 | CH52: 0 | CI52: 0 | CJ52: 47164.6651 | CK52: 0 | CL52: 0 | CM52: 546.1935174 | CN52: 0 | CO52: 9969.855327 | CP52: 0 | CQ52: 0 | CR52: 0 | CS52: 0 | CT52: 0 | CU52: 1508.655414 | CV52: 0 | CW52: 3213.388498 | CX52: 0 | CY52: 0 | CZ52: 0 | DA52: 0 | DB52: 0 | DC52: 0 | DD52: 0 | DE52: 0 | DF52: 0 | DG52: 0 | DH52: 0 | DI52: 0 | DJ52: 0 | DK52: 0 | DL52: 0 | DM52: 0 | DN52: 0 | DO52: 0 | DP52: 0 | DQ52: 0 | DR52: 0 | DS52: 0 | DT52: 0 | DU52: 0 | DV52: 0 | DW52: 0 | DX52: 0 | DY52: 0 | DZ52: 0 | EA52: 0 | EB52: 0 | EC52: 0 | ED52: 0 | EE52: 0 | EF52: 0 | EG52: 0 | EH52: 0 | EI52: 0
A53: ED_ASS521_00027 | C53: > 66 kV & < = 132 kV | N53: 0 | Y53: 0 | AJ53: 0 | AK53: 0 | AL53: 0 | AM53: 0 | AN53: 0 | AO53: 0 | AP53: 0 | AQ53: 0 | AR53: 0 | AS53: 0 | AT53: 0 | AU53: 0 | AV53: 0 | AW53: 0 | AX53: 0 | AY53: 0 | AZ53: 0 | BA53: 0 | BB53: 0 | BC53: 0 | BD53: 0 | BE53: 0 | BF53: 0 | BG53: 0 | BH53: 0 | BI53: 0 | BJ53: 0 | BK53: 0 | BL53: 0 | BM53: 0 | BN53: 0 | BO53: 0 | BP53: 0 | BQ53: 0 | BR53: 0 | BS53: 0 | BT53: 0 | BU53: 0 | BV53: 0 | BW53: 0 | BX53: 0 | BY53: 0 | BZ53: 0 | CA53: 0 | CB53: 0 | CC53: 0 | CD53: 0 | CE53: 0 | CF53: 0 | CG53: 0 | CH53: 0 | CI53: 0 | CJ53: 0 | CK53: 0 | CL53: 0 | CM53: 0 | CN53: 0 | CO53: 0 | CP53: 0 | CQ53: 0 | CR53: 0 | CS53: 0 | CT53: 0 | CU53: 0 | CV53: 0 | CW53: 0 | CX53: 0 | CY53: 0 | CZ53: 0 | DA53: 0 | DB53: 0 | DC53: 0 | DD53: 0 | DE53: 0 | DF53: 0 | DG53: 0 | DH53: 0 | DI53: 0 | DJ53: 0 | DK53: 0 | DL53: 0 | DM53: 0 | DN53: 0 | DO53: 0 | DP53: 0 | DQ53: 0 | DR53: 0 | DS53: 0 | DT53: 0 | DU53: 0 | DV53: 0 | DW53: 0 | DX53: 0 | DY53: 0 | DZ53: 0 | EA53: 0 | EB53: 0 | EC53: 0 | ED53: 0 | EE53: 0 | EF53: 0 | EG53: 0 | EH53: 0 | EI53: 0
A54: ED_ASS521_00028 | C54: > 132 kV | N54: 0 | Y54: 0 | AJ54: 0 | AK54: 0 | AL54: 0 | AM54: 0 | AN54: 0 | AO54: 0 | AP54: 0 | AQ54: 0 | AR54: 0 | AS54: 0 | AT54: 0 | AU54: 0 | AV54: 0 | AW54: 0 | AX54: 0 | AY54: 0 | AZ54: 0 | BA54: 0 | BB54: 0 | BC54: 0 | BD54: 0 | BE54: 0 | BF54: 0 | BG54: 0 | BH54: 0 | BI54: 0 | BJ54: 0 | BK54: 0 | BL54: 0 | BM54: 0 | BN54: 0 | BO54: 0 | BP54: 0 | BQ54: 0 | BR54: 0 | BS54: 0 | BT54: 0 | BU54: 0 | BV54: 0 | BW54: 0 | BX54: 0 | BY54: 0 | BZ54: 0 | CA54: 0 | CB54: 0 | CC54: 0 | CD54: 0 | CE54: 0 | CF54: 0 | CG54: 0 | CH54: 0 | CI54: 0 | CJ54: 0 | CK54: 0 | CL54: 0 | CM54: 0 | CN54: 0 | CO54: 0 | CP54: 0 | CQ54: 0 | CR54: 0 | CS54: 0 | CT54: 0 | CU54: 0 | CV54: 0 | CW54: 0 | CX54: 0 | CY54: 0 | CZ54: 0 | DA54: 0 | DB54: 0 | DC54: 0 | DD54: 0 | DE54: 0 | DF54: 0 | DG54: 0 | DH54: 0 | DI54: 0 | DJ54: 0 | DK54: 0 | DL54: 0 | DM54: 0 | DN54: 0 | DO54: 0 | DP54: 0 | DQ54: 0 | DR54: 0 | DS54: 0 | DT54: 0 | DU54: 0 | DV54: 0 | DW54: 0 | DX54: 0 | DY54: 0 | DZ54: 0 | EA54: 0 | EB54: 0 | EC54: 0 | ED54: 0 | EE54: 0 | EF54: 0 | EG54: 0 | EH54: 0 | EI54: 0
C55: ˂ = 1 kV ; ABC | N55: 50 | Y55: 7.071067812 | AJ55: 12741.47233 | AK55: 13148.2261 | AL55: 17338.98539 | AM55: 8724.712985 | AN55: 16337.80396 | AO55: 22296.85052 | AP55: 12907.55314 | AQ55: 19138.79374 | AR55: 21140.5963 | AS55: 11243.6052 | AT55: 5403.634191 | AU55: 8367.845931 | AV55: 12828.76798 | AW55: 9569.123141 | AX55: 23485.11465 | AY55: 14150.18513 | AZ55: 15661.38523 | BA55: 28725.60772 | BB55: 3293.318732 | BC55: 4965.621517 | BD55: 9503.980703 | BE55: 12714.89675 | BF55: 15340.06747 | BG55: 9198.530842 | BH55: 23104.63244 | BI55: 21738.65515 | BJ55: 24303.9818 | BK55: 15635.29783 | BL55: 26403.52598 | BM55: 25725.62506 | BN55: 22552.45659 | BO55: 19406.29366 | BP55: 23574.21129 | BQ55: 23089.3451 | BR55: 29806.00469 | BS55: 20221.90752 | BT55: 23864.16594 | BU55: 30413.59173 | BV55: 30659.57059 | BW55: 6189.506518 | BX55: 29890.00101 | BY55: 36472.2009 | BZ55: 51904.11586 | CA55: 38796.92044 | CB55: 51130.36493 | CC55: 66824.21749 | CD55: 72010.86474 | CE55: 83324.54097 | CF55: 66927.83966 | CG55: 87534.59336 | CH55: 75983.65941 | CI55: 46382.63205 | CJ55: 48009.66243 | CK55: 54278.92214 | CL55: 45874.83727 | CM55: 40169.34777 | CN55: 40854.94787 | CO55: 24788.53289 | CP55: 11780.05544 | CQ55: 12686.93601 | CR55: 12699.55922 | CS55: 13951.30162 | CT55: 4685.955673 | CU55: 9714.011883 | CV55: 19329.06045 | CW55: 11345.01817 | CX55: 8099.23953 | CY55: 7752.842499 | CZ55: 6894.803541 | DA55: 2520.768691 | DB55: 1500.230751 | DC55: 3040.918725 | DD55: 11858.31917 | DE55: 14052.22061 | DF55: 19550.79166 | DG55: 25623.27654 | DH55: 26796.45144 | DI55: 23995.92931 | DJ55: 22110.91742 | DK55: 26100.99263 | DL55: 30550.80246 | DM55: 22020.96446 | DN55: 6651.931111 | DO55: 904.2821552 | DP55: 3087.004421 | DQ55: 2533.612487 | DR55: 2849.272049 | DS55: 991.4949306 | DT55: 234.8199834 | DU55: 231.9955841 | DV55: 514.0788476 | DW55: 190.8619549 | DX55: 1754.854971 | DY55: 132.5981239 | DZ55: 191.022146 | EA55: 175.3588617 | EB55: 210.1215084 | EC55: 205.2505582 | ED55: 0 | EE55: 0 | EF55: 267.9309299 | EG55: 0 | EH55: 0 | EI55: 391.7842895
C56: ˂ = 1 kV ; BARE | N56: 60 | Y56: 7.745966692 | AJ56: 8323.738961 | AK56: 12788.14545 | AL56: 12377.95912 | AM56: 8106.407907 | AN56: 6812.779291 | AO56: 11193.25587 | AP56: 11624.95845 | AQ56: 12798.1425 | AR56: 17299.31316 | AS56: 10644.96813 | AT56: 7339.921168 | AU56: 8810.980081 | AV56: 8902.520657 | AW56: 9629.083811 | AX56: 10717.83992 | AY56: 7633.697502 | AZ56: 8539.889941 | BA56: 26242.16874 | BB56: 6037.889067 | BC56: 7850.525206 | BD56: 10219.04497 | BE56: 22067.35906 | BF56: 23984.91626 | BG56: 20669.87712 | BH56: 39187.18465 | BI56: 57059.09466 | BJ56: 73629.74075 | BK56: 70470.17379 | BL56: 83562.27753 | BM56: 101697.786 | BN56: 84187.09337 | BO56: 72456.19036 | BP56: 70145.09672 | BQ56: 82178.84155 | BR56: 102643.9596 | BS56: 48949.74969 | BT56: 72156.26445 | BU56: 69684.80185 | BV56: 87645.44197 | BW56: 27126.02873 | BX56: 103252.4993 | BY56: 127854.2449 | BZ56: 102997.9778 | CA56: 104521.9896 | CB56: 111393.6899 | CC56: 129718.3404 | CD56: 111696.7379 | CE56: 105070.8146 | CF56: 93871.29893 | CG56: 137989.0846 | CH56: 98199.66887 | CI56: 81957.60171 | CJ56: 80197.2391 | CK56: 82552.59578 | CL56: 89776.32982 | CM56: 87996.87854 | CN56: 78969.12152 | CO56: 42615.99629 | CP56: 25262.55573 | CQ56: 16115.99026 | CR56: 25539.29466 | CS56: 13112.78901 | CT56: 26074.39553 | CU56: 8139.409205 | CV56: 75360.38447 | CW56: 12654.56165 | CX56: 14788.26943 | CY56: 10634.08128 | CZ56: 10185.22079 | DA56: 4083.81044 | DB56: 1915.101093 | DC56: 3143.790263 | DD56: 9730.327497 | DE56: 17720.91731 | DF56: 29064.74057 | DG56: 19341.29272 | DH56: 44073.08736 | DI56: 36422.81345 | DJ56: 13362.41767 | DK56: 35209.38168 | DL56: 27999.83448 | DM56: 18213.48937 | DN56: 10082.53147 | DO56: 2877.926304 | DP56: 4097.165858 | DQ56: 6565.937336 | DR56: 3870.697896 | DS56: 7889.688263 | DT56: 797.2864612 | DU56: 0 | DV56: 0 | DW56: 0 | DX56: 954.6076899 | DY56: 0 | DZ56: 608.6911922 | EA56: 0 | EB56: 0 | EC56: 0 | ED56: 0 | EE56: 0 | EF56: 0 | EG56: 0 | EH56: 0 | EI56: 0
C57: > 1 kV & < = 11 kV ; ABC | N57: 35 | Y57: 5.916079783 | AJ57: 0 | AK57: 271.1639614 | AL57: 552.1698501 | AM57: 0 | AN57: 0 | AO57: 0 | AP57: 0 | AQ57: 0 | AR57: 0 | AS57: 0 | AT57: 271.49983 | AU57: 0 | AV57: 234.0101575 | AW57: 95.37505202 | AX57: 46.46755288 | AY57: 172.4783398 | AZ57: 0 | BA57: 0 | BB57: 0 | BC57: 0 | BD57: 0 | BE57: 50.8201658 | BF57: 260.4005271 | BG57: 123.2597755 | BH57: 262.7974431 | BI57: 0 | BJ57: 0 | BK57: 353.6730517 | BL57: 107.1789936 | BM57: 0 | BN57: 0 | BO57: 0 | BP57: 0 | BQ57: 0 | BR57: 0 | BS57: 95.90502543 | BT57: 133.8276594 | BU57: 24.24970029 | BV57: 66.77047294 | BW57: 0 | BX57: 0 | BY57: 296.2927328 | BZ57: 0 | CA57: 0 | CB57: 0 | CC57: 0 | CD57: 0 | CE57: 0 | CF57: 0 | CG57: 0 | CH57: 0 | CI57: 0 | CJ57: 0 | CK57: 0 | CL57: 0 | CM57: 0 | CN57: 0 | CO57: 0 | CP57: 0 | CQ57: 0 | CR57: 0 | CS57: 0 | CT57: 0 | CU57: 0 | CV57: 0 | CW57: 0 | CX57: 0 | CY57: 0 | CZ57: 0 | DA57: 0 | DB57: 0 | DC57: 0 | DD57: 0 | DE57: 0 | DF57: 0 | DG57: 0 | DH57: 0 | DI57: 0 | DJ57: 0 | DK57: 0 | DL57: 0 | DM57: 0 | DN57: 0 | DO57: 0 | DP57: 0 | DQ57: 0 | DR57: 0 | DS57: 0 | DT57: 0 | DU57: 0 | DV57: 0 | DW57: 0 | DX57: 0 | DY57: 0 | DZ57: 0 | EA57: 0 | EB57: 0 | EC57: 0 | ED57: 0 | EE57: 0 | EF57: 0 | EG57: 0 | EH57: 0 | EI57: 0
C58: > 1 kV & < = 11 kV ; BARE; SINGLE PHASE | N58: 60 | Y58: 7.745966692 | AJ58: 0 | AK58: 0 | AL58: 0 | AM58: 0 | AN58: 0 | AO58: 0 | AP58: 0 | AQ58: 0 | AR58: 0 | AS58: 0 | AT58: 0 | AU58: 0 | AV58: 0 | AW58: 0 | AX58: 0 | AY58: 0 | AZ58: 0 | BA58: 0 | BB58: 0 | BC58: 0 | BD58: 0 | BE58: 0 | BF58: 0 | BG58: 0 | BH58: 0 | BI58: 0 | BJ58: 0 | BK58: 0 | BL58: 21.37503269 | BM58: 41.49096924 | BN58: 0 | BO58: 0 | BP58: 0 | BQ58: 0 | BR58: 0 | BS58: 601.7507527 | BT58: 0 | BU58: 0 | BV58: 0 | BW58: 0 | BX58: 0 | BY58: 0 | BZ58: 0 | CA58: 0 | CB58: 0 | CC58: 0 | CD58: 0 | CE58: 0 | CF58: 0 | CG58: 0 | CH58: 0 | CI58: 0 | CJ58: 0 | CK58: 0 | CL58: 0 | CM58: 0 | CN58: 0 | CO58: 0 | CP58: 0 | CQ58: 0 | CR58: 0 | CS58: 0 | CT58: 0 | CU58: 0 | CV58: 0 | CW58: 0 | CX58: 0 | CY58: 0 | CZ58: 0 | DA58: 0 | DB58: 0 | DC58: 0 | DD58: 0 | DE58: 0 | DF58: 0 | DG58: 0 | DH58: 0 | DI58: 0 | DJ58: 0 | DK58: 0 | DL58: 0 | DM58: 0 | DN58: 0 | DO58: 0 | DP58: 0 | DQ58: 0 | DR58: 0 | DS58: 0 | DT58: 0 | DU58: 0 | DV58: 0 | DW58: 0 | DX58: 0 | DY58: 0 | DZ58: 0 | EA58: 0 | EB58: 0 | EC58: 0 | ED58: 0 | EE58: 0 | EF58: 0 | EG58: 0 | EH58: 0 | EI58: 0
C59: > 1 kV & < = 11 kV ; BARE; MULTIPHASE | N59: 60 | Y59: 7.745966692 | AJ59: 4044.1294 | AK59: 7500.515138 | AL59: 22251.33656 | AM59: 11216.54915 | AN59: 13496.44141 | AO59: 9456.130142 | AP59: 9316.315528 | AQ59: 4368.033754 | AR59: 2320.69767 | AS59: 3774.485348 | AT59: 4125.533283 | AU59: 3297.072857 | AV59: 3515.072096 | AW59: 6388.590272 | AX59: 4827.802613 | AY59: 13396.01393 | AZ59: 9639.258769 | BA59: 4368.02249 | BB59: 1976.219988 | BC59: 1332.949394 | BD59: 4470.679985 | BE59: 4649.330788 | BF59: 3029.307643 | BG59: 4926.45455 | BH59: 8016.042967 | BI59: 6148.256128 | BJ59: 6322.449306 | BK59: 7086.792326 | BL59: 13773.41691 | BM59: 19282.87412 | BN59: 8335.677313 | BO59: 10076.99693 | BP59: 19654.42564 | BQ59: 17332.34678 | BR59: 15119.96171 | BS59: 11398.19708 | BT59: 11878.84578 | BU59: 5997.862631 | BV59: 10436.9176 | BW59: 10239.89594 | BX59: 19032.71562 | BY59: 23589.08454 | BZ59: 7369.598258 | CA59: 4349.347966 | CB59: 6662.203611 | CC59: 4339.644815 | CD59: 6145.280783 | CE59: 7249.865248 | CF59: 3261.269191 | CG59: 8726.802047 | CH59: 5282.551386 | CI59: 8681.88168 | CJ59: 14348.37894 | CK59: 22034.59543 | CL59: 15062.82119 | CM59: 14859.67733 | CN59: 21624.87002 | CO59: 742.7268001 | CP59: 1229.177162 | CQ59: 1253.262284 | CR59: 3488.126062 | CS59: 3640.327524 | CT59: 562.6148293 | CU59: 3083.417869 | CV59: 4338.734034 | CW59: 1287.895319 | CX59: 1396.542579 | CY59: 883.5718674 | CZ59: 1424.318112 | DA59: 511.2287308 | DB59: 176.4297118 | DC59: 1115.052905 | DD59: 4675.254031 | DE59: 5337.045943 | DF59: 7234.714015 | DG59: 7319.380803 | DH59: 13598.19607 | DI59: 10417.11834 | DJ59: 5391.591966 | DK59: 13301.97703 | DL59: 12999.34354 | DM59: 6982.03617 | DN59: 3883.482306 | DO59: 387.9788445 | DP59: 1821.617311 | DQ59: 2996.304412 | DR59: 995.6881322 | DS59: 1298.474809 | DT59: 344.3137014 | DU59: 0 | DV59: 351.4560152 | DW59: 0 | DX59: 1049.913971 | DY59: 0 | DZ59: 431.3900114 | EA59: 0 | EB59: 0 | EC59: 0 | ED59: 0 | EE59: 0 | EF59: 0 | EG59: 0 | EH59: 0 | EI59: 0
C60: ˃ 11 kV & ˂ ≈ 22 kV ; COVERED / ABC | N60: 35 | Y60: 5.916079783 | AJ60: 506.7246504 | AK60: 280.7252231 | AL60: 24.99278607 | AM60: 11269.37396 | AN60: 1876.016591 | AO60: 0 | AP60: 6871.8342 | AQ60: 362.284772 | AR60: 353.3921809 | AS60: 305.9626868 | AT60: 0 | AU60: 339.8146613 | AV60: 344.1806352 | AW60: 2612.201563 | AX60: 3378.044333 | AY60: 102.2978241 | AZ60: 12274.44951 | BA60: 439.9638778 | BB60: 0 | BC60: 37.87573189 | BD60: 39.90287327 | BE60: 1528.09837 | BF60: 879.1106013 | BG60: 259.3417324 | BH60: 352.5353636 | BI60: 1251.668958 | BJ60: 892.8783128 | BK60: 530.6622402 | BL60: 491.419758 | BM60: 1520.439671 | BN60: 1345.095349 | BO60: 0 | BP60: 270.4935627 | BQ60: 1089.326995 | BR60: 450.8671428 | BS60: 977.2595334 | BT60: 1313.452575 | BU60: 0 | BV60: 951.8839527 | BW60: 3507.778607 | BX60: 1141.306101 | BY60: 0 | BZ60: 0 | CA60: 0 | CB60: 0 | CC60: 0 | CD60: 0 | CE60: 0 | CF60: 0 | CG60: 0 | CH60: 0 | CI60: 0 | CJ60: 0 | CK60: 0 | CL60: 0 | CM60: 0 | CN60: 0 | CO60: 0 | CP60: 0 | CQ60: 0 | CR60: 0 | CS60: 0 | CT60: 0 | CU60: 0 | CV60: 0 | CW60: 0 | CX60: 0 | CY60: 0 | CZ60: 0 | DA60: 0 | DB60: 0 | DC60: 0 | DD60: 0 | DE60: 0 | DF60: 0 | DG60: 0 | DH60: 0 | DI60: 0 | DJ60: 0 | DK60: 0 | DL60: 0 | DM60: 0 | DN60: 0 | DO60: 0 | DP60: 0 | DQ60: 0 | DR60: 0 | DS60: 0 | DT60: 0 | DU60: 0 | DV60: 0 | DW60: 0 | DX60: 0 | DY60: 0 | DZ60: 0 | EA60: 0 | EB60: 0 | EC60: 0 | ED60: 0 | EE60: 0 | EF60: 0 | EG60: 0 | EH60: 0 | EI60: 0
C61: ˃ 11 kV & ˂ ≈ 22 kV ; BARE; MUTLIPHASE | N61: 60 | Y61: 7.745966692 | AJ61: 9550.051509 | AK61: 24758.03883 | AL61: 21055.64053 | AM61: 34819.40189 | AN61: 27782.83912 | AO61: 50555.45718 | AP61: 27450.53158 | AQ61: 7608.073297 | AR61: 4815.818762 | AS61: 10637.85124 | AT61: 5957.645931 | AU61: 9843.078432 | AV61: 12347.99073 | AW61: 14563.23152 | AX61: 35976.32061 | AY61: 21044.22707 | AZ61: 46761.87059 | BA61: 16584.10054 | BB61: 4722.38032 | BC61: 6639.897725 | BD61: 6557.991743 | BE61: 7027.109612 | BF61: 13487.25366 | BG61: 7771.570874 | BH61: 28634.26937 | BI61: 42177.33075 | BJ61: 53147.65104 | BK61: 46006.30571 | BL61: 51316.79874 | BM61: 64140.54115 | BN61: 53275.36181 | BO61: 46879.51806 | BP61: 36380.85015 | BQ61: 55065.09169 | BR61: 47067.30321 | BS61: 18472.51222 | BT61: 37333.8841 | BU61: 85666.8081 | BV61: 105686.9869 | BW61: 63729.23132 | BX61: 82618.37486 | BY61: 88117.95948 | BZ61: 47716.86382 | CA61: 56685.42771 | CB61: 57651.9351 | CC61: 84928.74334 | CD61: 62023.3075 | CE61: 77313.52472 | CF61: 86904.67533 | CG61: 131694.1566 | CH61: 75120.00768 | CI61: 70043.76434 | CJ61: 48814.2826 | CK61: 76281.93009 | CL61: 47207.2684 | CM61: 51703.95464 | CN61: 54099.65818 | CO61: 2492.448731 | CP61: 18435.35875 | CQ61: 6232.85816 | CR61: 5345.079743 | CS61: 3270.892729 | CT61: 9171.340053 | CU61: 3185.4739 | CV61: 19027.35101 | CW61: 4101.298023 | CX61: 7974.20969 | CY61: 3784.194789 | CZ61: 3064.52428 | DA61: 360.8300479 | DB61: 221.3657223 | DC61: 730.3395653 | DD61: 639.51322 | DE61: 0 | DF61: 4213.684689 | DG61: 1692.301029 | DH61: 4937.719929 | DI61: 4361.184409 | DJ61: 2225.818764 | DK61: 14643.98517 | DL61: 8955.903986 | DM61: 2189.688518 | DN61: 1975.351556 | DO61: 436.5794224 | DP61: 1671.600117 | DQ61: 1890.245187 | DR61: 0 | DS61: 2057.785404 | DT61: 0 | DU61: 0 | DV61: 0 | DW61: 0 | DX61: 0 | DY61: 0 | DZ61: 0 | EA61: 0 | EB61: 0 | EC61: 0 | ED61: 0 | EE61: 0 | EF61: 0 | EG61: 0 | EH61: 0 | EI61: 0
A68: ED_ASS521_99001 | C68: Other | E68: DNSP NAME | F68: REPEX | G68: OVERHEAD CONDUCTORS | H68: Other | I68: DESCRIPTOR METRIC | J68: MEAN ECONOMIC LIFE | K68: YEARS | L68: NUMBER | N68: 0 | O68: 0 | P68: 0 | Q68: 0 | R68: 0 | S68: 0 | T68: 0 | U68: 0 | V68: 0 | W68: 0 | X68: 0 | Y68: 0 | Z68: 0 | AA68: 0 | AB68: 0 | AC68: 0 | AD68: 0 | AE68: 0 | AF68: 0 | AG68: 0 | AH68: 0 | AI68: 0 | AJ68: 0 | AK68: 0 | AL68: 0 | AM68: 0 | AN68: 0 | AO68: 0 | AP68: 0 | AQ68: 0 | AR68: 0 | AS68: 0 | AT68: 0 | AU68: 0 | AV68: 0 | AW68: 0 | AX68: 0 | AY68: 0 | AZ68: 0 | BA68: 0 | BB68: 0 | BC68: 0 | BD68: 0 | BE68: 0 | BF68: 0 | BG68: 0 | BH68: 0 | BI68: 0 | BJ68: 0 | BK68: 0 | BL68: 0 | BM68: 0 | BN68: 0 | BO68: 0 | BP68: 0 | BQ68: 0 | BR68: 0 | BS68: 0 | BT68: 0 | BU68: 0 | BV68: 0 | BW68: 0 | BX68: 0 | BY68: 0 | BZ68: 0 | CA68: 0 | CB68: 0 | CC68: 0 | CD68: 0 | CE68: 0 | CF68: 0 | CG68: 0 | CH68: 0 | CI68: 0 | CJ68: 0 | CK68: 0 | CL68: 0 | CM68: 0 | CN68: 0 | CO68: 0 | CP68: 0 | CQ68: 0 | CR68: 0 | CS68: 0 | CT68: 0 | CU68: 0 | CV68: 0 | CW68: 0 | CX68: 0 | CY68: 0 | CZ68: 0 | DA68: 0 | DB68: 0 | DC68: 0 | DD68: 0 | DE68: 0 | DF68: 0 | DG68: 0 | DH68: 0 | DI68: 0 | DJ68: 0 | DK68: 0 | DL68: 0 | DM68: 0 | DN68: 0 | DO68: 0 | DP68: 0 | DQ68: 0 | DR68: 0 | DS68: 0 | DT68: 0 | DU68: 0 | DV68: 0 | DW68: 0 | DX68: 0 | DY68: 0 | DZ68: 0 | EA68: 0 | EB68: 0 | EC68: 0 | ED68: 0 | EE68: 0 | EF68: 0 | EG68: 0 | EH68: 0 | EI68: 0
A69: ED_ASS521_00030 | B69: UNDERGROUND CABLES BY: HIGHEST OPERATING VOLTAGE | C69: ˂ = 1 kV | E69: DNSP NAME | F69: REPEX | G69: UNDERGROUND CABLES | H69: ˂ = 1 kV | I69: DESCRIPTOR METRIC | J69: MEAN ECONOMIC LIFE | K69: YEARS | L69: NUMBER | N69: 70 | Y69: 8.366600265 | AJ69: 22816.49786 | AK69: 42007.75681 | AL69: 51194.02817 | AM69: 70545.97869 | AN69: 50989.80531 | AO69: 56401.81883 | AP69: 74266.20298 | AQ69: 76408.82383 | AR69: 68712.12414 | AS69: 71170.6102 | AT69: 72375.13261 | AU69: 77371.58201 | AV69: 88289.01347 | AW69: 61556.37318 | AX69: 104062.2622 | AY69: 110571.6331 | AZ69: 135261.3613 | BA69: 60427.94321 | BB69: 38628.90548 | BC69: 70249.69544 | BD69: 68513.39265 | BE69: 40298.77632 | BF69: 31551.76031 | BG69: 40725.6592 | BH69: 73086.31091 | BI69: 67457.45527 | BJ69: 55580.96056 | BK69: 72455.84042 | BL69: 69217.33409 | BM69: 53965.09843 | BN69: 68179.12115 | BO69: 65270.34513 | BP69: 42833.50185 | BQ69: 31153.12395 | BR69: 36647.29044 | BS69: 27856.17041 | BT69: 42629.74235 | BU69: 59602.88145 | BV69: 57046.23738 | BW69: 32096.86384 | BX69: 44129.04222 | BY69: 20927.10264 | BZ69: 14505.51133 | CA69: 13064.1841 | CB69: 3314.926339 | CC69: 846.6438 | CD69: 592.7633321 | CE69: 1874.165017 | CF69: 591.4821878 | CG69: 429.372 | CH69: 431.3812921 | CI69: 128.6786 | CJ69: 385.1578117 | CK69: 250.3965237 | CL69: 607.8631678 | CM69: 89.47167709 | CN69: 99.96 | CO69: 0 | CP69: 0 | CQ69: 110.2897134 | CR69: 204.6787748 | CS69: 28.3845 | CT69: 0 | CU69: 0 | CV69: 310.3592135 | CW69: 137.234 | CX69: 48.8672 | CY69: 221.913 | CZ69: 0 | DA69: 0 | DB69: 0 | DC69: 0 | DD69: 0 | DE69: 0 | DF69: 288.245 | DG69: 0 | DH69: 0 | DI69: 0 | DJ69: 0 | DK69: 0 | DL69: 0 | DM69: 0 | DN69: 0 | DO69: 0 | DP69: 0 | DQ69: 0 | DR69: 0 | DS69: 0 | DT69: 0 | DU69: 0 | DV69: 0 | DW69: 0 | DX69: 0 | DY69: 0 | DZ69: 0 | EA69: 26.323 | EB69: 0 | EC69: 0 | ED69: 0 | EE69: 0 | EF69: 0 | EG69: 0 | EH69: 0 | EI69: 0
A70: ED_ASS521_00031 | C70: > 1 kV & < = 11 kV | N70: 0 | Y70: 0 | AJ70: 3495.9152 | AK70: 4247.6999 | AL70: 8384.3438 | AM70: 5610.3243 | AN70: 7169.2607 | AO70: 7017.97194 | AP70: 3547.2943 | AQ70: 3787.5026 | AR70: 9094.265 | AS70: 21170.1878 | AT70: 4089.5906 | AU70: 3086.9749 | AV70: 1368.345 | AW70: 2397.5523 | AX70: 1367.41543 | AY70: 2528.6385 | AZ70: 1620.2745 | BA70: 1217.66 | BB70: 1407.4666 | BC70: 104.12 | BD70: 728.679 | BE70: 189.844 | BF70: 934.053 | BG70: 692.76 | BH70: 626.1549 | BI70: 1861.839 | BJ70: 1931.827 | BK70: 963.298 | BL70: 348.8132 | BM70: 4786.9224 | BN70: 3264.3079 | BO70: 1324.9724 | BP70: 1608.9921 | BQ70: 2797.366 | BR70: 990.9158 | BS70: 986.18 | BT70: 970.2999 | BU70: 442.54 | BV70: 467.9875 | BW70: 1056.3574 | BX70: 778.9223 | BY70: 1869.148 | BZ70: 940.747 | CA70: 1594.334 | CB70: 488.2103 | CC70: 4150.4433 | CD70: 4244.2287 | CE70: 3255.8438 | CF70: 1926.563 | CG70: 2659.4991 | CH70: 2480.95 | CI70: 1824.456 | CJ70: 6373.5466 | CK70: 4195.0136 | CL70: 3315.0606 | CM70: 4794.0223 | CN70: 5975.0224 | CO70: 0 | CP70: 162.421 | CQ70: 484.4139 | CR70: 0 | CS70: 0 | CT70: 0 | CU70: 708.454 | CV70: 390.041 | CW70: 310.468 | CX70: 0 | CY70: 0 | CZ70: 0 | DA70: 0 | DB70: 125.95 | DC70: 0 | DD70: 0 | DE70: 330.871 | DF70: 1274.632 | DG70: 29.738 | DH70: 0 | DI70: 0 | DJ70: 51.925 | DK70: 0 | DL70: 850.23 | DM70: 1630.67 | DN70: 201.729 | DO70: 0 | DP70: 0 | DQ70: 0 | DR70: 0 | DS70: 0 | DT70: 0 | DU70: 0 | DV70: 0 | DW70: 0 | DX70: 0 | DY70: 0 | DZ70: 0 | EA70: 0 | EB70: 0 | EC70: 0 | ED70: 0 | EE70: 0 | EF70: 0 | EG70: 0 | EH70: 0 | EI70: 0
A71: ED_ASS521_00032 | C71: > 11 kV & < = 22 kV | N71: 0 | Y71: 0 | AJ71: 24041.4068 | AK71: 24159.9741 | AL71: 19322.8613 | AM71: 27300.3197 | AN71: 23665.4112 | AO71: 27287.86333 | AP71: 30310.5019 | AQ71: 30061.7564 | AR71: 37969.16024 | AS71: 49239.6359 | AT71: 35852.5516 | AU71: 24264.7423 | AV71: 23595.152 | AW71: 14290.6657 | AX71: 15573.6931 | AY71: 19964.809 | AZ71: 17594.309 | BA71: 12056.421 | BB71: 7012.3641 | BC71: 5113.332 | BD71: 3348.6093 | BE71: 1433.185 | BF71: 2618.511 | BG71: 3250.5452 | BH71: 5862.0205 | BI71: 10459.089 | BJ71: 11677.3498 | BK71: 10485.462 | BL71: 10544.4169 | BM71: 4901.0234 | BN71: 4710.966 | BO71: 19474.1408 | BP71: 2763.773 | BQ71: 3596.053 | BR71: 7204.9259 | BS71: 6123.5871 | BT71: 16717.5548 | BU71: 14487.6107 | BV71: 28199.0162 | BW71: 19918.3387 | BX71: 4622.472 | BY71: 12481.6509 | BZ71: 10928.3735 | CA71: 12103.0842 | CB71: 8103.161 | CC71: 5413.355 | CD71: 4015.408 | CE71: 3748.422 | CF71: 9400.14697 | CG71: 7212.6562 | CH71: 4888.572 | CI71: 5392.0914 | CJ71: 3007.796 | CK71: 3471.577 | CL71: 7503.5069 | CM71: 5925.066 | CN71: 531.36 | CO71: 3151.684 | CP71: 3218.784 | CQ71: 1180.066 | CR71: 0 | CS71: 0 | CT71: 402.178 | CU71: 152.234 | CV71: 2558.787 | CW71: 3973.732 | CX71: 2872.527 | CY71: 1946.084 | CZ71: 291.634 | DA71: 2889.8971 | DB71: 0 | DC71: 0 | DD71: 0 | DE71: 780.902 | DF71: 403.82 | DG71: 307.65 | DH71: 0 | DI71: 223.15 | DJ71: 0 | DK71: 0 | DL71: 0 | DM71: 0 | DN71: 0 | DO71: 0 | DP71: 0 | DQ71: 0 | DR71: 0 | DS71: 0 | DT71: 0 | DU71: 0 | DV71: 0 | DW71: 0 | DX71: 0 | DY71: 0 | DZ71: 0 | EA71: 0 | EB71: 0 | EC71: 0 | ED71: 0 | EE71: 0 | EF71: 0 | EG71: 0 | EH71: 0 | EI71: 0
A72: ED_ASS521_00033 | C72: > 22 kV & < = 33 kV | N72: 0 | Y72: 0 | AJ72: 0 | AK72: 0 | AL72: 0 | AM72: 0 | AN72: 0 | AO72: 0 | AP72: 0 | AQ72: 0 | AR72: 0 | AS72: 0 | AT72: 0 | AU72: 0 | AV72: 0 | AW72: 0 | AX72: 0 | AY72: 0 | AZ72: 0 | BA72: 0 | BB72: 0 | BC72: 0 | BD72: 0 | BE72: 0 | BF72: 0 | BG72: 0 | BH72: 0 | BI72: 0 | BJ72: 0 | BK72: 0 | BL72: 0 | BM72: 0 | BN72: 0 | BO72: 0 | BP72: 0 | BQ72: 0 | BR72: 0 | BS72: 0 | BT72: 0 | BU72: 0 | BV72: 0 | BW72: 0 | BX72: 0 | BY72: 0 | BZ72: 0 | CA72: 0 | CB72: 0 | CC72: 0 | CD72: 0 | CE72: 0 | CF72: 0 | CG72: 0 | CH72: 0 | CI72: 0 | CJ72: 0 | CK72: 0 | CL72: 0 | CM72: 0 | CN72: 0 | CO72: 0 | CP72: 0 | CQ72: 0 | CR72: 0 | CS72: 0 | CT72: 0 | CU72: 0 | CV72: 0 | CW72: 0 | CX72: 0 | CY72: 0 | CZ72: 0 | DA72: 0 | DB72: 0 | DC72: 0 | DD72: 0 | DE72: 0 | DF72: 0 | DG72: 0 | DH72: 0 | DI72: 0 | DJ72: 0 | DK72: 0 | DL72: 0 | DM72: 0 | DN72: 0 | DO72: 0 | DP72: 0 | DQ72: 0 | DR72: 0 | DS72: 0 | DT72: 0 | DU72: 0 | DV72: 0 | DW72: 0 | DX72: 0 | DY72: 0 | DZ72: 0 | EA72: 0 | EB72: 0 | EC72: 0 | ED72: 0 | EE72: 0 | EF72: 0 | EG72: 0 | EH72: 0 | EI72: 0
A73: ED_ASS521_00034 | C73: > 33 kV & < = 66 kV | N73: 40 | Y73: 6.32455532 | AJ73: 0 | AK73: 0 | AL73: 0 | AM73: 361.66 | AN73: 345.16 | AO73: 748.542 | AP73: 262.6 | AQ73: 157.93 | AR73: 0 | AS73: 0 | AT73: 0 | AU73: 1347.55 | AV73: 0 | AW73: 342.76 | AX73: 0 | AY73: 33.316 | AZ73: 101.56 | BA73: 0 | BB73: 0 | BC73: 0 | BD73: 0 | BE73: 0 | BF73: 0 | BG73: 0 | BH73: 0 | BI73: 0 | BJ73: 0 | BK73: 0 | BL73: 0 | BM73: 0 | BN73: 0 | BO73: 0 | BP73: 0 | BQ73: 0 | BR73: 0 | BS73: 0 | BT73: 0 | BU73: 0 | BV73: 0 | BW73: 0 | BX73: 0 | BY73: 0 | BZ73: 0 | CA73: 0 | CB73: 0 | CC73: 0 | CD73: 0 | CE73: 0 | CF73: 0 | CG73: 0 | CH73: 0 | CI73: 0 | CJ73: 0 | CK73: 0 | CL73: 0 | CM73: 0 | CN73: 0 | CO73: 0 | CP73: 0 | CQ73: 0 | CR73: 0 | CS73: 0 | CT73: 0 | CU73: 0 | CV73: 0 | CW73: 0 | CX73: 0 | CY73: 0 | CZ73: 0 | DA73: 0 | DB73: 0 | DC73: 0 | DD73: 0 | DE73: 0 | DF73: 0 | DG73: 0 | DH73: 0 | DI73: 0 | DJ73: 0 | DK73: 0 | DL73: 0 | DM73: 0 | DN73: 0 | DO73: 0 | DP73: 0 | DQ73: 0 | DR73: 0 | DS73: 0 | DT73: 0 | DU73: 0 | DV73: 0 | DW73: 0 | DX73: 0 | DY73: 0 | DZ73: 0 | EA73: 0 | EB73: 0 | EC73: 0 | ED73: 0 | EE73: 0 | EF73: 0 | EG73: 0 | EH73: 0 | EI73: 0
A74: ED_ASS521_00035 | C74: > 66 kV & < = 132 kV | N74: 0 | Y74: 0 | AJ74: 0 | AK74: 0 | AL74: 0 | AM74: 0 | AN74: 0 | AO74: 0 | AP74: 0 | AQ74: 0 | AR74: 0 | AS74: 0 | AT74: 0 | AU74: 0 | AV74: 0 | AW74: 0 | AX74: 0 | AY74: 0 | AZ74: 0 | BA74: 0 | BB74: 0 | BC74: 0 | BD74: 0 | BE74: 0 | BF74: 0 | BG74: 0 | BH74: 0 | BI74: 0 | BJ74: 0 | BK74: 0 | BL74: 0 | BM74: 0 | BN74: 0 | BO74: 0 | BP74: 0 | BQ74: 0 | BR74: 0 | BS74: 0 | BT74: 0 | BU74: 0 | BV74: 0 | BW74: 0 | BX74: 0 | BY74: 0 | BZ74: 0 | CA74: 0 | CB74: 0 | CC74: 0 | CD74: 0 | CE74: 0 | CF74: 0 | CG74: 0 | CH74: 0 | CI74: 0 | CJ74: 0 | CK74: 0 | CL74: 0 | CM74: 0 | CN74: 0 | CO74: 0 | CP74: 0 | CQ74: 0 | CR74: 0 | CS74: 0 | CT74: 0 | CU74: 0 | CV74: 0 | CW74: 0 | CX74: 0 | CY74: 0 | CZ74: 0 | DA74: 0 | DB74: 0 | DC74: 0 | DD74: 0 | DE74: 0 | DF74: 0 | DG74: 0 | DH74: 0 | DI74: 0 | DJ74: 0 | DK74: 0 | DL74: 0 | DM74: 0 | DN74: 0 | DO74: 0 | DP74: 0 | DQ74: 0 | DR74: 0 | DS74: 0 | DT74: 0 | DU74: 0 | DV74: 0 | DW74: 0 | DX74: 0 | DY74: 0 | DZ74: 0 | EA74: 0 | EB74: 0 | EC74: 0 | ED74: 0 | EE74: 0 | EF74: 0 | EG74: 0 | EH74: 0 | EI74: 0
A75: ED_ASS521_00036 | C75: > 132 kV | N75: 0 | Y75: 0 | AJ75: 0 | AK75: 0 | AL75: 0 | AM75: 0 | AN75: 0 | AO75: 0 | AP75: 0 | AQ75: 0 | AR75: 0 | AS75: 0 | AT75: 0 | AU75: 0 | AV75: 0 | AW75: 0 | AX75: 0 | AY75: 0 | AZ75: 0 | BA75: 0 | BB75: 0 | BC75: 0 | BD75: 0 | BE75: 0 | BF75: 0 | BG75: 0 | BH75: 0 | BI75: 0 | BJ75: 0 | BK75: 0 | BL75: 0 | BM75: 0 | BN75: 0 | BO75: 0 | BP75: 0 | BQ75: 0 | BR75: 0 | BS75: 0 | BT75: 0 | BU75: 0 | BV75: 0 | BW75: 0 | BX75: 0 | BY75: 0 | BZ75: 0 | CA75: 0 | CB75: 0 | CC75: 0 | CD75: 0 | CE75: 0 | CF75: 0 | CG75: 0 | CH75: 0 | CI75: 0 | CJ75: 0 | CK75: 0 | CL75: 0 | CM75: 0 | CN75: 0 | CO75: 0 | CP75: 0 | CQ75: 0 | CR75: 0 | CS75: 0 | CT75: 0 | CU75: 0 | CV75: 0 | CW75: 0 | CX75: 0 | CY75: 0 | CZ75: 0 | DA75: 0 | DB75: 0 | DC75: 0 | DD75: 0 | DE75: 0 | DF75: 0 | DG75: 0 | DH75: 0 | DI75: 0 | DJ75: 0 | DK75: 0 | DL75: 0 | DM75: 0 | DN75: 0 | DO75: 0 | DP75: 0 | DQ75: 0 | DR75: 0 | DS75: 0 | DT75: 0 | DU75: 0 | DV75: 0 | DW75: 0 | DX75: 0 | DY75: 0 | DZ75: 0 | EA75: 0 | EB75: 0 | EC75: 0 | ED75: 0 | EE75: 0 | EF75: 0 | EG75: 0 | EH75: 0 | EI75: 0
C76: ˃ 1 kV & ˂ ≈ 11 kV ; NON-XLPE | N76: 70 | Y76: 8.366600265 | AJ76: 0 | AK76: 154.852 | AL76: 460.659 | AM76: 903.664 | AN76: 391.2488 | AO76: 1306.13744 | AP76: 740.616 | AQ76: 1339.965 | AR76: 2943.6459 | AS76: 17318.7518 | AT76: 2437.3339 | AU76: 0 | AV76: 0 | AW76: 35.427 | AX76: 0 | AY76: 221.014 | AZ76: 1006.5915 | BA76: 0 | BB76: 1172.689 | BC76: 104.12 | BD76: 573.273 | BE76: 189.844 | BF76: 639.94 | BG76: 692.76 | BH76: 626.1549 | BI76: 815.709 | BJ76: 1887.85 | BK76: 942.471 | BL76: 325.7422 | BM76: 2359.494 | BN76: 2879.2899 | BO76: 742.1924 | BP76: 1590.63 | BQ76: 2371.781 | BR76: 672.269 | BS76: 986.18 | BT76: 744.7099 | BU76: 442.54 | BV76: 295.837 | BW76: 692.9375 | BX76: 408.4523 | BY76: 1572.436 | BZ76: 515.519 | CA76: 884.753 | CB76: 488.2103 | CC76: 3713.7878 | CD76: 3571.6816 | CE76: 2653.6368 | CF76: 1646.073 | CG76: 2644.455 | CH76: 2279.394 | CI76: 1447.9537 | CJ76: 5815.1235 | CK76: 3966.6794 | CL76: 3141.3166 | CM76: 4014.1742 | CN76: 5955.9602 | CO76: 0 | CP76: 162.421 | CQ76: 484.4139 | CR76: 0 | CS76: 0 | CT76: 0 | CU76: 638.179 | CV76: 390.041 | CW76: 218.76 | CX76: 0 | CY76: 0 | CZ76: 0 | DA76: 0 | DB76: 125.95 | DC76: 0 | DD76: 0 | DE76: 330.871 | DF76: 1274.632 | DG76: 29.738 | DH76: 0 | DI76: 0 | DJ76: 51.925 | DK76: 0 | DL76: 850.23 | DM76: 1610.194 | DN76: 201.729 | DO76: 0 | DP76: 0 | DQ76: 0 | DR76: 0 | DS76: 0 | DT76: 0 | DU76: 0 | DV76: 0 | DW76: 0 | DX76: 0 | DY76: 0 | DZ76: 0 | EA76: 0 | EB76: 0 | EC76: 0 | ED76: 0 | EE76: 0 | EF76: 0 | EG76: 0 | EH76: 0 | EI76: 0
C77: ˃ 1 kV & ˂ ≈ 11 kV ; XLPE | N77: 40 | Y77: 6.32455532 | AJ77: 3495.9152 | AK77: 4092.8479 | AL77: 7923.6848 | AM77: 4706.6603 | AN77: 6778.0119 | AO77: 5711.8345 | AP77: 2806.6783 | AQ77: 2447.5376 | AR77: 6150.6191 | AS77: 3851.436 | AT77: 1652.2567 | AU77: 3086.9749 | AV77: 1368.345 | AW77: 2362.1253 | AX77: 1367.41543 | AY77: 2307.6245 | AZ77: 613.683 | BA77: 1217.66 | BB77: 234.7776 | BC77: 0 | BD77: 155.406 | BE77: 0 | BF77: 294.113 | BG77: 0 | BH77: 0 | BI77: 1046.13 | BJ77: 43.977 | BK77: 20.827 | BL77: 23.071 | BM77: 2427.4284 | BN77: 385.018 | BO77: 582.78 | BP77: 18.3621 | BQ77: 425.585 | BR77: 318.6468 | BS77: 0 | BT77: 225.59 | BU77: 0 | BV77: 172.1505 | BW77: 363.4199 | BX77: 370.47 | BY77: 296.712 | BZ77: 425.228 | CA77: 709.581 | CB77: 0 | CC77: 436.6555 | CD77: 672.5471 | CE77: 602.207 | CF77: 280.49 | CG77: 15.0441 | CH77: 201.556 | CI77: 376.5023 | CJ77: 558.4231 | CK77: 228.3342 | CL77: 173.744 | CM77: 779.8481 | CN77: 19.0622 | CO77: 0 | CP77: 0 | CQ77: 0 | CR77: 0 | CS77: 0 | CT77: 0 | CU77: 70.275 | CV77: 0 | CW77: 91.708 | CX77: 0 | CY77: 0 | CZ77: 0 | DA77: 0 | DB77: 0 | DC77: 0 | DD77: 0 | DE77: 0 | DF77: 0 | DG77: 0 | DH77: 0 | DI77: 0 | DJ77: 0 | DK77: 0 | DL77: 0 | DM77: 20.476 | DN77: 0 | DO77: 0 | DP77: 0 | DQ77: 0 | DR77: 0 | DS77: 0 | DT77: 0 | DU77: 0 | DV77: 0 | DW77: 0 | DX77: 0 | DY77: 0 | DZ77: 0 | EA77: 0 | EB77: 0 | EC77: 0 | ED77: 0 | EE77: 0 | EF77: 0 | EG77: 0 | EH77: 0 | EI77: 0
C78: ≈ 22 kV ; NON-XLPE | N78: 70 | Y78: 8.366600265 | AJ78: 25.486 | AK78: 0 | AL78: 245.6458 | AM78: 1439.7194 | AN78: 363.118 | AO78: 1329.122 | AP78: 714.537 | AQ78: 317.67 | AR78: 2291.47853 | AS78: 5541.9459 | AT78: 2137.6864 | AU78: 5.1657 | AV78: 106.73 | AW78: 41.736 | AX78: 6.2401 | AY78: 0 | AZ78: 0 | BA78: 617.576 | BB78: 1607.566 | BC78: 1826.676 | BD78: 56.578 | BE78: 152.39 | BF78: 1167.484 | BG78: 1503.62 | BH78: 1251.706 | BI78: 1527.734 | BJ78: 614.829 | BK78: 1120.585 | BL78: 1006.343 | BM78: 1605.4784 | BN78: 585.373 | BO78: 1958.618 | BP78: 684.734 | BQ78: 1647.453 | BR78: 981.738 | BS78: 1523.123 | BT78: 6613.676 | BU78: 3746.7047 | BV78: 9873.062 | BW78: 2264.384 | BX78: 1904.958 | BY78: 3263.9299 | BZ78: 2649.4776 | CA78: 4128.679 | CB78: 2608.983 | CC78: 2041.821 | CD78: 1019.28 | CE78: 561.333 | CF78: 2650.15647 | CG78: 1070.1238 | CH78: 1319.677 | CI78: 1901.8123 | CJ78: 235.858 | CK78: 509.991 | CL78: 1989.792 | CM78: 1507.943 | CN78: 359.92 | CO78: 819.73 | CP78: 321.517 | CQ78: 23.385 | CR78: 0 | CS78: 0 | CT78: 0 | CU78: 152.234 | CV78: 1418.872 | CW78: 74.322 | CX78: 0 | CY78: 0 | CZ78: 0 | DA78: 464.8651 | DB78: 0 | DC78: 0 | DD78: 0 | DE78: 0 | DF78: 0 | DG78: 0 | DH78: 0 | DI78: 0 | DJ78: 0 | DK78: 0 | DL78: 0 | DM78: 0 | DN78: 0 | DO78: 0 | DP78: 0 | DQ78: 0 | DR78: 0 | DS78: 0 | DT78: 0 | DU78: 0 | DV78: 0 | DW78: 0 | DX78: 0 | DY78: 0 | DZ78: 0 | EA78: 0 | EB78: 0 | EC78: 0 | ED78: 0 | EE78: 0 | EF78: 0 | EG78: 0 | EH78: 0 | EI78: 0
C79: ≈ 22 kV ; XLPE | N79: 40 | Y79: 6.32455532 | AJ79: 24015.9208 | AK79: 24159.9741 | AL79: 19077.2155 | AM79: 25860.6003 | AN79: 23302.2932 | AO79: 25958.74133 | AP79: 29595.9649 | AQ79: 29744.0864 | AR79: 35677.68171 | AS79: 43697.69 | AT79: 33714.8652 | AU79: 24259.5766 | AV79: 23488.422 | AW79: 14248.9297 | AX79: 15567.453 | AY79: 19964.809 | AZ79: 17594.309 | BA79: 11438.845 | BB79: 5404.7981 | BC79: 3286.656 | BD79: 3292.0313 | BE79: 1280.795 | BF79: 1451.027 | BG79: 1746.9252 | BH79: 4610.3145 | BI79: 8931.355 | BJ79: 11062.5208 | BK79: 9364.877 | BL79: 9538.0739 | BM79: 3295.545 | BN79: 4125.593 | BO79: 17515.5228 | BP79: 2079.039 | BQ79: 1948.6 | BR79: 6223.1879 | BS79: 4600.4641 | BT79: 10103.8788 | BU79: 10740.906 | BV79: 18325.9542 | BW79: 17653.9547 | BX79: 2717.514 | BY79: 9217.721 | BZ79: 8278.8959 | CA79: 7974.4052 | CB79: 5494.178 | CC79: 3371.534 | CD79: 2996.128 | CE79: 3187.089 | CF79: 6749.9905 | CG79: 6142.5324 | CH79: 3568.895 | CI79: 3490.2791 | CJ79: 2771.938 | CK79: 2961.586 | CL79: 5513.7149 | CM79: 4417.123 | CN79: 171.44 | CO79: 2331.954 | CP79: 2897.267 | CQ79: 1156.681 | CR79: 0 | CS79: 0 | CT79: 402.178 | CU79: 0 | CV79: 1139.915 | CW79: 3899.41 | CX79: 2872.527 | CY79: 1946.084 | CZ79: 291.634 | DA79: 2425.032 | DB79: 0 | DC79: 0 | DD79: 0 | DE79: 780.902 | DF79: 403.82 | DG79: 307.65 | DH79: 0 | DI79: 223.15 | DJ79: 0 | DK79: 0 | DL79: 0 | DM79: 0 | DN79: 0 | DO79: 0 | DP79: 0 | DQ79: 0 | DR79: 0 | DS79: 0 | DT79: 0 | DU79: 0 | DV79: 0 | DW79: 0 | DX79: 0 | DY79: 0 | DZ79: 0 | EA79: 0 | EB79: 0 | EC79: 0 | ED79: 0 | EE79: 0 | EF79: 0 | EG79: 0 | EH79: 0 | EI79: 0
C80: LV SERVICE PILLARS | N80: 23.07605634 | Y80: 4.8037544 | AJ80: 88 | AK80: 124 | AL80: 133 | AM80: 144 | AN80: 131 | AO80: 108 | AP80: 162 | AQ80: 201 | AR80: 184 | AS80: 179 | AT80: 149 | AU80: 139 | AV80: 159 | AW80: 168 | AX80: 249 | AY80: 212 | AZ80: 217 | BA80: 141 | BB80: 115 | BC80: 129 | BD80: 287 | BE80: 147 | BF80: 136 | BG80: 123 | BH80: 150 | BI80: 167 | BJ80: 313 | BK80: 124 | BL80: 195 | BM80: 121 | BN80: 344 | BO80: 517 | BP80: 195 | BQ80: 113 | BR80: 91 | BS80: 54 | BT80: 218 | BU80: 289 | BV80: 298 | BW80: 377 | BX80: 596 | BY80: 318 | BZ80: 169 | CA80: 191 | CB80: 10 | CC80: 0 | CD80: 0 | CE80: 0 | CF80: 6 | CG80: 1 | CH80: 1 | CI80: 1 | CJ80: 0 | CK80: 0 | CL80: 1 | CM80: 0 | CN80: 0 | CO80: 0 | CP80: 0 | CQ80: 0 | CR80: 0 | CS80: 0 | CT80: 0 | CU80: 0 | CV80: 0 | CW80: 0 | CX80: 0 | CY80: 0 | CZ80: 0 | DA80: 0 | DB80: 0 | DC80: 0 | DD80: 0 | DE80: 0 | DF80: 1 | DG80: 0 | DH80: 0 | DI80: 0 | DJ80: 0 | DK80: 0 | DL80: 0 | DM80: 0 | DN80: 0 | DO80: 0 | DP80: 0 | DQ80: 0 | DR80: 0 | DS80: 0 | DT80: 0 | DU80: 0 | DV80: 0 | DW80: 0 | DX80: 0 | DY80: 0 | DZ80: 0 | EA80: 0 | EB80: 0 | EC80: 0 | ED80: 0 | EE80: 0 | EF80: 0 | EG80: 0 | EH80: 0 | EI80: 0
C81: LV PARALLELING PILLARS | N81: 23.07605634 | Y81: 4.8037544 | AJ81: 3 | AK81: 4 | AL81: 16 | AM81: 13 | AN81: 18 | AO81: 10 | AP81: 9 | AQ81: 16 | AR81: 98 | AS81: 106 | AT81: 116 | AU81: 119 | AV81: 129 | AW81: 108 | AX81: 89 | AY81: 77 | AZ81: 29 | BA81: 29 | BB81: 10 | BC81: 17 | BD81: 24 | BE81: 9 | BF81: 9 | BG81: 11 | BH81: 55 | BI81: 47 | BJ81: 38 | BK81: 61 | BL81: 61 | BM81: 50 | BN81: 59 | BO81: 54 | BP81: 25 | BQ81: 25 | BR81: 19 | BS81: 29 | BT81: 43 | BU81: 57 | BV81: 68 | BW81: 40 | BX81: 47 | BY81: 16 | BZ81: 4 | CA81: 8 | CB81: 23 | CC81: 0 | CD81: 0 | CE81: 0 | CF81: 0 | CG81: 0 | CH81: 0 | CI81: 0 | CJ81: 0 | CK81: 0 | CL81: 0 | CM81: 0 | CN81: 0 | CO81: 0 | CP81: 0 | CQ81: 0 | CR81: 0 | CS81: 0 | CT81: 0 | CU81: 0 | CV81: 0 | CW81: 0 | CX81: 0 | CY81: 0 | CZ81: 0 | DA81: 0 | DB81: 0 | DC81: 0 | DD81: 0 | DE81: 0 | DF81: 0 | DG81: 0 | DH81: 0 | DI81: 0 | DJ81: 0 | DK81: 0 | DL81: 0 | DM81: 0 | DN81: 0 | DO81: 0 | DP81: 0 | DQ81: 0 | DR81: 0 | DS81: 0 | DT81: 0 | DU81: 0 | DV81: 0 | DW81: 0 | DX81: 0 | DY81: 0 | DZ81: 0 | EA81: 0 | EB81: 0 | EC81: 0 | ED81: 0 | EE81: 0 | EF81: 0 | EG81: 0 | EH81: 0 | EI81: 0
C82: LV CABINETS | N82: 21.3 | Y82: 4.615192304 | AJ82: 7 | AK82: 25 | AL82: 16 | AM82: 35 | AN82: 28 | AO82: 26 | AP82: 35 | AQ82: 41 | AR82: 35 | AS82: 65 | AT82: 43 | AU82: 33 | AV82: 34 | AW82: 45 | AX82: 45 | AY82: 43 | AZ82: 58 | BA82: 30 | BB82: 47 | BC82: 42 | BD82: 36 | BE82: 10 | BF82: 20 | BG82: 11 | BH82: 26 | BI82: 15 | BJ82: 10 | BK82: 11 | BL82: 20 | BM82: 14 | BN82: 5 | BO82: 4 | BP82: 6 | BQ82: 3 | BR82: 7 | BS82: 5 | BT82: 7 | BU82: 2 | BV82: 5 | BW82: 3 | BX82: 3 | BY82: 2 | BZ82: 9 | CA82: 0 | CB82: 2 | CC82: 0 | CD82: 0 | CE82: 0 | CF82: 1 | CG82: 0 | CH82: 0 | CI82: 0 | CJ82: 0 | CK82: 0 | CL82: 0 | CM82: 0 | CN82: 0 | CO82: 0 | CP82: 0 | CQ82: 0 | CR82: 0 | CS82: 0 | CT82: 0 | CU82: 0 | CV82: 0 | CW82: 0 | CX82: 0 | CY82: 0 | CZ82: 0 | DA82: 0 | DB82: 0 | DC82: 0 | DD82: 0 | DE82: 0 | DF82: 0 | DG82: 0 | DH82: 0 | DI82: 0 | DJ82: 0 | DK82: 0 | DL82: 0 | DM82: 0 | DN82: 0 | DO82: 0 | DP82: 0 | DQ82: 0 | DR82: 0 | DS82: 0 | DT82: 0 | DU82: 0 | DV82: 0 | DW82: 0 | DX82: 0 | DY82: 0 | DZ82: 0 | EA82: 0 | EB82: 0 | EC82: 0 | ED82: 0 | EE82: 0 | EF82: 0 | EG82: 0 | EH82: 0 | EI82: 0
C83: LV Pits | N83: 23.07605634 | Y83: 4.8037544 | AJ83: 3640 | AK83: 3554 | AL83: 3687 | AM83: 4199 | AN83: 4010 | AO83: 3629 | AP83: 3920 | AQ83: 3649 | AR83: 3379 | AS83: 3428 | AT83: 3783 | AU83: 3460 | AV83: 3891 | AW83: 3226 | AX83: 4463 | AY83: 4564 | AZ83: 4795 | BA83: 2878 | BB83: 2274 | BC83: 3123 | BD83: 2553 | BE83: 1989 | BF83: 1599 | BG83: 1340 | BH83: 2367 | BI83: 2168 | BJ83: 1930 | BK83: 1689 | BL83: 1854 | BM83: 1183 | BN83: 1135 | BO83: 1119 | BP83: 503 | BQ83: 487 | BR83: 543 | BS83: 518 | BT83: 830 | BU83: 818 | BV83: 1029 | BW83: 333 | BX83: 421 | BY83: 166 | BZ83: 93 | CA83: 59 | CB83: 31 | CC83: 0 | CD83: 0 | CE83: 2 | CF83: 3 | CG83: 1 | CH83: 0 | CI83: 0 | CJ83: 0 | CK83: 0 | CL83: 1 | CM83: 0 | CN83: 0 | CO83: 0 | CP83: 0 | CQ83: 0 | CR83: 0 | CS83: 0 | CT83: 0 | CU83: 0 | CV83: 0 | CW83: 0 | CX83: 1 | CY83: 0 | CZ83: 0 | DA83: 0 | DB83: 0 | DC83: 0 | DD83: 0 | DE83: 0 | DF83: 0 | DG83: 0 | DH83: 0 | DI83: 0 | DJ83: 0 | DK83: 0 | DL83: 0 | DM83: 0 | DN83: 0 | DO83: 0 | DP83: 0 | DQ83: 0 | DR83: 0 | DS83: 0 | DT83: 0 | DU83: 0 | DV83: 0 | DW83: 0 | DX83: 0 | DY83: 0 | DZ83: 0 | EA83: 0 | EB83: 0 | EC83: 0 | ED83: 0 | EE83: 0 | EF83: 0 | EG83: 0 | EH83: 1 | EI83: 0
C84: Surge Arrestor - HV | N84: 25 | Y84: 5 | AJ84: 297 | AK84: 533 | AL84: 511 | AM84: 407 | AN84: 422 | AO84: 799 | AP84: 479 | AQ84: 377 | AR84: 541 | AS84: 392 | AT84: 385 | AU84: 318 | AV84: 327 | AW84: 351 | AX84: 248 | AY84: 240 | AZ84: 169 | BA84: 147 | BB84: 151 | BC84: 129 | BD84: 140 | BE84: 132 | BF84: 126 | BG84: 128 | BH84: 304 | BI84: 333 | BJ84: 360 | BK84: 338 | BL84: 334 | BM84: 312 | BN84: 231 | BO84: 184 | BP84: 200 | BQ84: 179 | BR84: 169 | BS84: 200 | BT84: 220 | BU84: 244 | BV84: 274 | BW84: 149 | BX84: 88 | BY84: 168 | BZ84: 115 | CA84: 143 | CB84: 159 | CC84: 90 | CD84: 140 | CE84: 111 | CF84: 125 | CG84: 115 | CH84: 89 | CI84: 91 | CJ84: 88 | CK84: 70 | CL84: 101 | CM84: 86 | CN84: 40 | CO84: 10 | CP84: 18 | CQ84: 18 | CR84: 3 | CS84: 2 | CT84: 3 | CU84: 3 | CV84: 19 | CW84: 10 | CX84: 1 | CY84: 2 | CZ84: 2 | DA84: 5 | DB84: 3 | DC84: 0 | DD84: 0 | DE84: 10 | DF84: 9 | DG84: 2 | DH84: 1 | DI84: 2 | DJ84: 1 | DK84: 0 | DL84: 5 | DM84: 0 | DN84: 0 | DO84: 0 | DP84: 0 | DQ84: 0 | DR84: 0 | DS84: 0 | DT84: 0 | DU84: 0 | DV84: 0 | DW84: 0 | DX84: 0 | DY84: 0 | DZ84: 0 | EA84: 0 | EB84: 0 | EC84: 0 | ED84: 0 | EE84: 0 | EF84: 0 | EG84: 0 | EH84: 0 | EI84: 0
A88: ED_ASS521_99002 | C88: Other | E88: DNSP NAME | F88: REPEX | G88: SERVICE LINES | H88: Other | I88: DESCRIPTOR METRIC | J88: MEAN ECONOMIC LIFE | K88: YEARS | L88: NUMBER | N88: 0 | O88: 0 | P88: 0 | Q88: 0 | R88: 0 | S88: 0 | T88: 0 | U88: 0 | V88: 0 | W88: 0 | X88: 0 | Y88: 0 | AJ88: 4035 | AK88: 4240 | AL88: 4363 | AM88: 4798 | AN88: 4609 | AO88: 4572 | AP88: 4605 | AQ88: 4284 | AR88: 4237 | AS88: 4170 | AT88: 4476 | AU88: 4069 | AV88: 4540 | AW88: 3898 | AX88: 5094 | AY88: 5136 | AZ88: 5268 | BA88: 3225 | BB88: 2597 | BC88: 3440 | BD88: 3040 | BE88: 2287 | BF88: 1890 | BG88: 1613 | BH88: 2902 | BI88: 2730 | BJ88: 2651 | BK88: 2223 | BL88: 2464 | BM88: 1680 | BN88: 1774 | BO88: 1878 | BP88: 929 | BQ88: 807 | BR88: 829 | BS88: 806 | BT88: 1318 | BU88: 1410 | BV88: 1674 | BW88: 902 | BX88: 1155 | BY88: 670 | BZ88: 390 | CA88: 401 | CB88: 225 | CC88: 90 | CD88: 140 | CE88: 113 | CF88: 135 | CG88: 117 | CH88: 90 | CI88: 92 | CJ88: 88 | CK88: 70 | CL88: 103 | CM88: 86 | CN88: 40 | CO88: 10 | CP88: 18 | CQ88: 18 | CR88: 3 | CS88: 2 | CT88: 3 | CU88: 3 | CV88: 19 | CW88: 10 | CX88: 2 | CY88: 2 | CZ88: 2 | DA88: 5 | DB88: 3 | DC88: 0 | DD88: 0 | DE88: 10 | DF88: 10 | DG88: 2 | DH88: 1 | DI88: 2 | DJ88: 1 | DK88: 0 | DL88: 5 | DM88: 0 | DN88: 0 | DO88: 0 | DP88: 0 | DQ88: 0 | DR88: 0 | DS88: 0 | DT88: 0 | DU88: 0 | DV88: 0 | DW88: 0 | DX88: 0 | DY88: 0 | DZ88: 0 | EA88: 0 | EB88: 0 | EC88: 0 | ED88: 0 | EE88: 0 | EF88: 0 | EG88: 0 | EH88: 1 | EI88: 0
A89: ED_ASS521_00038 | B89: SERVICE LINES BY: CONNECTION VOLTAGE; CUSTOMER TYPE; CONNECTION COMPLEXITY | C89: ˂ = 11 kV ; Residential ; Simple Type | E89: DNSP NAME | F89: REPEX | G89: SERVICE LINES | H89: ˂ = 11 kV ; Residential ; Simple Type | I89: DESCRIPTOR METRIC | J89: MEAN ECONOMIC LIFE | K89: YEARS | L89: NUMBER | N89: 40 | Y89: 6.32455532 | AJ89: 38631 | AK89: 45005 | AL89: 46356 | AM89: 26183 | AN89: 20906 | AO89: 9857 | AP89: 10550 | AQ89: 8819 | AR89: 7989 | AS89: 5218 | AT89: 6418 | AU89: 5902 | AV89: 2797 | AW89: 2420 | AX89: 2165 | AY89: 2263 | AZ89: 2040 | BA89: 2186 | BB89: 1381 | BC89: 1641 | BD89: 1864 | BE89: 2937 | BF89: 2257 | BG89: 1987 | BH89: 2773 | BI89: 2695 | BJ89: 2942 | BK89: 2323 | BL89: 3116 | BM89: 2587 | BN89: 1748 | BO89: 1540 | BP89: 1415 | BQ89: 1405 | BR89: 1447 | BS89: 956 | BT89: 1355 | BU89: 1274 | BV89: 990 | BW89: 1019 | BX89: 890 | BY89: 1201 | BZ89: 1126 | CA89: 822 | CB89: 891 | CC89: 949 | CD89: 821 | CE89: 756 | CF89: 512 | CG89: 673 | CH89: 521 | CI89: 326 | CJ89: 277 | CK89: 225 | CL89: 185 | CM89: 129 | CN89: 93 | CO89: 57 | CP89: 34 | CQ89: 24 | CR89: 22 | CS89: 15 | CT89: 12 | CU89: 8 | CV89: 23 | CW89: 6 | CX89: 4 | CY89: 3 | CZ89: 3 | DA89: 1 | DB89: 0 | DC89: 1 | DD89: 2 | DE89: 2 | DF89: 3 | DG89: 2 | DH89: 2 | DI89: 1 | DJ89: 1 | DK89: 1 | DL89: 1 | DM89: 0 | DN89: 0 | DO89: 0 | DP89: 0 | DQ89: 0 | DR89: 0 | DS89: 0 | DT89: 0 | DU89: 0 | DV89: 0 | DW89: 0 | DX89: 0 | DY89: 0 | DZ89: 0 | EA89: 0 | EB89: 0 | EC89: 0 | ED89: 0 | EE89: 0 | EF89: 0 | EG89: 0 | EH89: 0 | EI89: 0
A90: ED_ASS521_00039 | C90: ˂ = 11 kV ; Commercial & Industrial ; Simple Type | E90: DNSP NAME | F90: REPEX | G90: SERVICE LINES | H90: ˂ = 11 kV ; Commercial & Industrial ; Simple Type | I90: DESCRIPTOR METRIC | J90: MEAN ECONOMIC LIFE | K90: YEARS | L90: NUMBER | N90: 40 | Y90: 6.32455532 | AJ90: 1893 | AK90: 2435 | AL90: 1862 | AM90: 1174 | AN90: 1038 | AO90: 757 | AP90: 739 | AQ90: 683 | AR90: 599 | AS90: 493 | AT90: 521 | AU90: 478 | AV90: 308 | AW90: 332 | AX90: 330 | AY90: 312 | AZ90: 272 | BA90: 313 | BB90: 204 | BC90: 233 | BD90: 261 | BE90: 402 | BF90: 266 | BG90: 268 | BH90: 413 | BI90: 509 | BJ90: 540 | BK90: 367 | BL90: 427 | BM90: 335 | BN90: 245 | BO90: 203 | BP90: 256 | BQ90: 231 | BR90: 227 | BS90: 133 | BT90: 190 | BU90: 230 | BV90: 177 | BW90: 105 | BX90: 143 | BY90: 120 | BZ90: 132 | CA90: 110 | CB90: 125 | CC90: 114 | CD90: 82 | CE90: 90 | CF90: 78 | CG90: 71 | CH90: 51 | CI90: 29 | CJ90: 24 | CK90: 29 | CL90: 19 | CM90: 11 | CN90: 10 | CO90: 6 | CP90: 2 | CQ90: 3 | CR90: 2 | CS90: 2 | CT90: 1 | CU90: 1 | CV90: 3 | CW90: 1 | CX90: 0 | CY90: 0 | CZ90: 0 | DA90: 0 | DB90: 0 | DC90: 0 | DD90: 0 | DE90: 0 | DF90: 0 | DG90: 0 | DH90: 0 | DI90: 0 | DJ90: 0 | DK90: 0 | DL90: 0 | DM90: 0 | DN90: 0 | DO90: 0 | DP90: 0 | DQ90: 0 | DR90: 0 | DS90: 0 | DT90: 0 | DU90: 0 | DV90: 0 | DW90: 0 | DX90: 0 | DY90: 0 | DZ90: 0 | EA90: 0 | EB90: 0 | EC90: 0 | ED90: 0 | EE90: 0 | EF90: 0 | EG90: 0 | EH90: 0 | EI90: 0
A91: ED_ASS521_00040 | C91: ˂ = 11 kV ; Residential ; Complex Type | E91: DNSP NAME | F91: REPEX | G91: SERVICE LINES | H91: ˂ = 11 kV ; Residential ; Complex Type | I91: DESCRIPTOR METRIC | J91: MEAN ECONOMIC LIFE | K91: YEARS | L91: NUMBER | N91: 40 | Y91: 6.32455532 | AJ91: 3542 | AK91: 3782 | AL91: 5354 | AM91: 2426 | AN91: 1952 | AO91: 1193 | AP91: 1192 | AQ91: 1232 | AR91: 1159 | AS91: 844 | AT91: 1135 | AU91: 1226 | AV91: 662 | AW91: 581 | AX91: 489 | AY91: 488 | AZ91: 425 | BA91: 529 | BB91: 295 | BC91: 353 | BD91: 463 | BE91: 513 | BF91: 568 | BG91: 472 | BH91: 511 | BI91: 556 | BJ91: 608 | BK91: 544 | BL91: 595 | BM91: 565 | BN91: 512 | BO91: 433 | BP91: 462 | BQ91: 376 | BR91: 475 | BS91: 246 | BT91: 312 | BU91: 222 | BV91: 226 | BW91: 224 | BX91: 195 | BY91: 205 | BZ91: 182 | CA91: 146 | CB91: 146 | CC91: 152 | CD91: 138 | CE91: 149 | CF91: 114 | CG91: 135 | CH91: 127 | CI91: 76 | CJ91: 80 | CK91: 53 | CL91: 40 | CM91: 42 | CN91: 18 | CO91: 13 | CP91: 9 | CQ91: 5 | CR91: 5 | CS91: 3 | CT91: 3 | CU91: 1 | CV91: 7 | CW91: 1 | CX91: 1 | CY91: 0 | CZ91: 1 | DA91: 0 | DB91: 0 | DC91: 0 | DD91: 0 | DE91: 1 | DF91: 0 | DG91: 0 | DH91: 0 | DI91: 0 | DJ91: 0 | DK91: 0 | DL91: 0 | DM91: 0 | DN91: 0 | DO91: 0 | DP91: 0 | DQ91: 0 | DR91: 0 | DS91: 0 | DT91: 0 | DU91: 0 | DV91: 0 | DW91: 0 | DX91: 0 | DY91: 0 | DZ91: 0 | EA91: 0 | EB91: 0 | EC91: 0 | ED91: 0 | EE91: 0 | EF91: 0 | EG91: 0 | EH91: 0 | EI91: 0
A92: ED_ASS521_00041 | C92: ˂ = 11 kV ; Commercial & Industrial ; Complex Type | N92: 40 | Y92: 6.32455532 | AJ92: 512 | AK92: 604 | AL92: 475 | AM92: 407 | AN92: 345 | AO92: 250 | AP92: 265 | AQ92: 275 | AR92: 188 | AS92: 205 | AT92: 180 | AU92: 238 | AV92: 145 | AW92: 176 | AX92: 143 | AY92: 223 | AZ92: 181 | BA92: 148 | BB92: 91 | BC92: 92 | BD92: 101 | BE92: 140 | BF92: 124 | BG92: 123 | BH92: 201 | BI92: 174 | BJ92: 207 | BK92: 152 | BL92: 217 | BM92: 166 | BN92: 149 | BO92: 95 | BP92: 101 | BQ92: 135 | BR92: 104 | BS92: 61 | BT92: 85 | BU92: 66 | BV92: 129 | BW92: 52 | BX92: 57 | BY92: 54 | BZ92: 65 | CA92: 45 | CB92: 59 | CC92: 16 | CD92: 41 | CE92: 30 | CF92: 21 | CG92: 30 | CH92: 24 | CI92: 13 | CJ92: 15 | CK92: 23 | CL92: 11 | CM92: 6 | CN92: 4 | CO92: 2 | CP92: 2 | CQ92: 1 | CR92: 1 | CS92: 0 | CT92: 0 | CU92: 0 | CV92: 1 | CW92: 0 | CX92: 0 | CY92: 0 | CZ92: 0 | DA92: 0 | DB92: 0 | DC92: 0 | DD92: 0 | DE92: 0 | DF92: 0 | DG92: 0 | DH92: 0 | DI92: 0 | DJ92: 0 | DK92: 0 | DL92: 0 | DM92: 0 | DN92: 0 | DO92: 0 | DP92: 0 | DQ92: 0 | DR92: 0 | DS92: 0 | DT92: 0 | DU92: 0 | DV92: 0 | DW92: 0 | DX92: 0 | DY92: 0 | DZ92: 0 | EA92: 0 | EB92: 0 | EC92: 0 | ED92: 0 | EE92: 0 | EF92: 0 | EG92: 0 | EH92: 0 | EI92: 0
A93: ED_ASS521_00042 | C93: ˂ = 11 kV ; Subdivision ; Complex Type | N93: 0 | Y93: 0 | AJ93: 0 | AK93: 0 | AL93: 0 | AM93: 0 | AN93: 0 | AO93: 0 | AP93: 0 | AQ93: 0 | AR93: 0 | AS93: 0 | AT93: 0 | AU93: 0 | AV93: 0 | AW93: 0 | AX93: 0 | AY93: 0 | AZ93: 0 | BA93: 0 | BB93: 0 | BC93: 0 | BD93: 0 | BE93: 0 | BF93: 0 | BG93: 0 | BH93: 0 | BI93: 0 | BJ93: 0 | BK93: 0 | BL93: 0 | BM93: 0 | BN93: 0 | BO93: 0 | BP93: 0 | BQ93: 0 | BR93: 0 | BS93: 0 | BT93: 0 | BU93: 0 | BV93: 0 | BW93: 0 | BX93: 0 | BY93: 0 | BZ93: 0 | CA93: 0 | CB93: 0 | CC93: 0 | CD93: 0 | CE93: 0 | CF93: 0 | CG93: 0 | CH93: 0 | CI93: 0 | CJ93: 0 | CK93: 0 | CL93: 0 | CM93: 0 | CN93: 0 | CO93: 0 | CP93: 0 | CQ93: 0 | CR93: 0 | CS93: 0 | CT93: 0 | CU93: 0 | CV93: 0 | CW93: 0 | CX93: 0 | CY93: 0 | CZ93: 0 | DA93: 0 | DB93: 0 | DC93: 0 | DD93: 0 | DE93: 0 | DF93: 0 | DG93: 0 | DH93: 0 | DI93: 0 | DJ93: 0 | DK93: 0 | DL93: 0 | DM93: 0 | DN93: 0 | DO93: 0 | DP93: 0 | DQ93: 0 | DR93: 0 | DS93: 0 | DT93: 0 | DU93: 0 | DV93: 0 | DW93: 0 | DX93: 0 | DY93: 0 | DZ93: 0 | EA93: 0 | EB93: 0 | EC93: 0 | ED93: 0 | EE93: 0 | EF93: 0 | EG93: 0 | EH93: 0 | EI93: 0
A94: ED_ASS521_00043 | C94: > 11 kV & < = 22 kV ; Commercial & Industrial | N94: 0 | Y94: 0 | AJ94: 0 | AK94: 0 | AL94: 0 | AM94: 0 | AN94: 0 | AO94: 0 | AP94: 0 | AQ94: 0 | AR94: 0 | AS94: 0 | AT94: 0 | AU94: 0 | AV94: 0 | AW94: 0 | AX94: 0 | AY94: 0 | AZ94: 0 | BA94: 0 | BB94: 0 | BC94: 0 | BD94: 0 | BE94: 0 | BF94: 0 | BG94: 0 | BH94: 0 | BI94: 0 | BJ94: 0 | BK94: 0 | BL94: 0 | BM94: 0 | BN94: 0 | BO94: 0 | BP94: 0 | BQ94: 0 | BR94: 0 | BS94: 0 | BT94: 0 | BU94: 0 | BV94: 0 | BW94: 0 | BX94: 0 | BY94: 0 | BZ94: 0 | CA94: 0 | CB94: 0 | CC94: 0 | CD94: 0 | CE94: 0 | CF94: 0 | CG94: 0 | CH94: 0 | CI94: 0 | CJ94: 0 | CK94: 0 | CL94: 0 | CM94: 0 | CN94: 0 | CO94: 0 | CP94: 0 | CQ94: 0 | CR94: 0 | CS94: 0 | CT94: 0 | CU94: 0 | CV94: 0 | CW94: 0 | CX94: 0 | CY94: 0 | CZ94: 0 | DA94: 0 | DB94: 0 | DC94: 0 | DD94: 0 | DE94: 0 | DF94: 0 | DG94: 0 | DH94: 0 | DI94: 0 | DJ94: 0 | DK94: 0 | DL94: 0 | DM94: 0 | DN94: 0 | DO94: 0 | DP94: 0 | DQ94: 0 | DR94: 0 | DS94: 0 | DT94: 0 | DU94: 0 | DV94: 0 | DW94: 0 | DX94: 0 | DY94: 0 | DZ94: 0 | EA94: 0 | EB94: 0 | EC94: 0 | ED94: 0 | EE94: 0 | EF94: 0 | EG94: 0 | EH94: 0 | EI94: 0
A95: ED_ASS521_00044 | C95: > 11 kV & < = 22 kV ; Subdivision | N95: 0 | Y95: 0 | AJ95: 0 | AK95: 0 | AL95: 0 | AM95: 0 | AN95: 0 | AO95: 0 | AP95: 0 | AQ95: 0 | AR95: 0 | AS95: 0 | AT95: 0 | AU95: 0 | AV95: 0 | AW95: 0 | AX95: 0 | AY95: 0 | AZ95: 0 | BA95: 0 | BB95: 0 | BC95: 0 | BD95: 0 | BE95: 0 | BF95: 0 | BG95: 0 | BH95: 0 | BI95: 0 | BJ95: 0 | BK95: 0 | BL95: 0 | BM95: 0 | BN95: 0 | BO95: 0 | BP95: 0 | BQ95: 0 | BR95: 0 | BS95: 0 | BT95: 0 | BU95: 0 | BV95: 0 | BW95: 0 | BX95: 0 | BY95: 0 | BZ95: 0 | CA95: 0 | CB95: 0 | CC95: 0 | CD95: 0 | CE95: 0 | CF95: 0 | CG95: 0 | CH95: 0 | CI95: 0 | CJ95: 0 | CK95: 0 | CL95: 0 | CM95: 0 | CN95: 0 | CO95: 0 | CP95: 0 | CQ95: 0 | CR95: 0 | CS95: 0 | CT95: 0 | CU95: 0 | CV95: 0 | CW95: 0 | CX95: 0 | CY95: 0 | CZ95: 0 | DA95: 0 | DB95: 0 | DC95: 0 | DD95: 0 | DE95: 0 | DF95: 0 | DG95: 0 | DH95: 0 | DI95: 0 | DJ95: 0 | DK95: 0 | DL95: 0 | DM95: 0 | DN95: 0 | DO95: 0 | DP95: 0 | DQ95: 0 | DR95: 0 | DS95: 0 | DT95: 0 | DU95: 0 | DV95: 0 | DW95: 0 | DX95: 0 | DY95: 0 | DZ95: 0 | EA95: 0 | EB95: 0 | EC95: 0 | ED95: 0 | EE95: 0 | EF95: 0 | EG95: 0 | EH95: 0 | EI95: 0
A96: ED_ASS521_00045 | C96: > 22 kV & < = 33 kV ; Commercial & Industrial | N96: 0 | Y96: 0 | AJ96: 0 | AK96: 0 | AL96: 0 | AM96: 0 | AN96: 0 | AO96: 0 | AP96: 0 | AQ96: 0 | AR96: 0 | AS96: 0 | AT96: 0 | AU96: 0 | AV96: 0 | AW96: 0 | AX96: 0 | AY96: 0 | AZ96: 0 | BA96: 0 | BB96: 0 | BC96: 0 | BD96: 0 | BE96: 0 | BF96: 0 | BG96: 0 | BH96: 0 | BI96: 0 | BJ96: 0 | BK96: 0 | BL96: 0 | BM96: 0 | BN96: 0 | BO96: 0 | BP96: 0 | BQ96: 0 | BR96: 0 | BS96: 0 | BT96: 0 | BU96: 0 | BV96: 0 | BW96: 0 | BX96: 0 | BY96: 0 | BZ96: 0 | CA96: 0 | CB96: 0 | CC96: 0 | CD96: 0 | CE96: 0 | CF96: 0 | CG96: 0 | CH96: 0 | CI96: 0 | CJ96: 0 | CK96: 0 | CL96: 0 | CM96: 0 | CN96: 0 | CO96: 0 | CP96: 0 | CQ96: 0 | CR96: 0 | CS96: 0 | CT96: 0 | CU96: 0 | CV96: 0 | CW96: 0 | CX96: 0 | CY96: 0 | CZ96: 0 | DA96: 0 | DB96: 0 | DC96: 0 | DD96: 0 | DE96: 0 | DF96: 0 | DG96: 0 | DH96: 0 | DI96: 0 | DJ96: 0 | DK96: 0 | DL96: 0 | DM96: 0 | DN96: 0 | DO96: 0 | DP96: 0 | DQ96: 0 | DR96: 0 | DS96: 0 | DT96: 0 | DU96: 0 | DV96: 0 | DW96: 0 | DX96: 0 | DY96: 0 | DZ96: 0 | EA96: 0 | EB96: 0 | EC96: 0 | ED96: 0 | EE96: 0 | EF96: 0 | EG96: 0 | EH96: 0 | EI96: 0
A97: ED_ASS521_00046 | C97: > 22 kV & < = 33 kV ; Subdivision | N97: 0 | Y97: 0 | AJ97: 0 | AK97: 0 | AL97: 0 | AM97: 0 | AN97: 0 | AO97: 0 | AP97: 0 | AQ97: 0 | AR97: 0 | AS97: 0 | AT97: 0 | AU97: 0 | AV97: 0 | AW97: 0 | AX97: 0 | AY97: 0 | AZ97: 0 | BA97: 0 | BB97: 0 | BC97: 0 | BD97: 0 | BE97: 0 | BF97: 0 | BG97: 0 | BH97: 0 | BI97: 0 | BJ97: 0 | BK97: 0 | BL97: 0 | BM97: 0 | BN97: 0 | BO97: 0 | BP97: 0 | BQ97: 0 | BR97: 0 | BS97: 0 | BT97: 0 | BU97: 0 | BV97: 0 | BW97: 0 | BX97: 0 | BY97: 0 | BZ97: 0 | CA97: 0 | CB97: 0 | CC97: 0 | CD97: 0 | CE97: 0 | CF97: 0 | CG97: 0 | CH97: 0 | CI97: 0 | CJ97: 0 | CK97: 0 | CL97: 0 | CM97: 0 | CN97: 0 | CO97: 0 | CP97: 0 | CQ97: 0 | CR97: 0 | CS97: 0 | CT97: 0 | CU97: 0 | CV97: 0 | CW97: 0 | CX97: 0 | CY97: 0 | CZ97: 0 | DA97: 0 | DB97: 0 | DC97: 0 | DD97: 0 | DE97: 0 | DF97: 0 | DG97: 0 | DH97: 0 | DI97: 0 | DJ97: 0 | DK97: 0 | DL97: 0 | DM97: 0 | DN97: 0 | DO97: 0 | DP97: 0 | DQ97: 0 | DR97: 0 | DS97: 0 | DT97: 0 | DU97: 0 | DV97: 0 | DW97: 0 | DX97: 0 | DY97: 0 | DZ97: 0 | EA97: 0 | EB97: 0 | EC97: 0 | ED97: 0 | EE97: 0 | EF97: 0 | EG97: 0 | EH97: 0 | EI97: 0
A98: ED_ASS521_00047 | C98: > 33 kV & < = 66 kV ; Commercial & Industrial | N98: 0 | Y98: 0 | AJ98: 0 | AK98: 0 | AL98: 0 | AM98: 0 | AN98: 0 | AO98: 0 | AP98: 0 | AQ98: 0 | AR98: 0 | AS98: 0 | AT98: 0 | AU98: 0 | AV98: 0 | AW98: 0 | AX98: 0 | AY98: 0 | AZ98: 0 | BA98: 0 | BB98: 0 | BC98: 0 | BD98: 0 | BE98: 0 | BF98: 0 | BG98: 0 | BH98: 0 | BI98: 0 | BJ98: 0 | BK98: 0 | BL98: 0 | BM98: 0 | BN98: 0 | BO98: 0 | BP98: 0 | BQ98: 0 | BR98: 0 | BS98: 0 | BT98: 0 | BU98: 0 | BV98: 0 | BW98: 0 | BX98: 0 | BY98: 0 | BZ98: 0 | CA98: 0 | CB98: 0 | CC98: 0 | CD98: 0 | CE98: 0 | CF98: 0 | CG98: 0 | CH98: 0 | CI98: 0 | CJ98: 0 | CK98: 0 | CL98: 0 | CM98: 0 | CN98: 0 | CO98: 0 | CP98: 0 | CQ98: 0 | CR98: 0 | CS98: 0 | CT98: 0 | CU98: 0 | CV98: 0 | CW98: 0 | CX98: 0 | CY98: 0 | CZ98: 0 | DA98: 0 | DB98: 0 | DC98: 0 | DD98: 0 | DE98: 0 | DF98: 0 | DG98: 0 | DH98: 0 | DI98: 0 | DJ98: 0 | DK98: 0 | DL98: 0 | DM98: 0 | DN98: 0 | DO98: 0 | DP98: 0 | DQ98: 0 | DR98: 0 | DS98: 0 | DT98: 0 | DU98: 0 | DV98: 0 | DW98: 0 | DX98: 0 | DY98: 0 | DZ98: 0 | EA98: 0 | EB98: 0 | EC98: 0 | ED98: 0 | EE98: 0 | EF98: 0 | EG98: 0 | EH98: 0 | EI98: 0
A99: ED_ASS521_00048 | C99: > 33 kV & < = 66 kV ; Subdivision | N99: 0 | Y99: 0 | AJ99: 0 | AK99: 0 | AL99: 0 | AM99: 0 | AN99: 0 | AO99: 0 | AP99: 0 | AQ99: 0 | AR99: 0 | AS99: 0 | AT99: 0 | AU99: 0 | AV99: 0 | AW99: 0 | AX99: 0 | AY99: 0 | AZ99: 0 | BA99: 0 | BB99: 0 | BC99: 0 | BD99: 0 | BE99: 0 | BF99: 0 | BG99: 0 | BH99: 0 | BI99: 0 | BJ99: 0 | BK99: 0 | BL99: 0 | BM99: 0 | BN99: 0 | BO99: 0 | BP99: 0 | BQ99: 0 | BR99: 0 | BS99: 0 | BT99: 0 | BU99: 0 | BV99: 0 | BW99: 0 | BX99: 0 | BY99: 0 | BZ99: 0 | CA99: 0 | CB99: 0 | CC99: 0 | CD99: 0 | CE99: 0 | CF99: 0 | CG99: 0 | CH99: 0 | CI99: 0 | CJ99: 0 | CK99: 0 | CL99: 0 | CM99: 0 | CN99: 0 | CO99: 0 | CP99: 0 | CQ99: 0 | CR99: 0 | CS99: 0 | CT99: 0 | CU99: 0 | CV99: 0 | CW99: 0 | CX99: 0 | CY99: 0 | CZ99: 0 | DA99: 0 | DB99: 0 | DC99: 0 | DD99: 0 | DE99: 0 | DF99: 0 | DG99: 0 | DH99: 0 | DI99: 0 | DJ99: 0 | DK99: 0 | DL99: 0 | DM99: 0 | DN99: 0 | DO99: 0 | DP99: 0 | DQ99: 0 | DR99: 0 | DS99: 0 | DT99: 0 | DU99: 0 | DV99: 0 | DW99: 0 | DX99: 0 | DY99: 0 | DZ99: 0 | EA99: 0 | EB99: 0 | EC99: 0 | ED99: 0 | EE99: 0 | EF99: 0 | EG99: 0 | EH99: 0 | EI99: 0
A100: ED_ASS521_00049 | C100: > 66 kV & < = 132 kV ; Commercial & Industrial | N100: 0 | Y100: 0 | AJ100: 0 | AK100: 0 | AL100: 0 | AM100: 0 | AN100: 0 | AO100: 0 | AP100: 0 | AQ100: 0 | AR100: 0 | AS100: 0 | AT100: 0 | AU100: 0 | AV100: 0 | AW100: 0 | AX100: 0 | AY100: 0 | AZ100: 0 | BA100: 0 | BB100: 0 | BC100: 0 | BD100: 0 | BE100: 0 | BF100: 0 | BG100: 0 | BH100: 0 | BI100: 0 | BJ100: 0 | BK100: 0 | BL100: 0 | BM100: 0 | BN100: 0 | BO100: 0 | BP100: 0 | BQ100: 0 | BR100: 0 | BS100: 0 | BT100: 0 | BU100: 0 | BV100: 0 | BW100: 0 | BX100: 0 | BY100: 0 | BZ100: 0 | CA100: 0 | CB100: 0 | CC100: 0 | CD100: 0 | CE100: 0 | CF100: 0 | CG100: 0 | CH100: 0 | CI100: 0 | CJ100: 0 | CK100: 0 | CL100: 0 | CM100: 0 | CN100: 0 | CO100: 0 | CP100: 0 | CQ100: 0 | CR100: 0 | CS100: 0 | CT100: 0 | CU100: 0 | CV100: 0 | CW100: 0 | CX100: 0 | CY100: 0 | CZ100: 0 | DA100: 0 | DB100: 0 | DC100: 0 | DD100: 0 | DE100: 0 | DF100: 0 | DG100: 0 | DH100: 0 | DI100: 0 | DJ100: 0 | DK100: 0 | DL100: 0 | DM100: 0 | DN100: 0 | DO100: 0 | DP100: 0 | DQ100: 0 | DR100: 0 | DS100: 0 | DT100: 0 | DU100: 0 | DV100: 0 | DW100: 0 | DX100: 0 | DY100: 0 | DZ100: 0 | EA100: 0 | EB100: 0 | EC100: 0 | ED100: 0 | EE100: 0 | EF100: 0 | EG100: 0 | EH100: 0 | EI100: 0
A101: ED_ASS521_00050 | C101: > 66 kV & < = 132 kV ; Subdivision | N101: 0 | Y101: 0 | AJ101: 0 | AK101: 0 | AL101: 0 | AM101: 0 | AN101: 0 | AO101: 0 | AP101: 0 | AQ101: 0 | AR101: 0 | AS101: 0 | AT101: 0 | AU101: 0 | AV101: 0 | AW101: 0 | AX101: 0 | AY101: 0 | AZ101: 0 | BA101: 0 | BB101: 0 | BC101: 0 | BD101: 0 | BE101: 0 | BF101: 0 | BG101: 0 | BH101: 0 | BI101: 0 | BJ101: 0 | BK101: 0 | BL101: 0 | BM101: 0 | BN101: 0 | BO101: 0 | BP101: 0 | BQ101: 0 | BR101: 0 | BS101: 0 | BT101: 0 | BU101: 0 | BV101: 0 | BW101: 0 | BX101: 0 | BY101: 0 | BZ101: 0 | CA101: 0 | CB101: 0 | CC101: 0 | CD101: 0 | CE101: 0 | CF101: 0 | CG101: 0 | CH101: 0 | CI101: 0 | CJ101: 0 | CK101: 0 | CL101: 0 | CM101: 0 | CN101: 0 | CO101: 0 | CP101: 0 | CQ101: 0 | CR101: 0 | CS101: 0 | CT101: 0 | CU101: 0 | CV101: 0 | CW101: 0 | CX101: 0 | CY101: 0 | CZ101: 0 | DA101: 0 | DB101: 0 | DC101: 0 | DD101: 0 | DE101: 0 | DF101: 0 | DG101: 0 | DH101: 0 | DI101: 0 | DJ101: 0 | DK101: 0 | DL101: 0 | DM101: 0 | DN101: 0 | DO101: 0 | DP101: 0 | DQ101: 0 | DR101: 0 | DS101: 0 | DT101: 0 | DU101: 0 | DV101: 0 | DW101: 0 | DX101: 0 | DY101: 0 | DZ101: 0 | EA101: 0 | EB101: 0 | EC101: 0 | ED101: 0 | EE101: 0 | EF101: 0 | EG101: 0 | EH101: 0 | EI101: 0
A102: ED_ASS521_00051 | C102: > 132 kV ; Commercial & Industrial | N102: 0 | Y102: 0 | AJ102: 0 | AK102: 0 | AL102: 0 | AM102: 0 | AN102: 0 | AO102: 0 | AP102: 0 | AQ102: 0 | AR102: 0 | AS102: 0 | AT102: 0 | AU102: 0 | AV102: 0 | AW102: 0 | AX102: 0 | AY102: 0 | AZ102: 0 | BA102: 0 | BB102: 0 | BC102: 0 | BD102: 0 | BE102: 0 | BF102: 0 | BG102: 0 | BH102: 0 | BI102: 0 | BJ102: 0 | BK102: 0 | BL102: 0 | BM102: 0 | BN102: 0 | BO102: 0 | BP102: 0 | BQ102: 0 | BR102: 0 | BS102: 0 | BT102: 0 | BU102: 0 | BV102: 0 | BW102: 0 | BX102: 0 | BY102: 0 | BZ102: 0 | CA102: 0 | CB102: 0 | CC102: 0 | CD102: 0 | CE102: 0 | CF102: 0 | CG102: 0 | CH102: 0 | CI102: 0 | CJ102: 0 | CK102: 0 | CL102: 0 | CM102: 0 | CN102: 0 | CO102: 0 | CP102: 0 | CQ102: 0 | CR102: 0 | CS102: 0 | CT102: 0 | CU102: 0 | CV102: 0 | CW102: 0 | CX102: 0 | CY102: 0 | CZ102: 0 | DA102: 0 | DB102: 0 | DC102: 0 | DD102: 0 | DE102: 0 | DF102: 0 | DG102: 0 | DH102: 0 | DI102: 0 | DJ102: 0 | DK102: 0 | DL102: 0 | DM102: 0 | DN102: 0 | DO102: 0 | DP102: 0 | DQ102: 0 | DR102: 0 | DS102: 0 | DT102: 0 | DU102: 0 | DV102: 0 | DW102: 0 | DX102: 0 | DY102: 0 | DZ102: 0 | EA102: 0 | EB102: 0 | EC102: 0 | ED102: 0 | EE102: 0 | EF102: 0 | EG102: 0 | EH102: 0 | EI102: 0
A103: ED_ASS521_00052 | C103: > 132 kV ; Subdivision | N103: 0 | Y103: 0 | AJ103: 0 | AK103: 0 | AL103: 0 | AM103: 0 | AN103: 0 | AO103: 0 | AP103: 0 | AQ103: 0 | AR103: 0 | AS103: 0 | AT103: 0 | AU103: 0 | AV103: 0 | AW103: 0 | AX103: 0 | AY103: 0 | AZ103: 0 | BA103: 0 | BB103: 0 | BC103: 0 | BD103: 0 | BE103: 0 | BF103: 0 | BG103: 0 | BH103: 0 | BI103: 0 | BJ103: 0 | BK103: 0 | BL103: 0 | BM103: 0 | BN103: 0 | BO103: 0 | BP103: 0 | BQ103: 0 | BR103: 0 | BS103: 0 | BT103: 0 | BU103: 0 | BV103: 0 | BW103: 0 | BX103: 0 | BY103: 0 | BZ103: 0 | CA103: 0 | CB103: 0 | CC103: 0 | CD103: 0 | CE103: 0 | CF103: 0 | CG103: 0 | CH103: 0 | CI103: 0 | CJ103: 0 | CK103: 0 | CL103: 0 | CM103: 0 | CN103: 0 | CO103: 0 | CP103: 0 | CQ103: 0 | CR103: 0 | CS103: 0 | CT103: 0 | CU103: 0 | CV103: 0 | CW103: 0 | CX103: 0 | CY103: 0 | CZ103: 0 | DA103: 0 | DB103: 0 | DC103: 0 | DD103: 0 | DE103: 0 | DF103: 0 | DG103: 0 | DH103: 0 | DI103: 0 | DJ103: 0 | DK103: 0 | DL103: 0 | DM103: 0 | DN103: 0 | DO103: 0 | DP103: 0 | DQ103: 0 | DR103: 0 | DS103: 0 | DT103: 0 | DU103: 0 | DV103: 0 | DW103: 0 | DX103: 0 | DY103: 0 | DZ103: 0 | EA103: 0 | EB103: 0 | EC103: 0 | ED103: 0 | EE103: 0 | EF103: 0 | EG103: 0 | EH103: 0 | EI103: 0
A105: ED_ASS521_99003 | C105: Other | E105: DNSP NAME | F105: REPEX | G105: SERVICE LINES | H105: Other | I105: DESCRIPTOR METRIC | J105: MEAN ECONOMIC LIFE | K105: YEARS | L105: NUMBER | N105: 0 | Y105: 0 | AJ105: 0 | AK105: 0 | AL105: 0 | AM105: 0 | AN105: 0 | AO105: 0 | AP105: 0 | AQ105: 0 | AR105: 0 | AS105: 0 | AT105: 0 | AU105: 0 | AV105: 0 | AW105: 0 | AX105: 0 | AY105: 0 | AZ105: 0 | BA105: 0 | BB105: 0 | BC105: 0 | BD105: 0 | BE105: 0 | BF105: 0 | BG105: 0 | BH105: 0 | BI105: 0 | BJ105: 0 | BK105: 0 | BL105: 0 | BM105: 0 | BN105: 0 | BO105: 0 | BP105: 0 | BQ105: 0 | BR105: 0 | BS105: 0 | BT105: 0 | BU105: 0 | BV105: 0 | BW105: 0 | BX105: 0 | BY105: 0 | BZ105: 0 | CA105: 0 | CB105: 0 | CC105: 0 | CD105: 0 | CE105: 0 | CF105: 0 | CG105: 0 | CH105: 0 | CI105: 0 | CJ105: 0 | CK105: 0 | CL105: 0 | CM105: 0 | CN105: 0 | CO105: 0 | CP105: 0 | CQ105: 0 | CR105: 0 | CS105: 0 | CT105: 0 | CU105: 0 | CV105: 0 | CW105: 0 | CX105: 0 | CY105: 0 | CZ105: 0 | DA105: 0 | DB105: 0 | DC105: 0 | DD105: 0 | DE105: 0 | DF105: 0 | DG105: 0 | DH105: 0 | DI105: 0 | DJ105: 0 | DK105: 0 | DL105: 0 | DM105: 0 | DN105: 0 | DO105: 0 | DP105: 0 | DQ105: 0 | DR105: 0 | DS105: 0 | DT105: 0 | DU105: 0 | DV105: 0 | DW105: 0 | DX105: 0 | DY105: 0 | DZ105: 0 | EA105: 0 | EB105: 0 | EC105: 0 | ED105: 0 | EE105: 0 | EF105: 0 | EG105: 0 | EH105: 0 | EI105: 0
A106: ED_ASS521_00054 | B106: TRANSFORMERS BY: MOUNTING TYPE; HIGHEST OPERATING VOLTAGE ; AMPERE RATING; NUMBER OF PHASES (AT LV) | C106: Pole Mounted ; < = 22kV ; < = 60 kVA ; Single Phase | E106: DNSP NAME | F106: REPEX | G106: TRANSFORMERS | H106: Pole Mounted ; < = 22kV ; < = 60 kVA ; Single Phase | I106: DESCRIPTOR METRIC | J106: MEAN ECONOMIC LIFE | K106: YEARS | L106: NUMBER | N106: 50 | Y106: 7.071067812 | AJ106: 17 | AK106: 24 | AL106: 26 | AM106: 29 | AN106: 30 | AO106: 27 | AP106: 19 | AQ106: 3 | AR106: 31 | AS106: 25 | AT106: 17 | AU106: 15 | AV106: 23 | AW106: 29 | AX106: 31 | AY106: 26 | AZ106: 18 | BA106: 17 | BB106: 20 | BC106: 32 | BD106: 16 | BE106: 20 | BF106: 13 | BG106: 20 | BH106: 60 | BI106: 63 | BJ106: 65 | BK106: 72 | BL106: 75 | BM106: 100 | BN106: 65 | BO106: 33 | BP106: 35 | BQ106: 38 | BR106: 28 | BS106: 33 | BT106: 25 | BU106: 22 | BV106: 23 | BW106: 8 | BX106: 2 | BY106: 6 | BZ106: 12 | CA106: 11 | CB106: 8 | CC106: 7 | CD106: 10 | CE106: 2 | CF106: 2 | CG106: 4 | CH106: 3 | CI106: 3 | CJ106: 3 | CK106: 7 | CL106: 2 | CM106: 3 | CN106: 1 | CO106: 0 | CP106: 2 | CQ106: 0 | CR106: 1 | CS106: 0 | CT106: 0 | CU106: 0 | CV106: 0 | CW106: 0 | CX106: 0 | CY106: 0 | CZ106: 0 | DA106: 0 | DB106: 0 | DC106: 0 | DD106: 0 | DE106: 0 | DF106: 0 | DG106: 0 | DH106: 0 | DI106: 0 | DJ106: 0 | DK106: 0 | DL106: 0 | DM106: 0 | DN106: 0 | DO106: 0 | DP106: 0 | DQ106: 0 | DR106: 0 | DS106: 0 | DT106: 0 | DU106: 0 | DV106: 0 | DW106: 0 | DX106: 0 | DY106: 0 | DZ106: 0 | EA106: 0 | EB106: 0 | EC106: 0 | ED106: 0 | EE106: 0 | EF106: 0 | EG106: 0 | EH106: 0 | EI106: 0
A107: ED_ASS521_00055 | C107: Pole Mounted ; < = 22kV ; > 60 kVA and < = 600 kVA ; Single Phase | E107: DNSP NAME | F107: REPEX | G107: TRANSFORMERS | H107: Pole Mounted ; < = 22kV ; > 60 kVA and < = 600 kVA ; Single Phase | I107: DESCRIPTOR METRIC | J107: MEAN ECONOMIC LIFE | K107: YEARS | L107: NUMBER | N107: 50 | Y107: 7.071067812 | AJ107: 0 | AK107: 4 | AL107: 6 | AM107: 4 | AN107: 0 | AO107: 5 | AP107: 5 | AQ107: 1 | AR107: 3 | AS107: 3 | AT107: 4 | AU107: 1 | AV107: 11 | AW107: 4 | AX107: 5 | AY107: 3 | AZ107: 5 | BA107: 5 | BB107: 0 | BC107: 3 | BD107: 1 | BE107: 1 | BF107: 1 | BG107: 1 | BH107: 3 | BI107: 2 | BJ107: 1 | BK107: 6 | BL107: 2 | BM107: 0 | BN107: 2 | BO107: 2 | BP107: 0 | BQ107: 1 | BR107: 0 | BS107: 1 | BT107: 1 | BU107: 0 | BV107: 1 | BW107: 0 | BX107: 0 | BY107: 0 | BZ107: 0 | CA107: 0 | CB107: 0 | CC107: 0 | CD107: 0 | CE107: 0 | CF107: 0 | CG107: 0 | CH107: 0 | CI107: 0 | CJ107: 0 | CK107: 0 | CL107: 0 | CM107: 0 | CN107: 0 | CO107: 0 | CP107: 0 | CQ107: 0 | CR107: 0 | CS107: 0 | CT107: 0 | CU107: 0 | CV107: 0 | CW107: 0 | CX107: 0 | CY107: 0 | CZ107: 0 | DA107: 0 | DB107: 0 | DC107: 0 | DD107: 0 | DE107: 0 | DF107: 0 | DG107: 0 | DH107: 0 | DI107: 0 | DJ107: 0 | DK107: 0 | DL107: 0 | DM107: 0 | DN107: 0 | DO107: 0 | DP107: 0 | DQ107: 0 | DR107: 0 | DS107: 0 | DT107: 0 | DU107: 0 | DV107: 0 | DW107: 0 | DX107: 0 | DY107: 0 | DZ107: 0 | EA107: 0 | EB107: 0 | EC107: 0 | ED107: 0 | EE107: 0 | EF107: 0 | EG107: 0 | EH107: 0 | EI107: 0
A108: ED_ASS521_00056 | C108: Pole Mounted ; < = 22kV ; > 600 kVA ; Single Phase | E108: DNSP NAME | F108: REPEX | G108: TRANSFORMERS | H108: Pole Mounted ; < = 22kV ; > 600 kVA ; Single Phase | I108: DESCRIPTOR METRIC | J108: MEAN ECONOMIC LIFE | K108: YEARS | L108: NUMBER | N108: 0 | Y108: 0 | AJ108: 0 | AK108: 0 | AL108: 0 | AM108: 0 | AN108: 0 | AO108: 0 | AP108: 0 | AQ108: 0 | AR108: 0 | AS108: 0 | AT108: 0 | AU108: 0 | AV108: 0 | AW108: 0 | AX108: 0 | AY108: 0 | AZ108: 0 | BA108: 0 | BB108: 0 | BC108: 0 | BD108: 0 | BE108: 0 | BF108: 0 | BG108: 0 | BH108: 0 | BI108: 0 | BJ108: 0 | BK108: 0 | BL108: 0 | BM108: 0 | BN108: 0 | BO108: 0 | BP108: 0 | BQ108: 0 | BR108: 0 | BS108: 0 | BT108: 0 | BU108: 0 | BV108: 0 | BW108: 0 | BX108: 0 | BY108: 0 | BZ108: 0 | CA108: 0 | CB108: 0 | CC108: 0 | CD108: 0 | CE108: 0 | CF108: 0 | CG108: 0 | CH108: 0 | CI108: 0 | CJ108: 0 | CK108: 0 | CL108: 0 | CM108: 0 | CN108: 0 | CO108: 0 | CP108: 0 | CQ108: 0 | CR108: 0 | CS108: 0 | CT108: 0 | CU108: 0 | CV108: 0 | CW108: 0 | CX108: 0 | CY108: 0 | CZ108: 0 | DA108: 0 | DB108: 0 | DC108: 0 | DD108: 0 | DE108: 0 | DF108: 0 | DG108: 0 | DH108: 0 | DI108: 0 | DJ108: 0 | DK108: 0 | DL108: 0 | DM108: 0 | DN108: 0 | DO108: 0 | DP108: 0 | DQ108: 0 | DR108: 0 | DS108: 0 | DT108: 0 | DU108: 0 | DV108: 0 | DW108: 0 | DX108: 0 | DY108: 0 | DZ108: 0 | EA108: 0 | EB108: 0 | EC108: 0 | ED108: 0 | EE108: 0 | EF108: 0 | EG108: 0 | EH108: 0 | EI108: 0
A109: ED_ASS521_00057 | C109: Pole Mounted ; < = 22kV ; < = 60 kVA ; Multiple Phase | E109: DNSP NAME | F109: REPEX | G109: TRANSFORMERS | H109: Pole Mounted ; < = 22kV ; < = 60 kVA ; Multiple Phase | I109: DESCRIPTOR METRIC | J109: MEAN ECONOMIC LIFE | K109: YEARS | L109: NUMBER | N109: 50 | Y109: 7.071067812 | AJ109: 2 | AK109: 7 | AL109: 5 | AM109: 7 | AN109: 5 | AO109: 11 | AP109: 6 | AQ109: 0 | AR109: 17 | AS109: 15 | AT109: 11 | AU109: 12 | AV109: 11 | AW109: 17 | AX109: 28 | AY109: 26 | AZ109: 13 | BA109: 13 | BB109: 15 | BC109: 14 | BD109: 24 | BE109: 9 | BF109: 13 | BG109: 16 | BH109: 43 | BI109: 39 | BJ109: 26 | BK109: 24 | BL109: 37 | BM109: 23 | BN109: 23 | BO109: 11 | BP109: 8 | BQ109: 17 | BR109: 11 | BS109: 13 | BT109: 9 | BU109: 10 | BV109: 16 | BW109: 5 | BX109: 4 | BY109: 10 | BZ109: 5 | CA109: 7 | CB109: 11 | CC109: 3 | CD109: 10 | CE109: 3 | CF109: 4 | CG109: 5 | CH109: 2 | CI109: 2 | CJ109: 1 | CK109: 1 | CL109: 1 | CM109: 0 | CN109: 0 | CO109: 1 | CP109: 1 | CQ109: 0 | CR109: 0 | CS109: 0 | CT109: 0 | CU109: 0 | CV109: 0 | CW109: 0 | CX109: 0 | CY109: 0 | CZ109: 0 | DA109: 0 | DB109: 0 | DC109: 0 | DD109: 0 | DE109: 0 | DF109: 0 | DG109: 0 | DH109: 0 | DI109: 1 | DJ109: 0 | DK109: 0 | DL109: 0 | DM109: 0 | DN109: 0 | DO109: 0 | DP109: 0 | DQ109: 0 | DR109: 0 | DS109: 0 | DT109: 0 | DU109: 0 | DV109: 0 | DW109: 0 | DX109: 0 | DY109: 0 | DZ109: 0 | EA109: 0 | EB109: 0 | EC109: 0 | ED109: 0 | EE109: 0 | EF109: 0 | EG109: 0 | EH109: 0 | EI109: 0
A110: ED_ASS521_00058 | C110: Pole Mounted ; < = 22kV ; > 60 kVA and < = 600 kVA ; Multiple Phase | E110: DNSP NAME | F110: REPEX | G110: TRANSFORMERS | H110: Pole Mounted ; < = 22kV ; > 60 kVA and < = 600 kVA ; Multiple Phase | I110: DESCRIPTOR METRIC | J110: MEAN ECONOMIC LIFE | K110: YEARS | L110: NUMBER | N110: 50 | Y110: 7.071067812 | AJ110: 215 | AK110: 300 | AL110: 300 | AM110: 208 | AN110: 232 | AO110: 617 | AP110: 298 | AQ110: 272 | AR110: 270 | AS110: 107 | AT110: 212 | AU110: 204 | AV110: 203 | AW110: 218 | AX110: 122 | AY110: 104 | AZ110: 80 | BA110: 60 | BB110: 36 | BC110: 51 | BD110: 67 | BE110: 82 | BF110: 64 | BG110: 75 | BH110: 161 | BI110: 156 | BJ110: 172 | BK110: 143 | BL110: 165 | BM110: 125 | BN110: 89 | BO110: 84 | BP110: 96 | BQ110: 85 | BR110: 88 | BS110: 100 | BT110: 119 | BU110: 153 | BV110: 151 | BW110: 75 | BX110: 56 | BY110: 82 | BZ110: 62 | CA110: 64 | CB110: 89 | CC110: 26 | CD110: 45 | CE110: 63 | CF110: 56 | CG110: 36 | CH110: 31 | CI110: 35 | CJ110: 24 | CK110: 17 | CL110: 33 | CM110: 12 | CN110: 7 | CO110: 3 | CP110: 4 | CQ110: 4 | CR110: 2 | CS110: 2 | CT110: 0 | CU110: 0 | CV110: 1 | CW110: 0 | CX110: 0 | CY110: 0 | CZ110: 0 | DA110: 0 | DB110: 0 | DC110: 0 | DD110: 0 | DE110: 0 | DF110: 0 | DG110: 0 | DH110: 1 | DI110: 0 | DJ110: 0 | DK110: 0 | DL110: 0 | DM110: 0 | DN110: 0 | DO110: 0 | DP110: 0 | DQ110: 0 | DR110: 0 | DS110: 0 | DT110: 0 | DU110: 0 | DV110: 0 | DW110: 0 | DX110: 0 | DY110: 0 | DZ110: 0 | EA110: 0 | EB110: 0 | EC110: 0 | ED110: 0 | EE110: 0 | EF110: 0 | EG110: 0 | EH110: 0 | EI110: 0
A111: ED_ASS521_00059 | C111: Pole Mounted ; < = 22kV ; > 600 kVA ; Multiple Phase | E111: DNSP NAME | F111: REPEX | G111: TRANSFORMERS | H111: Pole Mounted ; < = 22kV ; > 600 kVA ; Multiple Phase | I111: DESCRIPTOR METRIC | J111: MEAN ECONOMIC LIFE | K111: YEARS | L111: NUMBER | N111: 50 | Y111: 7.071067812 | AJ111: 0 | AK111: 0 | AL111: 0 | AM111: 0 | AN111: 0 | AO111: 0 | AP111: 0 | AQ111: 0 | AR111: 0 | AS111: 0 | AT111: 0 | AU111: 0 | AV111: 0 | AW111: 1 | AX111: 0 | AY111: 0 | AZ111: 0 | BA111: 0 | BB111: 0 | BC111: 0 | BD111: 0 | BE111: 0 | BF111: 0 | BG111: 0 | BH111: 0 | BI111: 0 | BJ111: 0 | BK111: 0 | BL111: 0 | BM111: 0 | BN111: 0 | BO111: 0 | BP111: 0 | BQ111: 0 | BR111: 0 | BS111: 0 | BT111: 0 | BU111: 0 | BV111: 0 | BW111: 1 | BX111: 0 | BY111: 1 | BZ111: 0 | CA111: 0 | CB111: 1 | CC111: 0 | CD111: 0 | CE111: 0 | CF111: 0 | CG111: 0 | CH111: 0 | CI111: 0 | CJ111: 0 | CK111: 0 | CL111: 0 | CM111: 0 | CN111: 0 | CO111: 0 | CP111: 0 | CQ111: 0 | CR111: 0 | CS111: 0 | CT111: 0 | CU111: 0 | CV111: 0 | CW111: 0 | CX111: 0 | CY111: 0 | CZ111: 0 | DA111: 0 | DB111: 0 | DC111: 0 | DD111: 0 | DE111: 0 | DF111: 0 | DG111: 0 | DH111: 0 | DI111: 0 | DJ111: 0 | DK111: 0 | DL111: 0 | DM111: 0 | DN111: 0 | DO111: 0 | DP111: 0 | DQ111: 0 | DR111: 0 | DS111: 0 | DT111: 0 | DU111: 0 | DV111: 0 | DW111: 0 | DX111: 0 | DY111: 0 | DZ111: 0 | EA111: 0 | EB111: 0 | EC111: 0 | ED111: 0 | EE111: 0 | EF111: 0 | EG111: 0 | EH111: 0 | EI111: 0
A112: ED_ASS521_00060 | C112: Kiosk Mounted ; < = 22kV ; < = 60 kVA ; Single Phase | N112: 50 | Y112: 7.071067812 | AJ112: 0 | AK112: 0 | AL112: 0 | AM112: 0 | AN112: 0 | AO112: 0 | AP112: 0 | AQ112: 0 | AR112: 0 | AS112: 0 | AT112: 0 | AU112: 0 | AV112: 0 | AW112: 0 | AX112: 1 | AY112: 0 | AZ112: 0 | BA112: 0 | BB112: 0 | BC112: 0 | BD112: 0 | BE112: 0 | BF112: 0 | BG112: 0 | BH112: 0 | BI112: 0 | BJ112: 0 | BK112: 0 | BL112: 0 | BM112: 0 | BN112: 0 | BO112: 0 | BP112: 0 | BQ112: 0 | BR112: 0 | BS112: 0 | BT112: 0 | BU112: 0 | BV112: 0 | BW112: 0 | BX112: 0 | BY112: 0 | BZ112: 0 | CA112: 0 | CB112: 0 | CC112: 0 | CD112: 0 | CE112: 0 | CF112: 0 | CG112: 0 | CH112: 0 | CI112: 0 | CJ112: 0 | CK112: 0 | CL112: 0 | CM112: 0 | CN112: 0 | CO112: 0 | CP112: 0 | CQ112: 0 | CR112: 0 | CS112: 0 | CT112: 0 | CU112: 0 | CV112: 0 | CW112: 0 | CX112: 0 | CY112: 0 | CZ112: 0 | DA112: 0 | DB112: 0 | DC112: 0 | DD112: 0 | DE112: 0 | DF112: 0 | DG112: 0 | DH112: 0 | DI112: 0 | DJ112: 0 | DK112: 0 | DL112: 0 | DM112: 0 | DN112: 0 | DO112: 0 | DP112: 0 | DQ112: 0 | DR112: 0 | DS112: 0 | DT112: 0 | DU112: 0 | DV112: 0 | DW112: 0 | DX112: 0 | DY112: 0 | DZ112: 0 | EA112: 0 | EB112: 0 | EC112: 0 | ED112: 0 | EE112: 0 | EF112: 0 | EG112: 0 | EH112: 0 | EI112: 0
A113: ED_ASS521_00061 | C113: Kiosk Mounted ; < = 22kV ; > 60 kVA and < = 600 kVA ; Single Phase | N113: 50 | Y113: 7.071067812 | AJ113: 0 | AK113: 0 | AL113: 0 | AM113: 0 | AN113: 0 | AO113: 0 | AP113: 0 | AQ113: 0 | AR113: 0 | AS113: 1 | AT113: 0 | AU113: 0 | AV113: 0 | AW113: 1 | AX113: 2 | AY113: 0 | AZ113: 0 | BA113: 0 | BB113: 0 | BC113: 0 | BD113: 0 | BE113: 0 | BF113: 0 | BG113: 0 | BH113: 1 | BI113: 0 | BJ113: 0 | BK113: 0 | BL113: 0 | BM113: 0 | BN113: 0 | BO113: 0 | BP113: 0 | BQ113: 0 | BR113: 0 | BS113: 0 | BT113: 0 | BU113: 0 | BV113: 0 | BW113: 0 | BX113: 0 | BY113: 0 | BZ113: 0 | CA113: 0 | CB113: 0 | CC113: 0 | CD113: 0 | CE113: 0 | CF113: 0 | CG113: 0 | CH113: 0 | CI113: 0 | CJ113: 0 | CK113: 0 | CL113: 0 | CM113: 0 | CN113: 0 | CO113: 0 | CP113: 0 | CQ113: 0 | CR113: 0 | CS113: 0 | CT113: 0 | CU113: 0 | CV113: 0 | CW113: 0 | CX113: 0 | CY113: 0 | CZ113: 0 | DA113: 0 | DB113: 0 | DC113: 0 | DD113: 0 | DE113: 0 | DF113: 0 | DG113: 0 | DH113: 0 | DI113: 0 | DJ113: 0 | DK113: 0 | DL113: 0 | DM113: 0 | DN113: 0 | DO113: 0 | DP113: 0 | DQ113: 0 | DR113: 0 | DS113: 0 | DT113: 0 | DU113: 0 | DV113: 0 | DW113: 0 | DX113: 0 | DY113: 0 | DZ113: 0 | EA113: 0 | EB113: 0 | EC113: 0 | ED113: 0 | EE113: 0 | EF113: 0 | EG113: 0 | EH113: 0 | EI113: 0
A114: ED_ASS521_00062 | C114: Kiosk Mounted ; < = 22kV ; > 600 kVA ; Single Phase | N114: 0 | Y114: 0 | AJ114: 0 | AK114: 0 | AL114: 0 | AM114: 0 | AN114: 0 | AO114: 0 | AP114: 0 | AQ114: 0 | AR114: 0 | AS114: 0 | AT114: 0 | AU114: 0 | AV114: 0 | AW114: 0 | AX114: 0 | AY114: 0 | AZ114: 0 | BA114: 0 | BB114: 0 | BC114: 0 | BD114: 0 | BE114: 0 | BF114: 0 | BG114: 0 | BH114: 0 | BI114: 0 | BJ114: 0 | BK114: 0 | BL114: 0 | BM114: 0 | BN114: 0 | BO114: 0 | BP114: 0 | BQ114: 0 | BR114: 0 | BS114: 0 | BT114: 0 | BU114: 0 | BV114: 0 | BW114: 0 | BX114: 0 | BY114: 0 | BZ114: 0 | CA114: 0 | CB114: 0 | CC114: 0 | CD114: 0 | CE114: 0 | CF114: 0 | CG114: 0 | CH114: 0 | CI114: 0 | CJ114: 0 | CK114: 0 | CL114: 0 | CM114: 0 | CN114: 0 | CO114: 0 | CP114: 0 | CQ114: 0 | CR114: 0 | CS114: 0 | CT114: 0 | CU114: 0 | CV114: 0 | CW114: 0 | CX114: 0 | CY114: 0 | CZ114: 0 | DA114: 0 | DB114: 0 | DC114: 0 | DD114: 0 | DE114: 0 | DF114: 0 | DG114: 0 | DH114: 0 | DI114: 0 | DJ114: 0 | DK114: 0 | DL114: 0 | DM114: 0 | DN114: 0 | DO114: 0 | DP114: 0 | DQ114: 0 | DR114: 0 | DS114: 0 | DT114: 0 | DU114: 0 | DV114: 0 | DW114: 0 | DX114: 0 | DY114: 0 | DZ114: 0 | EA114: 0 | EB114: 0 | EC114: 0 | ED114: 0 | EE114: 0 | EF114: 0 | EG114: 0 | EH114: 0 | EI114: 0
A115: ED_ASS521_00063 | C115: Kiosk Mounted ; < = 22kV ; < = 60 kVA ; Multiple Phase | N115: 50 | Y115: 7.071067812 | AJ115: 0 | AK115: 0 | AL115: 0 | AM115: 0 | AN115: 0 | AO115: 0 | AP115: 0 | AQ115: 0 | AR115: 0 | AS115: 0 | AT115: 0 | AU115: 1 | AV115: 0 | AW115: 0 | AX115: 0 | AY115: 0 | AZ115: 1 | BA115: 0 | BB115: 0 | BC115: 0 | BD115: 0 | BE115: 1 | BF115: 0 | BG115: 0 | BH115: 0 | BI115: 0 | BJ115: 0 | BK115: 0 | BL115: 0 | BM115: 0 | BN115: 0 | BO115: 0 | BP115: 0 | BQ115: 0 | BR115: 0 | BS115: 0 | BT115: 0 | BU115: 0 | BV115: 0 | BW115: 0 | BX115: 0 | BY115: 0 | BZ115: 0 | CA115: 0 | CB115: 0 | CC115: 0 | CD115: 0 | CE115: 0 | CF115: 0 | CG115: 0 | CH115: 0 | CI115: 0 | CJ115: 0 | CK115: 0 | CL115: 0 | CM115: 0 | CN115: 0 | CO115: 0 | CP115: 0 | CQ115: 0 | CR115: 0 | CS115: 0 | CT115: 0 | CU115: 0 | CV115: 0 | CW115: 0 | CX115: 0 | CY115: 0 | CZ115: 0 | DA115: 0 | DB115: 0 | DC115: 0 | DD115: 0 | DE115: 0 | DF115: 0 | DG115: 0 | DH115: 0 | DI115: 0 | DJ115: 0 | DK115: 0 | DL115: 0 | DM115: 0 | DN115: 0 | DO115: 0 | DP115: 0 | DQ115: 0 | DR115: 0 | DS115: 0 | DT115: 0 | DU115: 0 | DV115: 0 | DW115: 0 | DX115: 0 | DY115: 0 | DZ115: 0 | EA115: 0 | EB115: 0 | EC115: 0 | ED115: 0 | EE115: 0 | EF115: 0 | EG115: 0 | EH115: 0 | EI115: 0
A116: ED_ASS521_00064 | C116: Kiosk Mounted ; < = 22kV ; > 60 kVA and < = 600 kVA ; Multiple Phase | N116: 50 | Y116: 7.071067812 | AJ116: 50 | AK116: 64 | AL116: 58 | AM116: 57 | AN116: 53 | AO116: 98 | AP116: 62 | AQ116: 59 | AR116: 63 | AS116: 59 | AT116: 53 | AU116: 69 | AV116: 82 | AW116: 46 | AX116: 49 | AY116: 38 | AZ116: 33 | BA116: 34 | BB116: 19 | BC116: 27 | BD116: 27 | BE116: 21 | BF116: 24 | BG116: 27 | BH116: 42 | BI116: 39 | BJ116: 38 | BK116: 30 | BL116: 36 | BM116: 23 | BN116: 24 | BO116: 16 | BP116: 17 | BQ116: 16 | BR116: 13 | BS116: 22 | BT116: 37 | BU116: 19 | BV116: 16 | BW116: 8 | BX116: 6 | BY116: 5 | BZ116: 1 | CA116: 0 | CB116: 5 | CC116: 0 | CD116: 0 | CE116: 0 | CF116: 0 | CG116: 0 | CH116: 0 | CI116: 0 | CJ116: 0 | CK116: 0 | CL116: 0 | CM116: 0 | CN116: 0 | CO116: 0 | CP116: 0 | CQ116: 0 | CR116: 0 | CS116: 0 | CT116: 0 | CU116: 0 | CV116: 0 | CW116: 0 | CX116: 0 | CY116: 0 | CZ116: 0 | DA116: 0 | DB116: 0 | DC116: 0 | DD116: 0 | DE116: 0 | DF116: 0 | DG116: 0 | DH116: 0 | DI116: 0 | DJ116: 0 | DK116: 0 | DL116: 0 | DM116: 0 | DN116: 0 | DO116: 0 | DP116: 0 | DQ116: 0 | DR116: 0 | DS116: 0 | DT116: 0 | DU116: 0 | DV116: 0 | DW116: 0 | DX116: 0 | DY116: 0 | DZ116: 0 | EA116: 0 | EB116: 0 | EC116: 0 | ED116: 0 | EE116: 0 | EF116: 0 | EG116: 0 | EH116: 0 | EI116: 0
A117: ED_ASS521_00065 | C117: Kiosk Mounted ; < = 22kV ; > 600 kVA ; Multiple Phase | N117: 50 | Y117: 7.071067812 | AJ117: 16 | AK117: 36 | AL117: 38 | AM117: 34 | AN117: 30 | AO117: 28 | AP117: 42 | AQ117: 37 | AR117: 37 | AS117: 28 | AT117: 29 | AU117: 17 | AV117: 17 | AW117: 19 | AX117: 10 | AY117: 2 | AZ117: 7 | BA117: 4 | BB117: 7 | BC117: 6 | BD117: 9 | BE117: 3 | BF117: 2 | BG117: 4 | BH117: 2 | BI117: 4 | BJ117: 2 | BK117: 5 | BL117: 0 | BM117: 2 | BN117: 3 | BO117: 1 | BP117: 1 | BQ117: 0 | BR117: 0 | BS117: 1 | BT117: 1 | BU117: 0 | BV117: 1 | BW117: 0 | BX117: 1 | BY117: 0 | BZ117: 0 | CA117: 0 | CB117: 1 | CC117: 0 | CD117: 0 | CE117: 0 | CF117: 0 | CG117: 0 | CH117: 0 | CI117: 0 | CJ117: 0 | CK117: 0 | CL117: 0 | CM117: 0 | CN117: 0 | CO117: 0 | CP117: 0 | CQ117: 0 | CR117: 0 | CS117: 0 | CT117: 0 | CU117: 0 | CV117: 0 | CW117: 0 | CX117: 0 | CY117: 0 | CZ117: 0 | DA117: 0 | DB117: 0 | DC117: 0 | DD117: 0 | DE117: 0 | DF117: 0 | DG117: 0 | DH117: 0 | DI117: 0 | DJ117: 0 | DK117: 0 | DL117: 0 | DM117: 0 | DN117: 0 | DO117: 0 | DP117: 0 | DQ117: 0 | DR117: 0 | DS117: 0 | DT117: 0 | DU117: 0 | DV117: 0 | DW117: 0 | DX117: 0 | DY117: 0 | DZ117: 0 | EA117: 0 | EB117: 0 | EC117: 0 | ED117: 0 | EE117: 0 | EF117: 0 | EG117: 0 | EH117: 0 | EI117: 0
A118: ED_ASS521_00066 | C118: Ground Outdoor / Indoor Chamber Mounted; ˂ 22 kV ; < = 60 kVA ; Single Phase | N118: 0 | Y118: 0 | AJ118: 0 | AK118: 0 | AL118: 0 | AM118: 0 | AN118: 0 | AO118: 0 | AP118: 0 | AQ118: 0 | AR118: 0 | AS118: 0 | AT118: 0 | AU118: 0 | AV118: 0 | AW118: 0 | AX118: 0 | AY118: 0 | AZ118: 0 | BA118: 0 | BB118: 0 | BC118: 0 | BD118: 0 | BE118: 0 | BF118: 0 | BG118: 0 | BH118: 0 | BI118: 0 | BJ118: 0 | BK118: 0 | BL118: 0 | BM118: 0 | BN118: 0 | BO118: 0 | BP118: 0 | BQ118: 0 | BR118: 0 | BS118: 0 | BT118: 0 | BU118: 0 | BV118: 0 | BW118: 0 | BX118: 0 | BY118: 0 | BZ118: 0 | CA118: 0 | CB118: 0 | CC118: 0 | CD118: 0 | CE118: 0 | CF118: 0 | CG118: 0 | CH118: 0 | CI118: 0 | CJ118: 0 | CK118: 0 | CL118: 0 | CM118: 0 | CN118: 0 | CO118: 0 | CP118: 0 | CQ118: 0 | CR118: 0 | CS118: 0 | CT118: 0 | CU118: 0 | CV118: 0 | CW118: 0 | CX118: 0 | CY118: 0 | CZ118: 0 | DA118: 0 | DB118: 0 | DC118: 0 | DD118: 0 | DE118: 0 | DF118: 0 | DG118: 0 | DH118: 0 | DI118: 0 | DJ118: 0 | DK118: 0 | DL118: 0 | DM118: 0 | DN118: 0 | DO118: 0 | DP118: 0 | DQ118: 0 | DR118: 0 | DS118: 0 | DT118: 0 | DU118: 0 | DV118: 0 | DW118: 0 | DX118: 0 | DY118: 0 | DZ118: 0 | EA118: 0 | EB118: 0 | EC118: 0 | ED118: 0 | EE118: 0 | EF118: 0 | EG118: 0 | EH118: 0 | EI118: 0
A119: ED_ASS521_00067 | C119: Ground Outdoor / Indoor Chamber Mounted; ˂ 22 kV ; > 60 kVA and < = 600 kVA ; Single Phase | N119: 0 | Y119: 0 | AJ119: 0 | AK119: 0 | AL119: 0 | AM119: 0 | AN119: 0 | AO119: 0 | AP119: 0 | AQ119: 0 | AR119: 0 | AS119: 0 | AT119: 0 | AU119: 0 | AV119: 0 | AW119: 0 | AX119: 0 | AY119: 0 | AZ119: 0 | BA119: 0 | BB119: 0 | BC119: 0 | BD119: 0 | BE119: 0 | BF119: 0 | BG119: 0 | BH119: 0 | BI119: 0 | BJ119: 0 | BK119: 0 | BL119: 0 | BM119: 0 | BN119: 0 | BO119: 0 | BP119: 0 | BQ119: 0 | BR119: 0 | BS119: 0 | BT119: 0 | BU119: 0 | BV119: 0 | BW119: 0 | BX119: 0 | BY119: 0 | BZ119: 0 | CA119: 0 | CB119: 0 | CC119: 0 | CD119: 0 | CE119: 0 | CF119: 0 | CG119: 0 | CH119: 0 | CI119: 0 | CJ119: 0 | CK119: 0 | CL119: 0 | CM119: 0 | CN119: 0 | CO119: 0 | CP119: 0 | CQ119: 0 | CR119: 0 | CS119: 0 | CT119: 0 | CU119: 0 | CV119: 0 | CW119: 0 | CX119: 0 | CY119: 0 | CZ119: 0 | DA119: 0 | DB119: 0 | DC119: 0 | DD119: 0 | DE119: 0 | DF119: 0 | DG119: 0 | DH119: 0 | DI119: 0 | DJ119: 0 | DK119: 0 | DL119: 0 | DM119: 0 | DN119: 0 | DO119: 0 | DP119: 0 | DQ119: 0 | DR119: 0 | DS119: 0 | DT119: 0 | DU119: 0 | DV119: 0 | DW119: 0 | DX119: 0 | DY119: 0 | DZ119: 0 | EA119: 0 | EB119: 0 | EC119: 0 | ED119: 0 | EE119: 0 | EF119: 0 | EG119: 0 | EH119: 0 | EI119: 0
A120: ED_ASS521_00068 | C120: Ground Outdoor / Indoor Chamber Mounted; ˂ 22 kV ; > 600 kVA ; Single Phase | N120: 50 | Y120: 7.071067812 | AJ120: 0 | AK120: 0 | AL120: 1 | AM120: 0 | AN120: 0 | AO120: 0 | AP120: 0 | AQ120: 0 | AR120: 0 | AS120: 0 | AT120: 0 | AU120: 0 | AV120: 0 | AW120: 0 | AX120: 0 | AY120: 0 | AZ120: 0 | BA120: 0 | BB120: 0 | BC120: 0 | BD120: 0 | BE120: 0 | BF120: 0 | BG120: 0 | BH120: 0 | BI120: 0 | BJ120: 0 | BK120: 0 | BL120: 0 | BM120: 0 | BN120: 0 | BO120: 0 | BP120: 0 | BQ120: 0 | BR120: 0 | BS120: 0 | BT120: 0 | BU120: 0 | BV120: 0 | BW120: 0 | BX120: 0 | BY120: 0 | BZ120: 0 | CA120: 0 | CB120: 0 | CC120: 0 | CD120: 0 | CE120: 0 | CF120: 0 | CG120: 0 | CH120: 0 | CI120: 0 | CJ120: 0 | CK120: 0 | CL120: 0 | CM120: 0 | CN120: 0 | CO120: 0 | CP120: 0 | CQ120: 0 | CR120: 0 | CS120: 0 | CT120: 0 | CU120: 0 | CV120: 0 | CW120: 0 | CX120: 0 | CY120: 0 | CZ120: 0 | DA120: 0 | DB120: 0 | DC120: 0 | DD120: 0 | DE120: 0 | DF120: 0 | DG120: 0 | DH120: 0 | DI120: 0 | DJ120: 0 | DK120: 0 | DL120: 0 | DM120: 0 | DN120: 0 | DO120: 0 | DP120: 0 | DQ120: 0 | DR120: 0 | DS120: 0 | DT120: 0 | DU120: 0 | DV120: 0 | DW120: 0 | DX120: 0 | DY120: 0 | DZ120: 0 | EA120: 0 | EB120: 0 | EC120: 0 | ED120: 0 | EE120: 0 | EF120: 0 | EG120: 0 | EH120: 0 | EI120: 0
A121: ED_ASS521_00069 | C121: Ground Outdoor / Indoor Chamber Mounted; ˂ 22 kV ; < = 60 kVA ; Multiple Phase | N121: 50 | Y121: 7.071067812 | AJ121: 0 | AK121: 0 | AL121: 0 | AM121: 0 | AN121: 0 | AO121: 0 | AP121: 0 | AQ121: 0 | AR121: 0 | AS121: 0 | AT121: 0 | AU121: 0 | AV121: 0 | AW121: 0 | AX121: 0 | AY121: 0 | AZ121: 0 | BA121: 0 | BB121: 0 | BC121: 0 | BD121: 0 | BE121: 0 | BF121: 0 | BG121: 0 | BH121: 0 | BI121: 0 | BJ121: 0 | BK121: 0 | BL121: 0 | BM121: 0 | BN121: 0 | BO121: 0 | BP121: 1 | BQ121: 0 | BR121: 0 | BS121: 0 | BT121: 0 | BU121: 0 | BV121: 0 | BW121: 0 | BX121: 0 | BY121: 0 | BZ121: 0 | CA121: 0 | CB121: 0 | CC121: 0 | CD121: 0 | CE121: 0 | CF121: 0 | CG121: 0 | CH121: 0 | CI121: 0 | CJ121: 0 | CK121: 0 | CL121: 0 | CM121: 0 | CN121: 0 | CO121: 0 | CP121: 0 | CQ121: 0 | CR121: 0 | CS121: 0 | CT121: 0 | CU121: 0 | CV121: 0 | CW121: 0 | CX121: 0 | CY121: 0 | CZ121: 0 | DA121: 0 | DB121: 0 | DC121: 0 | DD121: 0 | DE121: 0 | DF121: 0 | DG121: 0 | DH121: 0 | DI121: 0 | DJ121: 0 | DK121: 0 | DL121: 0 | DM121: 0 | DN121: 0 | DO121: 0 | DP121: 0 | DQ121: 0 | DR121: 0 | DS121: 0 | DT121: 0 | DU121: 0 | DV121: 0 | DW121: 0 | DX121: 0 | DY121: 0 | DZ121: 0 | EA121: 0 | EB121: 0 | EC121: 0 | ED121: 0 | EE121: 0 | EF121: 0 | EG121: 0 | EH121: 0 | EI121: 0
A122: ED_ASS521_00070 | C122: Ground Outdoor / Indoor Chamber Mounted; ˂ 22 kV ; > 60 kVA and < = 600 kVA ; Multiple Phase | N122: 50 | Y122: 7.071067812 | AJ122: 12 | AK122: 14 | AL122: 17 | AM122: 8 | AN122: 15 | AO122: 9 | AP122: 3 | AQ122: 6 | AR122: 1 | AS122: 3 | AT122: 6 | AU122: 6 | AV122: 3 | AW122: 12 | AX122: 9 | AY122: 11 | AZ122: 12 | BA122: 12 | BB122: 6 | BC122: 12 | BD122: 24 | BE122: 13 | BF122: 20 | BG122: 9 | BH122: 44 | BI122: 42 | BJ122: 51 | BK122: 43 | BL122: 23 | BM122: 21 | BN122: 26 | BO122: 22 | BP122: 23 | BQ122: 26 | BR122: 19 | BS122: 35 | BT122: 19 | BU122: 30 | BV122: 20 | BW122: 24 | BX122: 13 | BY122: 19 | BZ122: 26 | CA122: 16 | CB122: 15 | CC122: 12 | CD122: 11 | CE122: 9 | CF122: 3 | CG122: 6 | CH122: 3 | CI122: 1 | CJ122: 4 | CK122: 1 | CL122: 0 | CM122: 2 | CN122: 0 | CO122: 0 | CP122: 3 | CQ122: 4 | CR122: 3 | CS122: 0 | CT122: 0 | CU122: 2 | CV122: 2 | CW122: 1 | CX122: 0 | CY122: 0 | CZ122: 1 | DA122: 0 | DB122: 0 | DC122: 0 | DD122: 0 | DE122: 0 | DF122: 0 | DG122: 0 | DH122: 0 | DI122: 0 | DJ122: 0 | DK122: 0 | DL122: 0 | DM122: 0 | DN122: 0 | DO122: 0 | DP122: 0 | DQ122: 0 | DR122: 0 | DS122: 0 | DT122: 0 | DU122: 0 | DV122: 0 | DW122: 0 | DX122: 0 | DY122: 0 | DZ122: 0 | EA122: 0 | EB122: 0 | EC122: 0 | ED122: 0 | EE122: 0 | EF122: 0 | EG122: 0 | EH122: 0 | EI122: 0
A123: ED_ASS521_00071 | C123: Ground Outdoor / Indoor Chamber Mounted; ˂ 22 kV ; > 600 kVA ; Multiple Phase | N123: 50 | Y123: 7.071067812 | AJ123: 13 | AK123: 22 | AL123: 38 | AM123: 15 | AN123: 22 | AO123: 32 | AP123: 33 | AQ123: 25 | AR123: 34 | AS123: 23 | AT123: 19 | AU123: 28 | AV123: 28 | AW123: 25 | AX123: 28 | AY123: 20 | AZ123: 40 | BA123: 14 | BB123: 11 | BC123: 27 | BD123: 45 | BE123: 24 | BF123: 26 | BG123: 30 | BH123: 47 | BI123: 52 | BJ123: 43 | BK123: 52 | BL123: 36 | BM123: 34 | BN123: 30 | BO123: 21 | BP123: 24 | BQ123: 14 | BR123: 24 | BS123: 15 | BT123: 15 | BU123: 8 | BV123: 15 | BW123: 12 | BX123: 9 | BY123: 12 | BZ123: 7 | CA123: 3 | CB123: 14 | CC123: 0 | CD123: 3 | CE123: 2 | CF123: 5 | CG123: 3 | CH123: 5 | CI123: 1 | CJ123: 0 | CK123: 1 | CL123: 2 | CM123: 0 | CN123: 0 | CO123: 0 | CP123: 1 | CQ123: 0 | CR123: 0 | CS123: 0 | CT123: 6 | CU123: 0 | CV123: 0 | CW123: 1 | CX123: 0 | CY123: 0 | CZ123: 0 | DA123: 0 | DB123: 0 | DC123: 0 | DD123: 0 | DE123: 0 | DF123: 0 | DG123: 0 | DH123: 0 | DI123: 0 | DJ123: 0 | DK123: 0 | DL123: 0 | DM123: 0 | DN123: 0 | DO123: 0 | DP123: 0 | DQ123: 0 | DR123: 0 | DS123: 0 | DT123: 0 | DU123: 0 | DV123: 0 | DW123: 0 | DX123: 0 | DY123: 0 | DZ123: 0 | EA123: 0 | EB123: 0 | EC123: 0 | ED123: 0 | EE123: 0 | EF123: 0 | EG123: 0 | EH123: 0 | EI123: 0
